Workbook

Sheet README
B2: This spreadsheet is an updated version of the J&E spreadsheet model.
B4: Questions? Please refer to the EPA VI webpage and the J&E user’s guide, available at https://www.epa.gov/vaporintrusion/epa-spreadsheet-modeling-subsurface-vapor-intrusion
B6: Contact Information:
B7: Rich Kapuscinski
B8: Office of Superfund Remediation & Technology Innovation
B9: 703-305-7411
B10: Email: Kapuscinski.Rich@epa.gov
B12: To run this workbook, MACROS MUST BE ENABLED. If you have had the workbook open for an extended time, you may notice that the macros (resetting to defaults, toggling between scenarios) no longer function. In this case, save your work, close, and reopen the workbook. This is a known issue with Excel.
B14: Note: The J&E model does not replace the EPA VISLs. For initial site screening, please refer to the VISL spreadsheet tool:
B15: https://www.epa.gov/vaporintrusion/vapor-intrusion-screening-levels-visls
B17: Instructions for spreadsheet use:
B18: 1. The MODEL tab in the spreadsheet contains the model input and output. For multiple chemicals separate input and output sheets are provided. The other folders contain the look-up information used in the model.
B19: 2. The top portion of the MODEL sheet contains the input parameters. User's should enter site specific parameter values whenever possible!
B20: 3. The solid-line and bold-line outlined boxes, with yellow fill, are cells for which you must provide site-specific information. The text entry cells all have drop down lists and are shown in bold-line outlined boxes. The numeric entry cells all allow direct entry of numeric values. If inconsistent values are entered, an error message appears in the “Comment” field of the spreadsheet.
B21: 4. The dotted-line outlined boxes are cells for which the spreadsheet provides defaults. These default values should be changed if there are site-specific measurements that support the change. If values are entered that are outside the typical range of values, a warning message appears in the “Comment” field of the spreadsheet. Whenever possible, enter site specific data, to ensure the accuracy of the model predictions.
B22: 5. All other cells are locked to prevent accidentally writing over defaults, ranges, or warning messages.
B23: 6. The bottom portion of the spreadsheet contains all intermediate fate and transport calculations, as well as the predicted attenuation factor, indoor air concentration, and risk estimates.
B24: 7. A preview pane is displayed at the top of the model spreadsheet, with the predicted indoor air concentration and attenuation factors from the user specific parameters and defaults.
B25: 8. The reported ranges, throughout the spreadsheet, are based on minimum and maximum values of Qsoil/Qbuilding, as reported in the literature.
B26: 7. Please read the User’s Guide for more information.
B29: Spreadsheets in this workbook
B30: README – instructions and quick workbook overview
B32: Data Entry and Analysis Spreadsheets:
B33: MODEL: Main data entry and output sheet
B34: MEASURED_SOIL_GAS_CONC: Data entry for site specific soil gas concentrations (optional)
B35: MULTI_CHEM_INPUT: Data entry page for evaluating multiple chemicals at once. Note that all building and site parameters must first be entered on the main “model” tab. This sheet is only for entering measured chemical concentrations.
B36: MULTI_CHEM_OUTPUT: Output from the MULTI_CHEM_INPUT page
B37: Converter: Data Entry Tool for Conversion from English to Metric Distance Measurements
B39: Supporting Spreadsheets: These spreadsheets contain the reference information used to populate defaults and ranges on the model tab. These should not be modified and are locked; if you want to change values, please do this on the model tab.
B40: SOIL_DATA: Table of soil properties
B41: CHEM_DATA: Table of physchem data
B42: BLDG_DATA: Table of Building Properties
B43: SOIL_CV_DATA: Table of Coefficients of Variation for Soil Properties
B44: BLDG_CV_DATA: Table of Coefficients of Variation for Building Data
B45: Reference Sources: Reference List for Default Values, Ranges, and CV values
B46: Parameters Summary: Chemical Properties table from EPA RSLs
B47: ToxSummary: Toxicity data from EPA RSLs
B48: Version Notes: Listing of changes and updates to model
B51: Spreadsheet features included in this version
B52: 1. All the model spreadsheets have been combined into a single interface.
B53: 2. Chemical lists and toxicity data were updated to coincide with the May 2017 RSLs.
B54: 3. Incremental risks as well as risk-based screening levels are provided in the output.
B55: 4. Default parameters updated to address recent research and policy.
B56: 5. Results based on default parameters are provided for comparison to results based on site-specific parameters.
B57: 6. The parametric analysis described in Johnson (2002), “Identification of Critical Parameters for the Johnson and Ettinger (1991) Vapor Intrusion Model,” has been incorporated into this spreadsheet.
B58: 7. Significant changes have been made in this version regarding Qsoil and Qsoil/Qbuilding. Please read the section on Qsoil in the user’s guide.
B59: 8. Uncertainty: where available, CVs are reported for default parameters. The spreadsheet also calculates a potential range for attenuation factors, indoor air concentrations, and risk based of the range of Qsoil/Qbuilding values described in the literature.
B60: 9. Concentration profile. A plot of concentration versus depth is included in the model output.
B61: 10. The concentrations for multiple chemicals can be input for a specific sample on the Multi_Chem_Input sheet. All other input parameters must be entered on the Model sheet.
B63: Passwords:
B64: To unlock individual worksheets: "J&E"
B65: To unlock the macros: "BETA"

Sheet MODEL
A1: Preview | E1: Unit | F1: Value | G1: Range | H1: Default | I1: Default Range | K1: =IF(LEN(IFERROR(alpha_range, "uhoh"))<10,"Warning: Some versions of excel do not support the CONCATENATE function, so the range values will appear broken. To fix, either upgrade your version of Excel (preferred) or replace all occurences of 'CONCATENATE' with 'CONCAT.'","") ->  | Q1: Range Min | R1: Range Max | S1: Default Min | T1: Default Max
B2: =IF(Source="Groundwater", "Groundwater to indoor air attenuation coefficient","Soil gas to indoor air attenuation coefficient") -> Groundwater to indoor air attenuation coefficient | E2: (-) | F2: =alpha -> 0.0009930742211 | G2: =IF(Q2<R2,CONCATENATE(TEXT(Q2,"0.0E+00")," - ",TEXT(R2,"0.0E+00")),CONCATENATE(TEXT(R2,"0.0E+00")," - ",TEXT(Q2,"0.0E+00"))) -> 1.2E-04 - 1.4E-03 | H2: =alpha_default -> 0.0009930742211 | I2: =IF(S2<T2,CONCATENATE(TEXT(S2,"0.0E+00")," - ",TEXT(T2,"0.0E+00")),CONCATENATE(TEXT(T2,"0.0E+00")," - ",TEXT(S2,"0.0E+00"))) -> 1.2E-04 - 1.4E-03 | Q2: =MAX(0,ROUND(alpha_min,20)) -> 0.0001207426829 | R2: =ROUND(alpha_max,20) -> 0.001441668479 | S2: =MAX(ROUND(alpha_min_default,20),0) -> 0.0001207426829 | T2: =ROUND(alpha_max_default,20) -> 0.001441668479
B3: Predicted indoor air concentration due to vapor intrusion | E3: (ug/m3) | F3: =Cia -> 1.354395953 | G3: =IF(Q3<R3,CONCATENATE(TEXT(Q3,"0.0E+00")," - ",TEXT(R3,"0.0E+00")),CONCATENATE(TEXT(R3,"0.0E+00")," - ",TEXT(Q3,"0.0E+00"))) -> 1.6E-01 - 2.0E+00 | H3: =Cia_default -> 1.354395953 | I3: =IF(S3<T3,CONCATENATE(TEXT(S3,"0.0E+00")," - ",TEXT(T3,"0.0E+00")),CONCATENATE(TEXT(T3,"0.0E+00")," - ",TEXT(S3,"0.0E+00"))) -> 1.6E-01 - 2.0E+00 | Q3: =Cia_min -> 0.1646738961 | R3: =Cia_max -> 1.966207471 | S3: =Cia_min_default -> 0.1646738961 | T3: =Cia_max_default -> 1.966207471
C4: =WarnFlag ->  | E4: (ppbv) | F4: =cia_ppbv -> 0.7519981161 | G4: =IF(Q4<R4,CONCATENATE(TEXT(Q4,"0.0E+00")," - ",TEXT(R4,"0.0E+00")),CONCATENATE(TEXT(R4,"0.0E+00")," - ",TEXT(Q4,"0.0E+00"))) -> 9.1E-02 - 1.1E+00 | H4: =cia_ppbv_default -> 0.7519981161 | I4: =IF(Q4<R4,CONCATENATE(TEXT(Q4,"0.0E+00")," - ",TEXT(R4,"0.0E+00")),CONCATENATE(TEXT(R4,"0.0E+00")," - ",TEXT(Q4,"0.0E+00"))) -> 9.1E-02 - 1.1E+00 | Q4: =Cs*alpha_min*24.46/INDEX(CHEM_DATA!$C$6:$C$472, MATCH(Chem, Chem_Search, 0)) -> 0.09143150446 | R4: =Cs*alpha_max*24.46/INDEX(CHEM_DATA!$C$6:$C$472, MATCH(Chem, Chem_Search, 0)) -> 1.091692803 | S4: =Cs*alpha_min_default*24.46/INDEX(CHEM_DATA!$C$6:$C$472, MATCH(Chem, Chem_Search, 0)) -> 0.09143150446 | T4: =Cs*alpha_max_default*24.46/INDEX(CHEM_DATA!$C$6:$C$472, MATCH(Chem, Chem_Search, 0)) -> 1.091692803
AA5: US EPA VAPOR INTRUSION ASSESSMENT MODEL (VIA_MODEL.xlsm)
A7: Model Input | D7: Site Name/Run Number: | F7: Example, Run 1 | AA7: Site Name:
A8: Note: -Yellow highlighted cells indicate parameters that typically are changed or must be inputted by the user. -Dotted outline cells indicate default values that may be changed with justification. -Toxicity values are taken from Regional Screening Level tables. These tables are updated semi-annually and may not reflect the most current toxicity information. | AA8: Note: -Yellow highlighted cells indicate parameters that typically are changed or must be inputted by the user. -Dotted outline cells indicate default values that may be changed with justification. -Toxicity values are taken from Regional Screening Level tables. These tables are updated semi-annually and may not reflect the most current toxicity information.
A9: Source Characteristics: | D9: Units | E9: Symbol | F9: Value | G9: Default | H9: Potential Span | I9: CV | J9: Flag | K9: Comment | AA9: Source Characteristics: | AD9: Units | AE9: Symbol | AF9: Value | AG9: Default | AH9: Range | AI9: CV | AJ9: Flag | AK9: Comment
B10: Source medium | E10: Source | F10: Groundwater | AB10: Source medium | AE10: Source | AF10: Groundwater
B11: =IF(Source="Groundwater","Groundwater concentration","Soil gas concentration") -> Groundwater concentration | D11: =IF(Source="Groundwater","(ug/L)","(ug/m3)") -> (ug/L) | E11: Cmedium | F11: 500 | H11: NA | J11: =IF(Source="Groundwater",IF(Cmedium>1000*INDEX(CHEM_DATA!$I$6:$I$472, MATCH(Chem,Chem_Search,0)),"ERROR",""),"") ->  | K11: =IF(ISNUMBER(Cmedium),IF(Source="Groundwater",IF(Cmedium>1000*INDEX(CHEM_DATA!$I$6:$I$472, MATCH(Chem,Chem_Search, 0)),"Value exceeds aqueous solubility limit.",""),""),"Please enter a value for Cmedium") ->  | AB11: Soil gas concentration | AD11: (ug/m3) | AE11: Cmedium | AH11: NA | AI11: =IF(Source="Groundwater",1,0.5) -> 1 | AJ11: =IF(Source="Groundwater",IF(Cmedium>1000*INDEX(CHEM_DATA!$I$6:$I$472, MATCH(Chem,Chem_Search,0)),"ERROR",""),"") ->  | AK11: =IF(ISNUMBER(Cmedium),IF(Source="Groundwater",IF(Cmedium>1000*INDEX(CHEM_DATA!$I$6:$I$472, MATCH(Chem,Chem_Search, 0)),"Value exceeds aqueous solubility limit.",""),""),"Please enter a value for Cmedium") ->  | BG11: mIURTCE_R | BH11: 1e-06 | BI11: mIURTCE_C | BJ11: 1e-06
B12: =IF(Source="Groundwater","Depth below grade to water table","Depth below grade to soil gas sample") -> Depth below grade to water table | D12: (m) | E12: Ls | F12: 2 | H12: Vary - 50 | I12: NA | J12: =IF(Source="Sub-slab Soil Gas",(IF(AND(Ls>=Lb,Ls<=Lb+1)=TRUE,"","WARNING")),(IF(Source="Groundwater",IF(Ls<MAX(Lb+hcz,Lb+1),"WARNING",""),IF(Ls<Lb+1,"WARNING","")))) ->  | K12: =IF(ISNUMBER(Ls), IF(Source="Sub-slab Soil Gas",(IF(AND(Ls>=Lb,Ls<=Lb+1)=TRUE,"","Ls should be between Lb and Lb + 1m.")),(IF(Source="Groundwater",IF(Ls<MAX(Lb+hcz,Lb+1),"Ls must be >= MAX( Lb + hcz , Lb + 1 m )",""),IF(Ls<Lb+1,"Ls should be >= Lb +1 m","")))),"Please enter a value for Ls") ->  | AB12: Depth below grade to soil gas sample | AD12: (m) | AE12: Ls | AH12: Vary - 50 | AI12: 0.27 | AJ12: =IF(Source="Sub-slab Soil Gas",(IF(AND(Ls>=Lb,Ls<=Lb+1)=TRUE,"","WARNING")),(IF(Source="Groundwater",IF(Ls<MAX(Lb+hcz,Lb+1),"WARNING",""),IF(Ls<Lb+1,"WARNING","")))) ->  | AK12: =IF(ISNUMBER(Ls), IF(Source="Sub-slab Soil Gas",(IF(AND(Ls>=Lb,Ls<=Lb+1)=TRUE,"","Ls should be between Lb and Lb + 1m.")),(IF(Source="Groundwater",IF(Ls<MAX(Lb+hcz,Lb+1),"Ls must be >= MAX( Lb + hcz , Lb + 1 m )",""),IF(Ls<Lb+1,"Ls should be >= Lb +1 m","")))),"Please enter a value for Ls") ->  | BG12: IURTCE_R | BH12: 3.1e-06 | BI12: IURTCE_C | BJ12: 4.1e-06
B13: =IF(Source="Groundwater","Average groundwater temperature","Average vadose zone temperature") -> Average groundwater temperature | D13: (oC) | E13: Ts | F13: 25 | G13: 25 | H13: =IF(Source="Groundwater","3 - 25","3-30") -> 3 - 25 | J13: =IF(Source="Groundwater",(IF(OR(Ts>25,Ts<3)=TRUE,"WARNING","")),IF(OR(Ts>30,Ts<3)=TRUE,"WARNING","")) ->  | AB13: Average vadose zone temperature | AD13: (oC) | AE13: Ts | AF13: 15 | AH13: =IF(Source="Groundwater","3 - 25","3-30") -> 3 - 25 | AI13: =IF(Source="Groundwater",0.2,0.5) -> 0.2 | AJ13: =IF(Source="Groundwater",(IF(OR(Ts>25,Ts<3)=TRUE,"WARNING","")),IF(OR(Ts>30,Ts<3)=TRUE,"WARNING","")) ->  | BG13: mIURTCE | BH13: =IF(Scenario="Residential",mIURTCE_R,mIURTCE_C) -> 1e-06
C14: Calc: Source vapor concentration | D14: (ug/m3) | E14: Cs | F14: =IF(Source="Groundwater",Cmedium*1000*Hs,Cmedium) -> 1363.841618 | AC14: Calc: Source vapor concentration | AD14: (ug/m3) | AE14: Cs | AF14: =IF(Source="Groundwater",Cmedium*1000*Hs,Cmedium) -> 1363.841618
C15: Calc: % of pure component saturated vapor concentration | D15: (%) | E15: %Sat | F15: =Cs/INDEX(CHEM_DATA!$G:$G,MATCH(Chem,CHEM_DATA!$A:$A,0)) -> 6.380314683e-07 | AC15: Calc: % of pure component saturated vapor concentration | AD15: (%) | AE15: %Sat | AF15: =Cs/INDEX(CHEM_DATA!$G$6:$G$472,MATCH(Chem,CHEM_DATA!$A:$A,0)) -> 8.861864653e-05
A16: Chemical: | D16: Units | E16: Symbol | F16: Value | G16: Default | H16: Potential Span | I16: CV | J16: Flag | K16: Comment | AA16: Chemical: | AD16: Units | AE16: Symbol | AF16: Value | AG16: Default | AH16: Range | AI16: CV | AJ16: Flag | AK16: Comment
B17: Chemical Name | E17: Chem | F17: Acetaldehyde | AB17: Chemical Name | AE17: Chem | AF17: Naphthalene
C18: CAS No. | E18: CAS | F18: =INDEX(CHEM_DATA!$B:$B, MATCH(Chem, CHEM_DATA!$A:$A,0)) -> 75-07-0 | AC18: CAS No. | AE18: CAS | AF18: =INDEX(CHEM_DATA!$B:$B, MATCH(Chem, CHEM_DATA!$A:$A,0)) -> 75-07-0
A19: Toxicity Factors | AA19: Toxicity Factors
B20: Unit risk factor | D20: (ug/m3)-1 | E20: IUR | F20: =VLOOKUP(CAS,CHEM_DATA!$B:$AC,25,FALSE) -> 2.2e-06 | G20: =VLOOKUP(CAS,CHEM_DATA!$B:$AC,25,FALSE) -> 2.2e-06 | H20: NA | I20: NA | J20: =IF(URF<>G20,"WARNING","") ->  | K20: =IF(G20="Not Available","No IUR available for this compound.",IF(URF<>G20,"Value is different from default value; please justify.","")) ->  | AB20: Unit risk factor | AD20: (ug/m3)-1 | AE20: IUR | AF20: =VLOOKUP(CAS,CHEM_DATA!$B:$AC,25,FALSE) -> 2.2e-06 | AG20: =VLOOKUP(CAS,CHEM_DATA!$B:$AC,25,FALSE) -> 2.2e-06 | AH20: NA | AI20: NA | AJ20: =IF(URF<>AG20,"WARNING","") ->  | AK20: =IF(AG20="Not Available","No IUR available for this compound.",IF(URF<>AG20,"Value is different from default value; please justify.","")) -> 
B21: Mutagenic compound | E21: Mut | F21: =VLOOKUP(CAS,CHEM_DATA!$B:$AD,29,FALSE) -> No | G21: NA | H21: NA | I21: NA | AB21: Mutagenic compound | AE21: Mut | AF21: =VLOOKUP(CAS,CHEM_DATA!$B:$AD,29,FALSE) -> No | AG21: NA | AH21: NA | AI21: NA
B22: Reference concentration | D22: (mg/m3) | E22: RfC | F22: =VLOOKUP(CAS,CHEM_DATA!$B:$AC,27,FALSE) -> 0.009 | G22: =VLOOKUP(CAS,CHEM_DATA!$B:$AC,27,FALSE) -> 0.009 | H22: NA | I22: NA | J22: =IF(RfC<>G22,"WARNING","") ->  | K22: =IF(G22="Not Available","No RfC available for this compound.", IF(RfC<>G22,"Value is different from default value; please justify.","")) ->  | AB22: Reference concentration | AD22: (ug/m3) | AE22: RfC | AF22: =VLOOKUP(CAS,CHEM_DATA!$B:$AC,27,FALSE) -> 0.009 | AG22: =VLOOKUP(CAS,CHEM_DATA!$B:$AC,27,FALSE) -> 0.009 | AH22: NA | AI22: NA | AJ22: =IF(RfC<>AG22,"WARNING","") ->  | AK22: =IF(AG22="Not Available","No RfC available for this compound.", IF(RfC<>AG22,"Value is different from default value; please justify.","")) -> 
A23: Chemical Properties: | D23: Units | E23: Symbol | F23: Value | G23: Default | H23: Potential Span | I23: CV | J23: Flag | K23: Comment | AA23: Chemical Properties: | AD23: Units | AE23: Symbol | AF23: Value | AG23: Default | AH23: Range | AI23: CV | AJ23: Flag | AK23: Comment
B24: Pure component water solubility | D24: (mg/L) | E24: S | F24: =INDEX(CHEM_DATA!$I:$I, MATCH(Chem, CHEM_DATA!$A:$A, 0)) -> 1000000 | G24: =INDEX(CHEM_DATA!$I$6:$I$472, MATCH(Chem, CHEM_DATA!$A$6:$A$472, 0)) -> 1000000 | H24: NA | I24: NA | J24: =IF(S<>G24,"WARNING","") ->  | K24: =IF(S<>G24,"Value is different from default value; please justify.","") ->  | AB24: Pure component water solubility | AD24: (mg/L) | AE24: S | AF24: =INDEX(CHEM_DATA!$I:$I, MATCH(Chem, CHEM_DATA!$A:$A, 0)) -> 1000000 | AG24: =INDEX(CHEM_DATA!$I:$I, MATCH(Chem, CHEM_DATA!$A:$A, 0)) -> 1000000 | AH24: NA | AI24: =VLOOKUP(CAS,#REF!,5,FALSE) ->  | AJ24: =IF(S<>AG24,"WARNING","") ->  | AK24: =IF(S<>AG24,"Value is different from default value; please justify.","") -> 
B25: Henry's Law Constant @ 25oC | D25: (atm-m3/mol) | E25: Hc | F25: =INDEX(CHEM_DATA!$K:$K, MATCH(Chem, CHEM_DATA!$A:$A, 0)) -> 6.67e-05 | G25: =INDEX(CHEM_DATA!$K:$K, MATCH(Chem, CHEM_DATA!$A:$A, 0)) -> 6.67e-05 | H25: NA | I25: NA | J25: =IF(Hc<>G25,"WARNING","") ->  | K25: =IF(Hc<>G25,"Value is different from default value; please justify.","") ->  | AB25: Henry's Law Constant @ 25oC | AD25: (atm-m3/mol) | AE25: Hc | AF25: =INDEX(CHEM_DATA!$K:$K, MATCH(Chem, CHEM_DATA!$A:$A, 0)) -> 6.67e-05 | AG25: =INDEX(CHEM_DATA!$K:$K, MATCH(Chem, CHEM_DATA!$A:$A, 0)) -> 6.67e-05 | AH25: NA | AI25: =VLOOKUP(CAS,#REF!,6,FALSE) ->  | AJ25: =IF(Hc<>AG25,"WARNING","") ->  | AK25: =IF(Hc<>AG25,"Value is different from default value; please justify.","") -> 
C26: Calc: Henry's Law Constant @ 25oC | D26: (dimensionless) | E26: Hr | F26: =Hc/(0.000082057*(298)) -> 0.002727683237 | G26: =G25/(0.000082057*(298)) -> 0.002727683237 | AC26: Calc: Henry's Law Constant @ 25oC | AD26: (dimensionless) | AE26: Hr | AF26: =Hc/(0.000082057*(298)) -> 0.002727683237 | AG26: =AG25/(0.000082057*(298)) -> 0.002727683237 | AI26: =VLOOKUP(CAS,#REF!,7,FALSE) -> 
C27: Calc: Henry's Law Constant @ system temperature | D27: (dimensionless) | E27: Hs | F27: =IFERROR(EXP(-(VLOOKUP(Chem,Chemical_Data,22,FALSE)*((1-(Ts+273)/VLOOKUP(Chem,Chemical_Data,20,FALSE))/(1-VLOOKUP(Chem,Chemical_Data,18,FALSE)/VLOOKUP(Chem,Chemical_Data,20,FALSE)))^(IF(VLOOKUP(Chem,Chemical_Data,18,FALSE)/VLOOKUP(Chem,Chemical_Data,20,FALSE)<0.57,0.3,IF(VLOOKUP(Chem,Chemical_Data,18,FALSE)/VLOOKUP(Chem,Chemical_Data,20,FALSE)>0.71,0.41,0.74*(VLOOKUP(Chem,Chemical_Data,18,FALSE)/VLOOKUP(Chem,Chemical_Data,20,FALSE))-0.116)))/1.9872)*(1/(Ts+273)-1/298))*Hc/(0.000082057*(Ts+273)),Hr) -> 0.002727683237 | G27: =IFERROR(EXP(-(VLOOKUP(Chem,Chemical_Data,22,FALSE)*((1-(Ts_default+273)/VLOOKUP(Chem,Chemical_Data,20,FALSE))/(1-VLOOKUP(Chem,Chemical_Data,18,FALSE)/VLOOKUP(Chem,Chemical_Data,20,FALSE)))^(IF(VLOOKUP(Chem,Chemical_Data,18,FALSE)/VLOOKUP(Chem,Chemical_Data,20,FALSE)<0.57,0.3,IF(VLOOKUP(Chem,Chemical_Data,18,FALSE)/VLOOKUP(Chem,Chemical_Data,20,FALSE)>0.71,0.41,0.74*(VLOOKUP(Chem,Chemical_Data,18,FALSE)/VLOOKUP(Chem,Chemical_Data,20,FALSE))-0.116)))/1.9872)*(1/(Ts_default+273)-1/298))*Hc/(0.000082057*(Ts+273)),Hr_default) -> 0.002727683237 | J27: =IFERROR(IF(EXP(-(VLOOKUP(Chem,Chemical_Data,22,FALSE)*((1-(Ts+273)/VLOOKUP(Chem,Chemical_Data,20,FALSE))/(1-VLOOKUP(Chem,Chemical_Data,18,FALSE)/VLOOKUP(Chem,Chemical_Data,20,FALSE)))^(IF(VLOOKUP(Chem,Chemical_Data,18,FALSE)/VLOOKUP(Chem,Chemical_Data,20,FALSE)<0.57,0.3,IF(VLOOKUP(Chem,Chemical_Data,18,FALSE)/VLOOKUP(Chem,Chemical_Data,20,FALSE)>0.71,0.41,0.74*(VLOOKUP(Chem,Chemical_Data,18,FALSE)/VLOOKUP(Chem,Chemical_Data,20,FALSE))-0.116)))/1.9872)*(1/(Ts+273)-1/298))*Hc/(0.000082057*(Ts+273))>0,"",""),"WARNING") ->  | K27: =IFERROR(IF(EXP(-(VLOOKUP(Chem,Chemical_Data,22,FALSE)*((1-(Ts+273)/VLOOKUP(Chem,Chemical_Data,20,FALSE))/(1-VLOOKUP(Chem,Chemical_Data,18,FALSE)/VLOOKUP(Chem,Chemical_Data,20,FALSE)))^(IF(VLOOKUP(Chem,Chemical_Data,18,FALSE)/VLOOKUP(Chem,Chemical_Data,20,FALSE)<0.57,0.3,IF(VLOOKUP(Chem,Chemical_Data,18,FALSE)/VLOOKUP(Chem,Chemical_Data,20,FALSE)>0.71,0.41,0.74*(VLOOKUP(Chem,Chemical_Data,18,FALSE)/VLOOKUP(Chem,Chemical_Data,20,FALSE))-0.116)))/1.9872)*(1/(Ts+273)-1/298))*Hc/(0.000082057*(Ts+273))>0,"",""),"HLC conversion to system temperature not available for this compound.") ->  | AC27: Calc: Henry's Law Constant @ system temperature | AD27: (dimensionless) | AE27: Hs | AF27: =IFERROR(EXP(-(VLOOKUP(Chem,Chemical_Data,22,FALSE)*((1-(Ts+273)/VLOOKUP(Chem,Chemical_Data,20,FALSE))/(1-VLOOKUP(Chem,Chemical_Data,18,FALSE)/VLOOKUP(Chem,Chemical_Data,20,FALSE)))^(IF(VLOOKUP(Chem,Chemical_Data,18,FALSE)/VLOOKUP(Chem,Chemical_Data,20,FALSE)<0.57,0.3,IF(VLOOKUP(Chem,Chemical_Data,18,FALSE)/VLOOKUP(Chem,Chemical_Data,20,FALSE)>0.71,0.41,0.74*(VLOOKUP(Chem,Chemical_Data,18,FALSE)/VLOOKUP(Chem,Chemical_Data,20,FALSE))-0.116)))/1.9872)*(1/(Ts+273)-1/298))*Hc/(0.000082057*(Ts+273)),Hr) -> 0.002727683237 | AG27: =IFERROR(EXP(-(VLOOKUP(Chem,Chemical_Data,22,FALSE)*((1-(Ts+273)/VLOOKUP(Chem,Chemical_Data,20,FALSE))/(1-VLOOKUP(Chem,Chemical_Data,18,FALSE)/VLOOKUP(Chem,Chemical_Data,20,FALSE)))^(IF(VLOOKUP(Chem,Chemical_Data,18,FALSE)/VLOOKUP(Chem,Chemical_Data,20,FALSE)<0.57,0.3,IF(VLOOKUP(Chem,Chemical_Data,18,FALSE)/VLOOKUP(Chem,Chemical_Data,20,FALSE)>0.71,0.41,0.74*(VLOOKUP(Chem,Chemical_Data,18,FALSE)/VLOOKUP(Chem,Chemical_Data,20,FALSE))-0.116)))/1.9872)*(1/(Ts_default+273)-1/298))*AG25/(0.000082057*(Ts+273)),AG26) -> 0.002727683237 | AJ27: =IFERROR(IF(EXP(-(VLOOKUP(Chem,Chemical_Data,22,FALSE)*((1-(Ts+273)/VLOOKUP(Chem,Chemical_Data,20,FALSE))/(1-VLOOKUP(Chem,Chemical_Data,18,FALSE)/VLOOKUP(Chem,Chemical_Data,20,FALSE)))^(IF(VLOOKUP(Chem,Chemical_Data,18,FALSE)/VLOOKUP(Chem,Chemical_Data,20,FALSE)<0.57,0.3,IF(VLOOKUP(Chem,Chemical_Data,18,FALSE)/VLOOKUP(Chem,Chemical_Data,20,FALSE)>0.71,0.41,0.74*(VLOOKUP(Chem,Chemical_Data,18,FALSE)/VLOOKUP(Chem,Chemical_Data,20,FALSE))-0.116)))/1.9872)*(1/(Ts+273)-1/298))*Hc/(0.000082057*(Ts+273))>0,"",""),"WARNING") ->  | AK27: =IFERROR(IF(EXP(-(VLOOKUP(Chem,Chemical_Data,22,FALSE)*((1-(Ts+273)/VLOOKUP(Chem,Chemical_Data,20,FALSE))/(1-VLOOKUP(Chem,Chemical_Data,18,FALSE)/VLOOKUP(Chem,Chemical_Data,20,FALSE)))^(IF(VLOOKUP(Chem,Chemical_Data,18,FALSE)/VLOOKUP(Chem,Chemical_Data,20,FALSE)<0.57,0.3,IF(VLOOKUP(Chem,Chemical_Data,18,FALSE)/VLOOKUP(Chem,Chemical_Data,20,FALSE)>0.71,0.41,0.74*(VLOOKUP(Chem,Chemical_Data,18,FALSE)/VLOOKUP(Chem,Chemical_Data,20,FALSE))-0.116)))/1.9872)*(1/(Ts+273)-1/298))*Hc/(0.000082057*(Ts+273))>0,"",""),"HLC conversion to system temperature not available for this compound.") -> 
B28: Diffusivity in air | D28: (cm2/s) | E28: Dair | F28: =INDEX(Diff_Air_List,MATCH(Chem,Chem_Search,0)) -> 0.1277026 | G28: =INDEX(Diff_Air_List,MATCH(Chem,Chem_Search,0)) -> 0.1277026 | H28: NA | I28: NA | J28: =IF(Dair<>G28,"WARNING","") ->  | K28: =IF(Dair<>G28,"Value is different from default value; please justify.","") ->  | AB28: Diffusivity in air | AD28: (cm2/s) | AE28: Dair | AF28: =INDEX(Diff_Air_List,MATCH(Chem,Chem_Search,0)) -> 0.1277026 | AG28: =INDEX(Diff_Air_List,MATCH(Chem,Chem_Search,0)) -> 0.1277026 | AH28: NA | AI28: =VLOOKUP(CAS,#REF!,9,FALSE) ->  | AJ28: =IF(Dair<>AG28,"WARNING","") ->  | AK28: =IF(Dair<>AG28,"Value is different from default value; please justify.","") -> 
B29: Diffusivity in water | D29: (cm2/s) | E29: Dwater | F29: =INDEX(Diff_Water_List,MATCH(Chem,Chem_Search,0)) -> 1.35e-05 | G29: =INDEX(Diff_Water_List,MATCH(Chem,Chem_Search,0)) -> 1.35e-05 | H29: NA | I29: NA | J29: =IF(Dwater<>G29,"WARNING","") ->  | K29: =IF(Dwater<>G29,"Value is different from default value; please justify.","") ->  | AB29: Diffusivity in water | AD29: (cm2/s) | AE29: Dwater | AF29: =INDEX(Diff_Water_List,MATCH(Chem,Chem_Search,0)) -> 1.35e-05 | AG29: =INDEX(Diff_Water_List,MATCH(Chem,Chem_Search,0)) -> 1.35e-05 | AH29: NA | AI29: =VLOOKUP(CAS,#REF!,10,FALSE) ->  | AJ29: =IF(Dwater<>AG29,"WARNING","") ->  | AK29: =IF(Dwater<>AG29,"Value is different from default value; please justify.","") -> 
A30: Building Characteristics: | AA30: Building Characteristics:
G31: 1
G32: =IF(G31=2,"WARNING: DEFAULT RATIO FOR Qsoil/Qbuilding not used. Please enter site specific data for Qs and Qb.","") ->  | AK32: =VLOOKUP(AF37,BLDG_DATA!B10:J14,9,FALSE) -> 0.003
D35: Units | E35: Symbol | F35: Value | G35: Default | H35: Potential Span | I35: CV | J35: Flag | K35: Comment | AD35: Units | AE35: Symbol | AF35: Value for Ratio | AG35: Value for Set | AH35: Default | AI35: Range | AJ35: CV | AK35: Flag | AL35: Comment
B36: Building setting | E36: Bldg_Setting | F36: Residential | G36: =Bldg_Setting -> Residential | AB36: Building setting | AE36: Bldg_Setting | AF36: Residential | AG36: Residential | AH36: =Bldg_Setting -> Residential
B37: Foundation type | E37: Found_Type | F37: Slab-on-grade | G37: =Found_Type -> Slab-on-grade | AB37: Foundation type | AE37: Found_Type | AF37: Basement w/ slab | AG37: Basement w/ slab | AH37: =Found_Type -> Slab-on-grade
C38: Depth below grade to base of foundation | D38: (m) | E38: Lb | F38: =IF(Bldg_Setting="Residential",VLOOKUP(Found_Type,BLDG_DATA!$B$10:$J$14,2,FALSE),VLOOKUP(Found_Type,BLDG_DATA!$B$5:$J$9,2,FALSE)) -> 0.1 | G38: =IF(Bldg_Setting="Residential",VLOOKUP(Found_Type,BLDG_DATA!$B$10:$J$14,2,FALSE),VLOOKUP(Found_Type,BLDG_DATA!$B$5:$J$9,2,FALSE)) -> 0.1 | H38: 0.1 - 2.44 | I38: NA | J38: =IF(Source="Sub-slab Soil Gas",IF(AND(Ls>=Lb,Ls<Lb+1)=TRUE,"","WARNING"), IF(OR(Lb>2.44,Lb<0.1)=TRUE,"WARNING",IF(Lb<>G38, "WARNING", ""))) ->  | K38: =IF(Source="Sub-slab Soil Gas",IF(AND(Ls>=Lb,Ls<Lb+1)=TRUE,"","Value is outside of reasonable range [Lb =<Ls <(Lb+ 1m)]."),IF(OR(Lb>2.44,Lb<0.1)=TRUE,"Value is outside of reasonable range (0.1 - 2.44 m).",IF(Lb<>G38," Value is different from default value; please justify.",""))) ->  | AC38: Depth below grade to base of foundation | AD38: (m) | AE38: Lb | AF38: =IF(Bldg_Setting="Residential",VLOOKUP(Found_Type,BLDG_DATA!$B$10:$J$14,2,FALSE),VLOOKUP(Found_Type,BLDG_DATA!$B$5:$J$9,2,FALSE)) -> 0.1 | AG38: =IF(Bldg_Setting="Residential",VLOOKUP(Found_Type,BLDG_DATA!$B$10:$J$14,2,FALSE),VLOOKUP(Found_Type,BLDG_DATA!$B$5:$J$9,2,FALSE)) -> 0.1 | AH38: =IF(Bldg_Setting="Residential",VLOOKUP(Found_Type,BLDG_DATA!$B$10:$J$14,2,FALSE),VLOOKUP(Found_Type,BLDG_DATA!$B$5:$J$9,2,FALSE)) -> 0.1 | AI38: 0.1 - 2.44 | AJ38: NA | AK38: =IF(Source="Sub-slab Soil Gas",IF(AND(Ls>=Lb,Ls<Lb+1)=TRUE,"","WARNING"), IF(OR(Lb>2.44,Lb<0.1)=TRUE,"WARNING",IF(Lb<>AH38, "WARNING", ""))) ->  | AL38: =IF(Source="Sub-slab Soil Gas",IF(AND(Ls>=Lb,Ls<Lb+1)=TRUE,"","Value is outside of reasonable range [Lb =<Ls <(Lb+ 1m)]."),IF(OR(Lb>2.44,Lb<0.1)=TRUE,"Value is outside of reasonable range (0.1 - 2.44 m).",IF(Lb<>G38," Value is different from default value; please justify.",""))) -> 
C39: Foundation thickness | D39: (m) | E39: Lf | F39: =IF(Bldg_Setting="Residential",VLOOKUP(Found_Type,BLDG_DATA!$B$10:$J$14,3,FALSE),VLOOKUP(Found_Type,BLDG_DATA!$B$5:$J$9,3,FALSE)) -> 0.1 | G39: =IF(Bldg_Setting="Residential",VLOOKUP(Found_Type,BLDG_DATA!$B$10:$J$14,3,FALSE),VLOOKUP(Found_Type,BLDG_DATA!$B$5:$J$9,3,FALSE)) -> 0.1 | H39: =IF(Found_Type="Basement w/ dirt floor","NA","0.1 - 0.25") -> 0.1 - 0.25 | I39: NA | J39: =IF(OR(Found_Type="Basement w/ dirt floor", Found_Type="Closed crawl space w/ dirt floor"),IF(Lf<>0,"ERROR",""),(IF(OR(Lf>0.25,Lf<0.1)=TRUE,"WARNING",IF(Lf<>G39, "WARNING", "")))) ->  | K39: =IF(OR(Found_Type="Basement w/ dirt floor", Found_Type="Closed crawl space w/ dirt floor"), IF(Lf<>0,"Lf should be 0.0 for dirt floors.",""),(IF(OR(Lf>0.25,Lf<0.1)=TRUE,"Value is outside of reasonable range (0.1 - 0.25 m).",IF(Lf<>G39, "Value is different from default value; please justify.", "")))) ->  | AC39: Foundation thickness | AD39: (m) | AE39: Lf | AF39: =IF(Bldg_Setting="Residential",VLOOKUP(Found_Type,BLDG_DATA!$B$10:$J$14,3,FALSE),VLOOKUP(Found_Type,BLDG_DATA!$B$5:$J$9,3,FALSE)) -> 0.1 | AG39: =IF(Bldg_Setting="Residential",VLOOKUP(Found_Type,BLDG_DATA!$B$10:$J$14,3,FALSE),VLOOKUP(Found_Type,BLDG_DATA!$B$5:$J$9,3,FALSE)) -> 0.1 | AH39: =IF(Bldg_Setting="Residential",VLOOKUP(Found_Type,BLDG_DATA!$B$10:$J$14,3,FALSE),VLOOKUP(Found_Type,BLDG_DATA!$B$5:$J$9,3,FALSE)) -> 0.1 | AI39: =IF(Found_Type="Basement w/ dirt floor","NA","0.1 - 0.15") -> 0.1 - 0.15 | AJ39: NA | AK39: =IF(OR(Found_Type="Basement w/ dirt floor", Found_Type="Closed crawl space w/ dirt floor"),IF(Lf<>0,"ERROR",""),(IF(OR(Lf>0.25,Lf<0.1)=TRUE,"WARNING",IF(Lf<>AH39, "WARNING", "")))) ->  | AL39: =IF(OR(Found_Type="Basement w/ dirt floor", Found_Type="Closed crawl space w/ dirt floor"), IF(Lf<>0,"Lf should be 0.0 for dirt floors.",""),(IF(OR(Lf>0.25,Lf<0.1)=TRUE,"Value is outside of reasonable range (0.1 - 0.25 m).",IF(Lf<>AH39, "Value is different from default value; please justify.", "")))) -> 
C40: Fraction of foundation area with cracks | D40: (-) | E40: eta | F40: =IF(Bldg_Setting="Residential",VLOOKUP(Found_Type,BLDG_DATA!$B$10:$J$14,4,FALSE),VLOOKUP(Found_Type,BLDG_DATA!$B$5:$J$9,4,FALSE)) -> 0.001 | G40: =IF(Bldg_Setting="Residential",VLOOKUP(Found_Type,BLDG_DATA!$B$10:$J$14,4,FALSE),VLOOKUP(Found_Type,BLDG_DATA!$B$5:$J$9,4,FALSE)) -> 0.001 | H40: =INDEX(BLDG_DATA!$L$10:$L$14,MATCH(Found_Type,BLDG_DATA!$B$10:$B$14,)) -> 0.00019-0.0019 | I40: 1 | J40: =IF(AND(OR(eta>0.001, eta<0.0001),Found_Type="Basement w/ slab"),"WARNING",IF(AND(OR(eta>0.0019,eta<0.00019),Found_Type="Slab-on-grade"),"WARNING",IF(eta<>$G$40,"WARNING",""))) ->  | K40: =IF(AND(OR(eta>0.001, eta<0.0001),Found_Type="Basement w/ slab"),"Value is outside of reasonable range (0.01 - 0.0001).",IF(AND(OR(eta>0.0019,eta<0.00019),Found_Type="Slab-on-grade"),"Value is outside of reasonable range (0.0019-0.00019).",IF(eta<>$G$40," Value is different from default value; please justify.",""))) ->  | AC40: Fraction of foundation area with cracks | AD40: (-) | AE40: eta | AF40: =IF(Bldg_Setting="Residential",VLOOKUP(Found_Type,BLDG_DATA!$B$10:$J$14,4,FALSE),VLOOKUP(Found_Type,BLDG_DATA!$B$5:$J$9,4,FALSE)) -> 0.001 | AG40: =IF(Bldg_Setting="Residential",VLOOKUP(Found_Type,BLDG_DATA!$B$10:$J$14,4,FALSE),VLOOKUP(Found_Type,BLDG_DATA!$B$5:$J$9,4,FALSE)) -> 0.001 | AH40: =IF(Bldg_Setting="Residential",VLOOKUP(Found_Type,BLDG_DATA!$B$10:$J$14,4,FALSE),VLOOKUP(Found_Type,BLDG_DATA!$B$5:$J$9,4,FALSE)) -> 0.001 | AI40: =INDEX(BLDG_DATA!$L$10:$L$14,MATCH(Found_Type,BLDG_DATA!$B$10:$B$14,)) -> 0.00019-0.0019 | AJ40: 1 | AK40: =IF(AND(OR(eta>0.001, eta<0.0001),Found_Type="Basement w/ slab"),"WARNING",IF(AND(OR(eta>0.0019,eta<0.00019),Found_Type="Slab-on-grade"),"WARNING",IF(eta<>$G$40,"WARNING",""))) ->  | AL40: =IF(AND(OR(eta>0.001, eta<0.0001),Found_Type="Basement w/ slab"),"Value is outside of reasonable range (0.01 - 0.0001).",IF(AND(OR(eta>0.0019,eta<0.00019),Found_Type="Slab-on-grade"),"Value is outside of reasonable range (0.0019-0.00019).",IF(eta<>$G$40," Value is different from default value; please justify.",""))) -> 
C41: Enclosed space floor area | D41: (m2) | E41: Abf | F41: =IF(Bldg_Setting="Residential",VLOOKUP(Found_Type,BLDG_DATA!$B$10:$J$14,5,FALSE),VLOOKUP(Found_Type,BLDG_DATA!$B$5:$J$9,5,FALSE)) -> 150 | G41: =IF(Bldg_Setting="Residential",VLOOKUP(Found_Type,BLDG_DATA!$B$10:$J$14,5,FALSE),VLOOKUP(Found_Type,BLDG_DATA!$B$5:$J$9,5,FALSE)) -> 150 | H41: =IF(Bldg_Setting="Residential",INDEX(BLDG_DATA!$M$10:$M$14,MATCH(Found_Type,BLDG_DATA!$B$10:$B$14,)),INDEX(BLDG_DATA!$M$5:$M$9,MATCH(Found_Type,BLDG_DATA!$B$10:$B$14,))) -> 80 - 200 | I41: NA | J41: =IF(Bldg_Setting="Residential",IF(OR(Abf>200,Abf<80)=TRUE,"WARNING",IF(Abf<>G41,"WARNING","")),IF(OR(Abf>1500,Abf<80)=TRUE,"WARNING",IF(Abf<>G41,"WARNING",""))) ->  | K41: =IF(Bldg_Setting="Residential",IF(OR(Abf>200,Abf<80)=TRUE,"Value is outside of reasonable range (80 - 200 m2).",IF(Abf<>G41,"Value is different from default value; please justify.","")),IF(OR(Abf>1500,Abf<80)=TRUE,"Value is outside of reasonable range (80 - 200 m2).",IF(Abf<>G41,"Value is different from default value; please justify.",""))) ->  | AC41: Enclosed space floor area | AD41: (m2) | AE41: Abf | AF41: =IF(Bldg_Setting="Residential",VLOOKUP(Found_Type,BLDG_DATA!$B$10:$J$14,5,FALSE),VLOOKUP(Found_Type,BLDG_DATA!$B$5:$J$9,5,FALSE)) -> 150 | AG41: =IF(Bldg_Setting="Residential",VLOOKUP(Found_Type,BLDG_DATA!$B$10:$J$14,5,FALSE),VLOOKUP(Found_Type,BLDG_DATA!$B$5:$J$9,5,FALSE)) -> 150 | AH41: =IF(Bldg_Setting="Residential",VLOOKUP(Found_Type,BLDG_DATA!$B$10:$J$14,5,FALSE),VLOOKUP(Found_Type,BLDG_DATA!$B$5:$J$9,5,FALSE)) -> 150 | AI41: =IF(Bldg_Setting="Residential",INDEX(BLDG_DATA!$M$10:$M$14,MATCH(Found_Type,BLDG_DATA!$B$10:$B$14,)),INDEX(BLDG_DATA!$M$5:$M$9,MATCH(Found_Type,BLDG_DATA!$B$10:$B$14,))) -> 80 - 200 | AJ41: NA | AK41: =IF(Bldg_Setting="Residential",IF(OR(Abf>200,Abf<80)=TRUE,"WARNING",IF(Abf<>AH41,"WARNING","")),IF(OR(Abf>1000,Abf<80)=TRUE,"WARNING",IF(Abf<>AH41,"WARNING",""))) ->  | AL41: =IF(Bldg_Setting="Residential",IF(OR(Abf>200,Abf<80)=TRUE,"Value is outside of reasonable range (80 - 200 m2).",IF(Abf<>AH41,"Value is different from default value; please justify.","")),IF(OR(Abf>1000,Abf<80)=TRUE,"Value is outside of reasonable range (80 - 200 m2).",IF(Abf<>AH41,"Value is different from default value; please justify.",""))) -> 
C42: Enclosed space mixing height | D42: (m) | E42: Hb | F42: =IF(Bldg_Setting="Residential",VLOOKUP(Found_Type,BLDG_DATA!$B$10:$J$14,6,FALSE),VLOOKUP(Found_Type,BLDG_DATA!$B$5:$J$9,6,FALSE)) -> 2.44 | G42: =IF(Bldg_Setting="Residential",VLOOKUP(Found_Type,BLDG_DATA!$B$10:$J$14,6,FALSE),VLOOKUP(Found_Type,BLDG_DATA!$B$5:$J$9,6,FALSE)) -> 2.44 | H42: =INDEX(BLDG_DATA!$N$10:$N$14,MATCH(Found_Type,BLDG_DATA!$B$10:$B$14,)) -> 2.13 - 3.05 | I42: NA | J42: =IF(AND(OR(Found_Type="Closed crawl space w/dirt floor", Found_Type="Closed crawl space w/ slab"), OR(Hb>1.3, Hb<0.5)), "WARNING", IF(AND(OR(Hb>3.05,Hb<2.13),Found_Type="Slab-on-grade"),"WARNING", IF(AND(OR(Found_Type="Basement w/ dirt floor", Found_Type="basement w/ slab"),OR(Hb>4.88,Hb<2.44)=TRUE),"WARNING",IF(Hb<>G42,"WARNING", "")))) ->  | K42: =IF(AND(OR(Found_Type="Closed crawl space w/dirt floor", Found_Type="Closed crawl space w/ slab"), OR(Hb>1.3, Hb<0.5)), "Value is outside of reasonable range (0.5 to 1.30 m).", IF(AND(OR(Hb>3.05,Hb<2.13),Found_Type="Slab-on-grade"),"Value is outside of reasonable range (2.13 – 3.05 m).", IF(AND(OR(Found_Type="Basement w/ dirt floor", Found_Type="basement w/ slab"),OR(Hb>4.88,Hb<2.44)=TRUE),"Value is outside of reasonable range (2.44 - 4.88 m).",IF(Hb<>G42,"Value is different from default value; please justify.", "")))) ->  | AC42: Enclosed space mixing height | AD42: (m) | AE42: Hb | AF42: =IF(Bldg_Setting="Residential",VLOOKUP(Found_Type,BLDG_DATA!$B$10:$J$14,6,FALSE),VLOOKUP(Found_Type,BLDG_DATA!$B$5:$J$9,6,FALSE)) -> 2.44 | AG42: =IF(Bldg_Setting="Residential",VLOOKUP(Found_Type,BLDG_DATA!$B$10:$J$14,6,FALSE),VLOOKUP(Found_Type,BLDG_DATA!$B$5:$J$9,6,FALSE)) -> 2.44 | AH42: =IF(Bldg_Setting="Residential",VLOOKUP(Found_Type,BLDG_DATA!$B$10:$J$14,6,FALSE),VLOOKUP(Found_Type,BLDG_DATA!$B$5:$J$9,6,FALSE)) -> 2.44 | AI42: =INDEX(BLDG_DATA!$N$10:$N$14,MATCH(Found_Type,BLDG_DATA!$B$10:$B$14,)) -> 2.13 - 3.05 | AJ42: NA | AK42: =IF(AND(OR(Found_Type="Closed crawl space w/dirt floor", Found_Type="Closed crawl space w/ slab"), OR(Hb>1.3, Hb<0.5)), "WARNING", IF(AND(OR(Hb>3.05,Hb<2.13),Found_Type="Slab-on-grade"),"WARNING", IF(AND(OR(Found_Type="Basement w/ dirt floor", Found_Type="basement w/ slab"),OR(Hb>4.88,Hb<2.44)=TRUE),"WARNING",IF(Hb<>AH42,"WARNING", "")))) ->  | AL42: =IF(AND(OR(Found_Type="Closed crawl space w/dirt floor", Found_Type="Closed crawl space w/ slab"), OR(Hb>1.3, Hb<0.5)), "Value is outside of reasonable range (0.5 to 1.30 m).", IF(AND(OR(Hb>3.05,Hb<2.13),Found_Type="Slab-on-grade"),"Value is outside of reasonable range (2.13 – 3.05 m).", IF(AND(OR(Found_Type="Basement w/ dirt floor", Found_Type="basement w/ slab"),OR(Hb>4.88,Hb<2.44)=TRUE),"Value is outside of reasonable range (2.44 - 4.88 m).",IF(Hb<>AH42,"Value is different from default value; please justify.", "")))) -> 
C43: Indoor air exchange rate | D43: (1 / hr) | E43: ach | F43: =IF(Bldg_Setting="Residential",VLOOKUP(Found_Type,BLDG_DATA!$B$10:$J$14,7,FALSE),VLOOKUP(Found_Type,BLDG_DATA!$B$5:$J$9,7,FALSE)) -> 0.45 | G43: =IF(Bldg_Setting="Residential",VLOOKUP(Found_Type,BLDG_DATA!$B$10:$J$14,7,FALSE),VLOOKUP(Found_Type,BLDG_DATA!$B$5:$J$9,7,FALSE)) -> 0.45 | H43: =IF(Bldg_Setting="Residential",".15-1.26",".3-4.1") -> .15-1.26 | I43: NA | J43: =IF(Bldg_Setting="Residential",IF(OR(ach>1.26,ach<0.15,ach<>G43)=TRUE,"WARNING",""),IF(OR(ach>4.1,ach<0.3,ach<>G43)=TRUE,"WARNING","")) ->  | K43: =IF(Bldg_Setting="Residential",IF(OR(ach>1.26,ach<0.15)=TRUE,"Value is outside of reasonable range (0.15 - 1.26).",IF(ach<>G43,"Value is different from default value; please justify.","")),IF(OR(ach>4.1,ach<0.3)=TRUE,"Value is outside of reasonable range (0.3 - 4.1).",IF(ach<>G43,"Value is different from default value; please justify.",""))) ->  | AC43: Indoor air exchange rate | AD43: (1/hr) | AE43: ach | AF43: =IF(Bldg_Setting="Residential",VLOOKUP(Found_Type,BLDG_DATA!$B$10:$J$14,7,FALSE),VLOOKUP(Found_Type,BLDG_DATA!$B$5:$J$9,7,FALSE)) -> 0.45 | AG43: =IF(Bldg_Setting="Residential",VLOOKUP(Found_Type,BLDG_DATA!$B$10:$J$14,7,FALSE),VLOOKUP(Found_Type,BLDG_DATA!$B$5:$J$9,7,FALSE)) -> 0.45 | AH43: =IF(Bldg_Setting="Residential",VLOOKUP(Found_Type,BLDG_DATA!$B$10:$J$14,7,FALSE),VLOOKUP(Found_Type,BLDG_DATA!$B$5:$J$9,7,FALSE)) -> 0.45 | AI43: 0.1 - 1.5 | AJ43: 1 | AK43: =IF(Bldg_Setting="Residential",IF(OR(ach>1.26,ach<0.15,ach<>AH43)=TRUE,"WARNING",""),IF(OR(ach>4.1,ach<0.3,ach<>AH43)=TRUE,"WARNING","")) ->  | AL43: =IF(Bldg_Setting="Residential",IF(OR(ach>1.26,ach<0.15)=TRUE,"Value is outside of reasonable range (0.15 - 1.26).",IF(ach<>AH43,"Value is different from default value; please justify.","")),IF(OR(ach>4.1,ach<0.3)=TRUE,"Value is outside of reasonable range (0.3 - 4.1).",IF(ach<>AH43,"Value is different from default value; please justify.",""))) -> 
C44: Qsoil/Qbuilding | D44: (-) | E44: Qsoil_Qb | F44: =IF(AF36="Residential",VLOOKUP(AF37,BLDG_DATA!B10:J14,9,FALSE),VLOOKUP(BLDG_DATA!B5:J9,10,FALSE)) -> 0.003 | G44: =IF(AF36="Residential",VLOOKUP(AF37,BLDG_DATA!B10:J14,9,FALSE),VLOOKUP(BLDG_DATA!B5:J9,10,FALSE)) -> 0.003 | H44: 0.0001 - 0.05 | I44: 1.24 | J44: =IF(OR(Found_Type="Basement w/ dirt floor", Found_Type="Closed crawl space w/ dirt floor")=TRUE, "",IF(OR(Qsoil_Qb>0.05,Qsoil_Qb<0.0001, Qsoil_Qb<>G44)=TRUE,"WARNING","")) ->  | K44: =IF(OR(Found_Type="Basement w/ dirt floor", Found_Type="Closed crawl space w/ dirt floor")=TRUE, "",IF(OR(Qsoil_Qb>0.05,Qsoil_Qb<0.0001)=TRUE,"Value is outside of reasonable range (0.0001 - 0.05).",IF(AND(Qsoil_Qb<>G44,ach<>G43),"Value is different from default value; please justify.",""))) ->  | AC44: Qsoil/Qbuilding | AD44: (-) | AE44: Qsoil_Qb | AF44: =IF(ach=G43, IF(Bldg_Setting="Residential",VLOOKUP(Found_Type,BLDG_DATA!B10:J14,9,FALSE),VLOOKUP(BLDG_DATA!B5:J9,10,FALSE)),( IF(Bldg_Setting="Residential",VLOOKUP(Found_Type,BLDG_DATA!B10:J14,9,FALSE),VLOOKUP(BLDG_DATA!B5:J9,10,FALSE)))*(0.45/ach)) -> 0.003 | AG44: =AG46/AG45 -> 0.003 | AH44: =IF(ach=G43, IF(Bldg_Setting="Residential",VLOOKUP(Found_Type,BLDG_DATA!B10:J14,9,FALSE),VLOOKUP(BLDG_DATA!B5:J9,10,FALSE)),( IF(Bldg_Setting="Residential",VLOOKUP(Found_Type,BLDG_DATA!B10:J14,9,FALSE),VLOOKUP(BLDG_DATA!B5:J9,10,FALSE)))*(0.45/ach)) -> 0.003 | AI44: 0.0001 - 0.05 | AJ44: 1.24 | AK44: =IF(OR(Found_Type="Basement w/ dirt floor", Found_Type="Closed crawl space w/ dirt floor")=TRUE, "",IF(OR(Qsoil_Qb>0.05,Qsoil_Qb<0.0001, Qsoil_Qb<>AH44)=TRUE,"WARNING","")) ->  | AL44: =IF(OR(Found_Type="Basement w/ dirt floor", Found_Type="Closed crawl space w/ dirt floor")=TRUE, "",IF(OR(Qsoil_Qb>0.05,Qsoil_Qb<0.0001)=TRUE,"Value is outside of reasonable range (0.0001 - 0.05).",IF(Qsoil_Qb<>AH44,"Value is different from default value; please justify.",""))) -> 
C45: Calc: Building ventilation rate | D45: (m3/hr) | E45: Qb | F45: =Abf*Hb*ach -> 164.7 | G45: =G41*G42*G43 -> 164.7 | H45: NA | I45: 0.3 | AC45: Calc: Building ventilation rate | AD45: (m3/hr) | AE45: Qb | AF45: =Abf*Hb*ach -> 164.7 | AG45: =IF(AG36="Residential",VLOOKUP(AG37,BLDG_DATA!B23:O27,8,FALSE),VLOOKUP(AG37,BLDG_DATA!B18:K22,8,FALSE)) -> 247.05 | AH45: =AH41*AH42*AH43 -> 164.7 | AI45: NA | AJ45: 0.3
C46: Calc: Average vapor flow rate into building | D46: (m3/hr) | E46: Qsoil | F46: =IF(OR(Found_Type="Basement w/ dirt floor", Found_Type="Closed crawl space w/ dirt floor"), "NA",Qsoil_Qb*Qb) -> 0.4941 | G46: =IF(OR(Found_Type="Basement w/ dirt floor",Found_Type="Closed crawl space w/ dirt floor"),"NA",G44*G45) -> 0.4941 | H46: NA | I46: NA | AC46: Calc: Average vapor flow rate into building | AD46: (m3/hr) | AE46: Qsoil | AF46: =IF(OR(Found_Type="Basement w/ dirt floor", Found_Type="Closed crawl space w/ dirt floor"), "NA",Qsoil_Qb*Qb) -> 0.4941 | AG46: =IF(AG36="Residential",VLOOKUP(AG37,BLDG_DATA!B23:K27,10,FALSE),VLOOKUP(AG37,BLDG_DATA!B18:K22,10,FALSE)) -> 0.74115 | AH46: =IF(OR(Found_Type="Basement w/ dirt floor",Found_Type="Closed crawl space w/ dirt floor"),"NA",AH44*AH45) -> 0.4941 | AI46: NA | AJ46: NA
G47: =IF(0.0001<Qsoil_Qb,0.0001,Qsoil_Qb) -> 0.0001 | H47: =0.0001*Qb -> 0.01647
A48: =$A$5 ->  | G48: =IF(0.05>Qsoil_Qb,0.05,Qsoil_Qb) -> 0.05 | H48: =0.05*Qb -> 8.235 | AA48: US EPA VAPOR INTRUSION ASSESSMENT MODEL (VIA_MODEL.xlsm)
A50: Model Input | D50: Site Name/Run Number: | F50: =Name_and_run -> Example, Run 1 | AA50: Model Input | AD50: Site Name/Run Number:
B51: ="Chemical Name:"&" "&$F$17&" CAS No. "&CAS -> Chemical Name: Acetaldehyde CAS No. 75-07-0 | AB51: Chemical Name: Bis(2-chloroethyl)ether CAS No. 111-44-4
B52: =IF(Source="Groundwater","Depth below grade to water table:","Depth below grade to soil gas sample:")&" "&TEXT(Ls,"0.00")&" meters" -> Depth below grade to water table: 2.00 meters | AB52: Depth below grade to soil gas sample: 5.00 meters
A53: Vadose zone characteristics: | D53: Units | E53: Symbol | F53: Value | G53: Default | H53: Potential Span | I53: CV | J53: Flag | K53: Comment | AA53: Vadose zone characteristics: | AD53: Units | AE53: Symbol | AF53: Value | AG53: Default | AH53: Range | AI53: CV | AJ53: Flag | AK53: Comment
A54: Stratum A (Top of soil profile): | AA54: Stratum A (Top of soil profile):
B55: Stratum A SCS soil type | E55: SCS_A | F55: Sand | AB55: Stratum A SCS soil type | AE55: SCS_A | AF55: Sand
B56: Stratum A thickness (from surface) | D56: (m) | E56: hSA | F56: 2 | J56: =IF(AND(Source="Groundwater",src_soil="Stratum A")=TRUE,IF(hSA<Lb+hcz,"ERROR",""),IF(hSA<Lb,"ERROR","")) ->  | K56: =IF(AND(Source="Groundwater",src_soil="Stratum A")=TRUE,IF(hSA<Lb+hcz,"hSA must be >= Lb + hcz.",""),IF(hSA<Lb,"hSA must be >= Lb","")) ->  | AB56: Stratum A thickness (from surface) | AD56: (m) | AE56: hSA | AF56: 5 | AJ56: =IF(AND(Source="Groundwater",src_soil="Stratum A")=TRUE,IF(hSA<Lb+hcz,"ERROR",""),IF(hSA<Lb,"ERROR","")) ->  | AK56: =IF(AND(Source="Groundwater",src_soil="Stratum A")=TRUE,IF(hSA<Lb+hcz,"hSA must be >= Lb + hcz.",""),IF(hSA<Lb,"hSA must be >= Lb","")) -> 
C57: Stratum A total porosity | D57: (-) | E57: nSA | F57: =IF(INDEX(Total_Porosity,MATCH(SCS_A,Soil_Type2,0))=0,"",(INDEX(Total_Porosity,MATCH(SCS_A,Soil_Type2,0)))) -> 0.375 | G57: =IF(INDEX(Total_Porosity,MATCH(SCS_A,Soil_Type2,0))=0,"",(INDEX(Total_Porosity,MATCH(SCS_A,Soil_Type2,0)))) -> 0.375 | H57: NA | I57: =INDEX(SOIL_CV_DATA!$C:$C,MATCH(SCS_A,SOIL_CV_DATA!$A:$A,0)) -> 0.2 | J57: =IF(nSA<>G57,"WARNING","") ->  | K57: =IF(nSA<>G57,"Value is different from default value; please justify.","") ->  | AC57: Stratum A total porosity | AD57: (-) | AE57: nSA | AF57: =IF(INDEX(Total_Porosity,MATCH(SCS_A,Soil_Type2,0))=0,"",(INDEX(Total_Porosity,MATCH(SCS_A,Soil_Type2,0)))) -> 0.375 | AG57: =IF(INDEX(Total_Porosity,MATCH(SCS_A,Soil_Type2,0))=0,"",(INDEX(Total_Porosity,MATCH(SCS_A,Soil_Type2,0)))) -> 0.375 | AH57: NA | AI57: =INDEX(SOIL_CV_DATA!$C:$C,MATCH(SCS_A,SOIL_CV_DATA!$A:$A,0)) -> 0.2 | AJ57: =IF(nSA<>AG57,"WARNING","") ->  | AK57: =IF(nSA<>AG57,"Value is different from default value; please justify.","") -> 
C58: Stratum A water-filled porosity | D58: (-) | E58: nwSA | F58: =IF(INDEX(Water_Porosity,MATCH(SCS_A,Soil_Type2,0))=0,"",(INDEX(Water_Porosity,MATCH(SCS_A,Soil_Type2,0)))) -> 0.054 | G58: =IF(INDEX(Water_Porosity,MATCH(SCS_A,Soil_Type2,0))=0,"",(INDEX(Water_Porosity,MATCH(SCS_A,Soil_Type2,0)))) -> 0.054 | H58: =INDEX(SOIL_DATA!$N:$N,MATCH(SCS_A,SOIL_DATA!$A:$A,0)) -> 0.053 - 0.055 | I58: =INDEX(SOIL_CV_DATA!$D:$D,MATCH(SCS_A,SOIL_CV_DATA!$A:$A,0)) -> 0.25 | J58: =IF(nwSA<>G58,"WARNING","") ->  | K58: =IF(nwSA<>G58,"Value is different from default value; please justify.","") ->  | AC58: Stratum A water-filled porosity | AD58: (-) | AE58: nwSA | AF58: =IF(INDEX(Water_Porosity,MATCH(SCS_A,Soil_Type2,0))=0,"",(INDEX(Water_Porosity,MATCH(SCS_A,Soil_Type2,0)))) -> 0.054 | AG58: =IF(INDEX(Water_Porosity,MATCH(SCS_A,Soil_Type2,0))=0,"",(INDEX(Water_Porosity,MATCH(SCS_A,Soil_Type2,0)))) -> 0.054 | AH58: =INDEX(SOIL_DATA!$N:$N,MATCH(SCS_A,SOIL_DATA!$A:$A,0)) -> 0.053 - 0.055 | AI58: =INDEX(SOIL_CV_DATA!$D:$D,MATCH(SCS_A,SOIL_CV_DATA!$A:$A,0)) -> 0.25 | AJ58: =IF(nwSA<>AG58,"WARNING","") ->  | AK58: =IF(nwSA<>AG58,"Value is different from default value; please justify.","") -> 
C59: Stratum A bulk density | D59: (g/cm3) | E59: rhoSA | F59: =IF(INDEX(Bulk_Density,MATCH(SCS_A,Soil_Type2,0))=0,"",(INDEX(Bulk_Density,MATCH(SCS_A,Soil_Type2,0)))) -> 1.66 | G59: =IF(INDEX(Bulk_Density,MATCH(SCS_A,Soil_Type2,0))=0,"",(INDEX(Bulk_Density,MATCH(SCS_A,Soil_Type2,0)))) -> 1.66 | H59: NA | I59: =INDEX(SOIL_CV_DATA!$E:$E,MATCH(SCS_A,SOIL_CV_DATA!$A:$A,0)) -> 0.05 | J59: =IF(rhoSA<>G59,"WARNING","") ->  | K59: =IF(rhoSA<>G59,"Value is different from default value; please justify.","") ->  | AC59: Stratum A bulk density | AD59: (g/cm3) | AE59: rhoSA | AF59: =IF(INDEX(Bulk_Density,MATCH(SCS_A,Soil_Type2,0))=0,"",(INDEX(Bulk_Density,MATCH(SCS_A,Soil_Type2,0)))) -> 1.66 | AG59: =IF(INDEX(Bulk_Density,MATCH(SCS_A,Soil_Type2,0))=0,"",(INDEX(Bulk_Density,MATCH(SCS_A,Soil_Type2,0)))) -> 1.66 | AH59: NA | AI59: =INDEX(SOIL_CV_DATA!$E:$E,MATCH(SCS_A,SOIL_CV_DATA!$A:$A,0)) -> 0.05 | AJ59: =IF(rhoSA<>AG59,"WARNING","") ->  | AK59: =IF(rhoSA<>AG59,"Value is different from default value; please justify.","") -> 
A60: Stratum B (Soil layer below Stratum A): | AA60: Stratum B (Soil layer below Stratum A):
B61: Stratum B SCS soil type | E61: SCS_B | F61: Not Present | AB61: Stratum B SCS soil type | AE61: SCS_B | AF61: Not Present
B62: Stratum B thickness | D62: (m) | E62: hSB | F62: 0 | J62: =IF(AND(SCS_B="Not Present",hSB<>"")=TRUE,"ERROR",(IF(hSA+hSB>Ls,"ERROR",(IF(AND(Source="Groundwater",src_soil="Stratum B")=TRUE,IF((hSB+hSA)<hcz,"ERROR",IF(AND(Source="Groundwater",src_soil="Stratum B",hSB<hcz),"WARNING","")),""))))) ->  | K62: =IF(AND(SCS_B="Not Present",hSB<>"")=TRUE,"Stratum thickness must be BLANK if not present.",(IF(hSA+hSB>Ls,"hSB must be <= Ls - hSA.",(IF(AND(Source="Groundwater",src_soil="Stratum B")=TRUE,IF((hSB+hSA)<hcz,"hSB+hSA must be >= hcz.",IF(AND(Source="Groundwater",src_soil="Stratum B",hSB<hcz),"hSB < hcz; hcz may be overestimated.","")),""))))) ->  | AB62: Stratum B thickness | AD62: (m) | AE62: hSB | AF62: 0 | AJ62: =IF(AND(SCS_B="Not Present",hSB<>"")=TRUE,"ERROR",(IF(hSA+hSB>Ls,"ERROR",(IF(AND(Source="Groundwater",src_soil="Stratum B")=TRUE,IF((hSB+hSA)<hcz,"ERROR",IF(AND(Source="Groundwater",src_soil="Stratum B",hSB<hcz),"WARNING","")),""))))) ->  | AK62: =IF(AND(SCS_B="Not Present",hSB<>"")=TRUE,"Stratum thickness must be BLANK if not present.",(IF(hSA+hSB>Ls,"hSB must be <= Ls - hSA.",(IF(AND(Source="Groundwater",src_soil="Stratum B")=TRUE,IF((hSB+hSA)<hcz,"hSB+hSA must be >= hcz.",IF(AND(Source="Groundwater",src_soil="Stratum B",hSB<hcz),"hSB < hcz; hcz may be overestimated.","")),""))))) -> 
C63: Stratum B total porosity | D63: (-) | E63: nSB | F63: =IF(INDEX(Total_Porosity,MATCH(SCS_B,Soil_Type2,0))=0,"",(INDEX(Total_Porosity,MATCH(SCS_B,Soil_Type2,0)))) ->  | G63: =IF(INDEX(Total_Porosity,MATCH(SCS_B,Soil_Type2,0))=0,"",(INDEX(Total_Porosity,MATCH(SCS_B,Soil_Type2,0)))) ->  | H63: NA | I63: =IF(SCS_B="Not Present","NA",INDEX(SOIL_CV_DATA!$C:$C,MATCH(SCS_B,SOIL_CV_DATA!$A:$A,0))) -> NA | J63: =IF(nSB<>G63,"WARNING","") ->  | K63: =IF(nSB<>G63,"Value is different from default value; please justify.","") ->  | AC63: Stratum B total porosity | AD63: (-) | AE63: nSB | AF63: =IF(INDEX(Total_Porosity,MATCH(SCS_B,Soil_Type2,0))=0,"",(INDEX(Total_Porosity,MATCH(SCS_B,Soil_Type2,0)))) ->  | AG63: =IF(INDEX(Total_Porosity,MATCH(SCS_B,Soil_Type2,0))=0,"",(INDEX(Total_Porosity,MATCH(SCS_B,Soil_Type2,0)))) ->  | AH63: NA | AI63: =IF(SCS_B="Not Present","NA",INDEX(SOIL_CV_DATA!$C:$C,MATCH(SCS_B,SOIL_CV_DATA!$A:$A,0))) -> NA | AJ63: =IF(nSB<>AG63,"WARNING","") ->  | AK63: =IF(nSB<>AG63,"Value is different from default value; please justify.","") -> 
C64: Stratum B water-filled porosity | D64: (-) | E64: nwSB | F64: =IF(INDEX(Water_Porosity,MATCH(SCS_B,Soil_Type2,0))=0,"",(INDEX(Water_Porosity,MATCH(SCS_B,Soil_Type2,0)))) ->  | G64: =IF(INDEX(Water_Porosity,MATCH(SCS_B,Soil_Type2,0))=0,"",(INDEX(Water_Porosity,MATCH(SCS_B,Soil_Type2,0)))) ->  | H64: =IF(SCS_B="Not Present","NA",INDEX(SOIL_DATA!$N:$N,MATCH(SCS_B,SOIL_DATA!$A:$A,0))) -> NA | I64: =IF(SCS_B="Not Present","NA",INDEX(SOIL_CV_DATA!$D:$D,MATCH(SCS_B,SOIL_CV_DATA!$A:$A,0))) -> NA | J64: =IF(nwSB<>G64,"WARNING","") ->  | K64: =IF(nwSB<>G64,"Value is different from default value; please justify.","") ->  | AC64: Stratum B water-filled porosity | AD64: (-) | AE64: nwSB | AF64: =IF(INDEX(Water_Porosity,MATCH(SCS_B,Soil_Type2,0))=0,"",(INDEX(Water_Porosity,MATCH(SCS_B,Soil_Type2,0)))) ->  | AG64: =IF(INDEX(Water_Porosity,MATCH(SCS_B,Soil_Type2,0))=0,"",(INDEX(Water_Porosity,MATCH(SCS_B,Soil_Type2,0)))) ->  | AH64: =IF(SCS_B="Not Present","NA",INDEX(SOIL_DATA!$N:$N,MATCH(SCS_B,SOIL_DATA!$A:$A,0))) -> NA | AI64: =IF(SCS_B="Not Present","NA",INDEX(SOIL_CV_DATA!$D:$D,MATCH(SCS_B,SOIL_CV_DATA!$A:$A,0))) -> NA | AJ64: =IF(nwSB<>AG64,"WARNING","") ->  | AK64: =IF(nwSB<>AG64,"Value is different from default value; please justify.","") -> 
C65: Stratum B bulk density | D65: (g/cm3) | E65: rhoSB | F65: =IF(INDEX(Bulk_Density,MATCH(SCS_B,Soil_Type2,0))=0,"",(INDEX(Bulk_Density,MATCH(SCS_B,Soil_Type2,0)))) ->  | G65: =IF(INDEX(Bulk_Density,MATCH(SCS_B,Soil_Type2,0))=0,"",(INDEX(Bulk_Density,MATCH(SCS_B,Soil_Type2,0)))) ->  | H65: NA | I65: =IF(SCS_B="Not Present","NA",INDEX(SOIL_CV_DATA!$E:$E,MATCH(SCS_B,SOIL_CV_DATA!$A:$A,0))) -> NA | J65: =IF(rhoSB<>G65,"WARNING","") ->  | K65: =IF(rhoSB<>G65,"Value is different from default value; please justify.","") ->  | AC65: Stratum B bulk density | AD65: (g/cm3) | AE65: rhoSB | AF65: =IF(INDEX(Bulk_Density,MATCH(SCS_B,Soil_Type2,0))=0,"",(INDEX(Bulk_Density,MATCH(SCS_B,Soil_Type2,0)))) ->  | AG65: =IF(INDEX(Bulk_Density,MATCH(SCS_B,Soil_Type2,0))=0,"",(INDEX(Bulk_Density,MATCH(SCS_B,Soil_Type2,0)))) ->  | AH65: NA | AI65: =IF(SCS_B="Not Present","NA",INDEX(SOIL_CV_DATA!$E:$E,MATCH(SCS_B,SOIL_CV_DATA!$A:$A,0))) -> NA | AJ65: =IF(rhoSB<>AG65,"WARNING","") ->  | AK65: =IF(rhoSB<>AG65,"Value is different from default value; please justify.","") -> 
A66: Stratum C (Soil layer below Stratum B): | AA66: Stratum C (Soil layer below Stratum B):
B67: Stratum C SCS soil type | E67: SCS_C | F67: Not Present | J67: =IF(AND(SCS_B="Not Present",SCS_C<>"Not Present")=TRUE,"ERROR","") ->  | K67: =IF(AND(SCS_B="Not Present",SCS_C<>"Not Present")=TRUE,"Select a soil type for Stratum B.","") ->  | AB67: Stratum C SCS soil type | AE67: SCS_C | AF67: Not Present | AJ67: =IF(AND(SCS_B="Not Present",SCS_C<>"Not Present")=TRUE,"ERROR","") ->  | AK67: =IF(AND(SCS_B="Not Present",SCS_C<>"Not Present")=TRUE,"Select a soil type for Stratum B.","") -> 
B68: Stratum C thickness | D68: (m) | E68: hSC | F68: 0 | J68: =IF(AND(SCS_C="Not Present",hSC<>"")=TRUE,"ERROR",(IF(hSA+hSB+hSC>Ls,"ERROR",(IF(AND(Source="Groundwater",src_soil="Stratum C")=TRUE,IF(hSC<hcz,"ERROR",""),""))))) ->  | K68: =IF(AND(SCS_C="Not Present",hSC<>"")=TRUE,"Stratum thickness must be BLANK if not present.",(IF(hSA+hSB+hSC>Ls,"hSC must be <= Ls - hSA - hSB.",(IF(AND(Source="Groundwater",src_soil="Stratum C")=TRUE,IF(hSC<hcz,"hSC must be >= hcz.",""),""))))) ->  | AB68: Stratum C thickness | AD68: (m) | AE68: hSC | AF68: 0 | AJ68: =IF(AND(SCS_C="Not Present",hSC<>"")=TRUE,"ERROR",(IF(hSA+hSB+hSC>Ls,"ERROR",(IF(AND(Source="Groundwater",src_soil="Stratum C")=TRUE,IF(hSC<hcz,"ERROR",""),""))))) ->  | AK68: =IF(AND(SCS_C="Not Present",hSC<>"")=TRUE,"Stratum thickness must be BLANK if not present.",(IF(hSA+hSB+hSC>Ls,"hSC must be <= Ls - hSA - hSB.",(IF(AND(Source="Groundwater",src_soil="Stratum C")=TRUE,IF(hSC<hcz,"hSC must be >= hcz.",""),""))))) -> 
C69: Stratum C total porosity | D69: (-) | E69: nSC | F69: =IF(INDEX(Total_Porosity,MATCH(SCS_C,Soil_Type2,0))=0,"",(INDEX(Total_Porosity,MATCH(SCS_C,Soil_Type2,0)))) ->  | G69: =IF(INDEX(Total_Porosity,MATCH(SCS_C,Soil_Type2,0))=0,"",(INDEX(Total_Porosity,MATCH(SCS_C,Soil_Type2,0)))) ->  | H69: NA | I69: =IF(SCS_C="Not Present","NA",INDEX(SOIL_CV_DATA!$C:$C,MATCH(SCS_C,SOIL_CV_DATA!$A:$A,0))) -> NA | J69: =IF(nSC<>G69,"WARNING","") ->  | K69: =IF(nSC<>G69,"Value is different from default value; please justify.","") ->  | AC69: Stratum C total porosity | AD69: (-) | AE69: nSC | AF69: =IF(INDEX(Total_Porosity,MATCH(SCS_C,Soil_Type2,0))=0,"",(INDEX(Total_Porosity,MATCH(SCS_C,Soil_Type2,0)))) ->  | AG69: =IF(INDEX(Total_Porosity,MATCH(SCS_C,Soil_Type2,0))=0,"",(INDEX(Total_Porosity,MATCH(SCS_C,Soil_Type2,0)))) ->  | AH69: NA | AI69: =IF(SCS_C="Not Present","NA",INDEX(SOIL_CV_DATA!$C:$C,MATCH(SCS_C,SOIL_CV_DATA!$A:$A,0))) -> NA | AJ69: =IF(nSC<>AG69,"WARNING","") ->  | AK69: =IF(nSC<>AG69,"Value is different from default value; please justify.","") -> 
C70: Stratum C water-filled porosity | D70: (-) | E70: nwSC | F70: =IF(INDEX(Water_Porosity,MATCH(SCS_C,Soil_Type2,0))=0,"",(INDEX(Water_Porosity,MATCH(SCS_C,Soil_Type2,0)))) ->  | G70: =IF(INDEX(Water_Porosity,MATCH(SCS_C,Soil_Type2,0))=0,"",(INDEX(Water_Porosity,MATCH(SCS_C,Soil_Type2,0)))) ->  | H70: =IF(SCS_C="Not Present","NA",INDEX(SOIL_DATA!$N:$N,MATCH(SCS_C,SOIL_DATA!$A:$A,0))) -> NA | I70: =IF(SCS_C="Not Present","NA",INDEX(SOIL_CV_DATA!$D:$D,MATCH(SCS_C,SOIL_CV_DATA!$A:$A,0))) -> NA | J70: =IF(nwSC<>G70,"WARNING","") ->  | K70: =IF(nwSC<>G70,"Value is different from default value; please justify.","") ->  | AC70: Stratum C water-filled porosity | AD70: (-) | AE70: nwSC | AF70: =IF(INDEX(Water_Porosity,MATCH(SCS_C,Soil_Type2,0))=0,"",(INDEX(Water_Porosity,MATCH(SCS_C,Soil_Type2,0)))) ->  | AG70: =IF(INDEX(Water_Porosity,MATCH(SCS_C,Soil_Type2,0))=0,"",(INDEX(Water_Porosity,MATCH(SCS_C,Soil_Type2,0)))) ->  | AH70: =IF(SCS_C="Not Present","NA",INDEX(SOIL_DATA!$N:$N,MATCH(SCS_C,SOIL_DATA!$A:$A,0))) -> NA | AI70: =IF(SCS_C="Not Present","NA",INDEX(SOIL_CV_DATA!$D:$D,MATCH(SCS_C,SOIL_CV_DATA!$A:$A,0))) -> NA | AJ70: =IF(nwSC<>AG70,"WARNING","") ->  | AK70: =IF(nwSC<>AG70,"Value is different from default value; please justify.","") -> 
C71: Stratum C bulk density | D71: (g/cm3) | E71: rhoSC | F71: =IF(INDEX(Bulk_Density,MATCH(SCS_C,Soil_Type2,0))=0,"",(INDEX(Bulk_Density,MATCH(SCS_C,Soil_Type2,0)))) ->  | G71: =IF(INDEX(Bulk_Density,MATCH(SCS_C,Soil_Type2,0))=0,"",(INDEX(Bulk_Density,MATCH(SCS_C,Soil_Type2,0)))) ->  | H71: NA | I71: =IF(SCS_C="Not Present","NA",INDEX(SOIL_CV_DATA!$E:$E,MATCH(SCS_C,SOIL_CV_DATA!$A:$A,0))) -> NA | J71: =IF(rhoSC<>G71,"WARNING","") ->  | K71: =IF(rhoSC<>G71,"Value is different from default value; please justify.","") ->  | AC71: Stratum C bulk density | AD71: (g/cm3) | AE71: rhoSC | AF71: =IF(INDEX(Bulk_Density,MATCH(SCS_C,Soil_Type2,0))=0,"",(INDEX(Bulk_Density,MATCH(SCS_C,Soil_Type2,0)))) ->  | AG71: =IF(INDEX(Bulk_Density,MATCH(SCS_C,Soil_Type2,0))=0,"",(INDEX(Bulk_Density,MATCH(SCS_C,Soil_Type2,0)))) ->  | AH71: NA | AI71: =IF(SCS_C="Not Present","NA",INDEX(SOIL_CV_DATA!$E:$E,MATCH(SCS_C,SOIL_CV_DATA!$A:$A,0))) -> NA | AJ71: =IF(rhoSC<>AG71,"WARNING","") ->  | AK71: =IF(rhoSC<>AG71,"Value is different from default value; please justify.","") -> 
A72: =IF(Source="Groundwater","Stratum directly above the water table","Stratum containing soil gas sample") -> Stratum directly above the water table | J72: =IF(hSA+hSB+hSC<Ls,"ERROR","") ->  | K72: =IF(hSA+hSB+hSC<Ls,CONCATENATE("Sum of strata thicknesses must equal Ls (",IF(Source="Groundwater","Depth below grade to water table","Depth below grade to soil gas sample"),")"),"") ->  | AA72: Stratum containing soil gas sample | AJ72: =IF(hSA+hSB+hSC<Ls,"ERROR","") ->  | AK72: =IF(hSA+hSB+hSC<Ls,CONCATENATE("Sum of strata thicknesses must equal Ls (",IF(Source="Groundwater","Depth below grade to water table","Depth below grade to soil gas sample"),")"),"") -> 
C73: Stratum A, B, or C | E73: src_soil | F73: =IF(AND(SCS_B="Not Present",SCS_C="Not Present")=TRUE,"Stratum A",IF(AND(SCS_B<>"Not Present",SCS_C="Not Present")=TRUE,"Stratum B","Stratum C")) -> Stratum A | AC73: Stratum A, B, or C | AE73: src_soil | AF73: =IF(AND(SCS_B="Not Present",SCS_C="Not Present")=TRUE,"Stratum A",IF(AND(SCS_B<>"Not Present",SCS_C="Not Present")=TRUE,"Stratum B","Stratum C")) -> Stratum A
C74: =IF(Source="Groundwater","Height of capillary fringe","") -> Height of capillary fringe | D74: =IF(Source="Groundwater","(m)","") -> (m) | E74: =IF(Source="Groundwater","hcz","") -> hcz | F74: =IF(Source="Groundwater",((IF(src_soil="Stratum A",IF(INDEX(Capillary_height,MATCH(SCS_A,Soil_Type2,0))=0,"",(INDEX(Capillary_height,MATCH(SCS_A,Soil_Type2,0)))),IF(src_soil="Stratum B",IF(INDEX(Capillary_height,MATCH(SCS_B,Soil_Type2,0))=0,"",(INDEX(Capillary_height,MATCH(SCS_B,Soil_Type2,0)))),IF(INDEX(Capillary_height,MATCH(SCS_C,Soil_Type2,0))=0,"",(INDEX(Capillary_height,MATCH(SCS_C,Soil_Type2,0)))))))/100),"") -> 0.1704545455 | G74: =IF(Source="Groundwater",((IF(src_soil="Stratum A",IF(INDEX(Capillary_height,MATCH(SCS_A,Soil_Type2,0))=0,"",(INDEX(Capillary_height,MATCH(SCS_A,Soil_Type2,0)))),IF(src_soil="Stratum B",IF(INDEX(Capillary_height,MATCH(SCS_B,Soil_Type2,0))=0,"",(INDEX(Capillary_height,MATCH(SCS_B,Soil_Type2,0)))),IF(INDEX(Capillary_height,MATCH(SCS_C,Soil_Type2,0))=0,"",(INDEX(Capillary_height,MATCH(SCS_C,Soil_Type2,0)))))))/100),"") -> 0.1704545455 | H74: NA | I74: NA | J74: =IF(hcz<>G74,"WARNING","") ->  | K74: =IF(hcz<>G74,"Value is different from default value; please justify.","") ->  | AF74: =IF(Source="Groundwater",((IF(src_soil="Stratum A",IF(INDEX(Capillary_height,MATCH(SCS_A,Soil_Type2,0))=0,"",(INDEX(Capillary_height,MATCH(SCS_A,Soil_Type2,0)))),IF(src_soil="Stratum B",IF(INDEX(Capillary_height,MATCH(SCS_B,Soil_Type2,0))=0,"",(INDEX(Capillary_height,MATCH(SCS_B,Soil_Type2,0)))),IF(INDEX(Capillary_height,MATCH(SCS_C,Soil_Type2,0))=0,"",(INDEX(Capillary_height,MATCH(SCS_C,Soil_Type2,0)))))))/100),"") -> 0.1704545455 | AG74: =IF(Source="Groundwater",((IF(src_soil="Stratum A",IF(INDEX(Capillary_height,MATCH(SCS_A,Soil_Type2,0))=0,"",(INDEX(Capillary_height,MATCH(SCS_A,Soil_Type2,0)))),IF(src_soil="Stratum B",IF(INDEX(Capillary_height,MATCH(SCS_B,Soil_Type2,0))=0,"",(INDEX(Capillary_height,MATCH(SCS_B,Soil_Type2,0)))),IF(INDEX(Capillary_height,MATCH(SCS_C,Soil_Type2,0))=0,"",(INDEX(Capillary_height,MATCH(SCS_C,Soil_Type2,0)))))))/100),"") -> 0.1704545455 | AH74: NA | AI74: NA | AJ74: =IF(hcz<>AG74,"WARNING","") ->  | AK74: =IF(hcz<>AG74,"Value is different from default value; please justify.","") -> 
C75: =IF(Source="Groundwater","Capillary zone total porosity","") -> Capillary zone total porosity | D75: =IF(Source="Groundwater","(-)","") -> (-) | E75: =IF(Source="Groundwater","ncz","") -> ncz | F75: =IF(Source="Groundwater",(IF(src_soil="Stratum A",IF(INDEX(Total_Porosity,MATCH(SCS_A,Soil_Type2,0))=0,"",(INDEX(Total_Porosity,MATCH(SCS_A,Soil_Type2,0)))),IF(src_soil="Stratum B",IF(INDEX(Total_Porosity,MATCH(SCS_B,Soil_Type2,0))=0,"",(INDEX(Total_Porosity,MATCH(SCS_B,Soil_Type2,0)))),IF(INDEX(Total_Porosity,MATCH(SCS_C,Soil_Type2,0))=0,"",(INDEX(Total_Porosity,MATCH(SCS_C,Soil_Type2,0))))))),"") -> 0.375 | G75: =IF(Source="Groundwater",(IF(src_soil="Stratum A",IF(INDEX(Total_Porosity,MATCH(SCS_A,Soil_Type2,0))=0,"",(INDEX(Total_Porosity,MATCH(SCS_A,Soil_Type2,0)))),IF(src_soil="Stratum B",IF(INDEX(Total_Porosity,MATCH(SCS_B,Soil_Type2,0))=0,"",(INDEX(Total_Porosity,MATCH(SCS_B,Soil_Type2,0)))),IF(INDEX(Total_Porosity,MATCH(SCS_C,Soil_Type2,0))=0,"",(INDEX(Total_Porosity,MATCH(SCS_C,Soil_Type2,0))))))),"") -> 0.375 | H75: NA | I75: =IF(Source="Groundwater",IF(src_soil="Stratum A",I57,IF(src_soil="Stratum B",I63,I69)),"") -> 0.2 | J75: =IF(ncz<>G75,"WARNING","") ->  | K75: =IF(ncz<>G75,"Value is different from default value; please justify.","") ->  | AF75: =IF(Source="Groundwater",(IF(src_soil="Stratum A",IF(INDEX(Total_Porosity,MATCH(SCS_A,Soil_Type2,0))=0,"",(INDEX(Total_Porosity,MATCH(SCS_A,Soil_Type2,0)))),IF(src_soil="Stratum B",IF(INDEX(Total_Porosity,MATCH(SCS_B,Soil_Type2,0))=0,"",(INDEX(Total_Porosity,MATCH(SCS_B,Soil_Type2,0)))),IF(INDEX(Total_Porosity,MATCH(SCS_C,Soil_Type2,0))=0,"",(INDEX(Total_Porosity,MATCH(SCS_C,Soil_Type2,0))))))),"") -> 0.375 | AG75: =IF(Source="Groundwater",(IF(src_soil="Stratum A",IF(INDEX(Total_Porosity,MATCH(SCS_A,Soil_Type2,0))=0,"",(INDEX(Total_Porosity,MATCH(SCS_A,Soil_Type2,0)))),IF(src_soil="Stratum B",IF(INDEX(Total_Porosity,MATCH(SCS_B,Soil_Type2,0))=0,"",(INDEX(Total_Porosity,MATCH(SCS_B,Soil_Type2,0)))),IF(INDEX(Total_Porosity,MATCH(SCS_C,Soil_Type2,0))=0,"",(INDEX(Total_Porosity,MATCH(SCS_C,Soil_Type2,0))))))),"") -> 0.375 | AH75: NA | AI75: =IF(Source="Groundwater",IF(src_soil="Stratum A",AI57,IF(src_soil="Stratum B",AI63,AI69)),"") -> 0.2 | AJ75: =IF(ncz<>AG75,"WARNING","") ->  | AK75: =IF(ncz<>AG75,"Value is different from default value; please justify.","") -> 
C76: =IF(Source="Groundwater","Capillary zone water filled porosity","") -> Capillary zone water filled porosity | D76: =IF(Source="Groundwater","(-)","") -> (-) | E76: =IF(Source="Groundwater","nwcz","") -> nwcz | F76: =IF(Source="Groundwater",(IF(src_soil="Stratum A",IF(INDEX(Capillary_Water_Porosity_List,MATCH(SCS_A,Soil_Type2,0))=0,"",(INDEX(Capillary_Water_Porosity_List,MATCH(SCS_A,Soil_Type2,0)))),IF(src_soil="Stratum B",IF(INDEX(Capillary_Water_Porosity_List,MATCH(SCS_B,Soil_Type2,0))=0,"",(INDEX(Capillary_Water_Porosity_List,MATCH(SCS_B,Soil_Type2,0)))),IF(INDEX(Capillary_Water_Porosity_List,MATCH(SCS_C,Soil_Type2,0))=0,"",(INDEX(Capillary_Water_Porosity_List,MATCH(SCS_C,Soil_Type2,0))))))),"") -> 0.2532581126 | G76: =IF(Source="Groundwater",(IF(src_soil="Stratum A",IF(INDEX(Capillary_Water_Porosity_List,MATCH(SCS_A,Soil_Type2,0))=0,"",(INDEX(Capillary_Water_Porosity_List,MATCH(SCS_A,Soil_Type2,0)))),IF(src_soil="Stratum B",IF(INDEX(Capillary_Water_Porosity_List,MATCH(SCS_B,Soil_Type2,0))=0,"",(INDEX(Capillary_Water_Porosity_List,MATCH(SCS_B,Soil_Type2,0)))),IF(INDEX(Capillary_Water_Porosity_List,MATCH(SCS_C,Soil_Type2,0))=0,"",(INDEX(Capillary_Water_Porosity_List,MATCH(SCS_C,Soil_Type2,0))))))),"") -> 0.2532581126 | H76: NA | I76: =IF(Source="Groundwater",IF(src_soil="Stratum A",INDEX(Soil_CV_Cap_WF_Porosity,MATCH(SCS_A,Soil_CV_Name,0)),IF(src_soil="Stratum B",INDEX(Soil_CV_Cap_WF_Porosity,MATCH(SCS_B,Soil_CV_Name,0)),INDEX(Soil_CV_Cap_WF_Porosity,MATCH(SCS_C,Soil_CV_Name,0)))),"") -> 0.1395348837 | J76: =IF(nwcz<>G76,"WARNING","") ->  | K76: =IF(nwcz<>G76,"Value is different from default value; please justify.","") ->  | AF76: =IF(Source="Groundwater",(IF(src_soil="Stratum A",IF(INDEX(Capillary_Water_Porosity_List,MATCH(SCS_A,Soil_Type2,0))=0,"",(INDEX(Capillary_Water_Porosity_List,MATCH(SCS_A,Soil_Type2,0)))),IF(src_soil="Stratum B",IF(INDEX(Capillary_Water_Porosity_List,MATCH(SCS_B,Soil_Type2,0))=0,"",(INDEX(Capillary_Water_Porosity_List,MATCH(SCS_B,Soil_Type2,0)))),IF(INDEX(Capillary_Water_Porosity_List,MATCH(SCS_C,Soil_Type2,0))=0,"",(INDEX(Capillary_Water_Porosity_List,MATCH(SCS_C,Soil_Type2,0))))))),"") -> 0.2532581126 | AG76: =IF(Source="Groundwater",(IF(src_soil="Stratum A",IF(INDEX(Capillary_Water_Porosity_List,MATCH(SCS_A,Soil_Type2,0))=0,"",(INDEX(Capillary_Water_Porosity_List,MATCH(SCS_A,Soil_Type2,0)))),IF(src_soil="Stratum B",IF(INDEX(Capillary_Water_Porosity_List,MATCH(SCS_B,Soil_Type2,0))=0,"",(INDEX(Capillary_Water_Porosity_List,MATCH(SCS_B,Soil_Type2,0)))),IF(INDEX(Capillary_Water_Porosity_List,MATCH(SCS_C,Soil_Type2,0))=0,"",(INDEX(Capillary_Water_Porosity_List,MATCH(SCS_C,Soil_Type2,0))))))),"") -> 0.2532581126 | AH76: NA | AI76: =IF(Source="Groundwater",IF(src_soil="Stratum A",INDEX(Soil_CV_Cap_WF_Porosity,MATCH(SCS_A,Soil_CV_Name,0)),IF(src_soil="Stratum B",INDEX(Soil_CV_Cap_WF_Porosity,MATCH(SCS_B,Soil_CV_Name,0)),INDEX(Soil_CV_Cap_WF_Porosity,MATCH(SCS_C,Soil_CV_Name,0)))),"") -> 0.1395348837 | AJ76: =IF(nwcz<>AG76,"WARNING","") ->  | AK76: =IF(nwcz<>AG76,"Value is different from default value; please justify.","") -> 
A77: Exposure Parameters: | D77: Units | E77: Symbol | F77: Value | G77: Default | H77: Potential Span | I77: CV | J77: Flag | K77: Comment | AA77: Exposure Parameters: | AD77: Units | AE77: Symbol | AF77: Value | AG77: Default | AH77: Range | AI77: CV | AJ77: Flag | AK77: Comment
B78: Target risk for carcinogens | D78: (-) | E78: Target_CR | F78: 1e-06 | G78: 1e-06 | H78: NA | I78: NA | J78: =IF(Target_CR<>G78,"WARNING","") ->  | K78: =IF(Target_CR<>G78,"Value is different from default value; please justify.","") ->  | AB78: Target risk for carcinogens | AD78: (-) | AE78: Target_CR | AF78: 1e-06 | AG78: 1e-06 | AH78: NA | AI78: NA | AJ78: =IF(Target_CR<>AG78,"WARNING","") ->  | AK78: =IF(Target_CR<>AG78,"Value is different from default value; please justify.","") -> 
B79: Target hazard quotient for non-carcinogens | D79: (-) | E79: Target_HQ | F79: 1 | G79: 1 | H79: NA | I79: NA | J79: =IF(Target_HQ<>G79,"WARNING","") ->  | K79: =IF(Target_HQ<>G79,"Value is different from default value; please justify.","") ->  | AB79: Target hazard quotient for non-carcinogens | AD79: (-) | AE79: Target_HQ | AF79: 1 | AG79: 1 | AH79: NA | AI79: NA | AJ79: =IF(Target_HQ<>AG79,"WARNING","") ->  | AK79: =IF(Target_HQ<>AG79,"Value is different from default value; please justify.","") -> 
B80: Exposure Scenario | E80: Scenario | F80: =Bldg_Setting -> Residential | G80: =Scenario -> Residential | AB80: Exposure Scenario | AE80: Scenario | AF80: =Bldg_Setting -> Residential | AG80: =Scenario -> Residential
B81: Averaging time for carcinogens | D81: (yrs) | E81: ATc | F81: =IF(Scenario="Residential",VLOOKUP($E$81,EXPOSURE_DATA!$C$2:$E$6,2,FALSE),VLOOKUP($E$81,EXPOSURE_DATA!$C$2:$E$6,3,FALSE)) -> 70 | G81: =IF(Scenario="Residential",VLOOKUP($E$81,EXPOSURE_DATA!$C$2:$E$6,2,FALSE),VLOOKUP($E$81,EXPOSURE_DATA!$C$2:$E$6,3,FALSE)) -> 70 | H81: NA | I81: NA | J81: =IF(ATc<>G81,"WARNING","") ->  | K81: =IF(ATc<>G81,"Value is different from default value; please justify.","") ->  | AB81: Averaging time for carcinogens | AD81: (yrs) | AE81: ATc | AF81: =IF(Scenario="Residential",VLOOKUP($E$81,EXPOSURE_DATA!$C$2:$E$6,2,FALSE),VLOOKUP($E$81,EXPOSURE_DATA!$C$2:$E$6,3,FALSE)) -> 70 | AG81: =IF(Scenario="Residential",VLOOKUP($E$81,EXPOSURE_DATA!$C$2:$E$6,2,FALSE),VLOOKUP($E$81,EXPOSURE_DATA!$C$2:$E$6,3,FALSE)) -> 70 | AH81: NA | AI81: NA | AJ81: =IF(ATc<>AG81,"WARNING","") ->  | AK81: =IF(ATc<>AG81,"Value is different from default value; please justify.","") -> 
B82: Averaging time for non-carcinogens | D82: (yrs) | E82: ATnc | F82: =IF(Scenario="Residential",VLOOKUP($E$82,EXPOSURE_DATA!$C$2:$E$6,2,FALSE),VLOOKUP($E$82,EXPOSURE_DATA!$C$2:$E$6,3,FALSE)) -> 26 | G82: =IF(Scenario="Residential",VLOOKUP($E$82,EXPOSURE_DATA!$C$2:$E$6,2,FALSE),VLOOKUP($E$82,EXPOSURE_DATA!$C$2:$E$6,3,FALSE)) -> 26 | H82: NA | I82: NA | J82: =IF(ATnc<>G82,"WARNING","") ->  | K82: =IF(ATnc<>G82,"Value is different from default value; please justify.","") ->  | AB82: Averaging time for non-carcinogens | AD82: (yrs) | AE82: ATnc | AF82: =IF(Scenario="Residential",VLOOKUP($E$82,EXPOSURE_DATA!$C$2:$E$6,2,FALSE),VLOOKUP($E$82,EXPOSURE_DATA!$C$2:$E$6,3,FALSE)) -> 26 | AG82: =IF(Scenario="Residential",VLOOKUP($E$82,EXPOSURE_DATA!$C$2:$E$6,2,FALSE),VLOOKUP($E$82,EXPOSURE_DATA!$C$2:$E$6,3,FALSE)) -> 26 | AH82: NA | AI82: NA | AJ82: =IF(ATnc<>AG82,"WARNING","") ->  | AK82: =IF(ATnc<>AG82,"Value is different from default value; please justify.","") -> 
B83: Exposure duration | D83: (yrs) | E83: ED | F83: =IF(Scenario="Residential",VLOOKUP($E$83,EXPOSURE_DATA!$C$2:$E$6,2,FALSE),VLOOKUP($E$83,EXPOSURE_DATA!$C$2:$E$6,3,FALSE)) -> 26 | G83: =IF(Scenario="Residential",VLOOKUP($E$83,EXPOSURE_DATA!$C$2:$E$6,2,FALSE),VLOOKUP($E$83,EXPOSURE_DATA!$C$2:$E$6,3,FALSE)) -> 26 | H83: NA | I83: NA | J83: =IF(ED<>G83,"WARNING","") ->  | K83: =IF(ED<>G83,"Value is different from default value; please justify.","") ->  | AB83: Exposure duration | AD83: (yrs) | AE83: ED | AF83: =IF(Scenario="Residential",VLOOKUP($E$83,EXPOSURE_DATA!$C$2:$E$6,2,FALSE),VLOOKUP($E$83,EXPOSURE_DATA!$C$2:$E$6,3,FALSE)) -> 26 | AG83: =IF(Scenario="Residential",VLOOKUP($E$83,EXPOSURE_DATA!$C$2:$E$6,2,FALSE),VLOOKUP($E$83,EXPOSURE_DATA!$C$2:$E$6,3,FALSE)) -> 26 | AH83: NA | AI83: NA | AJ83: =IF(ED<>AG83,"WARNING","") ->  | AK83: =IF(ED<>AG83,"Value is different from default value; please justify.","") -> 
B84: Exposure frequency | D84: (days/yr) | E84: EF | F84: =IF(Scenario="Residential",VLOOKUP($E$84,EXPOSURE_DATA!$C$2:$E$6,2,FALSE),VLOOKUP($E$84,EXPOSURE_DATA!$C$2:$E$6,3,FALSE)) -> 350 | G84: =IF(Scenario="Residential",VLOOKUP($E$84,EXPOSURE_DATA!$C$2:$E$6,2,FALSE),VLOOKUP($E$84,EXPOSURE_DATA!$C$2:$E$6,3,FALSE)) -> 350 | H84: NA | I84: NA | J84: =IF(EF<>G84,"WARNING","") ->  | K84: =IF(EF<>G84,"Value is different from default value; please justify.","") ->  | AB84: Exposure frequency | AD84: (days/yr) | AE84: EF | AF84: =IF(Scenario="Residential",VLOOKUP($E$84,EXPOSURE_DATA!$C$2:$E$6,2,FALSE),VLOOKUP($E$84,EXPOSURE_DATA!$C$2:$E$6,3,FALSE)) -> 350 | AG84: =IF(Scenario="Residential",VLOOKUP($E$84,EXPOSURE_DATA!$C$2:$E$6,2,FALSE),VLOOKUP($E$84,EXPOSURE_DATA!$C$2:$E$6,3,FALSE)) -> 350 | AH84: NA | AI84: NA | AJ84: =IF(EF<>AG84,"WARNING","") ->  | AK84: =IF(EF<>AG84,"Value is different from default value; please justify.","") -> 
B85: Exposure time | D85: (hrs/24 hrs) | E85: ET | F85: =IF(Scenario="Residential",VLOOKUP($E$85,EXPOSURE_DATA!$C$2:$E$6,2,FALSE),VLOOKUP($E$85,EXPOSURE_DATA!$C$2:$E$6,3,FALSE)) -> 24 | G85: =IF(Scenario="Residential",VLOOKUP($E$85,EXPOSURE_DATA!$C$2:$E$6,2,FALSE),VLOOKUP($E$85,EXPOSURE_DATA!$C$2:$E$6,3,FALSE)) -> 24 | H85: NA | I85: NA | J85: =IF(ET<>G85,"WARNING","") ->  | K85: =IF(ET<>G85,"Value is different from default value; please justify.","") ->  | AB85: Exposure time | AD85: (hrs/24 hrs) | AE85: ET | AF85: =IF(Scenario="Residential",VLOOKUP($E$85,EXPOSURE_DATA!$C$2:$E$6,2,FALSE),VLOOKUP($E$85,EXPOSURE_DATA!$C$2:$E$6,3,FALSE)) -> 24 | AG85: =IF(Scenario="Residential",VLOOKUP($E$85,EXPOSURE_DATA!$C$2:$E$6,2,FALSE),VLOOKUP($E$85,EXPOSURE_DATA!$C$2:$E$6,3,FALSE)) -> 24 | AH85: NA | AI85: NA | AJ85: =IF(ET<>AG85,"WARNING","") ->  | AK85: =IF(ET<>AG85,"Value is different from default value; please justify.","") -> 
B86: Mutagenic mode-of-action factor | D86: (yrs) | E86: MMOAF | F86: =EXPOSURE_DATA!$D$7 -> 72 | G86: =EXPOSURE_DATA!$D$7 -> 72 | H86: NA | I86: NA | J86: =IF(MUT="No", "NOTE", "") -> NOTE | K86: =IF(MUT="No", "MMOAF not relevant for non-mutagenic compounds", "MMOAF used in place of ED in risk calculations") -> MMOAF not relevant for non-mutagenic compounds | AB86: Mutagenic mode-of-action factor | AD86: (yrs) | AE86: MMOAF | AF86: =EXPOSURE_DATA!$D$7 -> 72 | AG86: =EXPOSURE_DATA!$D$7 -> 72 | AH86: NA | AI86: NA | AJ86: =IF(MUT="No", "NOTE", "") -> NOTE | AK86: =IF(MUT="No", "MMOAF not relevant for non-mutagenic compounds", "MMOAF used in place of ED in risk calculations") -> MMOAF not relevant for non-mutagenic compounds
AG87: Total Coefficient of Variation (CV) | AI87: =SQRT(SUMSQ(AI10:AI14,AI17:AI22,AI24:AI29,AJ36:AJ46,AI54:AI76,AI78:AI86)) ->  | AJ87: =IF(OR(AI24,AI25,AI28,AI29)="NA","WARNING", "") ->  | AK87: =IF(OR(AI24,AI25,AI28,AI29)="NA","Chemical property CV values not available for this chemical.", "") -> 
A88: =$A$5 ->  | AA88: =$A$5 -> 
J89: Range is based on the reasonable range of Qsoil/Qbuilding values, as reported in the literature.
A90: Model Output | D90: Site Name/Run Number: | F90: =Name_and_run -> Example, Run 1 | P90: Input Min | Q90: Input Max | R90: Default Min | S90: Default Max | AA90: Model Output | AD90: Site Name/Run Number:
B91: ="Chemical Name:"&" "&$F$17&" CAS No. "&CAS -> Chemical Name: Acetaldehyde CAS No. 75-07-0 | AB91: ="Chemical Name:"&" "&$F$17&" CAS No. "&CAS -> Chemical Name: Acetaldehyde CAS No. 75-07-0
A92: Source to Indoor Air Attenuation Factor | E92: Units | F92: Symbol | G92: Value | H92: Range | I92: Default | J92: Default Range | K92: Flag | L92: Comment | AB92: Source to Indoor Air Attenuation Factor | AF92: Units | AG92: Symbol | AH92: Value | AI92: Default | AK92: Flag | AL92: Comment
B93: =IF(Source="Groundwater", "Groundwater to indoor air attenuation coefficient","Soil gas to indoor air attenuation coefficient") -> Groundwater to indoor air attenuation coefficient | E93: (-) | F93: alpha | G93: =IF(Source="Sub-slab Soil Gas",Qsoil_Qb,(IF(OR(Found_Type="Basement w/ dirt floor",Found_Type="Closed crawl space w/ dirt floor")=TRUE,A_Param/(1+A_Param),A_Param/(1+A_Param*EXP(-B_Param)+(A_Param/C_Param)*(1-EXP(-B_Param)))))) -> 0.0009930742211 | H93: =IF(P93<Q93,CONCATENATE(TEXT(P93,"0.0E+00")," - ",TEXT(Q93,"0.0E+00")),CONCATENATE(TEXT(Q93,"0.0E+00")," - ",TEXT(P93,"0.0E+00"))) -> 1.2E-04 - 1.4E-03 | I93: =IF(Source="Sub-slab Soil Gas", Qsoil_Qb, IF(OR(Found_Type="Basement w/ dirt floor", Found_Type="Closed crawl space w/ dirt floor")=TRUE,A_Param_default/(1+A_Param_default),A_Param_default/(1+A_Param_default*EXP(-B_Param_Default)+(A_Param_default/C_Param_Default)*(1-EXP(-B_Param_Default))))) -> 0.0009930742211 | J93: =IF(R93<S93,CONCATENATE(TEXT(R93,"0.0E+00")," - ",TEXT(S93,"0.0E+00")),CONCATENATE(TEXT(S93,"0.0E+00")," - ",TEXT(R93,"0.0E+00"))) -> 1.2E-04 - 1.4E-03 | K93: =IF(COUNTIF($J$11:$J$85,"ERROR")>0,"ERROR","") ->  | L93: =IF(COUNTIF($J$10:$J$85,"ERROR")>0,"Invalid result. Please correct errors.","") ->  | P93: =IF(Source="Sub-slab Soil Gas",Qsoil_Qb_min,(IF(OR(Found_Type="Basement w/ dirt floor",Found_Type="Closed crawl space w/ dirt floor")=TRUE,A_Param/(1+A_Param),A_Param/(1+A_Param*EXP(-B_param_min)+(A_Param/C_param_min)*(1-EXP(-B_param_min)))))) -> 0.0001207426829 | Q93: =IF(Source="Sub-slab Soil Gas",Qsoil_Qb_max,(IF(OR(Found_Type="Basement w/ dirt floor",Found_Type="Closed crawl space w/ dirt floor")=TRUE,A_Param/(1+A_Param),A_Param/(1+A_Param*EXP(-B_param_max)+(A_Param/C_param_max)*(1-EXP(-B_param_max)))))) -> 0.001441668479 | R93: =IF(Source="Sub-slab Soil Gas",Qsoil_Qb_min,(IF(OR(Found_Type="Basement w/ dirt floor",Found_Type="Closed crawl space w/ dirt floor")=TRUE,A_Param_default/(1+A_Param_default),A_Param_default/(1+A_Param_default*EXP(-B_param_min_default)+(A_Param_default/C_param_min_default)*(1-EXP(-B_param_min_default)))))) -> 0.0001207426829 | S93: =IF(Source="Sub-slab Soil Gas",Qsoil_Qb_max,(IF(OR(Found_Type="Basement w/ dirt floor",Found_Type="Closed crawl space w/ dirt floor")=TRUE,A_Param_default/(1+A_Param_default),A_Param_default/(1+A_Param_default*EXP(-B_param_max_default)+(A_Param_default/C_param_max_default)*(1-EXP(-B_param_max_default)))))) -> 0.001441668479 | AC93: =IF(Source="Groundwater", "Groundwater to indoor air attenuation coefficient","Soil gas to indoor air attenuation coefficient") -> Groundwater to indoor air attenuation coefficient | AF93: (-) | AG93: alpha | AH93: =IF(Source="Sub-slab Soil Gas",Qsoil_Qb,(IF(OR(Found_Type="Basement w/ dirt floor",Found_Type="Closed crawl space w/ dirt floor")=TRUE,A_Param/(1+A_Param),A_Param/(1+A_Param*EXP(-B_Param)+(A_Param/C_Param)*(1-EXP(-B_Param)))))) -> 0.0009930742211 | AI93: =IF(Source="Sub-slab Soil Gas", Qsoil_Qb, IF(OR(Found_Type="Basement w/ dirt floor", Found_Type="Closed crawl space w/ dirt floor")=TRUE,AH111/(1+AH111),AH111/(1+AH111*EXP(-AH112)+(AH111/AH113)*(1-EXP(-AH112))))) -> 0.0009930742211 | AK93: =IF(COUNTIF($J$11:$J$85,"ERROR")>0,"ERROR","") ->  | AL93: =IF(COUNTIF($J$10:$J$85,"ERROR")>0,"Invalid result. Please correct errors.","") -> 
K94: =IF(COUNTIF($J$10:$J$85,"WARNING")>0,"WARNING","") ->  | L94: =IF(COUNTIF($J$11:$J$85,"WARNING")>0,"Please review warning messages","") ->  | AK94: =IF(COUNTIF($J$10:$J$85,"WARNING")>0,"WARNING","") ->  | AL94: =IF(COUNTIF($J$11:$J$85,"WARNING")>0,"Please review warning messages","") -> 
A95: Predicted Indoor Air Concentration | E95: Units | F95: Symbol | G95: Value | H95: Range | I95: Default | J95: Default Range | K95: Flag | L95: Comment | AB95: Predicted Indoor Air Concentration
B96: Indoor air concentration due to vapor intrusion | E96: (ug/m3) | F96: Cia | G96: =Cs*alpha -> 1.354395953 | H96: =IF(P96<Q96,CONCATENATE(TEXT(P96,"0.0E+00")," - ",TEXT(Q96,"0.0E+00")),CONCATENATE(TEXT(Q96,"0.0E+00")," - ",TEXT(P96,"0.0E+00"))) -> 1.6E-01 - 2.0E+00 | I96: =Cs*alpha_default -> 1.354395953 | J96: =IF(R96<S96,CONCATENATE(TEXT(R96,"0.0E+00")," - ",TEXT(S96,"0.0E+00")),CONCATENATE(TEXT(S96,"0.0E+00")," - ",TEXT(R96,"0.0E+00"))) -> 1.6E-01 - 2.0E+00 | K96: =IF(COUNTIF($J$10:$J$85,"ERROR")>0,"ERROR",IF(INDEX(CHEM_DATA!$AE:$AE, MATCH(Chem, Chem_Search,0))="Yes","WARNING","")) -> WARNING | L96: =IF(COUNTIF($J$10:$J$85,"ERROR")>0,"Invalid result. Please correct errors.", IF(INDEX(CHEM_DATA!$AE:$AE, MATCH(Chem, Chem_Search,0))="Yes", "May be overestimated; biodegradation not considered","")) -> May be overestimated; biodegradation not considered | P96: =Cs*alpha_min -> 0.1646738961 | Q96: =Cs*alpha_max -> 1.966207471 | R96: =Cs*alpha_min_default -> 0.1646738961 | S96: =Cs*alpha_max_default -> 1.966207471 | AC96: Indoor air concentration due to vapor intrusion | AF96: (ug/m3) | AG96: Cia | AH96: =Cs*alpha -> 1.354395953 | AI96: =Cs*AI93 -> 1.354395953 | AK96: =IF(COUNTIF($J$10:$J$85,"ERROR")>0,"ERROR",IF(INDEX(CHEM_DATA!$AE:$AE, MATCH(Chem, Chem_Search,0))="Yes","WARNING","")) -> WARNING | AL96: =IF(COUNTIF($J$10:$J$85,"ERROR")>0,"Invalid result. Please correct errors.", IF(INDEX(CHEM_DATA!$AE:$AE, MATCH(Chem, Chem_Search,0))="Yes", "May be overestimated; biodegradation not considered","")) -> May be overestimated; biodegradation not considered
E97: (ppbv) | G97: =Cs*alpha*24.46/INDEX(CHEM_DATA!$C$6:$C$472, MATCH(Chem, Chem_Search, 0)) -> 0.7519981161 | H97: =IF(P97<Q97,CONCATENATE(TEXT(P97,"0.0E+00")," - ",TEXT(Q97,"0.0E+00")),CONCATENATE(TEXT(Q97,"0.0E+00")," - ",TEXT(P97,"0.0E+00"))) -> 9.1E-02 - 1.1E+00 | I97: =Cs*alpha_default*24.46/INDEX(CHEM_DATA!$C$6:$C$472, MATCH(Chem, Chem_Search, 0)) -> 0.7519981161 | J97: =IF(R97<S97,CONCATENATE(TEXT(R97,"0.0E+00")," - ",TEXT(S97,"0.0E+00")),CONCATENATE(TEXT(S97,"0.0E+00")," - ",TEXT(R97,"0.0E+00"))) -> 9.1E-02 - 1.1E+00 | K97: =IF(COUNTIF($J$11:$J$85,"WARNING")>0,"WARNING","") ->  | L97: =IF(COUNTIF($J$10:$J$85,"WARNING")>0,"Please review warning messages", "") ->  | P97: =Cs*alpha_min*24.46/INDEX(CHEM_DATA!$C$6:$C$472, MATCH(Chem, Chem_Search, 0)) -> 0.09143150446 | Q97: =Cs*alpha_max*24.46/INDEX(CHEM_DATA!$C$6:$C$472, MATCH(Chem, Chem_Search, 0)) -> 1.091692803 | R97: =Cs*alpha_min_default*24.46/INDEX(CHEM_DATA!$C$6:$C$472, MATCH(Chem, Chem_Search, 0)) -> 0.09143150446 | S97: =Cs*alpha_max_default*24.46/INDEX(CHEM_DATA!$C$6:$C$472, MATCH(Chem, Chem_Search, 0)) -> 1.091692803 | AF97: (ppbv) | AH97: =Cs*alpha*24.46/INDEX(CHEM_DATA!$C$6:$C$472, MATCH(Chem, Chem_Search, 0)) -> 0.7519981161 | AI97: =Cs*AI93*24.46/INDEX(CHEM_DATA!$C$6:$C$472, MATCH(Chem, Chem_Search, 0)) -> 0.7519981161 | AK97: =IF(COUNTIF($J$11:$J$85,"WARNING")>0,"WARNING","") ->  | AL97: =IF(COUNTIF($J$10:$J$85,"WARNING")>0,"Please review warning messages", "") -> 
A99: Predicted Vapor Conc. Beneath Foundation | E99: Units | F99: Symbol | G99: Value | H99: Range | I99: Default | J99: Default Range | K99: Flag | L99: Comment | AB99: Predicted Vapor Concentration Beneath the Foundation
B100: Subslab vapor concentration | E100: (ug/m3) | F100: Css | G100: =IF(OR(Found_Type="Basement w/ dirt floor", Found_Type="Closed crawl space w/ dirt floor")=TRUE, "NA",Cia*Qb/Qsoil) -> 451.4653176 | H100: =IF(P100<Q100,CONCATENATE(TEXT(P100,"0.0E+00")," - ",TEXT(Q100,"0.0E+00")),CONCATENATE(TEXT(Q100,"0.0E+00")," - ",TEXT(P100,"0.0E+00"))) -> 3.9E+01 - 1.6E+03 | I100: =IF(OR(Found_Type="Basement w/ dirt floor", Found_Type="Closed crawl space w/ dirt floor")=TRUE,"NA",Cia_default*Qb_default/Qsoil_default) -> 451.4653176 | J100: =IF(R100<S100,CONCATENATE(TEXT(R100,"0.0E+00")," - ",TEXT(S100,"0.0E+00")),CONCATENATE(TEXT(S100,"0.0E+00")," - ",TEXT(R100,"0.0E+00"))) -> 1.6E+03 - 2.0E+04 | P100: =IF(OR(Found_Type="Basement w/ dirt floor",Found_Type="Closed crawl space w/ dirt floor")=TRUE,"NA",Cia_min*(1/Qsoil_Qb_min)) -> 1646.738961 | Q100: =IF(OR(Found_Type="Basement w/ dirt floor", Found_Type="Closed crawl space w/ dirt floor")=TRUE, "NA",Cia_max*(1/Qsoil_Qb_max)) -> 39.32414943 | R100: =IF(OR(Found_Type="Basement w/ dirt floor",Found_Type="Closed crawl space w/ dirt floor")=TRUE,"NA",Cia_min_default*(1/Qsoil_Qb_min)) -> 1646.738961 | S100: =IF(OR(Found_Type="Basement w/ dirt floor",Found_Type="Closed crawl space w/ dirt floor")=TRUE,"NA",Cia_max_default*(1/Qsoil_Qb_min)) -> 19662.07471 | AC100: Subslab vapor concentration | AF100: (ug/m3) | AG100: Css | AH100: =IF(OR(Found_Type="Basement w/ dirt floor", Found_Type="Closed crawl space w/ dirt floor")=TRUE, "NA",Cia*Qb/Qsoil) -> 451.4653176 | AI100: =IF(OR(Found_Type="Basement w/ dirt floor", Found_Type="Closed crawl space w/ dirt floor")=TRUE,"NA",Cs*AI93/AH44) -> 451.4653176
E101: (ppbv) | G101: =IF(Found_Type="Basement w/ dirt floor","NA",G100*24.46/(INDEX(CHEM_DATA!$C6:$C472,MATCH(Chem,Chem_Search,0)))) -> 250.6660387 | H101: =IF(P101<Q101,CONCATENATE(TEXT(P101,"0.0E+00")," - ",TEXT(Q101,"0.0E+00")),CONCATENATE(TEXT(Q101,"0.0E+00")," - ",TEXT(P101,"0.0E+00"))) -> 2.2E+01 - 9.1E+02 | I101: =IF(Found_Type="Basement w/ dirt floor","NA",I100*24.46/(INDEX(CHEM_DATA!$C6:$C472,MATCH(Chem,Chem_Search,0)))) -> 250.6660387 | J101: =IF(R101<S101,CONCATENATE(TEXT(R101,"0.0E+00")," - ",TEXT(S101,"0.0E+00")),CONCATENATE(TEXT(S101,"0.0E+00")," - ",TEXT(R101,"0.0E+00"))) -> 9.1E+02 - 1.1E+04 | P101: =IF(Found_Type="Basement w/ dirt floor","NA",P100*24.46/(INDEX(CHEM_DATA!$C6:$C472,MATCH(Chem,Chem_Search,0)))) -> 914.3150446 | Q101: =IF(Found_Type="Basement w/ dirt floor","NA",Q100*24.46/(INDEX(CHEM_DATA!$C6:$C472,MATCH(Chem,Chem_Search,0)))) -> 21.83385606 | R101: =IF(Found_Type="Basement w/ dirt floor","NA",R100*24.46/(INDEX(CHEM_DATA!$C6:$C472,MATCH(Chem,Chem_Search,0)))) -> 914.3150446 | S101: =IF(Found_Type="Basement w/ dirt floor","NA",S100*24.46/(INDEX(CHEM_DATA!$C6:$C472,MATCH(Chem,Chem_Search,0)))) -> 10916.92803 | AF101: (ppbv) | AH101: =IF(Found_Type="Basement w/ dirt floor","NA",AH100*24.46/(INDEX(CHEM_DATA!$C6:$C472,MATCH(Chem,Chem_Search,0)))) -> 250.6660387 | AI101: =IF(Found_Type="Basement w/ dirt floor","NA",AI100*24.46/(INDEX(CHEM_DATA!$C6:$C472,MATCH(Chem,Chem_Search,0)))) -> 250.6660387
A103: Diffusive Transport Upward Through Vadose Zone | E103: Units | F103: Symbol | G103: Value | H103: Range | I103: Default | J103: Default Range | K103: Flag | L103: Comment | AB103: Diffusive Transport Upward Through Vadose Zone
B104: Effective diffusion coefficient through Stratum A | E104: (cm2/sec) | F104: DeffA | G104: =(Dair*(nSA-nwSA)^3.33+Dwater*(nwSA^3.33)/Hs)/(nSA^2) -> 0.02064635816 | H104: - | I104: =(Dair_default*(nSA_default-nwSA_default)^3.33+Dwater_default*(nwSA_default^3.33)/Hs_default)/(nSA_default^2) -> 0.02064635816 | J104: - | AC104: Effective diffusion coefficient through Stratum A | AF104: (cm2/sec) | AG104: DeffA | AH104: =(Dair*(nSA-nwSA)^3.33+Dwater*(nwSA^3.33)/Hs)/(nSA^2) -> 0.02064635816 | AI104: =(AG28*(AG57-AG58)^3.33+AG29*(AG58^3.33)/AG27)/(AG57^2) -> 0.02064635816
B105: Effective diffusion coefficient through Stratum B | E105: (cm2/sec) | F105: DeffB | G105: =IF(SCS_B="Not Present","",(Dair*(nSB-nwSB)^3.33+Dwater*(nwSB^3.33)/Hs)/(nSB^2)) ->  | H105: - | I105: =IF(SCS_B="Not Present","",(Dair_default*(nSB_default-nwSB_default)^3.33+Dwater_default*(nwSB_default^3.33)/Hs_default)/(nSB_default^2)) ->  | J105: - | AC105: Effective diffusion coefficient through Stratum B | AF105: (cm2/sec) | AG105: DeffB | AH105: =IF(SCS_B="Not Present","",(Dair*(nSB-nwSB)^3.33+Dwater*(nwSB^3.33)/Hs)/(nSB^2)) ->  | AI105: =IF(SCS_B="Not Present","",(AG28*(AG63-AG64)^3.33+AG29*(AG64^3.33)/AG27)/(AG63^2)) -> 
B106: Effective diffusion coefficient through Stratum C | E106: (cm2/sec) | F106: DeffC | G106: =IF(SCS_C="Not Present","",(Dair*(nSC-nwSC)^3.33+Dwater*(nwSC^3.33)/Hs)/(nSC^2)) ->  | H106: - | I106: =IF(SCS_C="Not Present","",(Dair_default*(nSC_default-nwSC_default)^3.33+Dwater_default*(nwSC_default^3.33)/Hs_default)/(nSC_default^2)) ->  | J106: - | AC106: Effective diffusion coefficient through Stratum C | AF106: (cm2/sec) | AG106: DeffC | AH106: =IF(SCS_C="Not Present","",(Dair*(nSC-nwSC)^3.33+Dwater*(nwSC^3.33)/Hs)/(nSC^2)) ->  | AI106: =IF(SCS_C="Not Present","",(AG28*(AG69-AG70)^3.33+AG29*(AG70^3.33)/AG27)/(AG69^2)) -> 
B107: =IF(Source="Groundwater","Effective diffusion coefficient through capillary zone","") -> Effective diffusion coefficient through capillary zone | E107: =IF(Source="Groundwater","(cm2/sec)","") -> (cm2/sec) | F107: =IF(Source="Groundwater","DeffCZ","") -> DeffCZ | G107: =IF(Source="Groundwater",IF(src_soil="Not Applicable","",(Dair*(ncz-nwcz)^3.33+Dwater*(nwcz^3.33)/Hs)/ncz^2),"") -> 0.001181175347 | H107: - | I107: =IF(Source="Groundwater",IF(src_soil="Not Applicable","",(Dair_default*(ncz_default-nwcz_default)^3.33+Dwater_default*(nwcz_default^3.33)/Hs_default)/ncz_default^2),"") -> 0.001181175347 | J107: - | AC107: =IF(Source="Groundwater","Effective diffusion coefficient through capillary zone","") -> Effective diffusion coefficient through capillary zone | AF107: =IF(Source="Groundwater","(cm2/sec)","") -> (cm2/sec) | AG107: =IF(Source="Groundwater","DeffCZ","") -> DeffCZ | AH107: =IF(Source="Groundwater",IF(src_soil="Not Applicable","",(Dair*(ncz-nwcz)^3.33+Dwater*(nwcz^3.33)/Hs)/ncz^2),"") -> 0.001181175347 | AI107: =IF(Source="Groundwater",IF(src_soil="Not Applicable","",(AG28*(AG75-AG76)^3.33+AG29*(AG76^3.33)/AG27)/AG75^2),"") -> 0.001181175347
B108: Effective diffusion coefficient through unsaturated zone | E108: (cm2/sec) | F108: DeffT | G108: =IF(Source="Groundwater",IF(src_soil="Stratum A",(hSA-Lb)/((hSA-Lb-hcz)/DeffA+hcz/DeffCZ),IF(src_soil="Stratum B",IF(SCS_B="Not Present","",(hSA-Lb+hSB)/((hSA-Lb)/DeffA+(hSB-hcz)/DeffB+hcz/DeffCZ)),IF(src_soil="Stratum C",IF(SCS_C="Not Present","",(hSA-Lb+hSB+hSC)/((hSA-Lb)/DeffA+hSB/DeffB+(hSC-hcz)/DeffC+hcz/DeffCZ)),))),IF(src_soil="Stratum A",DeffA,IF(src_soil="Stratum B",(hSA-Lb+hSB)/((hSA-Lb)/DeffA+hSB/DeffB),(hSA-Lb+hSB+hSC)/((hSA-Lb)/DeffA+hSB/DeffB+hSC/DeffC)))) -> 0.008330437192 | H108: - | I108: =IF(Source="Groundwater",IF(src_soil="Stratum A",(hSA-Lb_default)/((hSA-Lb_default-hcz_default)/DeffA_default+hcz_default/DeffCZ_default),IF(src_soil="Stratum B",IF(SCS_B="Not Present","",(hSA-Lb_default+hSB)/((hSA-Lb_default)/DeffA_default+(hSB-hcz_default)/DeffB_default+hcz_default/DeffCZ_default)),IF(src_soil="Stratum C",IF(SCS_C="Not Present","",(hSA-Lb_default+hSB+hSC)/((hSA-Lb_default)/DeffA_default+hSB/DeffB_default+(hSC_default-hcz_default)/DeffC_default+hcz_default/DeffCZ_default)),))),IF(src_soil="Stratum A",DeffA_default,IF(src_soil="Stratum B",(hSA-Lb_default+hSB)/((hSA-Lb_default)/DeffA_default+hSB/DeffB_default),(hSA-Lb_default+hSB+hSC)/((hSA-Lb_default)/DeffA_default+hSB/DeffB_default+hSC/DeffC_default)))) -> 0.008330437192 | J108: - | AC108: Effective diffusion coefficient through unsaturated zone | AF108: (cm2/sec) | AG108: DeffT | AH108: =IF(Source="Groundwater",IF(src_soil="Stratum A",(hSA-Lb)/((hSA-Lb-hcz)/DeffA+hcz/DeffCZ),IF(src_soil="Stratum B",IF(SCS_B="Not Present","",(hSA-Lb+hSB)/((hSA-Lb)/DeffA+(hSB-hcz)/DeffB+hcz/DeffCZ)),IF(src_soil="Stratum C",IF(SCS_C="Not Present","",(hSA-Lb+hSB+hSC)/((hSA-Lb)/DeffA+hSB/DeffB+(hSC-hcz)/DeffC+hcz/DeffCZ)),))),IF(src_soil="Stratum A",DeffA,IF(src_soil="Stratum B",(hSA-Lb+hSB)/((hSA-Lb)/DeffA+hSB/DeffB),(hSA-Lb+hSB+hSC)/((hSA-Lb)/DeffA+hSB/DeffB+hSC/DeffC)))) -> 0.008330437192 | AI108: =IF(Source="Groundwater",IF(src_soil="Stratum A",(hSA-AH38)/((hSA-AH38-AG74)/AI104+AG74/AI107),IF(src_soil="Stratum B",IF(SCS_B="Not Present","",(hSA-AH38+hSB)/((hSA-AH38)/AI104+(hSB-AG74)/AI105+AG74/AI107)),IF(src_soil="Stratum C",IF(SCS_C="Not Present","",(hSA-AH38+hSB+hSC)/((hSA-AH38)/AI104+hSB/AI105+(hSC-AG74)/AI106+AG74/AI107)),))),IF(src_soil="Stratum A",AI104,IF(src_soil="Stratum B",(hSA-AH38+hSB)/((hSA-AH38)/AI104+hSB/AI105),(hSA-AH38+hSB+hSC)/((hSA-AH38)/AI104+hSB/AI105+hSC/AI106)))) -> 0.008330437192
A110: Critical Parameters | F110: Symbol | G110: Value | H110: Range | I110: Default | J110: Default Range | K110: Flag | AA110: Critical Parameters
B111: a for diffusive transport from source to building with dirt floor foundation | E111: (-) | F111: A_Param | G111: =DeffT*(Abf+4*Lb*SQRT(Abf))*0.36/(Qb*(Ls-Lb)) -> 0.001484470773 | H111: - | I111: =DeffT_default*(Abf_default+4*Lb_default*SQRT(Abf_default))*0.36/(Qb_default*(Ls-Lb_default)) -> 0.001484470773 | AB111: a for diffusive transport from source to building with dirt floor foundation | AE111: (-) | AF111: A_Param | AG111: =DeffT*(Abf+4*Lb*SQRT(Abf))*0.36/(Qb*(Ls-Lb)) -> 0.001484470773 | AH111: =AI108*(AH41+4*AH38*SQRT(AH41))*0.36/(AH45*(Ls-AH38)) -> 0.001484470773
B112: Pe (Peclet Number) for transport through the foundation (advection / diffusion) | E112: (-) | F112: B_Param | G112: =Qsoil_Qb*Qb*Lf/(DeffA*eta*(Abf+4*Lb*SQRT(Abf))*0.36) -> 42.91610899 | H112: =IF(O112<P112,CONCATENATE(TEXT(O112,"0.0E+00")," - ",TEXT(P112,"0.0E+00")),CONCATENATE(TEXT(P112,"0.0E+00")," - ",TEXT(O112,"0.0E+00"))) -> 1.4E+00 - 7.2E+02 | I112: =Qsoil_Qb_default*Qb_default*Lf_default/(DeffA_default*eta_default*(Abf_default+4*Lb_default*SQRT(Abf_default))*0.36) -> 42.91610899 | J112: =IF(Q112<R112,CONCATENATE(TEXT(Q112,"0.0E+00")," - ",TEXT(R112,"0.0E+00")),CONCATENATE(TEXT(R112,"0.0E+00")," - ",TEXT(Q112,"0.0E+00"))) -> 1.4E+00 - 7.2E+02 | O112: =Qsoil_Qb_min*Qb*Lf/(DeffA*eta*(Abf+4*Lb*SQRT(Abf))*0.36) -> 1.430536966 | P112: =Qsoil_Qb_max*Qb*Lf/(DeffA*eta*(Abf+4*Lb*SQRT(Abf))*0.36) -> 715.2684832 | Q112: =Qsoil_Qb_min*Qb_default*Lf_default/(DeffA_default*eta_default*(Abf_default+4*Lb_default*SQRT(Abf_default))*0.36) -> 1.430536966 | R112: =Qsoil_Qb_max*Qb_default*Lf_default/(DeffA_default*eta_default*(Abf_default+4*Lb_default*SQRT(Abf_default))*0.36) -> 715.2684832 | AB112: Pe (Peclet Number) for transport through the foundation (advection / diffusion) | AE112: (-) | AF112: B_Param | AG112: =Qsoil_Qb*Qb*Lf/(DeffA*eta*(Abf+4*Lb*SQRT(Abf))*0.36) -> 42.91610899 | AH112: =AH44*AH45*AH39/(AI104*AH40*(AH41+4*AH38*SQRT(AH41))*0.36) -> 42.91610899
B113: a for convective transport from subslab to building | E113: (-) | F113: C_Param | G113: =Qsoil_Qb -> 0.003 | H113: =IF(O113<P113,CONCATENATE(TEXT(O113,"0.0E+00")," - ",TEXT(P113,"0.0E+00")),CONCATENATE(TEXT(P113,"0.0E+00")," - ",TEXT(O113,"0.0E+00"))) -> 1.0E-04 - 5.0E-02 | I113: =Qsoil_Qb_default -> 0.003 | J113: =IF(Q113<R113,CONCATENATE(TEXT(Q113,"0.0E+00")," - ",TEXT(R113,"0.0E+00")),CONCATENATE(TEXT(R113,"0.0E+00")," - ",TEXT(Q113,"0.0E+00"))) -> 1.0E-04 - 5.0E-02 | O113: =Qsoil_Qb_min -> 0.0001 | P113: =Qsoil_Qb_max -> 0.05 | Q113: =Qsoil_Qb_min -> 0.0001 | R113: =Qsoil_Qb_max -> 0.05 | AB113: a for convective transport from subslab to building | AE113: (-) | AF113: C_Param | AG113: =Qsoil_Qb -> 0.003 | AH113: =AH44 -> 0.003
A115: Interpretation | F115: Concentration versus Depth Profile | AA115: Interpretation | AF115: Concentration versus Depth Profile
B117: =IF(B_Param<0.1,"Diffusion is the dominant mechanism across the foundation.",IF(B_Param>3,"Advection is the dominant mechanism across the foundation.","Both diffusion and advection contribute to transport across the foundation.")) -> Advection is the dominant mechanism across the foundation. | AB117: =IF(B_Param<0.1,"Diffusion is the dominant mechanism across the foundation.",IF(B_Param>3,"Advection is the dominant mechanism across the foundation.","Both diffusion and advection contribute to transport across the foundation.")) -> Advection is the dominant mechanism across the foundation.
B118: =IF(B_Param>3,IF((A_Param/C_Param)<0.1,"Diffusion through soil is the overall rate limiting process.",IF((A_Param/C_Param)>10,"Advection through the foundation is the overall rate-limiting process.","Diffusion through soil and advection through foundation both control intrusion.")),"") -> Diffusion through soil and advection through foundation both control intrusion. | AB118: =IF(B_Param>3,IF((A_Param/C_Param)<0.1,"Diffusion through soil is the overall rate limiting process.",IF((A_Param/C_Param)>10,"Advection through the foundation is the overall rate-limiting process.","Diffusion through soil and advection through foundation both control intrusion.")),"") -> Diffusion through soil and advection through foundation both control intrusion.
B119: =IF(B_Param<0.1,IF((A_Param*B_Param/C_Param)<0.1,"Diffusion through soil is the overall rate limiting process.",IF((A_Param*B_Param/C_Param)>(10*(1+A_Param)),"Diffusion through the foundation is the overall rate-limiting process.","Diffusion through soil and diffusion through foundation both control intrusion.")),"") ->  | AB119: =IF(B_Param<0.1,IF((A_Param*B_Param/C_Param)<0.1,"Diffusion through soil is the overall rate limiting process.",IF((A_Param*B_Param/C_Param)>(10*(1+A_Param)),"Diffusion through the foundation is the overall rate-limiting process.","Diffusion through soil and diffusion through foundation both control intrusion.")),"") -> 
A122: Critical Parameters | AA122: Critical Parameters
B124: =IF(B_Param>3,IF((A_Param/C_Param)<0.1,"Hb, Ls, DeffT, ach",IF((A_Param/C_Param)>10,"Qsoil_Qb","Hb, Ls, DeffT, ach, Qsoil_Qb")),"") -> Hb, Ls, DeffT, ach, Qsoil_Qb | AB124: =IF(B_Param>3,IF((A_Param/C_Param)<0.1,"Hb, Ls, DeffT, ach",IF((A_Param/C_Param)>10,"Qsoil_Qb","Hb, Ls, DeffT, ach, Qsoil_Qb")),"") -> Hb, Ls, DeffT, ach, Qsoil_Qb
B125: =IF(B_Param<0.1,IF((A_Param*B_Param/C_Param)<0.1,"Hb, Ls, DeffT, ach",IF((A_Param*B_Param/C_Param)>(10*(1+A_Param)),"Hb, Lf, DeffA, ach, eta","Alpha sentive to all parameters.")),"") ->  | AB125: =IF(B_Param<0.1,IF((A_Param*B_Param/C_Param)<0.1,"Hb, Ls, DeffT, ach",IF((A_Param*B_Param/C_Param)>(10*(1+A_Param)),"Hb, Lf, DeffA, ach, eta","Alpha sentive to all parameters.")),"") -> 
A128: Non-Critical Parameters | AA128: Non-Critical Parameters
B130: =IF(B_Param>3,IF((A_Param/C_Param)<0.1,"Qsoil_Qb, Lf, DeffA, eta",IF((A_Param/C_Param)>10,"Lf, DeffA, DeffT, eta, Ls, ach","Lf, DeffA, eta")),"") -> Lf, DeffA, eta | AB130: =IF(B_Param>3,IF((A_Param/C_Param)<0.1,"Qsoil_Qb, Lf, DeffA, eta",IF((A_Param/C_Param)>10,"Lf, DeffA, DeffT, eta, Ls, ach","Lf, DeffA, eta")),"") -> Lf, DeffA, eta
B131: =IF(B_Param<0.1,IF((A_Param*B_Param/C_Param)<0.1,"Qsoil_Qb, Lf, DeffA, eta",IF((A_Param*B_Param/C_Param)>(10*(1+A_Param)),"Qsoil_Qb, Ls, DeffT","Alpha sentive to all parameters.")),"") ->  | AB131: =IF(B_Param<0.1,IF((A_Param*B_Param/C_Param)<0.1,"Qsoil_Qb, Lf, DeffA, eta",IF((A_Param*B_Param/C_Param)>(10*(1+A_Param)),"Qsoil_Qb, Ls, DeffT","Alpha sentive to all parameters.")),"") -> 
A134: =IF(OR(COUNTIF($J$10:$J$85,"WARNING")>0,COUNTIF($J$10:$J$85,"ERROR")>0),"Please check WARNING or ERROR flags","") ->  | AB134: =IF(OR(COUNTIF($J$10:$J$85,"WARNING")>0,COUNTIF($J$10:$J$85,"ERROR")>0),"Please check WARNING or ERROR flags","") -> 
A139: =$A$5 ->  | AB139: US EPA VAPOR INTRUSION ASSESSMENT MODEL (VIA_MODEL.xlsm)
A141: =$A$90 -> Model Output | D141: Site Name/Run Number: | F141: =Name_and_run -> Example, Run 1 | AB141: Model Output | AE141: Site Name/Run Number:
B142: ="Chemical Name:"&" "&$F$17&" CAS No. "&CAS -> Chemical Name: Acetaldehyde CAS No. 75-07-0 | AC142: Chemical Name: Bis(2-chloroethyl)ether CAS No. 111-44-4
A143: Risk Calculations | E143: Units | F143: Symbol | G143: Value | H143: Range | I143: Default | J143: Range | K143: Flag | L143: Comment | AB143: Risk Calculations | AF143: Units | AG143: Symbol | AH143: Value | AI143: Default | AK143: Flag | AL143: Comment
A145: Risk-Based Target Screening Levels | D145: =CONCATENATE("Scenario: ",Scenario) -> Scenario: Residential | AB145: Risk-Based Target Screening Levels
B146: Target risk for carcinogens | E146: (-) | F146: Target_CR | G146: =Target_CR -> 1e-06 | H146: - | I146: =Target_CR_default -> 1e-06 | J146: - | AC146: Target risk for carcinogens | AF146: (-) | AG146: Target_CR | AH146: =Target_CR -> 1e-06 | AI146: =Target_CR_default -> 1e-06
B147: Target hazard quotient for noncarcinogens | E147: (-) | F147: Target_HQ | G147: =Target_HQ -> 1 | H147: - | I147: =Target_HQ_default -> 1 | J147: - | AC147: Target hazard quotient for noncarcinogens | AF147: (-) | AG147: Target_HQ | AH147: =Target_HQ -> 1 | AI147: =Target_HQ_default -> 1
B148: Target indoor air concentration | E148: (ug/m3) | F148: Target_IA | G148: =IF(AND(URF="Not Available",RfC="Not Available"),"No tox data available",IF(CAS="75-01-4",(Target_CR/(URF+((URF*EF*ED*ET*(1/24))/(ATc*365)))),IF(Chem="Trichloroethylene",1/((EF*MMOAF*ET*mIURTCE/(Target_CR*ATc*365*24))+EF*ED*ET*IURTCE_R/(Target_CR*ATc*365*24)),IF(MUT="Yes",Target_CR*ATc*365*24/(URF*MMOAF*EF*ET),IF(URF="Not Available",(Target_HQ*ATnc*365*24*RfC*1000/(EF*ED*ET)),IF(RfC="Not Available",(Target_CR*ATc*365/(URF*ED*EF*ET/24)),MIN((Target_CR*ATc*365/(URF*ED*EF*ET/24)),(Target_HQ*ATnc*365*24*RfC*1000/(EF*ED*ET))))))))) -> 1.276223776 | H148: - | I148: =IF(AND(URF_default="Not Available",RfC_default="Not Available"),"No tox data available",IF(Chem="Vinyl chloride",(Target_CR_default/(URF_default+((URF_default*EF_default*ED_default*ET_default*(1/24))/(Atc_default*365)))),IF(Chem="Trichloroethylene",1/((EF_default*MMOAF_default*ET_default*mIURTCE_R/(Target_CR_default*Atc_default*365*24))+EF_default*ED_default*ET_default*IURTCE_R/(Target_CR_default*Atc_default*365*24)),IF(MUT="Yes",Target_CR_default*Atc_default*365*24/(URF_default*MMOAF_default*EF_default*ET_default),IF(URF_default="Not Available",(Target_HQ_default*ATnc_default*365*24*RfC_default*1000/(EF_default*ED_default*ET_default)),IF(RfC_default="Not Available",(Target_CR_default*Atc_default*365/(URF_default*ED_default*EF_default*ET_default/24)),MIN((Target_CR_default*Atc_default*365/(URF_default*ED_default*EF_default*ET_default/24)),(Target_HQ_default*ATnc_default*365*24*RfC_default*1000/(EF_default*ED_default*ET_default))))))))) -> 1.276223776 | J148: - | K148: =IF(Target_IA="No tox data available","",IF(Chem="Vinyl chloride","Target indoor air concentration based on cancer risk (unit risk factor)",IF(Chem="Trichloroethylene","Target indoor air concentration based on both cancer risk and non-cancer toxicity",IF(URF=0,"Target indoor air concentration based on non-cancer toxicity (reference concentration)",IF(RfC=0,"Target indoor air concentration based on cancer risk (unit risk factor)",IF((Target_CR*ATc*365/(URF*ED*EF*ET/24))<(Target_HQ*1000*RfC*ATnc*365/(ED*EF*ET/24)),"Target indoor air concentration based on cancer risk (unit risk factor)","Target indoor air concentration based on non-cancer toxicity (reference concentration)")))))) -> Target indoor air concentration based on cancer risk (unit risk factor) | AC148: Target indoor air concentration | AF148: (ug/m3) | AG148: Target_IA | AH148: =IF(AND(URF="Not Available",RfC="Not Available"),"No tox data available",IF(Chem="Vinyl chloride",(Target_CR/(URF+((URF*EF*ED*ET*(1/24))/(ATc*365)))),IF(Chem="Trichloroethylene",1/((EF*MMOAF*ET*mIURTCE/(Target_CR*ATc*365*24))+EF*ED*ET*IURTCE_R/(Target_CR*ATc*365*24)),IF(MUT="Yes",Target_CR*ATc*365*24/(URF*MMOAF*EF*ET),IF(URF="Not Available",(Target_HQ*ATnc*365*24*RfC*1000/(EF*ED*ET)),IF(RfC="Not Available",(Target_CR*ATc*365/(URF*ED*EF*ET/24)),MIN((Target_CR*ATc*365/(URF*ED*EF*ET/24)),(Target_HQ*ATnc*365*24*RfC*1000/(EF*ED*ET))))))))) -> 1.276223776 | AI148: =IF(AND(URF_default="Not Available",RfC_default="Not Available"),"No tox data available",IF(Chem="Vinyl chloride",(Target_CR_default/(URF_default+((URF_default*EF_default*ED_default*ET_default*(1/24))/(Atc_default*365)))),IF(Chem="Trichloroethylene",1/((EF_default*MMOAF_default*ET_default*mIURTCE_R/(Target_CR_default*Atc_default*365*24))+EF_default*ED_default*ET_default*IURTCE_R/(Target_CR_default*Atc_default*365*24)),IF(MUT="Yes",Target_CR_default*Atc_default*365*24/(URF_default*MMOAF_default*EF_default*ET_default),IF(URF_default="Not Available",(Target_HQ_default*ATnc_default*365*24*RfC_default*1000/(EF_default*ED_default*ET_default)),IF(RfC_default="Not Available",(Target_CR_default*Atc_default*365/(URF_default*ED_default*EF_default*ET_default/24)),MIN((Target_CR_default*Atc_default*365/(URF_default*ED_default*EF_default*ET_default/24)),(Target_HQ_default*ATnc_default*365*24*RfC_default*1000/(EF_default*ED_default*ET_default))))))))) -> 1.276223776 | AL148: =IF(Target_IA="No tox data available","",IF(Chem="Vinyl chloride (chloroethene)","Target indoor air concentration based on cancer risk (unit risk factor)",IF(Chem="Trichloroethylene","Target indoor air concentration based on both cancer risk and non-cancer toxicity",IF(URF=0,"Target indoor air concentration based on non-cancer toxicity (reference concentration)",IF(RfC=0,"Target indoor air concentration based on cancer risk (unit risk factor)",IF((Target_CR*ATc*365/(URF*ED*EF*ET/24))<(Target_HQ*RfC*ATnc*365/(ED*EF*ET/24)),"Target indoor air concentration based on cancer risk (unit risk factor)","Target indoor air concentration based on non-cancer toxicity (reference concentration)")))))) -> Target indoor air concentration based on non-cancer toxicity (reference concentration)
E149: (ppbv) | G149: =IF(AND(URF="Not Available",RfC="Not Available"),"No tox data available",G148*24.46/INDEX(CHEM_DATA!$C6:$C472, MATCH(Chem,Chem_Search, 0))) -> 0.7085947602 | H149: - | I149: =IF(Target_IA_default="No tox data available","NA",Target_IA_default*24.46/INDEX(CHEM_DATA!$C6:$C472, MATCH(Chem,Chem_Search, 0))) -> 0.7085947602 | J149: - | AF149: (ppbv) | AH149: =IF(AND(URF="Not Available",RfC="Not Available"),"No tox data available",AH148*24.46/INDEX(CHEM_DATA!$C6:$C472, MATCH(Chem,Chem_Search, 0))) -> 0.7085947602 | AI149: =IF(Target_IA_default="No tox data available","NA",Target_IA_default*24.46/INDEX(CHEM_DATA!$C6:$C472, MATCH(Chem,Chem_Search, 0))) -> 0.7085947602
B150: =IF(Source="Groundwater","Target groundwater concentration","Target soil gas concentration") -> Target groundwater concentration | E150: =IF(Source="Groundwater","(ug/L)","(ug/m3)") -> (ug/L) | F150: =IF(Source="Groundwater","Target_GW","Target_SV") -> Target_GW | G150: =IF(Target_IA="No tox data available","No tox data available",IF(Source="Groundwater",Target_IA/(Hs*1000*alpha),Target_IA/alpha)) -> 471.1413134 | H150: =IF(P150<Q150,CONCATENATE(TEXT(P150,"0.0E+00")," - ",TEXT(Q150,"0.0E+00")),CONCATENATE(TEXT(Q150,"0.0E+00")," - ",TEXT(P150,"0.0E+00"))) -> 3.2E+02 - 3.9E+03 | I150: =IF(Target_IA_default="No tox data available","No tox data available",IF(Source="Groundwater",Target_IA_default/(Hs_default*1000*alpha_default),Target_IA_default/alpha_default)) -> 471.1413134 | J150: =IF(R150<S150,CONCATENATE(TEXT(R150,"0.0E+00")," - ",TEXT(S150,"0.0E+00")),CONCATENATE(TEXT(S150,"0.0E+00")," - ",TEXT(R150,"0.0E+00"))) -> 3.2E+02 - 3.9E+03 | P150: =IF(Target_IA="No tox data available","NA",IF(Source="Groundwater",Target_IA/(Hs*1000*alpha_min),Target_IA/alpha_min)) -> 3875.003285 | Q150: =IF(Target_IA="No tox data available","NA",IF(Source="Groundwater",Target_IA/(Hs*1000*alpha_max),Target_IA/alpha_max)) -> 324.5394483 | R150: =IF(Target_IA="No tox data available","NA",IF(Source="Groundwater",Target_IA_default/(Hs*1000*alpha_min_default),Target_IA_default/alpha_min_default)) -> 3875.003285 | S150: =IF(Target_IA="No tox data available","NA",IF(Source="Groundwater",Target_IA_default/(Hs*1000*alpha_max_default),Target_IA_default/alpha_max_default)) -> 324.5394483 | AC150: =IF(Source="Groundwater","Target groundwater concentration","Target soil gas concentration") -> Target groundwater concentration | AF150: =IF(Source="Groundwater","(ug/L)","(ug/m3)") -> (ug/L) | AG150: =IF(Source="Groundwater","Target_GW","Target_SV") -> Target_GW | AH150: =IF(Target_IA="No tox data available","No tox data available",IF(Source="Groundwater",Target_IA/(Hs*1000*alpha),Target_IA/alpha)) -> 471.1413134 | AI150: =IF(Target_IA_default="No tox data available","No tox data available",IF(Source="Groundwater",Target_IA_default/(Hs_default*1000*alpha_default),Target_IA_default/alpha_default)) -> 471.1413134
A152: Incremental Risk Estimates | AB152: Incremental Risk Estimates
B153: Incremental cancer risk from vapor intrusion | E153: (-) | F153: Cancer_Risk | G153: =IF(URF="Not Available","No IUR",IF(Chem<>"Trichloroethylene", Cia*(IF(AND(Chem="Vinyl Chloride",Scenario="Residential"),URF,0)+URF*IF(MUT="Yes",MMOAF,ED)*EF*ET/(ATc*365*24)), IF(Scenario="Residential",Cia*mIURTCE_R_GW*MMOAF*EF*ET/(ATc*365*24)+Cia*IURTCE_R_GW*ED*EF*ET/(ATc*365*24), Cia*mIURTCE_C_GW*MMOAF*EF*ET/(ATc*365*24)+Cia*mIURTCE_C_GW*ED*EF*ET/(ATc*365*24)))) -> 1.061252719e-06 | H153: =IF(P153<Q153,CONCATENATE(TEXT(P153,"0.0E+00")," - ",TEXT(Q153,"0.0E+00")),CONCATENATE(TEXT(Q153,"0.0E+00")," - ",TEXT(P153,"0.0E+00"))) -> 1.3E-07 - 1.5E-06 | I153: =IF(URF_default="Not Available","No IUR",IF(Chem<>"Trichloroethylene", Cia_default*(IF(AND(Chem="Vinyl Chloride",Scenario="Residential"),URF_default,0)+URF_default*IF(MUT="Yes",MMOAF_default,ED_default)*EF_default*ET_default/(Atc_default*365*24)), IF(Scenario="Residential",Cia_default*mIURTCE_R_GW*MMOAF_default*EF_default*ET_default/(Atc_default*365*24)+Cia_default*IURTCE_R_GW*ED*EF_default*ET_default/(ATc*365*24), Cia_default*mIURTCE_C_GW*MMOAF_default*EF_default*ET_default/(Atc_default*365*24)+Cia_default*mIURTCE_C_GW*ED_default*EF_default*ET_default/(Atc_default*365*24)))) -> 1.061252719e-06 | J153: =IF(R153<S153,CONCATENATE(TEXT(R153,"0.0E+00")," - ",TEXT(S153,"0.0E+00")),CONCATENATE(TEXT(S153,"0.0E+00")," - ",TEXT(R153,"0.0E+00"))) -> 1.3E-07 - 1.5E-06 | K153: =IF(COUNTIF($J$10:$J$85,"ERROR")>0,"ERROR",IF(INDEX(CHEM_DATA!$AE:$AE, MATCH(Chem, Chem_Search, 0))="Yes","WARNING","")) -> WARNING | L153: =IF(COUNTIF($J$10:$J$85,"ERROR")>0,"Invalid result. Please correct errors.","Note: biodegradation not included in this model, may over estimate indoor air concentrations.") -> Note: biodegradation not included in this model, may over estimate indoor air concentrations. | P153: =IF(URF="Not Available","",IF(Chem<>"Trichloroethylene", Cia_min*(IF(AND(Chem="Vinyl Chloride",Scenario="Residential"),URF,0)+URF*IF(MUT="Yes",MMOAF,ED)*EF*ET/(ATc*365*24)), IF(Scenario="Residential",Cia_min*mIURTCE_R_GW*MMOAF*EF*ET/(ATc*365*24)+Cia_min*IURTCE_R_GW*ED*EF*ET/(ATc*365*24), Cia_min*mIURTCE_C_GW*MMOAF*EF*ET/(ATc*365*24)+Cia_min*mIURTCE_C_GW*ED*EF*ET/(ATc*365*24)))) -> 1.290321487e-07 | Q153: =IF(URF="Not Available","",IF(Chem<>"Trichloroethylene", Cia_max*(IF(AND(Chem="Vinyl Chloride",Scenario="Residential"),URF,0)+URF*IF(MUT="Yes",MMOAF,ED)*EF*ET/(ATc*365*24)), IF(Scenario="Residential",Cia_max*mIURTCE_R_GW*MMOAF*EF*ET/(ATc*365*24)+Cia_max*IURTCE_R_GW*ED*EF*ET/(ATc*365*24), Cia_max*mIURTCE_C_GW*MMOAF*EF*ET/(ATc*365*24)+Cia_max*mIURTCE_C_GW*ED*EF*ET/(ATc*365*24)))) -> 1.540644758e-06 | R153: =IF(URF_default="Not Available","No IUR",IF(Chem<>"Trichloroethylene", Cia_min_default*(IF(AND(Chem="Vinyl Chloride",Scenario="Residential"),URF_default,0)+URF_default*IF(MUT="Yes",MMOAF_default,ED_default)*EF_default*ET_default/(Atc_default*365*24)), IF(Scenario="Residential",Cia_min_default*mIURTCE_R_GW*MMOAF_default*EF_default*ET_default/(Atc_default*365*24)+Cia_min_default*IURTCE_R_GW*ED*EF_default*ET_default/(ATc*365*24), Cia_min_default*mIURTCE_C_GW*MMOAF_default*EF_default*ET_default/(Atc_default*365*24)+Cia_min_default*mIURTCE_C_GW*ED_default*EF_default*ET_default/(Atc_default*365*24)))) -> 1.290321487e-07 | S153: =IF(URF_default="Not Available","No IUR",IF(Chem<>"Trichloroethylene", Cia_max_default*(IF(AND(Chem="Vinyl Chloride",Scenario="Residential"),URF_default,0)+URF_default*IF(MUT="Yes",MMOAF_default,ED_default)*EF_default*ET_default/(Atc_default*365*24)), IF(Scenario="Residential",Cia_max_default*mIURTCE_R_GW*MMOAF_default*EF_default*ET_default/(Atc_default*365*24)+Cia_max_default*IURTCE_R_GW*ED*EF_default*ET_default/(ATc*365*24), Cia_max_default*mIURTCE_C_GW*MMOAF_default*EF_default*ET_default/(Atc_default*365*24)+Cia_max_default*mIURTCE_C_GW*ED_default*EF_default*ET_default/(Atc_default*365*24)))) -> 1.540644758e-06 | AC153: Incremental cancer risk from vapor intrusion | AF153: (-) | AG153: Cancer_Risk | AH153: =IF(URF="Not Available","No IUR",IF(Chem<>"Trichloroethylene", Cia*(IF(AND(Chem="Vinyl Chloride",Scenario="Residential"),URF,0)+URF*IF(MUT="Yes",MMOAF,ED)*EF*ET/(ATc*365*24)), IF(Scenario="Residential",Cia*mIURTCE_R_GW*MMOAF*EF*ET/(ATc*365*24)+Cia*IURTCE_R_GW*ED*EF*ET/(ATc*365*24), Cia*mIURTCE_C_GW*MMOAF*EF*ET/(ATc*365*24)+Cia*mIURTCE_C_GW*ED*EF*ET/(ATc*365*24)))) -> 1.061252719e-06 | AI153: =IF(URF_default="Not Available","No IUR",IF(Chem<>"Trichloroethylene", Cia_default*(IF(AND(Chem="Vinyl Chloride",Scenario="Residential"),URF_default,0)+URF_default*IF(MUT="Yes",MMOAF_default,ED_default)*EF_default*ET_default/(Atc_default*365*24)), IF(Scenario="Residential",Cia_default*mIURTCE_R_GW*MMOAF_default*EF_default*ET_default/(Atc_default*365*24)+Cia_default*IURTCE_R_GW*ED*EF_default*ET_default/(ATc*365*24), Cia_default*mIURTCE_C_GW*MMOAF_default*EF_default*ET_default/(Atc_default*365*24)+Cia_default*mIURTCE_C_GW*ED_default*EF_default*ET_default/(Atc_default*365*24)))) -> 1.061252719e-06 | AJ153: =IF(COUNTIF($J$10:$J$85,"ERROR")>0,"Invalid result. Please correct errors.","Note: biodegradation not included in this model, may over estimate indoor air concentrations.") -> Note: biodegradation not included in this model, may over estimate indoor air concentrations. | AO153: =IF(URF="Not Available","NA",IF(Chem="Vinyl Chloride",Cia_min*(URF+((ED*EF*(ET/24)*URF)/(ATc*365))),IF(AND(URF="NA",MUT="No"),"NA",IF(MUT="Yes",URF*MMOAF*EF*(ET/24)*Cia_min/(ATc*365),0)+IF(MUT="No",URF*ED*EF*(ET/24)*Cia_min/(ATc*365),0)))) -> 1.290321487e-07 | AP153: =IF(URF="Not Available","NA",IF(Chem="Vinyl Chloride",Cia_max*(URF+((ED*EF*(ET/24)*URF)/(ATc*365))),IF(AND(URF="NA",MUT="No"),"NA",IF(MUT="Yes",URF*MMOAF*EF*(ET/24)*Cia_max/(ATc*365),0)+IF(MUT="No",URF*ED*EF*(ET/24)*Cia_max/(ATc*365),0)))) -> 1.540644758e-06 | AQ153: =IF(URF="Not Available","NA",IF(Chem="Vinyl Chloride",Cia_min_default*(URF_default+((ED_default*EF_default*(ET_default/24)*URF_default)/(Atc_default*365))),IF(AND(URF_default="NA",MUT="No"),"NA",IF(MUT="Yes",URF_default*MMOAF_default*EF_default*(ET_default/24)*Cia_min_default/(Atc_default*365),0)+IF(MUT="No",URF_default*ED_default*EF_default*(ET_default/24)*Cia_min_default/(Atc_default*365),0)))) -> 1.290321487e-07 | AR153: =IF(URF="Not Available","NA",IF(Chem="Vinyl Chloride",Cia_max_default*(URF_default+((ED_default*EF_default*(ET_default/24)*URF_default)/(Atc_default*365))),IF(AND(URF_default="NA",MUT="No"),"NA",IF(MUT="Yes",URF_default*MMOAF_default*EF_default*(ET_default/24)*Cia_max_default/(Atc_default*365),0)+IF(MUT="No",URF_default*ED_default*EF_default*(ET_default/24)*Cia_max_default/(Atc_default*365),0)))) -> 1.540644758e-06
B154: Hazard quotient from vapor intrusion | E154: (-) | F154: HQ | G154: =IF(RfC="Not Available","No RfC Available",Cia*EF*ED*ET/(RfC*ATnc*365*24*1000)) -> 0.1443039828 | H154: =IF(P154<Q154,CONCATENATE(TEXT(P154,"0.0E+00")," - ",TEXT(Q154,"0.0E+00")),CONCATENATE(TEXT(Q154,"0.0E+00")," - ",TEXT(P154,"0.0E+00"))) -> 1.8E-02 - 2.1E-01 | I154: =IF(RfC_default="Not Available","No RfC Available",Cia_default*EF_default*ED_default*ET_default/(RfC_default*ATnc_default*365*24*1000)) -> 0.1443039828 | J154: =IF(R154<S154,CONCATENATE(TEXT(R154,"0.0E+00")," - ",TEXT(S154,"0.0E+00")),CONCATENATE(TEXT(S154,"0.0E+00")," - ",TEXT(R154,"0.0E+00"))) -> 1.8E-02 - 2.1E-01 | K154: =IF(COUNTIF($J$10:$J$85,"ERROR")>0,"ERROR",IF(INDEX(CHEM_DATA!$AE:$AE, MATCH(Chem, Chem_Search, 0))="Yes","WARNING","")) -> WARNING | L154: =IF(COUNTIF($J$10:$J$85,"ERROR")>0,"Invalid result. Please correct errors.","Note: biodegradation not included in this model, may over estimate indoor air concentrations.") -> Note: biodegradation not included in this model, may over estimate indoor air concentrations. | P154: =IF(RfC="Not Available","No RfC Available",Cia_min*EF*ED*ET/(RfC*ATnc*365*24*1000)) -> 0.01754516396 | Q154: =IF(RfC="Not Available","No RfC Available",Cia_max*EF*ED*ET/(RfC*ATnc*365*24*1000)) -> 0.2094893805 | R154: =IF(RfC_default="Not Available","No RfC Available",Cia_min_default*EF_default*ED_default*ET_default/(RfC_default*ATnc_default*365*24*1000)) -> 0.01754516396 | S154: =IF(RfC_default="Not Available","No RfC Available",Cia_max_default*EF_default*ED_default*ET_default/(RfC_default*ATnc_default*365*24*1000)) -> 0.2094893805 | AC154: Hazard quotient from vapor intrusion | AF154: (-) | AG154: HQ | AH154: =IF(RfC="Not Available","No RfC Available",Cia*EF*ED*ET/(RfC*ATnc*365*24*1000)) -> 0.1443039828 | AI154: =IF(RfC_default="Not Available","No RfC Available",Cia_default*EF_default*ED_default*ET_default/(RfC_default*ATnc_default*365*24*1000)) -> 0.1443039828 | AJ154: =IF(COUNTIF($J$10:$J$85,"ERROR")>0,"ERROR",IF(INDEX(CHEM_DATA!$AE:$AE, MATCH(Chem, Chem_Search, 0))="Yes","WARNING","")) -> WARNING | AK154: =IF(COUNTIF($J$10:$J$85,"ERROR")>0,"Invalid result. Please correct errors.","Note: biodegradation not included in this model, may over estimate indoor air concentrations.") -> Note: biodegradation not included in this model, may over estimate indoor air concentrations. | AO154: =IF(Chem<>"Trichloroethylene",IF(RfC="Not Available","No RfC Available",ED*EF*(ET/24)*Cia_min/(RfC*ATnc*1000*365)),IF(Scenario<> "Commercial",Cia_min*mIURTCE_R_GW*MMOAF*EF*ET/(ATc*365*24)+Cia_min*IURTCE_R_GW*ED*EF*ET/(ATc*365*24), Cia_min*mIURTCE_C_GW*MMOAF*EF*ET/(ATc*365*24)+Cia_min*IURTCE_C_GW*ED*EF*ET/(ATc*365*24))) -> 0.01754516396 | AP154: =IF(Chem<>"Trichloroethylene",IF(RfC="Not Available","No RfC Available",ED*EF*(ET/24)*Cia_max/(RfC*ATnc*1000*365)),IF(Scenario<> "Commercial",Cia_max*mIURTCE_R_GW*MMOAF*EF*ET/(ATc*365*24)+Cia_max*IURTCE_R_GW*ED*EF*ET/(ATc*365*24), Cia_max*mIURTCE_C_GW*MMOAF*EF*ET/(ATc*365*24)+Cia_max*IURTCE_C_GW*ED*EF*ET/(ATc*365*24))) -> 0.2094893805 | AQ154: =IF(Chem<>"Trichloroethylene",IF(RfC="Not Available","No RfC Available",ED_default*EF_default*(ET_default/24)*Cia_min_default/(1000*RfC_default*ATnc_default*365)), IF(Scenario<> "Commercial",Cia_min_default*mIURTCE_R_GW*MMOAF_default*EF_default*ET_default/(Atc_default*365*24)+Cia_min_default*IURTCE_R_GW*ED_default*EF_default*ET_default/(Atc_default*365*24), Cia_min_default*mIURTCE_C_GW*MMOAF_default*EF_default*ET_default/(Atc_default*365*24)+Cia_min_default*IURTCE_C_GW*ED_default*EF_default*ET_default/(Atc_default*365*24))) -> 0.01754516396 | AR154: =IF(Chem<>"Trichloroethylene",IF(RfC="Not Available","No RfC Available",ED_default*EF_default*(ET_default/24)*Cia_max_default/(1000*RfC_default*ATnc_default*365)), IF(Scenario<> "Commercial",Cia_max_default*mIURTCE_R_GW*MMOAF_default*EF_default*ET_default/(Atc_default*365*24)+Cia_max_default*IURTCE_R_GW*ED_default*EF_default*ET_default/(Atc_default*365*24), Cia_max_default*mIURTCE_C_GW*MMOAF_default*EF_default*ET_default/(Atc_default*365*24)+Cia_max_default*IURTCE_C_GW*ED_default*EF_default*ET_default/(Atc_default*365*24))) -> 0.2094893805
J155: =CONCATENATE(K154,": ",L154) -> WARNING: Note: biodegradation not included in this model, may over estimate indoor air concentrations.
AK204: =IF(COUNTIF($J$10:$J$85,"ERROR")>0,"ERROR","") -> 
AK205: =IF(COUNTIF($J$10:$J$85,"ERROR")>0,"ERROR","") -> 
BB215: Emission_Rate
BB216: =Abf*(Cs-Css)*(DeffT/10000)/(Ls-Lb) -> 0.06000389581 | BC216: ug/L
BB218: Deff_A | BD218: Deff_B | BF218: Deff_C
BB219: =IF(Source="Groundwater",IF(AND(SCS_B="Not Present",SCS_C="Not Present"),DeffT,DeffA),DeffA) -> 0.008330437192 | BC219: cm2/sec | BD219: =IF(Source="Groundwater",IF(AND(SCS_B="Not Present",SCS_C="Not Present"),"",IF(SCS_C="Not Present",hSB/((hSB-hcz)/DeffB+hcz/DeffCZ),DeffB)),DeffB) ->  | BE219: cm2/sec | BF219: =IF(Source="Groundwater",IF(AND(SCS_C="Not Present"),"",hSC/((hSC-hcz)/DeffC+hcz/DeffCZ)),DeffC) ->  | BG219: cm2/sec
BA221: Stratum A | BC221: Stratum B | BE221: Stratum C
BA222: Depth (m) | BB222: Concentration (ug/m3) | BC222: Depth | BD222: Concentration (ug/m3) | BE222: Depth | BF222: Concentration (ug/m3)
BA223: =IF(AND((Ls>Lb),Ls-(hSA+hSB+hSC)=0),Lb,0.0123) -> 0.1 | BB223: =IF(BA223=0.0123,0.0123,IF(hSA=Ls,Cs-(Emission_Rate*(hSA-BA223)/(Abf*$BB$219/10000)),$BD$223-(Emission_Rate*(hSA-BA223)/(Abf*$BB$219/10000)))) -> 451.4653176 | BC223: =IF(AND((Ls>Lb),Ls-(hSA+hSB+hSC)=0),hSA,0.0123) -> 2 | BD223: =IF(BC223=0.0123,0.0123,IF(BC223=Ls,MAX(BB223:BB323),IF(hSA+hSB=Ls,Cs-(Emission_Rate*(hSA+hSB-BC223)/(Abf*$BD$219/10000)),$BF$223-(Emission_Rate*(hSA+hSB-BC223)/(Abf*$BD$219/10000))))) -> 1363.841618 | BE223: =IF(AND((Ls>Lb),Ls-(hSA+hSB+hSC)=0),hSA+hSB,0.0123) -> 2 | BF223: =IF(BE223=0.0123,0.0123,IF(BE223=Ls,MAX(BD223:BD323),Cs-(Emission_Rate*(Ls-BE223)/(Abf*$BF$219/10000)))) -> 1363.841618
BA224: =IF(BA223=0.0123,"",IF(AND(BA223+0.5>hSA,BA223/hSA<1),hSA,IF(BA223+0.5>hSA,"",BA223+0.5))) -> 0.6 | BB224: =IF(BA224="","",IF(hSA=Ls,Cs-(Emission_Rate*(hSA-BA224)/(Abf*$BB$219/10000)),$BD$223-(Emission_Rate*(hSA-BA224)/(Abf*$BB$219/10000)))) -> 691.5643441 | BC224: =IF(BC223=0.0123,"",IF(AND(BC223+0.05>(hSA+hSB),BC223/(hSA+hSB)<1),hSA+hSB,IF(BC223+0.5>(hSA+hSB),"",BC223+0.5))) ->  | BD224: =IF(BC224="","",IF(hSA+hSB=Ls,Cs-(Emission_Rate*(hSA+hSB-BC224)/(Abf*$BD$219/10000)),$BF$223-(Emission_Rate*(hSA+hSB-BC224)/(Abf*$BD$219/10000)))) ->  | BE224: =IF(BE223=0.0123,"",IF(AND(BE223+0.5>(hSA+hSB+hSC),BE223/(hSA+hSB+hSC)<1),hSA+hSB+hSC,IF(BE223+0.5>(hSA+hSB+hSC),"",BE223+0.5))) ->  | BF224: =IF(BE224="","",Cs-(Emission_Rate*(Ls-BE224)/(Abf*$BF$219/10000))) -> 
BA225: =IF(BA224="","",IF(AND(BA224+0.5>hSA,BA224/hSA<1),hSA,IF(BA224+0.5>hSA,"",BA224+0.5))) -> 1.1 | BB225: 931.6633706 | BC225: =IF(BC224="","",IF(AND(BC224+0.05>(hSA+hSB),BC224/(hSA+hSB)<1),hSA+hSB,IF(BC224+0.5>(hSA+hSB),"",BC224+0.5))) ->  | BE225: =IF(BE224="","",IF(AND(BE224+0.5>(hSA+hSB+hSC),BE224/(hSA+hSB+hSC)<1),hSA+hSB+hSC,IF(BE224+0.5>(hSA+hSB+hSC),"",BE224+0.5))) -> 
BA226: 1.6 | BB226: 1171.762397
BA227: 2 | BB227: 1363.841618
BB256: =IF(BA256="","",IF(hSA=Ls,Cs-(Emission_Rate*(hSA-BA256)/(Abf*$BB$219/10000)),$BD$223-(Emission_Rate*(hSA-BA256)/(Abf*$BB$219/10000)))) ->  | BD256: =IF(BC256="","",IF(hSA+hSB=Ls,Cs-(Emission_Rate*(hSA+hSB-BC256)/(Abf*$BD$219/10000)),$BF$223-(Emission_Rate*(hSA+hSB-BC256)/(Abf*$BD$219/10000)))) ->  | BF256: =IF(BE256="","",Cs-(Emission_Rate*(Ls-BE256)/(Abf*$BF$219/10000))) -> 
BA257: =IF(BA256="","",IF(AND(BA256+0.5>hSA,BA256/hSA<1),hSA,IF(BA256+0.5>hSA,"",BA256+0.5))) ->  | BC257: =IF(BC256="","",IF(AND(BC256+0.05>(hSA+hSB),BC256/(hSA+hSB)<1),hSA+hSB,IF(BC256+0.5>(hSA+hSB),"",BC256+0.5))) ->  | BE257: =IF(BE256="","",IF(AND(BE256+0.5>(hSA+hSB+hSC),BE256/(hSA+hSB+hSC)<1),hSA+hSB+hSC,IF(BE256+0.5>(hSA+hSB+hSC),"",BE256+0.5))) -> 
BB288: =IF(BA288="","",IF(hSA=Ls,Cs-(Emission_Rate*(hSA-BA288)/(Abf*$BB$219/10000)),$BD$223-(Emission_Rate*(hSA-BA288)/(Abf*$BB$219/10000)))) ->  | BD288: =IF(BC288="","",IF(hSA+hSB=Ls,Cs-(Emission_Rate*(hSA+hSB-BC288)/(Abf*$BD$219/10000)),$BF$223-(Emission_Rate*(hSA+hSB-BC288)/(Abf*$BD$219/10000)))) ->  | BF288: =IF(BE288="","",Cs-(Emission_Rate*(Ls-BE288)/(Abf*$BF$219/10000))) -> 
BA289: =IF(BA288="","",IF(AND(BA288+0.5>hSA,BA288/hSA<1),hSA,IF(BA288+0.5>hSA,"",BA288+0.5))) ->  | BC289: =IF(BC288="","",IF(AND(BC288+0.05>(hSA+hSB),BC288/(hSA+hSB)<1),hSA+hSB,IF(BC288+0.5>(hSA+hSB),"",BC288+0.5))) ->  | BE289: =IF(BE288="","",IF(AND(BE288+0.5>(hSA+hSB+hSC),BE288/(hSA+hSB+hSC)<1),hSA+hSB+hSC,IF(BE288+0.5>(hSA+hSB+hSC),"",BE288+0.5))) -> 
BB320: =IF(BA320="","",IF(hSA=Ls,Cs-(Emission_Rate*(hSA-BA320)/(Abf*$BB$219/10000)),$BD$223-(Emission_Rate*(hSA-BA320)/(Abf*$BB$219/10000)))) ->  | BD320: =IF(BC320="","",IF(hSA+hSB=Ls,Cs-(Emission_Rate*(hSA+hSB-BC320)/(Abf*$BD$219/10000)),$BF$223-(Emission_Rate*(hSA+hSB-BC320)/(Abf*$BD$219/10000)))) ->  | BF320: =IF(BE320="","",Cs-(Emission_Rate*(Ls-BE320)/(Abf*$BF$219/10000))) -> 
BB321: =IF(BA321="","",IF(hSA=Ls,Cs-(Emission_Rate*(hSA-BA321)/(Abf*$BB$219/10000)),$BD$223-(Emission_Rate*(hSA-BA321)/(Abf*$BB$219/10000)))) ->  | BD321: =IF(BC321="","",IF(hSA+hSB=Ls,Cs-(Emission_Rate*(hSA+hSB-BC321)/(Abf*$BD$219/10000)),$BF$223-(Emission_Rate*(hSA+hSB-BC321)/(Abf*$BD$219/10000)))) ->  | BF321: =IF(BE321="","",Cs-(Emission_Rate*(Ls-BE321)/(Abf*$BF$219/10000))) -> 
BB322: =IF(BA322="","",IF(hSA=Ls,Cs-(Emission_Rate*(hSA-BA322)/(Abf*$BB$219/10000)),$BD$223-(Emission_Rate*(hSA-BA322)/(Abf*$BB$219/10000)))) ->  | BD322: =IF(BC322="","",IF(hSA+hSB=Ls,Cs-(Emission_Rate*(hSA+hSB-BC322)/(Abf*$BD$219/10000)),$BF$223-(Emission_Rate*(hSA+hSB-BC322)/(Abf*$BD$219/10000)))) ->  | BF322: =IF(BE322="","",Cs-(Emission_Rate*(Ls-BE322)/(Abf*$BF$219/10000))) -> 
BB323: =IF(BA323="","",IF(hSA=Ls,Cs-(Emission_Rate*(hSA-BA323)/(Abf*$BB$219/10000)),$BD$223-(Emission_Rate*(hSA-BA323)/(Abf*$BB$219/10000)))) ->  | BD323: =IF(BC323="","",IF(hSA+hSB=Ls,Cs-(Emission_Rate*(hSA+hSB-BC323)/(Abf*$BD$219/10000)),$BF$223-(Emission_Rate*(hSA+hSB-BC323)/(Abf*$BD$219/10000)))) ->  | BF323: =IF(BE323="","",Cs-(Emission_Rate*(Ls-BE323)/(Abf*$BF$219/10000))) -> 

Sheet MEASURED_SOIL_GAS_CONC.
A1: Input Measured Soil Gas Concentrations
A2: Note: If site-specific data on soil gas concentrations by depth are available, enter those concentrations in the cells below. These data will be plotted on the Concentration versus Depth Profile graph in the Model spreadsheet. Up to 25 concentrations may be entered by the user.
A4: Depth (m) | B4: Measured Soil Gas Concentation (ug/m3)

Sheet MULTI_CHEM_INPUT
A1: Input Chemical Concentrations for Multiple Chemicals
A2: Note: All other inputs must be entered in model sheet. For multi-chemical mode, all inputs except concentration must be the same for all chemicals. Model calculations will be completed and added to MULTI_CHEM_OUTPUT sheet for those chemicals with a concentration entered.
A6: Chemical List | B6: CASRN | C6: Concentration (µg/L) or (µg/m3)
A7: Acenaphthene | B7: 83-32-9
A8: Acetaldehyde | B8: 75-07-0
A9: Acetone | B9: 67-64-1
A10: Acetonitrile | B10: 75-05-8
A11: Acetophenone | B11: 98-86-2
A12: Acrolein | B12: 107-02-8
A13: Acrylic Acid | B13: 79-10-7
A14: Acrylonitrile | B14: 107-13-1
A15: Aldrin | B15: 309-00-2
A16: Allyl Alcohol | B16: 107-18-6
A17: Allyl Chloride | B17: 107-05-1
A18: Ammonia | B18: 7664-41-7
A19: Amyl Alcohol, tert- | B19: 75-85-4
A20: Anthracene | B20: 120-12-7
A21: Aroclor 1016 | B21: 12674-11-2
A22: Aroclor 1221 | B22: 11104-28-2
A23: Aroclor 1232 | B23: 11141-16-5
A24: Aroclor 1242 | B24: 53469-21-9
A25: Aroclor 1248 | B25: 12672-29-6
A26: Aroclor 1254 | B26: 11097-69-1
A27: Aroclor 1260 | B27: 11096-82-5
A28: Aroclor 5460 | B28: 11126-42-4
A29: Azobenzene | B29: 103-33-3
A30: Benfluralin | B30: 1861-40-1
A31: Benz[a]anthracene | B31: 56-55-3
A32: Benzaldehyde | B32: 100-52-7
A33: Benzene | B33: 71-43-2
A34: Benzenethiol | B34: 108-98-5
A35: Benzotrichloride | B35: 98-07-7
A36: Benzyl Chloride | B36: 100-44-7
A37: Biphenyl, 1,1'- | B37: 92-52-4
A38: Bis(2-chloro-1-methylethyl) ether | B38: 108-60-1
A39: Bis(2-chloroethyl)ether | B39: 111-44-4
A40: Bis(chloromethyl)ether | B40: 542-88-1
A41: Boron Trichloride | B41: 10294-34-5
A42: Boron Trifluoride | B42: 7637-07-2
A43: Bromo-2-chloroethane, 1- | B43: 107-04-0
A44: Bromobenzene | B44: 108-86-1
A45: Bromochloromethane | B45: 74-97-5
A46: Bromodichloromethane | B46: 75-27-4
A47: Bromoform | B47: 75-25-2
A48: Bromomethane | B48: 74-83-9
A49: Bromophos | B49: 2104-96-3
A50: Bromoxynil Octanoate | B50: 1689-99-2
A51: Butadiene, 1,3- | B51: 106-99-0
A52: Butanol, N- | B52: 71-36-3
A53: Butyl alcohol, sec- | B53: 78-92-2
A54: Butylate | B54: 2008-41-5
A55: Butylbenzene, n- | B55: 104-51-8
A56: Butylbenzene, sec- | B56: 135-98-8
A57: Butylbenzene, tert- | B57: 98-06-6
A58: Bromo-3-fluorobenzene, 1- | B58: 1073-06-9
A59: Bromo-4-fluorobenzene, 1- | B59: 460-00-4
A60: Bromopropane, 1- | B60: 106-94-5
A61: Difluoropropane, 2,2- | B61: 420-45-1
A62: Diphenyl Ether | B62: 101-84-8
A63: Heptanal, n- | B63: 111-71-7
A64: Methyl-2-Pentanol, 4- | B64: 108-11-2
A65: Carbon Disulfide | B65: 75-15-0
A66: Carbon Tetrachloride | B66: 56-23-5
A67: Carbonyl Sulfide | B67: 463-58-1
A68: Chloral Hydrate | B68: 302-17-0
A69: Chlordane | B69: 12789-03-6
A70: Chlorine | B70: 7782-50-5
A71: Chlorine Dioxide | B71: 10049-04-4
A72: Chloro-1,1-difluoroethane, 1- | B72: 75-68-3
A73: Chloro-1,3-butadiene, 2- | B73: 126-99-8
A74: Chloroacetaldehyde, 2- | B74: 107-20-0
A75: Chlorobenzene | B75: 108-90-7
A76: Chlorobenzotrifluoride, 4- | B76: 98-56-6
A77: Chlorobutane, 1- | B77: 109-69-3
A78: Chlorodifluoromethane | B78: 75-45-6
A79: Chloroethanol, 2- | B79: 107-07-3
A80: Chloroform | B80: 67-66-3
A81: Chloromethane | B81: 74-87-3
A82: Chloromethyl Methyl Ether | B82: 107-30-2
A83: Chloronaphthalene, Beta- | B83: 91-58-7
A84: Chlorophenol, 2- | B84: 95-57-8
A85: Chloropicrin | B85: 76-06-2
A86: Chlorotoluene, o- | B86: 95-49-8
A87: Chlorotoluene, p- | B87: 106-43-4
A88: Coke Oven Emissions | B88: 8007-45-2
A89: Crotonaldehyde, trans- | B89: 123-73-9
A90: Cumene | B90: 98-82-8
A91: Cyanide (CN-) | B91: 57-12-5
A92: Cyanogen | B92: 460-19-5
A93: Cyanogen Bromide | B93: 506-68-3
A94: Cyanogen Chloride | B94: 506-77-4
A95: Cyclohexane | B95: 110-82-7
A96: Cyclohexanone | B96: 108-94-1
A97: Cyclohexene | B97: 110-83-8
A98: Cyclohexylamine | B98: 108-91-8
A99: DDE, p,p'- | B99: 72-55-9
A100: Dibenzofuran | B100: 132-64-9
A101: Dibenzothiophene | B101: 132-65-0
A102: Dibromo-3-chloropropane, 1,2- | B102: 96-12-8
A103: Dibromobenzene, 1,3- | B103: 108-36-1
A104: Dibromobenzene, 1,4- | B104: 106-37-6
A105: Dibromochloromethane | B105: 124-48-1
A106: Dibromoethane, 1,2- | B106: 106-93-4
A107: Dibromomethane (Methylene Bromide) | B107: 74-95-3
A108: Dichloro-2-butene, 1,4- | B108: 764-41-0
A109: Dichloro-2-butene, cis-1,4- | B109: 1476-11-5
A110: Dichloro-2-butene, trans-1,4- | B110: 110-57-6
A111: Dichlorobenzene, 1,2- | B111: 95-50-1
A112: Dichlorobenzene, 1,4- | B112: 106-46-7
A113: Dichlorodifluoromethane | B113: 75-71-8
A114: Dichloroethane, 1,1- | B114: 75-34-3
A115: Dichloroethane, 1,2- | B115: 107-06-2
A116: Dichloroethylene, 1,1- | B116: 75-35-4
A117: Dichloroethylene, 1,2-cis- | B117: 156-59-2
A118: Dichloroethylene, 1,2-trans- | B118: 156-60-5
A119: Dichloropropane, 1,2- | B119: 78-87-5
A120: Dichloropropane, 1,3- | B120: 142-28-9
A121: Dichloropropene, 1,3- | B121: 542-75-6
A122: Dicyclopentadiene | B122: 77-73-6
A123: Diethylformamide | B123: 617-84-5
A124: Difluoroethane, 1,1- | B124: 75-37-6
A125: Dihydrosafrole | B125: 94-58-6
A126: Diisopropyl Ether | B126: 108-20-3
A127: Diisopropyl Methylphosphonate | B127: 1445-75-6
A128: Dimethylaniline, N,N- | B128: 121-69-7
A129: Dimethylformamide | B129: 68-12-2
A130: Dimethylhydrazine, 1,1- | B130: 57-14-7
A131: Dimethylhydrazine, 1,2- | B131: 540-73-8
A132: Dimethylterephthalate | B132: 120-61-6
A133: Dimethylvinylchloride | B133: 513-37-1
A134: Dioxane, 1,4- | B134: 123-91-1
A135: Dithiane, 1,4- | B135: 505-29-3
A136: Endosulfan | B136: 115-29-7
A137: Epichlorohydrin | B137: 106-89-8
A138: Epoxybutane, 1,2- | B138: 106-88-7
A139: EPTC | B139: 759-94-4
A140: Ethoxyethanol Acetate, 2- | B140: 111-15-9
A141: Ethoxyethanol, 2- | B141: 110-80-5
A142: Ethyl Acetate | B142: 141-78-6
A143: Ethyl Acrylate | B143: 140-88-5
A144: Ethyl Chloride (Chloroethane) | B144: 75-00-3
A145: Ethyl Ether | B145: 60-29-7
A146: Ethyl Methacrylate | B146: 97-63-2
A147: Ethylbenzene | B147: 100-41-4
A148: Ethylene Diamine | B148: 107-15-3
A149: Ethylene Oxide | B149: 75-21-8
A150: Ethyleneimine | B150: 151-56-4
A151: Fluorene | B151: 86-73-7
A152: Formaldehyde | B152: 50-00-0
A153: Formic Acid | B153: 64-18-6
A154: Furan | B154: 110-00-9
A155: Furfural | B155: 98-01-1
A156: Glycidyl | B156: 765-34-4
A157: Guanidine | B157: 113-00-8
A158: Heptachlor | B158: 76-44-8
A159: Heptachlor Epoxide | B159: 1024-57-3
A160: Heptachlorobiphenyl, 2,3,3',4,4',5,5'- (PCB 189) | B160: 39635-31-9
A161: Hexabromobenzene | B161: 87-82-1
A162: Hexachlorobenzene | B162: 118-74-1
A163: Hexachlorobiphenyl, 2,3,3',4,4',5- (PCB 156) | B163: 38380-08-4
A164: Hexachlorobiphenyl, 2,3,3',4,4',5'- (PCB 157) | B164: 69782-90-7
A165: Hexachlorobiphenyl, 2,3',4,4',5,5'- (PCB 167) | B165: 52663-72-6
A166: Hexachlorobiphenyl, 3,3',4,4',5,5'- (PCB 169) | B166: 32774-16-6
A167: Hexachlorobutadiene | B167: 87-68-3
A168: Hexachlorocyclopentadiene | B168: 77-47-4
A169: Hexachloroethane | B169: 67-72-1
A170: Hexamethylene Diisocyanate, 1,6- | B170: 822-06-0
A171: Hexane, N- | B171: 110-54-3
A172: Hexanone, 2- | B172: 591-78-6
A173: Hydrazine | B173: 302-01-2
A174: Hydrogen Chloride | B174: 7647-01-0
A175: Hydrogen Cyanide | B175: 74-90-8
A176: Hydrogen Fluoride | B176: 7664-39-3
A177: Hydrogen Sulfide | B177: 7783-06-4
A178: Isobutyl Alcohol | B178: 78-83-1
A179: Isopropalin | B179: 33820-53-0
A180: Isopropanol | B180: 67-63-0
A181: Lewisite | B181: 541-25-3
A182: Mercury (elemental) | B182: 7439-97-6
A183: Merphos | B183: 150-50-5
A184: Methacrylonitrile | B184: 126-98-7
A185: Methanol | B185: 67-56-1
A186: Methoxyethanol Acetate, 2- | B186: 110-49-6
A187: Methoxyethanol, 2- | B187: 109-86-4
A188: Methyl Acetate | B188: 79-20-9
A189: Methyl Acrylate | B189: 96-33-3
A190: Methyl Ethyl Ketone (2-Butanone) | B190: 78-93-3
A191: Methyl Hydrazine | B191: 60-34-4
A192: Methyl Isobutyl Ketone (4-methyl-2-pentanone) | B192: 108-10-1
A193: Methyl Isocyanate | B193: 624-83-9
A194: Methyl Methacrylate | B194: 80-62-6
A195: Methyl Styrene (Mixed Isomers) | B195: 25013-15-4
A196: Methyl tert-Butyl Ether (MTBE) | B196: 1634-04-4
A197: Methylene Chloride | B197: 75-09-2
A198: Methylnaphthalene, 1- | B198: 90-12-0
A199: Methylnaphthalene, 2- | B199: 91-57-6
A200: Methylstyrene, Alpha- | B200: 98-83-9
A201: Mineral oils | B201: 8012-95-1
A202: Mirex | B202: 2385-85-5
A203: Naled | B203: 300-76-5
... 86 more rows

Sheet MULTI_CHEM_OUTPUT
A1: Table of Inputs and Outputs for Multiple Chemicals
A2: Note: Parameters other than the chemical concentration must be entered in the MODEL sheet and must be the same for all chemicals. Warnings and errors are displayed in only on the MODEL sheet.
FE4: Hexachloroethane | FF4: Hexamethylene Diisocyanate, 1,6- | FG4: Hexane, N- | FH4: Hexanone, 2- | FI4: Hydrazine | FJ4: Hydrogen Chloride | FK4: Hydrogen Cyanide | FL4: Hydrogen Fluoride | FM4: Hydrogen Sulfide | FN4: Isobutyl Alcohol | FO4: Isopropalin | FP4: Isopropanol | FQ4: Lewisite | FR4: Mercury (elemental) | FS4: Merphos | FT4: Methacrylonitrile | FU4: Methanol | FV4: Methoxyethanol Acetate, 2- | FW4: Methoxyethanol, 2- | FX4: Methyl Acetate | FY4: Methyl Acrylate | FZ4: Methyl Ethyl Ketone (2-Butanone) | GA4: Methyl Hydrazine | GB4: Methyl Isobutyl Ketone (4-methyl-2-pentanone) | GC4: Methyl Isocyanate | GD4: Methyl Methacrylate | GE4: Methyl Styrene (Mixed Isomers) | GF4: Methyl tert-Butyl Ether (MTBE) | GG4: Methylene Chloride | GH4: Methylnaphthalene, 1- | GI4: Methylnaphthalene, 2- | GJ4: Methylstyrene, Alpha- | GK4: Mineral oils | GL4: Mirex | GM4: Naled | GN4: Naphtha, High Flash Aromatic (HFAN) | GO4: Naphthalene | GP4: Nickel Carbonyl | GQ4: Nitrobenzene | GR4: Nitromethane | GS4: Nitropropane, 2- | GT4: Nitrosodimethylamine, N- | GU4: Nitroso-di-N-butylamine, N- | GV4: Nitrosomethylethylamine, N- | GW4: Nitrotoluene, o- | GX4: Nonane, n- | GY4: Pebulate | GZ4: Pentabromodiphenyl Ether | HA4: Pentachlorobenzene | HB4: Pentachlorobiphenyl, 2,3,3',4,4'- (PCB 105) | HC4: Pentachlorobiphenyl, 2,3,4,4',5- (PCB 114) | HD4: Pentachlorobiphenyl, 2,3',4,4',5- (PCB 118) | HE4: Pentachlorobiphenyl, 2',3,4,4',5- (PCB 123) | HF4: Pentachlorobiphenyl, 3,3',4,4',5- (PCB 126) | HG4: Pentachloroethane | HH4: Pentachloronitrobenzene | HI4: Pentane, n- | HJ4: Perfluorobutane Sulfonate | HK4: Phosgene | HL4: Phosphine | HM4: Phosphorus, White | HN4: Profluralin | HO4: Propargyl Alcohol | HP4: Propionaldehyde | HQ4: Propyl benzene | HR4: Propylene | HS4: Propylene Glycol Monomethyl Ether | HT4: Propylene Oxide | HU4: Pyrene | HV4: Pyridine | HW4: Ronnel | HX4: Styrene | HY4: Sulfur Trioxide | HZ4: TCDD, 2,3,7,8- | IA4: Terbufos | IB4: Tetrachlorobenzene, 1,2,4,5- | IC4: Tetrachlorobiphenyl, 3,4,4',5- (PCB 81) | ID4: Tetrachloroethane, 1,1,1,2- | IE4: Tetrachloroethane, 1,1,2,2- | IF4: Tetrachloroethylene | IG4: Tetrachlorotoluene, p- alpha, alpha, alpha- | IH4: Tetraethyl Lead | II4: Tetrafluoroethane, 1,1,1,2- | IJ4: Tetrahydrofuran | IK4: Thallium Acetate | IL4: Thallium Carbonate | IM4: Thiocyanic Acid | IN4: Titanium Tetrachloride | IO4: Toluene | IP4: Triallate | IQ4: Tribromobenzene, 1,2,4- | IR4: Trichloro-1,2,2-trifluoroethane, 1,1,2- | IS4: Trichlorobenzene, 1,2,3- | IT4: Trichlorobenzene, 1,2,4- | IU4: Trichloroethane, 1,1,1- | IV4: Trichloroethane, 1,1,2- | IW4: Trichloroethylene | IX4: Trichlorofluoromethane | IY4: Trichloropropane, 1,1,2- | IZ4: Trichloropropane, 1,2,3- | JA4: Trichloropropene, 1,2,3- | JB4: Triethylamine | JC4: Trifluoroethane, 1,1,1- | JD4: Trifluralin | JE4: Trimethylbenzene, 1,2,3- | JF4: Trimethylbenzene, 1,2,4- | JG4: Trimethylbenzene, 1,3,5- | JH4: Trimethylpentene, 2,4,4- | JI4: Tri-n-butyltin | JJ4: Tris(2,3-dibromopropyl)phosphate | JK4: Vernolate | JL4: Vinyl Acetate | JM4: Vinyl Bromide | JN4: Vinyl Chloride | JO4: Xylene, m- | JP4: Xylene, o- | JQ4: Xylene, P- | JR4: Xylenes
A5: Source Characteristics: | D5: Units | E5: Symbol | FE5: Value | FF5: Value | FG5: Value | FH5: Value | FI5: Value | FJ5: Value | FK5: Value | FL5: Value | FM5: Value | FN5: Value | FO5: Value | FP5: Value | FQ5: Value | FR5: Value | FS5: Value | FT5: Value | FU5: Value | FV5: Value | FW5: Value | FX5: Value | FY5: Value | FZ5: Value | GA5: Value | GB5: Value | GC5: Value | GD5: Value | GE5: Value | GF5: Value | GG5: Value | GH5: Value | GI5: Value | GJ5: Value | GK5: Value | GL5: Value | GM5: Value | GN5: Value | GO5: Value | GP5: Value | GQ5: Value | GR5: Value | GS5: Value | GT5: Value | GU5: Value | GV5: Value | GW5: Value | GX5: Value | GY5: Value | GZ5: Value | HA5: Value | HB5: Value | HC5: Value | HD5: Value | HE5: Value | HF5: Value | HG5: Value | HH5: Value | HI5: Value | HJ5: Value | HK5: Value | HL5: Value | HM5: Value | HN5: Value | HO5: Value | HP5: Value | HQ5: Value | HR5: Value | HS5: Value | HT5: Value | HU5: Value | HV5: Value | HW5: Value | HX5: Value | HY5: Value | HZ5: Value | IA5: Value | IB5: Value | IC5: Value | ID5: Value | IE5: Value | IF5: Value | IG5: Value | IH5: Value | II5: Value | IJ5: Value | IK5: Value | IL5: Value | IM5: Value | IN5: Value | IO5: Value | IP5: Value | IQ5: Value | IR5: Value | IS5: Value | IT5: Value | IU5: Value | IV5: Value | IW5: Value | IX5: Value | IY5: Value | IZ5: Value | JA5: Value | JB5: Value | JC5: Value | JD5: Value | JE5: Value | JF5: Value | JG5: Value | JH5: Value | JI5: Value | JJ5: Value | JK5: Value | JL5: Value | JM5: Value | JN5: Value | JO5: Value | JP5: Value | JQ5: Value | JR5: Value
B6: Source medium | E6: Source | FE6: Groundwater | FF6: Groundwater | FG6: Groundwater | FH6: Groundwater | FI6: Groundwater | FJ6: Groundwater | FK6: Groundwater | FL6: Groundwater | FM6: Groundwater | FN6: Groundwater | FO6: Groundwater | FP6: Groundwater | FQ6: Groundwater | FR6: Groundwater | FS6: Groundwater | FT6: Groundwater | FU6: Groundwater | FV6: Groundwater | FW6: Groundwater | FX6: Groundwater | FY6: Groundwater | FZ6: Groundwater | GA6: Groundwater | GB6: Groundwater | GC6: Groundwater | GD6: Groundwater | GE6: Groundwater | GF6: Groundwater | GG6: Groundwater | GH6: Groundwater | GI6: Groundwater | GJ6: Groundwater | GK6: Groundwater | GL6: Groundwater | GM6: Groundwater | GN6: Groundwater | GO6: Groundwater | GP6: Groundwater | GQ6: Groundwater | GR6: Groundwater | GS6: Groundwater | GT6: Groundwater | GU6: Groundwater | GV6: Groundwater | GW6: Groundwater | GX6: Groundwater | GY6: Groundwater | GZ6: Groundwater | HA6: Groundwater | HB6: Groundwater | HC6: Groundwater | HD6: Groundwater | HE6: Groundwater | HF6: Groundwater | HG6: Groundwater | HH6: Groundwater | HI6: Groundwater | HJ6: Groundwater | HK6: Groundwater | HL6: Groundwater | HM6: Groundwater | HN6: Groundwater | HO6: Groundwater | HP6: Groundwater | HQ6: Groundwater | HR6: Groundwater | HS6: Groundwater | HT6: Groundwater | HU6: Groundwater | HV6: Groundwater | HW6: Groundwater | HX6: Groundwater | HY6: Groundwater | HZ6: Groundwater | IA6: Groundwater | IB6: Groundwater | IC6: Groundwater | ID6: Groundwater | IE6: Groundwater | IF6: Groundwater | IG6: Groundwater | IH6: Groundwater | II6: Groundwater | IJ6: Groundwater | IK6: Groundwater | IL6: Groundwater | IM6: Groundwater | IN6: Groundwater | IO6: Groundwater | IP6: Groundwater | IQ6: Groundwater | IR6: Groundwater | IS6: Groundwater | IT6: Groundwater | IU6: Groundwater | IV6: Groundwater | IW6: Groundwater | IX6: Groundwater | IY6: Groundwater | IZ6: Groundwater | JA6: Groundwater | JB6: Groundwater | JC6: Groundwater | JD6: Groundwater | JE6: Groundwater | JF6: Groundwater | JG6: Groundwater | JH6: Groundwater | JI6: Groundwater | JJ6: Groundwater | JK6: Groundwater | JL6: Groundwater | JM6: Groundwater | JN6: Groundwater | JO6: Groundwater | JP6: Groundwater | JQ6: Groundwater | JR6: Groundwater
B7: =IF(Source="Groundwater","Groundwater concentration","Soil gas concentration") -> Groundwater concentration | D7: =IF(Source="Groundwater","(ug/L)","(ug/m3)") -> (ug/L) | E7: Cmedium
B8: =IF(Source="Groundwater","Depth below grade to water table","Depth below grade to soil gas sample") -> Depth below grade to water table | D8: (m) | E8: Ls | FE8: 5 | FF8: 5 | FG8: 5 | FH8: 5 | FI8: 5 | FJ8: 5 | FK8: 5 | FL8: 5 | FM8: 5 | FN8: 5 | FO8: 5 | FP8: 5 | FQ8: 5 | FR8: 5 | FS8: 5 | FT8: 5 | FU8: 5 | FV8: 5 | FW8: 5 | FX8: 5 | FY8: 5 | FZ8: 5 | GA8: 5 | GB8: 5 | GC8: 5 | GD8: 5 | GE8: 5 | GF8: 5 | GG8: 5 | GH8: 5 | GI8: 5 | GJ8: 5 | GK8: 5 | GL8: 5 | GM8: 5 | GN8: 5 | GO8: 5 | GP8: 5 | GQ8: 5 | GR8: 5 | GS8: 5 | GT8: 5 | GU8: 5 | GV8: 5 | GW8: 5 | GX8: 5 | GY8: 5 | GZ8: 5 | HA8: 5 | HB8: 5 | HC8: 5 | HD8: 5 | HE8: 5 | HF8: 5 | HG8: 5 | HH8: 5 | HI8: 5 | HJ8: 5 | HK8: 5 | HL8: 5 | HM8: 5 | HN8: 5 | HO8: 5 | HP8: 5 | HQ8: 5 | HR8: 5 | HS8: 5 | HT8: 5 | HU8: 5 | HV8: 5 | HW8: 5 | HX8: 5 | HY8: 5 | HZ8: 5 | IA8: 5 | IB8: 5 | IC8: 5 | ID8: 5 | IE8: 5 | IF8: 5 | IG8: 5 | IH8: 5 | II8: 5 | IJ8: 5 | IK8: 5 | IL8: 5 | IM8: 5 | IN8: 5 | IO8: 5 | IP8: 5 | IQ8: 5 | IR8: 5 | IS8: 5 | IT8: 5 | IU8: 5 | IV8: 5 | IW8: 5 | IX8: 5 | IY8: 5 | IZ8: 5 | JA8: 5 | JB8: 5 | JC8: 5 | JD8: 5 | JE8: 5 | JF8: 5 | JG8: 5 | JH8: 5 | JI8: 5 | JJ8: 5 | JK8: 5 | JL8: 5 | JM8: 5 | JN8: 5 | JO8: 5 | JP8: 5 | JQ8: 5 | JR8: 5
B9: =IF(Source="Groundwater","Average groundwater temperature","Average vadose zone temperature") -> Average groundwater temperature | D9: (oC) | E9: Ts | FE9: 25 | FF9: 25 | FG9: 25 | FH9: 25 | FI9: 25 | FJ9: 25 | FK9: 25 | FL9: 25 | FM9: 25 | FN9: 25 | FO9: 25 | FP9: 25 | FQ9: 25 | FR9: 25 | FS9: 25 | FT9: 25 | FU9: 25 | FV9: 25 | FW9: 25 | FX9: 25 | FY9: 25 | FZ9: 25 | GA9: 25 | GB9: 25 | GC9: 25 | GD9: 25 | GE9: 25 | GF9: 25 | GG9: 25 | GH9: 25 | GI9: 25 | GJ9: 25 | GK9: 25 | GL9: 25 | GM9: 25 | GN9: 25 | GO9: 25 | GP9: 25 | GQ9: 25 | GR9: 25 | GS9: 25 | GT9: 25 | GU9: 25 | GV9: 25 | GW9: 25 | GX9: 25 | GY9: 25 | GZ9: 25 | HA9: 25 | HB9: 25 | HC9: 25 | HD9: 25 | HE9: 25 | HF9: 25 | HG9: 25 | HH9: 25 | HI9: 25 | HJ9: 25 | HK9: 25 | HL9: 25 | HM9: 25 | HN9: 25 | HO9: 25 | HP9: 25 | HQ9: 25 | HR9: 25 | HS9: 25 | HT9: 25 | HU9: 25 | HV9: 25 | HW9: 25 | HX9: 25 | HY9: 25 | HZ9: 25 | IA9: 25 | IB9: 25 | IC9: 25 | ID9: 25 | IE9: 25 | IF9: 25 | IG9: 25 | IH9: 25 | II9: 25 | IJ9: 25 | IK9: 25 | IL9: 25 | IM9: 25 | IN9: 25 | IO9: 25 | IP9: 25 | IQ9: 25 | IR9: 25 | IS9: 25 | IT9: 25 | IU9: 25 | IV9: 25 | IW9: 25 | IX9: 25 | IY9: 25 | IZ9: 25 | JA9: 25 | JB9: 25 | JC9: 25 | JD9: 25 | JE9: 25 | JF9: 25 | JG9: 25 | JH9: 25 | JI9: 25 | JJ9: 25 | JK9: 25 | JL9: 25 | JM9: 25 | JN9: 25 | JO9: 25 | JP9: 25 | JQ9: 25 | JR9: 25
C10: Calc: Source vapor concentration | D10: (ug/m3) | E10: Cs | FE10: 0 | FF10: 0 | FG10: 0 | FH10: 0 | FI10: 0 | FJ10: 0 | FK10: 0 | FL10: 0 | FM10: 0 | FN10: 0 | FO10: 0 | FP10: 0 | FQ10: 0 | FR10: 0 | FS10: 0 | FT10: 0 | FU10: 0 | FV10: 0 | FW10: 0 | FX10: 0 | FY10: 0 | FZ10: 0 | GA10: 0 | GB10: 0 | GC10: 0 | GD10: 0 | GE10: 0 | GF10: 0 | GG10: 0 | GH10: 0 | GI10: 0 | GJ10: 0 | GK10: 0 | GL10: 0 | GM10: 0 | GN10: 0 | GO10: 0 | GP10: 0 | GQ10: 0 | GR10: 0 | GS10: 0 | GT10: 0 | GU10: 0 | GV10: 0 | GW10: 0 | GX10: 0 | GY10: 0 | GZ10: 0 | HA10: 0 | HB10: 0 | HC10: 0 | HD10: 0 | HE10: 0 | HF10: 0 | HG10: 0 | HH10: 0 | HI10: 0 | HJ10: 0 | HK10: 0 | HL10: 0 | HM10: 0 | HN10: 0 | HO10: 0 | HP10: 0 | HQ10: 0 | HR10: 0 | HS10: 0 | HT10: 0 | HU10: 0 | HV10: 0 | HW10: 0 | HX10: 0 | HY10: 0 | HZ10: 0 | IA10: 0 | IB10: 0 | IC10: 0 | ID10: 0 | IE10: 0 | IF10: 0 | IG10: 0 | IH10: 0 | II10: 0 | IJ10: 0 | IK10: 0 | IL10: 0 | IM10: 0 | IN10: 0 | IO10: 0 | IP10: 0 | IQ10: 0 | IR10: 0 | IS10: 0 | IT10: 0 | IU10: 0 | IV10: 0 | IW10: 0 | IX10: 0 | IY10: 0 | IZ10: 0 | JA10: 0 | JB10: 0 | JC10: 0 | JD10: 0 | JE10: 0 | JF10: 0 | JG10: 0 | JH10: 0 | JI10: 0 | JJ10: 0 | JK10: 0 | JL10: 0 | JM10: 0 | JN10: 0 | JO10: 0 | JP10: 0 | JQ10: 0 | JR10: 0
C11: Calc: % of pure component saturated vapor concentration | D11: (%) | E11: %Sat | FE11: 0 | FF11: 0 | FG11: 0 | FH11: 0 | FI11: 0 | FJ11: 0 | FK11: 0 | FL11: 0 | FM11: 0 | FN11: 0 | FO11: 0 | FP11: 0 | FQ11: 0 | FR11: 0 | FS11: 0 | FT11: 0 | FU11: 0 | FV11: 0 | FW11: 0 | FX11: 0 | FY11: 0 | FZ11: 0 | GA11: 0 | GB11: 0 | GC11: 0 | GD11: 0 | GE11: 0 | GF11: 0 | GG11: 0 | GH11: 0 | GI11: 0 | GJ11: 0 | GK11: 0 | GL11: 0 | GM11: 0 | GO11: 0 | GP11: 0 | GQ11: 0 | GR11: 0 | GS11: 0 | GT11: 0 | GU11: 0 | GV11: 0 | GW11: 0 | GX11: 0 | GY11: 0 | GZ11: 0 | HA11: 0 | HB11: 0 | HC11: 0 | HD11: 0 | HE11: 0 | HF11: 0 | HG11: 0 | HH11: 0 | HI11: 0 | HJ11: 0 | HK11: 0 | HL11: 0 | HM11: 0 | HN11: 0 | HO11: 0 | HP11: 0 | HQ11: 0 | HR11: 0 | HS11: 0 | HT11: 0 | HU11: 0 | HV11: 0 | HW11: 0 | HX11: 0 | HY11: 0 | HZ11: 0 | IA11: 0 | IB11: 0 | IC11: 0 | ID11: 0 | IE11: 0 | IF11: 0 | IG11: 0 | IH11: 0 | II11: 0 | IJ11: 0 | IK11: 0 | IL11: 0 | IM11: 0 | IN11: 0 | IO11: 0 | IP11: 0 | IQ11: 0 | IR11: 0 | IS11: 0 | IT11: 0 | IU11: 0 | IV11: 0 | IW11: 0 | IX11: 0 | IY11: 0 | IZ11: 0 | JA11: 0 | JB11: 0 | JC11: 0 | JD11: 0 | JE11: 0 | JF11: 0 | JG11: 0 | JH11: 0 | JI11: 0 | JJ11: 0 | JK11: 0 | JL11: 0 | JM11: 0 | JN11: 0 | JO11: 0 | JP11: 0 | JQ11: 0 | JR11: 0
A12: Chemical: | D12: Units | E12: Symbol | FE12: Value | FF12: Value | FG12: Value | FH12: Value | FI12: Value | FJ12: Value | FK12: Value | FL12: Value | FM12: Value | FN12: Value | FO12: Value | FP12: Value | FQ12: Value | FR12: Value | FS12: Value | FT12: Value | FU12: Value | FV12: Value | FW12: Value | FX12: Value | FY12: Value | FZ12: Value | GA12: Value | GB12: Value | GC12: Value | GD12: Value | GE12: Value | GF12: Value | GG12: Value | GH12: Value | GI12: Value | GJ12: Value | GK12: Value | GL12: Value | GM12: Value | GN12: Value | GO12: Value | GP12: Value | GQ12: Value | GR12: Value | GS12: Value | GT12: Value | GU12: Value | GV12: Value | GW12: Value | GX12: Value | GY12: Value | GZ12: Value | HA12: Value | HB12: Value | HC12: Value | HD12: Value | HE12: Value | HF12: Value | HG12: Value | HH12: Value | HI12: Value | HJ12: Value | HK12: Value | HL12: Value | HM12: Value | HN12: Value | HO12: Value | HP12: Value | HQ12: Value | HR12: Value | HS12: Value | HT12: Value | HU12: Value | HV12: Value | HW12: Value | HX12: Value | HY12: Value | HZ12: Value | IA12: Value | IB12: Value | IC12: Value | ID12: Value | IE12: Value | IF12: Value | IG12: Value | IH12: Value | II12: Value | IJ12: Value | IK12: Value | IL12: Value | IM12: Value | IN12: Value | IO12: Value | IP12: Value | IQ12: Value | IR12: Value | IS12: Value | IT12: Value | IU12: Value | IV12: Value | IW12: Value | IX12: Value | IY12: Value | IZ12: Value | JA12: Value | JB12: Value | JC12: Value | JD12: Value | JE12: Value | JF12: Value | JG12: Value | JH12: Value | JI12: Value | JJ12: Value | JK12: Value | JL12: Value | JM12: Value | JN12: Value | JO12: Value | JP12: Value | JQ12: Value | JR12: Value
B13: Chemical Name | E13: Chem | FE13: Hexachloroethane | FF13: Hexamethylene Diisocyanate, 1,6- | FG13: Hexane, N- | FH13: Hexanone, 2- | FI13: Hydrazine | FJ13: Hydrogen Chloride | FK13: Hydrogen Cyanide | FL13: Hydrogen Fluoride | FM13: Hydrogen Sulfide | FN13: Isobutyl Alcohol | FO13: Isopropalin | FP13: Isopropanol | FQ13: Lewisite | FR13: Mercury (elemental) | FS13: Merphos | FT13: Methacrylonitrile | FU13: Methanol | FV13: Methoxyethanol Acetate, 2- | FW13: Methoxyethanol, 2- | FX13: Methyl Acetate | FY13: Methyl Acrylate | FZ13: Methyl Ethyl Ketone (2-Butanone) | GA13: Methyl Hydrazine | GB13: Methyl Isobutyl Ketone (4-methyl-2-pentanone) | GC13: Methyl Isocyanate | GD13: Methyl Methacrylate | GE13: Methyl Styrene (Mixed Isomers) | GF13: Methyl tert-Butyl Ether (MTBE) | GG13: Methylene Chloride | GH13: Methylnaphthalene, 1- | GI13: Methylnaphthalene, 2- | GJ13: Methylstyrene, Alpha- | GK13: Mineral oils | GL13: Mirex | GM13: Naled | GN13: Naphtha, High Flash Aromatic (HFAN) | GO13: Naphthalene | GP13: Nickel Carbonyl | GQ13: Nitrobenzene | GR13: Nitromethane | GS13: Nitropropane, 2- | GT13: Nitrosodimethylamine, N- | GU13: Nitroso-di-N-butylamine, N- | GV13: Nitrosomethylethylamine, N- | GW13: Nitrotoluene, o- | GX13: Nonane, n- | GY13: Pebulate | GZ13: Pentabromodiphenyl Ether | HA13: Pentachlorobenzene | HB13: Pentachlorobiphenyl, 2,3,3',4,4'- (PCB 105) | HC13: Pentachlorobiphenyl, 2,3,4,4',5- (PCB 114) | HD13: Pentachlorobiphenyl, 2,3',4,4',5- (PCB 118) | HE13: Pentachlorobiphenyl, 2',3,4,4',5- (PCB 123) | HF13: Pentachlorobiphenyl, 3,3',4,4',5- (PCB 126) | HG13: Pentachloroethane | HH13: Pentachloronitrobenzene | HI13: Pentane, n- | HJ13: Perfluorobutane Sulfonate | HK13: Phosgene | HL13: Phosphine | HM13: Phosphorus, White | HN13: Profluralin | HO13: Propargyl Alcohol | HP13: Propionaldehyde | HQ13: Propyl benzene | HR13: Propylene | HS13: Propylene Glycol Monomethyl Ether | HT13: Propylene Oxide | HU13: Pyrene | HV13: Pyridine | HW13: Ronnel | HX13: Styrene | HY13: Sulfur Trioxide | HZ13: TCDD, 2,3,7,8- | IA13: Terbufos | IB13: Tetrachlorobenzene, 1,2,4,5- | IC13: Tetrachlorobiphenyl, 3,4,4',5- (PCB 81) | ID13: Tetrachloroethane, 1,1,1,2- | IE13: Tetrachloroethane, 1,1,2,2- | IF13: Tetrachloroethylene | IG13: Tetrachlorotoluene, p- alpha, alpha, alpha- | IH13: Tetraethyl Lead | II13: Tetrafluoroethane, 1,1,1,2- | IJ13: Tetrahydrofuran | IK13: Thallium Acetate | IL13: Thallium Carbonate | IM13: Thiocyanic Acid | IN13: Titanium Tetrachloride | IO13: Toluene | IP13: Triallate | IQ13: Tribromobenzene, 1,2,4- | IR13: Trichloro-1,2,2-trifluoroethane, 1,1,2- | IS13: Trichlorobenzene, 1,2,3- | IT13: Trichlorobenzene, 1,2,4- | IU13: Trichloroethane, 1,1,1- | IV13: Trichloroethane, 1,1,2- | IW13: Trichloroethylene | IX13: Trichlorofluoromethane | IY13: Trichloropropane, 1,1,2- | IZ13: Trichloropropane, 1,2,3- | JA13: Trichloropropene, 1,2,3- | JB13: Triethylamine | JC13: Trifluoroethane, 1,1,1- | JD13: Trifluralin | JE13: Trimethylbenzene, 1,2,3- | JF13: Trimethylbenzene, 1,2,4- | JG13: Trimethylbenzene, 1,3,5- | JH13: Trimethylpentene, 2,4,4- | JI13: Tri-n-butyltin | JJ13: Tris(2,3-dibromopropyl)phosphate | JK13: Vernolate | JL13: Vinyl Acetate | JM13: Vinyl Bromide | JN13: Vinyl Chloride | JO13: Xylene, m- | JP13: Xylene, o- | JQ13: Xylene, P- | JR13: Xylenes
C14: CAS No. | E14: CAS | FE14: 67-72-1 | FF14: 822-06-0 | FG14: 110-54-3 | FH14: 591-78-6 | FI14: 302-01-2 | FJ14: 7647-01-0 | FK14: 74-90-8 | FL14: 7664-39-3 | FM14: 7783-06-4 | FN14: 78-83-1 | FO14: 33820-53-0 | FP14: 67-63-0 | FQ14: 541-25-3 | FR14: 7439-97-6 | FS14: 150-50-5 | FT14: 126-98-7 | FU14: 67-56-1 | FV14: 110-49-6 | FW14: 109-86-4 | FX14: 79-20-9 | FY14: 96-33-3 | FZ14: 78-93-3 | GA14: 60-34-4 | GB14: 108-10-1 | GC14: 624-83-9 | GD14: 80-62-6 | GE14: 25013-15-4 | GF14: 1634-04-4 | GG14: 75-09-2 | GH14: 90-12-0 | GI14: 91-57-6 | GJ14: 98-83-9 | GK14: 8012-95-1 | GL14: 2385-85-5 | GM14: 300-76-5 | GN14: 64742-95-6 | GO14: 91-20-3 | GP14: 13463-39-3 | GQ14: 98-95-3 | GR14: 75-52-5 | GS14: 79-46-9 | GT14: 62-75-9 | GU14: 924-16-3 | GV14: 10595-95-6 | GW14: 88-72-2 | GX14: 111-84-2 | GY14: 1114-71-2 | GZ14: 32534-81-9 | HA14: 608-93-5 | HB14: 32598-14-4 | HC14: 74472-37-0 | HD14: 31508-00-6 | HE14: 65510-44-3 | HF14: 57465-28-8 | HG14: 76-01-7 | HH14: 82-68-8 | HI14: 109-66-0 | HJ14: 375-73-5 | HK14: 75-44-5 | HL14: 7803-51-2 | HM14: 7723-14-0 | HN14: 26399-36-0 | HO14: 107-19-7 | HP14: 123-38-6 | HQ14: 103-65-1 | HR14: 115-07-1 | HS14: 107-98-2 | HT14: 75-56-9 | HU14: 129-00-0 | HV14: 110-86-1 | HW14: 299-84-3 | HX14: 100-42-5 | HY14: 7446-11-9 | HZ14: 1746-01-6 | IA14: 13071-79-9 | IB14: 95-94-3 | IC14: 70362-50-4 | ID14: 630-20-6 | IE14: 79-34-5 | IF14: 127-18-4 | IG14: 5216-25-1 | IH14: 78-00-2 | II14: 811-97-2 | IJ14: 109-99-9 | IK14: 563-68-8 | IL14: 6533-73-9 | IM14: 463-56-9 | IN14: 7550-45-0 | IO14: 108-88-3 | IP14: 2303-17-5 | IQ14: 615-54-3 | IR14: 76-13-1 | IS14: 87-61-6 | IT14: 120-82-1 | IU14: 71-55-6 | IV14: 79-00-5 | IW14: 79-01-6 | IX14: 75-69-4 | IY14: 598-77-6 | IZ14: 96-18-4 | JA14: 96-19-5 | JB14: 121-44-8 | JC14: 420-46-2 | JD14: 1582-09-8 | JE14: 526-73-8 | JF14: 95-63-6 | JG14: 108-67-8 | JH14: 25167-70-8 | JI14: 688-73-3 | JJ14: 126-72-7 | JK14: 1929-77-7 | JL14: 108-05-4 | JM14: 593-60-2 | JN14: 75-01-4 | JO14: 108-38-3 | JP14: 95-47-6 | JQ14: 106-42-3 | JR14: 1330-20-7
A15: Toxicity Factors
B16: Unit risk factor | D16: (ug/m3)-1 | E16: IUR | FE16: 1.1e-05 | FF16: Not Available | FG16: Not Available | FH16: Not Available | FI16: 0.0049 | FJ16: Not Available | FK16: Not Available | FL16: Not Available | FM16: Not Available | FN16: Not Available | FO16: Not Available | FP16: Not Available | FQ16: Not Available | FR16: Not Available | FS16: Not Available | FT16: Not Available | FU16: Not Available | FV16: Not Available | FW16: Not Available | FX16: Not Available | FY16: Not Available | FZ16: Not Available | GA16: 0.001 | GB16: Not Available | GC16: Not Available | GD16: Not Available | GE16: Not Available | GF16: 2.6e-07 | GG16: 1e-08 | GH16: Not Available | GI16: Not Available | GJ16: Not Available | GK16: Not Available | GL16: 0.0051 | GM16: Not Available | GN16: Not Available | GO16: 3.4e-05 | GP16: 0.00026 | GQ16: 4e-05 | GR16: 8.8e-06 | GS16: 0.0027 | GT16: 0.014 | GU16: 0.0016 | GV16: 0.0063 | GW16: Not Available | GX16: Not Available | GY16: Not Available | GZ16: Not Available | HA16: Not Available | HB16: 0.0011 | HC16: 0.0011 | HD16: 0.0011 | HE16: 0.0011 | HF16: 3.8 | HG16: Not Available | HH16: Not Available | HI16: Not Available | HJ16: Not Available | HK16: Not Available | HL16: Not Available | HM16: Not Available | HN16: Not Available | HO16: Not Available | HP16: Not Available | HQ16: Not Available | HR16: Not Available | HS16: Not Available | HT16: 3.7e-06 | HU16: Not Available | HV16: Not Available | HW16: Not Available | HX16: Not Available | HY16: Not Available | HZ16: 38 | IA16: Not Available | IB16: Not Available | IC16: 0.011 | ID16: 7.4e-06 | IE16: 5.8e-05 | IF16: 2.6e-07 | IG16: Not Available | IH16: Not Available | II16: Not Available | IJ16: Not Available | IK16: Not Available | IL16: Not Available | IM16: Not Available | IN16: Not Available | IO16: Not Available | IP16: Not Available | IQ16: Not Available | IR16: Not Available | IS16: Not Available | IT16: Not Available | IU16: Not Available | IV16: 1.6e-05 | IW16: 4.1e-06 | IX16: Not Available | IY16: Not Available | IZ16: Not Available | JA16: Not Available | JB16: Not Available | JC16: Not Available | JD16: Not Available | JE16: Not Available | JF16: Not Available | JG16: Not Available | JH16: Not Available | JI16: Not Available | JJ16: 0.00066 | JK16: Not Available | JL16: Not Available | JM16: 3.2e-05 | JN16: 4.4e-06 | JO16: Not Available | JP16: Not Available | JQ16: Not Available | JR16: Not Available
B17: Mutagenic compound | E17: Mut | GG17: M | GT17: M | IW17: M | IZ17: M | JN17: M
B18: Reference concentration | D18: (ug/m3) | E18: RfC | FE18: 0.03 | FF18: 1e-05 | FG18: 0.7 | FH18: 0.03 | FI18: 3e-05 | FJ18: 0.02 | FK18: 0.0008 | FL18: 0.014 | FM18: 0.002 | FN18: Not Available | FO18: Not Available | FP18: 0.2 | FQ18: Not Available | FR18: 0.0003 | FS18: Not Available | FT18: 0.03 | FU18: 20 | FV18: 0.001 | FW18: 0.02 | FX18: Not Available | FY18: 0.02 | FZ18: 5 | GA18: 2e-05 | GB18: 3 | GC18: 0.001 | GD18: 0.7 | GE18: 0.04 | GF18: 3 | GG18: 0.6 | GH18: Not Available | GI18: Not Available | GJ18: Not Available | GK18: Not Available | GL18: Not Available | GM18: Not Available | GN18: 0.1 | GO18: 0.003 | GP18: 1.4e-05 | GQ18: 0.009 | GR18: 0.005 | GS18: 0.02 | GT18: 4e-05 | GU18: Not Available | GV18: Not Available | GW18: Not Available | GX18: 0.02 | GY18: Not Available | GZ18: Not Available | HA18: Not Available | HB18: 0.0013 | HC18: 0.0013 | HD18: 0.0013 | HE18: 0.0013 | HF18: 4e-07 | HG18: Not Available | HH18: Not Available | HI18: 1 | HJ18: Not Available | HK18: 0.0003 | HL18: 0.0003 | HM18: Not Available | HN18: Not Available | HO18: Not Available | HP18: 0.008 | HQ18: 1 | HR18: 3 | HS18: 2 | HT18: 0.03 | HU18: Not Available | HV18: Not Available | HW18: Not Available | HX18: 1 | HY18: 0.001 | HZ18: 4e-08 | IA18: Not Available | IB18: Not Available | IC18: 0.00013 | ID18: Not Available | IE18: Not Available | IF18: 0.04 | IG18: Not Available | IH18: Not Available | II18: 80 | IJ18: 2 | IK18: Not Available | IL18: Not Available | IM18: Not Available | IN18: 0.0001 | IO18: 5 | IP18: Not Available | IQ18: Not Available | IR18: 30 | IS18: Not Available | IT18: 0.002 | IU18: 5 | IV18: 0.0002 | IW18: 0.002 | IX18: Not Available | IY18: Not Available | IZ18: 0.0003 | JA18: 0.0003 | JB18: 0.007 | JC18: 20 | JD18: Not Available | JE18: 0.005 | JF18: 0.007 | JG18: Not Available | JH18: Not Available | JI18: Not Available | JJ18: Not Available | JK18: Not Available | JL18: 0.2 | JM18: 0.003 | JN18: 0.1 | JO18: 0.1 | JP18: 0.1 | JQ18: 0.1 | JR18: 0.1
A19: Chemical Properties: | D19: Units | E19: Symbol | FE19: Value | FF19: Value | FG19: Value | FH19: Value | FI19: Value | FJ19: Value | FK19: Value | FL19: Value | FM19: Value | FN19: Value | FO19: Value | FP19: Value | FQ19: Value | FR19: Value | FS19: Value | FT19: Value | FU19: Value | FV19: Value | FW19: Value | FX19: Value | FY19: Value | FZ19: Value | GA19: Value | GB19: Value | GC19: Value | GD19: Value | GE19: Value | GF19: Value | GG19: Value | GH19: Value | GI19: Value | GJ19: Value | GK19: Value | GL19: Value | GM19: Value | GN19: Value | GO19: Value | GP19: Value | GQ19: Value | GR19: Value | GS19: Value | GT19: Value | GU19: Value | GV19: Value | GW19: Value | GX19: Value | GY19: Value | GZ19: Value | HA19: Value | HB19: Value | HC19: Value | HD19: Value | HE19: Value | HF19: Value | HG19: Value | HH19: Value | HI19: Value | HJ19: Value | HK19: Value | HL19: Value | HM19: Value | HN19: Value | HO19: Value | HP19: Value | HQ19: Value | HR19: Value | HS19: Value | HT19: Value | HU19: Value | HV19: Value | HW19: Value | HX19: Value | HY19: Value | HZ19: Value | IA19: Value | IB19: Value | IC19: Value | ID19: Value | IE19: Value | IF19: Value | IG19: Value | IH19: Value | II19: Value | IJ19: Value | IK19: Value | IL19: Value | IM19: Value | IN19: Value | IO19: Value | IP19: Value | IQ19: Value | IR19: Value | IS19: Value | IT19: Value | IU19: Value | IV19: Value | IW19: Value | IX19: Value | IY19: Value | IZ19: Value | JA19: Value | JB19: Value | JC19: Value | JD19: Value | JE19: Value | JF19: Value | JG19: Value | JH19: Value | JI19: Value | JJ19: Value | JK19: Value | JL19: Value | JM19: Value | JN19: Value | JO19: Value | JP19: Value | JQ19: Value | JR19: Value
B20: Pure component water solubility | D20: (mg/L) | E20: S | FE20: 50 | FF20: 117 | FG20: 9.5 | FH20: 17200 | FI20: 1000000 | FJ20: 673000 | FK20: 1000000 | FL20: 1000000 | FM20: 3740 | FN20: 85000 | FO20: 0.11 | FP20: 1000000 | FQ20: 500 | FR20: 0.06 | FS20: 0.0035 | FT20: 25400 | FU20: 1000000 | FV20: 1000000 | FW20: 1000000 | FX20: 243000 | FY20: 49400 | FZ20: 223000 | GA20: 1000000 | GB20: 19000 | GC20: 29200 | GD20: 15000 | GE20: 89 | GF20: 51000 | GG20: 13000 | GH20: 25.8 | GI20: 24.6 | GJ20: 116 | GK20: 0.0037 | GL20: 0.085 | GM20: 1.5 | GN20: 31 | GO20: 31 | GP20: 180 | GQ20: 2090 | GR20: 111000 | GS20: 17000 | GT20: 1000000 | GU20: 1270 | GV20: 300000 | GW20: 650 | GX20: 0.22 | GY20: 100 | GZ20: 0.0024 | HA20: 0.831 | HB20: 0.0034 | HC20: 0.01598 | HD20: 0.0134 | HE20: 0.016 | HF20: 0.0073282 | HG20: 490 | HH20: 0.44 | HI20: 38 | HJ20: 107 | HK20: 6825.5 | HL20: 260000 | HM20: 3.3 | HN20: 0.1 | HO20: 1000000 | HP20: 306000 | HQ20: 52.2 | HR20: 200 | HS20: 1000000 | HT20: 590000 | HU20: 0.135 | HV20: 1000000 | HW20: 1 | HX20: 310 | HZ20: 0.0002 | IA20: 5.07 | IB20: 0.595 | IC20: 0.032245 | ID20: 1070 | IE20: 2830 | IF20: 206 | IG20: 4.039 | IH20: 0.29 | II20: 2040 | IJ20: 1000000 | IK20: 28030 | IL20: 52000 | IO20: 526 | IP20: 4 | IQ20: 4.898 | IR20: 170 | IS20: 18 | IT20: 49 | IU20: 1290 | IV20: 4590 | IW20: 1280 | IX20: 1100 | IY20: 1900 | IZ20: 1750 | JA20: 334.2 | JB20: 68600 | JC20: 760.9 | JD20: 0.184 | JE20: 75.2 | JF20: 57 | JG20: 48.2 | JH20: 4.04 | JI20: 0.0073 | JJ20: 8 | JK20: 90 | JL20: 20000 | JM20: 7600 | JN20: 8800 | JO20: 161 | JP20: 178 | JQ20: 162 | JR20: 106
B21: Henry's Law Constant @ 25oC | D21: (atm-m3/mol) | E21: Hc | FE21: 0.00389 | FF21: 4.8e-05 | FG21: 1.8 | FH21: 9.32e-05 | FI21: 6.1e-07 | FJ21: 2040000 | FK21: 0.000133 | FL21: 0.000104 | FM21: 0.00856 | FN21: 9.78e-06 | FO21: 0.000111 | FP21: 8.1e-06 | FQ21: 0.000218 | FR21: 0.008622 | FS21: 2.27e-05 | FT21: 0.000247 | FU21: 4.55e-06 | FV21: 3.11e-07 | FW21: 3.3e-07 | FX21: 0.000115 | FY21: 0.000199 | FZ21: 5.69e-05 | GA21: 3.031e-06 | GB21: 0.000138 | GC21: 0.000926 | GD21: 0.000319 | GE21: 0.00262 | GF21: 0.000587 | GG21: 0.00325 | GH21: 0.000514 | GI21: 0.000518 | GJ21: 0.00255 | GK21: 8.18 | GL21: 0.000811 | GM21: 6.51e-05 | GN21: 0.00044 | GO21: 0.00044 | GP21: 0.5 | GQ21: 2.4e-05 | GR21: 2.86e-05 | GS21: 0.000119 | GT21: 1.82e-06 | GU21: 1.32e-05 | GV21: 1.44e-06 | GW21: 1.25e-05 | GX21: 3.4 | GY21: 0.000237 | GZ21: 0.000108 | HA21: 0.000703 | HB21: 0.000283 | HC21: 9.24e-05 | HD21: 0.000288 | HE21: 0.00019 | HF21: 0.00019 | HG21: 0.00194 | HH21: 4.42e-05 | HI21: 1.25 | HJ21: 1.44e-05 | HK21: 0.0167 | HL21: 0.0244 | HM21: 0.00211 | HN21: 0.00029 | HO21: 1.15e-06 | HP21: 7.34e-05 | HQ21: 0.0105 | HR21: 0.196 | HS21: 9.2e-07 | HT21: 6.96e-05 | HU21: 1.19e-05 | HV21: 1.1e-05 | HW21: 3.2e-05 | HX21: 0.00275 | HZ21: 5e-05 | IA21: 2.4e-05 | IB21: 0.001 | IC21: 0.000223 | ID21: 0.0025 | IE21: 0.000367 | IF21: 0.0177 | IG21: 0.000193 | IH21: 0.568 | II21: 0.05 | IJ21: 7.05e-05 | IO21: 0.00664 | IP21: 1.2e-05 | IQ21: 0.000341 | IR21: 0.526 | IS21: 0.00125 | IT21: 0.00142 | IU21: 0.0172 | IV21: 0.000824 | IW21: 0.00985 | IX21: 0.097 | IY21: 0.000317 | IZ21: 0.000343 | JA21: 0.0176 | JB21: 0.000149 | JC21: 0.77 | JD21: 0.000103 | JE21: 0.00436 | JF21: 0.00616 | JG21: 0.00877 | JH21: 0.746 | JI21: 1.52 | JJ21: 2.18e-05 | JK21: 3.09e-05 | JL21: 0.000511 | JM21: 0.0123 | JN21: 0.0278 | JO21: 0.00718 | JP21: 0.00518 | JQ21: 0.0069 | JR21: 0.00663
C22: Calc: Henry's Law Constant @ 25oC | D22: (dimensionless) | E22: Hr | FE22: 0.1590807765 | FF22: 0.001962950455 | FG22: 73.61064207 | FH22: 0.003811395467 | FI22: 2.49458287e-05 | FJ22: 83425394.35 | FK22: 0.005439008553 | FL22: 0.00425305932 | FM22: 0.3500594978 | FN22: 0.0003999511552 | FO22: 0.004539322928 | FP22: 0.0003312478893 | FQ22: 0.008915066651 | FR22: 0.3525949755 | FS22: 0.0009283119861 | FT22: 0.01010101588 | FU22: 0.0001860713452 | FV22: 1.271828316e-05 | FW22: 1.349528438e-05 | FX22: 0.004702902132 | FY22: 0.008138065429 | FZ22: 0.002326914185 | GA22: 0.0001239521423 | GB22: 0.005643482559 | GC22: 0.03786858587 | GD22: 0.01304544157 | GE22: 0.107144379 | GF22: 0.02400524828 | GG22: 0.1329081037 | GH22: 0.02101992779 | GI22: 0.021183507 | GJ22: 0.1042817429 | GK22: 334.5194734 | GL22: 0.03316568373 | GM22: 0.002662251555 | GN22: 0.01799371251 | GO22: 0.01799371251 | GP22: 20.44740058 | GQ22: 0.0009814752276 | GR22: 0.001169591313 | GS22: 0.004866481337 | GT22: 7.442853809e-05 | GU22: 0.0005398113752 | GV22: 5.888851366e-05 | GW22: 0.0005111850144 | GX22: 139.0423239 | GY22: 0.009692067873 | GZ22: 0.004416638524 | HA22: 0.02874904521 | HB22: 0.01157322873 | HC22: 0.003778679626 | HD22: 0.01177770273 | HE22: 0.007770012219 | HF22: 0.007770012219 | HG22: 0.07933591423 | HH22: 0.001807550211 | HI22: 51.11850144 | HJ22: 0.0005888851366 | HK22: 0.6829431792 | HL22: 0.9978331481 | HM22: 0.08628803043 | HN22: 0.01185949233 | HO22: 4.702902132e-05 | HP22: 0.003001678404 | HQ22: 0.4293954121 | HR22: 8.015381025 | HS22: 3.762321706e-05 | HT22: 0.00284627816 | HU22: 0.0004866481337 | HV22: 0.0004498428127 | HW22: 0.001308633637 | HX22: 0.1124607032 | HY22: 0 | HZ22: 0.002044740058 | IA22: 0.0009814752276 | IB22: 0.04089480115 | IC22: 0.009119540657 | ID22: 0.1022370029 | IE22: 0.01500839202 | IF22: 0.7238379804 | IG22: 0.007892696622 | IH22: 23.22824705 | II22: 2.044740058 | IJ22: 0.002883083481 | IK22: 0 | IL22: 0 | IM22: 0 | IN22: 0 | IO22: 0.2715414796 | IP22: 0.0004907376138 | IQ22: 0.01394512719 | IR22: 21.51066541 | IS22: 0.05111850144 | IT22: 0.05807061763 | IU22: 0.7033905798 | IV22: 0.03369731615 | IW22: 0.4028137913 | IX22: 3.966795712 | IY22: 0.01296365196 | IZ22: 0.01402691679 | JA22: 0.7197485002 | JB22: 0.006093325371 | JC22: 31.48899689 | JD22: 0.004212164518 | JE22: 0.178301333 | JF22: 0.2519119751 | JG22: 0.3586474061 | JH22: 30.50752166 | JI22: 62.16009775 | JJ22: 0.0008915066651 | JK22: 0.001263649356 | JL22: 0.02089724339 | JM22: 0.5030060541 | JN22: 1.136875472 | JO22: 0.2936246723 | JP22: 0.21183507 | JQ22: 0.2821741279 | JR22: 0.2711325316
C23: Calc: Henry's Law Constant @ system temperature | D23: (dimensionless) | E23: Hs | FE23: 0.1590807765 | FF23: 0.001962950455 | FG23: 73.61064207 | FH23: 0.003811395467 | FI23: 2.49458287e-05 | FJ23: 83425394.35 | FK23: 0.005439008553 | FL23: 0.00425305932 | FM23: 0.3500594978 | FN23: 0.0003999511552 | FO23: 0.004539322928 | FP23: 0.0003312478893 | FQ23: 0.008915066651 | FR23: 0.3525949755 | FS23: 0.0009283119861 | FT23: 0.01010101588 | FU23: 0.0001860713452 | FV23: 1.271828316e-05 | FW23: 1.349528438e-05 | FX23: 0.004702902132 | FY23: 0.008138065429 | FZ23: 0.002326914185 | GA23: 0.0001239521423 | GB23: 0.005643482559 | GC23: 0.03786858587 | GD23: 0.01304544157 | GE23: 0.107144379 | GF23: 0.02400524828 | GG23: 0.1329081037 | GH23: 0.02101992779 | GI23: 0.021183507 | GJ23: 0.1042817429 | GK23: 334.5194734 | GL23: 0.03316568373 | GM23: 0.002662251555 | GN23: 0.01799371251 | GO23: 0.01799371251 | GP23: 20.44740058 | GQ23: 0.0009814752276 | GR23: 0.001169591313 | GS23: 0.004866481337 | GT23: 7.442853809e-05 | GU23: 0.0005398113752 | GV23: 5.888851366e-05 | GW23: 0.0005111850144 | GX23: 139.0423239 | GY23: 0.009692067873 | GZ23: 0.004416638524 | HA23: 0.02874904521 | HB23: 0.01157322873 | HC23: 0.003778679626 | HD23: 0.01177770273 | HE23: 0.007770012219 | HF23: 0.007770012219 | HG23: 0.07933591423 | HH23: 0.001807550211 | HI23: 51.11850144 | HJ23: 0.0005888851366 | HK23: 0.6829431792 | HL23: 0.9978331481 | HM23: 0.08628803043 | HN23: 0.01185949233 | HO23: 4.702902132e-05 | HP23: 0.003001678404 | HQ23: 0.4293954121 | HR23: 8.015381025 | HS23: 3.762321706e-05 | HT23: 0.00284627816 | HU23: 0.0004866481337 | HV23: 0.0004498428127 | HW23: 0.001308633637 | HX23: 0.1124607032 | HY23: 0 | HZ23: 0.002044740058 | IA23: 0.0009814752276 | IB23: 0.04089480115 | IC23: 0.009119540657 | ID23: 0.1022370029 | IE23: 0.01500839202 | IF23: 0.7238379804 | IG23: 0.007892696622 | IH23: 23.22824705 | II23: 2.044740058 | IJ23: 0.002883083481 | IK23: 0 | IL23: 0 | IM23: 0 | IN23: 0 | IO23: 0.2715414796 | IP23: 0.0004907376138 | IQ23: 0.01394512719 | IR23: 21.51066541 | IS23: 0.05111850144 | IT23: 0.05807061763 | IU23: 0.7033905798 | IV23: 0.03369731615 | IW23: 0.4028137913 | IX23: 3.966795712 | IY23: 0.01296365196 | IZ23: 0.01402691679 | JA23: 0.7197485002 | JB23: 0.006093325371 | JC23: 31.48899689 | JD23: 0.004212164518 | JE23: 0.178301333 | JF23: 0.2519119751 | JG23: 0.3586474061 | JH23: 30.50752166 | JI23: 62.16009775 | JJ23: 0.0008915066651 | JK23: 0.001263649356 | JL23: 0.02089724339 | JM23: 0.5030060541 | JN23: 1.136875472 | JO23: 0.2936246723 | JP23: 0.21183507 | JQ23: 0.2821741279 | JR23: 0.2711325316
B24: Diffusivity in air | D24: (cm2/s) | E24: Dair | FE24: 0.0320938 | FF24: 0.0404255 | FG24: 0.0731078 | FH24: 0.0703564 | FI24: 0.1733034 | FJ24: 0.1879912 | FK24: 0.1678036 | FL24: 0.2190996 | FM24: 0.1880669 | FN24: 0.0896677 | FO24: 0.021279 | FP24: 0.1032261 | FQ24: 0.0327841 | FR24: 0.0307 | FS24: 0.0204 | FT24: 0.0964299 | FU24: 0.1582741 | FV24: 0.0658347 | FW24: 0.0951557 | FX24: 0.0957763 | FY24: 0.0859972 | FZ24: 0.0914462 | GA24: 0.1290894 | GB24: 0.0697797 | GC24: 0.1165494 | GD24: 0.0750447 | GE24: 0.017397 | GF24: 0.0752672 | GG24: 0.0999362 | GH24: 0.0527705 | GI24: 0.0524319 | GJ24: 0.062902 | GK24: 0.036194 | GL24: 0.0218802 | GM24: 0.0245667 | GO24: 0.0604994 | GP24: 0.0433019 | GQ24: 0.068054 | GR24: 0.1192837 | GS24: 0.0846934 | GT24: 0.0987674 | GU24: 0.0421663 | GV24: 0.0840547 | GW24: 0.0587535 | GX24: 0.051432 | GY24: 0.0241442 | GZ24: 0.0278108 | HA24: 0.0294332 | HB24: 0.0235891 | HC24: 0.0235891 | HD24: 0.0235891 | HE24: 0.0235891 | HF24: 0.0235891 | HG24: 0.0315167 | HH24: 0.0262742 | HI24: 0.0821293 | HJ24: 0.0269541 | HK24: 0.0893282 | HL24: 0.1882017 | HM24: 0.2193655 | HN24: 0.0218047 | HO24: 0.1173874 | HP24: 0.1103767 | HQ24: 0.0601558 | HR24: 0.1096967 | HS24: 0.083145 | HT24: 0.1085105 | HU24: 0.0277873 | HV24: 0.0930883 | HW24: 0.0231577 | HX24: 0.071114 | HY24: 0.1207822 | HZ24: 0.0470278 | IA24: 0.0215955 | IB24: 0.0318958 | IC24: 0.0243476 | ID24: 0.0481761 | IE24: 0.0489206 | IF24: 0.0504664 | IG24: 0.0275873 | IH24: 0.0246401 | II24: 0.0823066 | IJ24: 0.0954154 | IK24: 0.038883 | IL24: 0.0393449 | IM24: 0.1214751 | IN24: 0.0379716 | IO24: 0.0778039 | IP24: 0.0224575 | IQ24: 0.0289689 | IR24: 0.0375658 | IS24: 0.03953 | IT24: 0.0395992 | IU24: 0.0648174 | IV24: 0.0668904 | IW24: 0.0686618 | IX24: 0.065356 | IY24: 0.0571577 | IZ24: 0.0574661 | JA24: 0.0590632 | JB24: 0.0663631 | JC24: 0.0990283 | JD24: 0.0220519 | JE24: 0.0612535 | JF24: 0.0606754 | JG24: 0.0602254 | JH24: 0.0595217 | JI24: 0.0214738 | JJ24: 0.0194015 | JK24: 0.0242189 | JL24: 0.0849016 | JM24: 0.0862238 | JN24: 0.1071202 | JO24: 0.0683659 | JP24: 0.0689201 | JQ24: 0.0682485 | JR24: 0.0685148
B25: Diffusivity in water | D25: (cm2/s) | E25: Dwater | FE25: 8.8904e-06 | FF25: 7.2308e-06 | FG25: 8.1658e-06 | FH25: 8.4404e-06 | FI25: 1.9e-05 | FJ25: 2.27e-05 | FK25: 1.68e-05 | FL25: 2.23e-05 | FM25: 2.23e-05 | FN25: 1e-05 | FO25: 5.3087e-06 | FP25: 1.12e-05 | FQ25: 9.055e-06 | FR25: 6.3e-06 | FS25: 5.0287e-06 | FT25: 1.06e-05 | FU25: 1.65e-05 | FV25: 8.7052e-06 | FW25: 1.1e-05 | FX25: 1.1e-05 | FY25: 1.02e-05 | FZ25: 1.02e-05 | GA25: 1.4e-05 | GB25: 8.3477e-06 | GC25: 1.31e-05 | GD25: 9.2087e-06 | GE25: 4.1793e-06 | GF25: 8.5904e-06 | GG25: 1.25e-05 | GH25: 7.8477e-06 | GI25: 7.7811e-06 | GJ25: 8.1911e-06 | GK25: 6.431e-06 | GL25: 5.6296e-06 | GM25: 6.43e-06 | GO25: 8.377e-06 | GP25: 8.1704e-06 | GQ25: 9.4495e-06 | GR25: 1.39e-05 | GS25: 1.02e-05 | GT25: 1.15e-05 | GU25: 6.8308e-06 | GV25: 9.9876e-06 | GW25: 8.6675e-06 | GX25: 6.769e-06 | GY25: 6.0507e-06 | GZ25: 3.2495e-06 | HA25: 7.9473e-06 | HB25: 6.0595e-06 | HC25: 6.0595e-06 | HD25: 6.0595e-06 | HE25: 6.0595e-06 | HF25: 6.0595e-06 | HG25: 8.5664e-06 | HH25: 6.9198e-06 | HI25: 8.7974e-06 | HJ25: 7.1603e-06 | HK25: 1.17e-05 | HL25: 2.23e-05 | HM25: 2.77e-05 | HN25: 5.5052e-06 | HO25: 1.31e-05 | HP25: 1.22e-05 | HQ25: 7.831e-06 | HR25: 1.07e-05 | HS25: 9.9604e-06 | HT25: 1.19e-05 | HU25: 7.2479e-06 | HV25: 1.09e-05 | HW25: 5.9148e-06 | HX25: 8.7838e-06 | HY25: 1.61e-05 | HZ25: 6.7568e-06 | IA25: 5.386e-06 | IB25: 8.7531e-06 | IC25: 6.2697e-06 | ID25: 9.0977e-06 | IE25: 9.2902e-06 | IF25: 9.4551e-06 | IG25: 7.2524e-06 | IH25: 6.4026e-06 | II25: 1.06e-05 | IJ25: 1.08e-05 | IK25: 1.17e-05 | IL25: 1.23e-05 | IM25: 1.41e-05 | IN25: 9.0633e-06 | IO25: 9.2043e-06 | IP25: 5.6738e-06 | IQ25: 7.8945e-06 | IR25: 8.592e-06 | IS25: 8.3836e-06 | IT25: 8.4033e-06 | IU25: 9.599e-06 | IV25: 1e-05 | IW25: 1.02e-05 | IX25: 1e-05 | IY25: 9.1735e-06 | IZ25: 9.2411e-06 | JA25: 9.4102e-06 | JB25: 7.8576e-06 | JC25: 1.16e-05 | JD25: 5.5737e-06 | JE25: 8.0214e-06 | JF25: 7.9209e-06 | JG25: 7.843e-06 | JH25: 7.3082e-06 | JI25: 5.351e-06 | JJ25: 4.8833e-06 | JK25: 6.0745e-06 | JL25: 1e-05 | JM25: 1.17e-05 | JN25: 1.2e-05 | JO25: 8.4394e-06 | JP25: 8.5315e-06 | JQ25: 8.4199e-06 | JR25: 8.4641e-06
A26: Building Characteristics: | D26: Units | E26: Symbol | FF26: BANANAS | FG26: BANANAS | FH26: BANANAS | FI26: BANANAS | FJ26: BANANAS | FK26: BANANAS | FL26: BANANAS | FM26: BANANAS | FN26: BANANAS | FO26: BANANAS | FP26: BANANAS | FQ26: BANANAS | FR26: BANANAS | FS26: BANANAS | FT26: BANANAS | FU26: BANANAS | FV26: BANANAS | FW26: BANANAS | FX26: BANANAS | FY26: BANANAS | FZ26: BANANAS | GA26: BANANAS | GB26: BANANAS | GC26: BANANAS | GD26: BANANAS | GE26: BANANAS | GF26: BANANAS | GG26: BANANAS | GH26: BANANAS | GI26: BANANAS | GJ26: BANANAS | GK26: BANANAS | GL26: BANANAS | GM26: BANANAS | GN26: BANANAS | GO26: BANANAS | GP26: BANANAS | GQ26: BANANAS | GR26: BANANAS | GS26: BANANAS | GT26: BANANAS | GU26: BANANAS | GV26: BANANAS | GW26: BANANAS | GX26: BANANAS | GY26: BANANAS | GZ26: BANANAS | HA26: BANANAS | HB26: BANANAS | HC26: BANANAS | HD26: BANANAS | HE26: BANANAS | HF26: BANANAS | HG26: BANANAS | HH26: BANANAS | HI26: BANANAS | HJ26: BANANAS | HK26: BANANAS | HL26: BANANAS | HM26: BANANAS | HN26: BANANAS | HO26: BANANAS | HP26: BANANAS | HQ26: BANANAS | HR26: BANANAS | HS26: BANANAS | HT26: BANANAS | HU26: BANANAS | HV26: BANANAS | HW26: BANANAS | HX26: BANANAS | HY26: BANANAS | HZ26: BANANAS | IA26: BANANAS | IB26: BANANAS | IC26: BANANAS | ID26: BANANAS | IE26: BANANAS | IF26: BANANAS | IG26: BANANAS | IH26: BANANAS | II26: BANANAS | IJ26: BANANAS | IK26: BANANAS | IL26: BANANAS | IM26: BANANAS | IN26: BANANAS | IO26: BANANAS | IP26: BANANAS | IQ26: BANANAS | IR26: BANANAS | IS26: BANANAS | IT26: BANANAS | IU26: BANANAS | IV26: BANANAS | IW26: BANANAS | IX26: BANANAS | IY26: BANANAS | IZ26: BANANAS | JA26: BANANAS | JB26: BANANAS | JC26: BANANAS | JD26: BANANAS | JE26: BANANAS | JF26: BANANAS | JG26: BANANAS | JH26: BANANAS | JI26: BANANAS | JJ26: BANANAS | JK26: BANANAS | JL26: BANANAS | JM26: BANANAS | JN26: BANANAS | JO26: BANANAS | JP26: BANANAS | JQ26: BANANAS | JR26: BANANAS | JS26: BANANAS
B27: Building setting | E27: Bldg_Setting | FE27: Value | FF27: Value | FG27: Value | FH27: Value | FI27: Value | FJ27: Value | FK27: Value | FL27: Value | FM27: Value | FN27: Value | FO27: Value | FP27: Value | FQ27: Value | FR27: Value | FS27: Value | FT27: Value | FU27: Value | FV27: Value | FW27: Value | FX27: Value | FY27: Value | FZ27: Value | GA27: Value | GB27: Value | GC27: Value | GD27: Value | GE27: Value | GF27: Value | GG27: Value | GH27: Value | GI27: Value | GJ27: Value | GK27: Value | GL27: Value | GM27: Value | GN27: Value | GO27: Value | GP27: Value | GQ27: Value | GR27: Value | GS27: Value | GT27: Value | GU27: Value | GV27: Value | GW27: Value | GX27: Value | GY27: Value | GZ27: Value | HA27: Value | HB27: Value | HC27: Value | HD27: Value | HE27: Value | HF27: Value | HG27: Value | HH27: Value | HI27: Value | HJ27: Value | HK27: Value | HL27: Value | HM27: Value | HN27: Value | HO27: Value | HP27: Value | HQ27: Value | HR27: Value | HS27: Value | HT27: Value | HU27: Value | HV27: Value | HW27: Value | HX27: Value | HY27: Value | HZ27: Value | IA27: Value | IB27: Value | IC27: Value | ID27: Value | IE27: Value | IF27: Value | IG27: Value | IH27: Value | II27: Value | IJ27: Value | IK27: Value | IL27: Value | IM27: Value | IN27: Value | IO27: Value | IP27: Value | IQ27: Value | IR27: Value | IS27: Value | IT27: Value | IU27: Value | IV27: Value | IW27: Value | IX27: Value | IY27: Value | IZ27: Value | JA27: Value | JB27: Value | JC27: Value | JD27: Value | JE27: Value | JF27: Value | JG27: Value | JH27: Value | JI27: Value | JJ27: Value | JK27: Value | JL27: Value | JM27: Value | JN27: Value | JO27: Value | JP27: Value | JQ27: Value | JR27: Value
B28: Foundation type | E28: Found_Type | FE28: Residential | FF28: Residential | FG28: Residential | FH28: Residential | FI28: Residential | FJ28: Residential | FK28: Residential | FL28: Residential | FM28: Residential | FN28: Residential | FO28: Residential | FP28: Residential | FQ28: Residential | FR28: Residential | FS28: Residential | FT28: Residential | FU28: Residential | FV28: Residential | FW28: Residential | FX28: Residential | FY28: Residential | FZ28: Residential | GA28: Residential | GB28: Residential | GC28: Residential | GD28: Residential | GE28: Residential | GF28: Residential | GG28: Residential | GH28: Residential | GI28: Residential | GJ28: Residential | GK28: Residential | GL28: Residential | GM28: Residential | GN28: Residential | GO28: Residential | GP28: Residential | GQ28: Residential | GR28: Residential | GS28: Residential | GT28: Residential | GU28: Residential | GV28: Residential | GW28: Residential | GX28: Residential | GY28: Residential | GZ28: Residential | HA28: Residential | HB28: Residential | HC28: Residential | HD28: Residential | HE28: Residential | HF28: Residential | HG28: Residential | HH28: Residential | HI28: Residential | HJ28: Residential | HK28: Residential | HL28: Residential | HM28: Residential | HN28: Residential | HO28: Residential | HP28: Residential | HQ28: Residential | HR28: Residential | HS28: Residential | HT28: Residential | HU28: Residential | HV28: Residential | HW28: Residential | HX28: Residential | HY28: Residential | HZ28: Residential | IA28: Residential | IB28: Residential | IC28: Residential | ID28: Residential | IE28: Residential | IF28: Residential | IG28: Residential | IH28: Residential | II28: Residential | IJ28: Residential | IK28: Residential | IL28: Residential | IM28: Residential | IN28: Residential | IO28: Residential | IP28: Residential | IQ28: Residential | IR28: Residential | IS28: Residential | IT28: Residential | IU28: Residential | IV28: Residential | IW28: Residential | IX28: Residential | IY28: Residential | IZ28: Residential | JA28: Residential | JB28: Residential | JC28: Residential | JD28: Residential | JE28: Residential | JF28: Residential | JG28: Residential | JH28: Residential | JI28: Residential | JJ28: Residential | JK28: Residential | JL28: Residential | JM28: Residential | JN28: Residential | JO28: Residential | JP28: Residential | JQ28: Residential | JR28: Residential
C29: Depth below grade to base of foundation | D29: (m) | E29: Lb | FE29: Basement w/ slab | FF29: Basement w/ slab | FG29: Basement w/ slab | FH29: Basement w/ slab | FI29: Basement w/ slab | FJ29: Basement w/ slab | FK29: Basement w/ slab | FL29: Basement w/ slab | FM29: Basement w/ slab | FN29: Basement w/ slab | FO29: Basement w/ slab | FP29: Basement w/ slab | FQ29: Basement w/ slab | FR29: Basement w/ slab | FS29: Basement w/ slab | FT29: Basement w/ slab | FU29: Basement w/ slab | FV29: Basement w/ slab | FW29: Basement w/ slab | FX29: Basement w/ slab | FY29: Basement w/ slab | FZ29: Basement w/ slab | GA29: Basement w/ slab | GB29: Basement w/ slab | GC29: Basement w/ slab | GD29: Basement w/ slab | GE29: Basement w/ slab | GF29: Basement w/ slab | GG29: Basement w/ slab | GH29: Basement w/ slab | GI29: Basement w/ slab | GJ29: Basement w/ slab | GK29: Basement w/ slab | GL29: Basement w/ slab | GM29: Basement w/ slab | GN29: Basement w/ slab | GO29: Basement w/ slab | GP29: Basement w/ slab | GQ29: Basement w/ slab | GR29: Basement w/ slab | GS29: Basement w/ slab | GT29: Basement w/ slab | GU29: Basement w/ slab | GV29: Basement w/ slab | GW29: Basement w/ slab | GX29: Basement w/ slab | GY29: Basement w/ slab | GZ29: Basement w/ slab | HA29: Basement w/ slab | HB29: Basement w/ slab | HC29: Basement w/ slab | HD29: Basement w/ slab | HE29: Basement w/ slab | HF29: Basement w/ slab | HG29: Basement w/ slab | HH29: Basement w/ slab | HI29: Basement w/ slab | HJ29: Basement w/ slab | HK29: Basement w/ slab | HL29: Basement w/ slab | HM29: Basement w/ slab | HN29: Basement w/ slab | HO29: Basement w/ slab | HP29: Basement w/ slab | HQ29: Basement w/ slab | HR29: Basement w/ slab | HS29: Basement w/ slab | HT29: Basement w/ slab | HU29: Basement w/ slab | HV29: Basement w/ slab | HW29: Basement w/ slab | HX29: Basement w/ slab | HY29: Basement w/ slab | HZ29: Basement w/ slab | IA29: Basement w/ slab | IB29: Basement w/ slab | IC29: Basement w/ slab | ID29: Basement w/ slab | IE29: Basement w/ slab | IF29: Basement w/ slab | IG29: Basement w/ slab | IH29: Basement w/ slab | II29: Basement w/ slab | IJ29: Basement w/ slab | IK29: Basement w/ slab | IL29: Basement w/ slab | IM29: Basement w/ slab | IN29: Basement w/ slab | IO29: Basement w/ slab | IP29: Basement w/ slab | IQ29: Basement w/ slab | IR29: Basement w/ slab | IS29: Basement w/ slab | IT29: Basement w/ slab | IU29: Basement w/ slab | IV29: Basement w/ slab | IW29: Basement w/ slab | IX29: Basement w/ slab | IY29: Basement w/ slab | IZ29: Basement w/ slab | JA29: Basement w/ slab | JB29: Basement w/ slab | JC29: Basement w/ slab | JD29: Basement w/ slab | JE29: Basement w/ slab | JF29: Basement w/ slab | JG29: Basement w/ slab | JH29: Basement w/ slab | JI29: Basement w/ slab | JJ29: Basement w/ slab | JK29: Basement w/ slab | JL29: Basement w/ slab | JM29: Basement w/ slab | JN29: Basement w/ slab | JO29: Basement w/ slab | JP29: Basement w/ slab | JQ29: Basement w/ slab | JR29: Basement w/ slab
C30: Foundation thickness | D30: (m) | E30: Lf | FE30: 2 | FF30: 2 | FG30: 2 | FH30: 2 | FI30: 2 | FJ30: 2 | FK30: 2 | FL30: 2 | FM30: 2 | FN30: 2 | FO30: 2 | FP30: 2 | FQ30: 2 | FR30: 2 | FS30: 2 | FT30: 2 | FU30: 2 | FV30: 2 | FW30: 2 | FX30: 2 | FY30: 2 | FZ30: 2 | GA30: 2 | GB30: 2 | GC30: 2 | GD30: 2 | GE30: 2 | GF30: 2 | GG30: 2 | GH30: 2 | GI30: 2 | GJ30: 2 | GK30: 2 | GL30: 2 | GM30: 2 | GN30: 2 | GO30: 2 | GP30: 2 | GQ30: 2 | GR30: 2 | GS30: 2 | GT30: 2 | GU30: 2 | GV30: 2 | GW30: 2 | GX30: 2 | GY30: 2 | GZ30: 2 | HA30: 2 | HB30: 2 | HC30: 2 | HD30: 2 | HE30: 2 | HF30: 2 | HG30: 2 | HH30: 2 | HI30: 2 | HJ30: 2 | HK30: 2 | HL30: 2 | HM30: 2 | HN30: 2 | HO30: 2 | HP30: 2 | HQ30: 2 | HR30: 2 | HS30: 2 | HT30: 2 | HU30: 2 | HV30: 2 | HW30: 2 | HX30: 2 | HY30: 2 | HZ30: 2 | IA30: 2 | IB30: 2 | IC30: 2 | ID30: 2 | IE30: 2 | IF30: 2 | IG30: 2 | IH30: 2 | II30: 2 | IJ30: 2 | IK30: 2 | IL30: 2 | IM30: 2 | IN30: 2 | IO30: 2 | IP30: 2 | IQ30: 2 | IR30: 2 | IS30: 2 | IT30: 2 | IU30: 2 | IV30: 2 | IW30: 2 | IX30: 2 | IY30: 2 | IZ30: 2 | JA30: 2 | JB30: 2 | JC30: 2 | JD30: 2 | JE30: 2 | JF30: 2 | JG30: 2 | JH30: 2 | JI30: 2 | JJ30: 2 | JK30: 2 | JL30: 2 | JM30: 2 | JN30: 2 | JO30: 2 | JP30: 2 | JQ30: 2 | JR30: 2
C31: Fraction of foundation area with cracks | D31: (-) | E31: eta | FE31: 0.1 | FF31: 0.1 | FG31: 0.1 | FH31: 0.1 | FI31: 0.1 | FJ31: 0.1 | FK31: 0.1 | FL31: 0.1 | FM31: 0.1 | FN31: 0.1 | FO31: 0.1 | FP31: 0.1 | FQ31: 0.1 | FR31: 0.1 | FS31: 0.1 | FT31: 0.1 | FU31: 0.1 | FV31: 0.1 | FW31: 0.1 | FX31: 0.1 | FY31: 0.1 | FZ31: 0.1 | GA31: 0.1 | GB31: 0.1 | GC31: 0.1 | GD31: 0.1 | GE31: 0.1 | GF31: 0.1 | GG31: 0.1 | GH31: 0.1 | GI31: 0.1 | GJ31: 0.1 | GK31: 0.1 | GL31: 0.1 | GM31: 0.1 | GN31: 0.1 | GO31: 0.1 | GP31: 0.1 | GQ31: 0.1 | GR31: 0.1 | GS31: 0.1 | GT31: 0.1 | GU31: 0.1 | GV31: 0.1 | GW31: 0.1 | GX31: 0.1 | GY31: 0.1 | GZ31: 0.1 | HA31: 0.1 | HB31: 0.1 | HC31: 0.1 | HD31: 0.1 | HE31: 0.1 | HF31: 0.1 | HG31: 0.1 | HH31: 0.1 | HI31: 0.1 | HJ31: 0.1 | HK31: 0.1 | HL31: 0.1 | HM31: 0.1 | HN31: 0.1 | HO31: 0.1 | HP31: 0.1 | HQ31: 0.1 | HR31: 0.1 | HS31: 0.1 | HT31: 0.1 | HU31: 0.1 | HV31: 0.1 | HW31: 0.1 | HX31: 0.1 | HY31: 0.1 | HZ31: 0.1 | IA31: 0.1 | IB31: 0.1 | IC31: 0.1 | ID31: 0.1 | IE31: 0.1 | IF31: 0.1 | IG31: 0.1 | IH31: 0.1 | II31: 0.1 | IJ31: 0.1 | IK31: 0.1 | IL31: 0.1 | IM31: 0.1 | IN31: 0.1 | IO31: 0.1 | IP31: 0.1 | IQ31: 0.1 | IR31: 0.1 | IS31: 0.1 | IT31: 0.1 | IU31: 0.1 | IV31: 0.1 | IW31: 0.1 | IX31: 0.1 | IY31: 0.1 | IZ31: 0.1 | JA31: 0.1 | JB31: 0.1 | JC31: 0.1 | JD31: 0.1 | JE31: 0.1 | JF31: 0.1 | JG31: 0.1 | JH31: 0.1 | JI31: 0.1 | JJ31: 0.1 | JK31: 0.1 | JL31: 0.1 | JM31: 0.1 | JN31: 0.1 | JO31: 0.1 | JP31: 0.1 | JQ31: 0.1 | JR31: 0.1
C32: Enclosed space floor area | D32: (m2) | E32: Ab | FE32: 0.001 | FF32: 0.001 | FG32: 0.001 | FH32: 0.001 | FI32: 0.001 | FJ32: 0.001 | FK32: 0.001 | FL32: 0.001 | FM32: 0.001 | FN32: 0.001 | FO32: 0.001 | FP32: 0.001 | FQ32: 0.001 | FR32: 0.001 | FS32: 0.001 | FT32: 0.001 | FU32: 0.001 | FV32: 0.001 | FW32: 0.001 | FX32: 0.001 | FY32: 0.001 | FZ32: 0.001 | GA32: 0.001 | GB32: 0.001 | GC32: 0.001 | GD32: 0.001 | GE32: 0.001 | GF32: 0.001 | GG32: 0.001 | GH32: 0.001 | GI32: 0.001 | GJ32: 0.001 | GK32: 0.001 | GL32: 0.001 | GM32: 0.001 | GN32: 0.001 | GO32: 0.001 | GP32: 0.001 | GQ32: 0.001 | GR32: 0.001 | GS32: 0.001 | GT32: 0.001 | GU32: 0.001 | GV32: 0.001 | GW32: 0.001 | GX32: 0.001 | GY32: 0.001 | GZ32: 0.001 | HA32: 0.001 | HB32: 0.001 | HC32: 0.001 | HD32: 0.001 | HE32: 0.001 | HF32: 0.001 | HG32: 0.001 | HH32: 0.001 | HI32: 0.001 | HJ32: 0.001 | HK32: 0.001 | HL32: 0.001 | HM32: 0.001 | HN32: 0.001 | HO32: 0.001 | HP32: 0.001 | HQ32: 0.001 | HR32: 0.001 | HS32: 0.001 | HT32: 0.001 | HU32: 0.001 | HV32: 0.001 | HW32: 0.001 | HX32: 0.001 | HY32: 0.001 | HZ32: 0.001 | IA32: 0.001 | IB32: 0.001 | IC32: 0.001 | ID32: 0.001 | IE32: 0.001 | IF32: 0.001 | IG32: 0.001 | IH32: 0.001 | II32: 0.001 | IJ32: 0.001 | IK32: 0.001 | IL32: 0.001 | IM32: 0.001 | IN32: 0.001 | IO32: 0.001 | IP32: 0.001 | IQ32: 0.001 | IR32: 0.001 | IS32: 0.001 | IT32: 0.001 | IU32: 0.001 | IV32: 0.001 | IW32: 0.001 | IX32: 0.001 | IY32: 0.001 | IZ32: 0.001 | JA32: 0.001 | JB32: 0.001 | JC32: 0.001 | JD32: 0.001 | JE32: 0.001 | JF32: 0.001 | JG32: 0.001 | JH32: 0.001 | JI32: 0.001 | JJ32: 0.001 | JK32: 0.001 | JL32: 0.001 | JM32: 0.001 | JN32: 0.001 | JO32: 0.001 | JP32: 0.001 | JQ32: 0.001 | JR32: 0.001
C33: Enclosed space mixing height | D33: (m) | E33: Hb | FE33: 150 | FF33: 150 | FG33: 150 | FH33: 150 | FI33: 150 | FJ33: 150 | FK33: 150 | FL33: 150 | FM33: 150 | FN33: 150 | FO33: 150 | FP33: 150 | FQ33: 150 | FR33: 150 | FS33: 150 | FT33: 150 | FU33: 150 | FV33: 150 | FW33: 150 | FX33: 150 | FY33: 150 | FZ33: 150 | GA33: 150 | GB33: 150 | GC33: 150 | GD33: 150 | GE33: 150 | GF33: 150 | GG33: 150 | GH33: 150 | GI33: 150 | GJ33: 150 | GK33: 150 | GL33: 150 | GM33: 150 | GN33: 150 | GO33: 150 | GP33: 150 | GQ33: 150 | GR33: 150 | GS33: 150 | GT33: 150 | GU33: 150 | GV33: 150 | GW33: 150 | GX33: 150 | GY33: 150 | GZ33: 150 | HA33: 150 | HB33: 150 | HC33: 150 | HD33: 150 | HE33: 150 | HF33: 150 | HG33: 150 | HH33: 150 | HI33: 150 | HJ33: 150 | HK33: 150 | HL33: 150 | HM33: 150 | HN33: 150 | HO33: 150 | HP33: 150 | HQ33: 150 | HR33: 150 | HS33: 150 | HT33: 150 | HU33: 150 | HV33: 150 | HW33: 150 | HX33: 150 | HY33: 150 | HZ33: 150 | IA33: 150 | IB33: 150 | IC33: 150 | ID33: 150 | IE33: 150 | IF33: 150 | IG33: 150 | IH33: 150 | II33: 150 | IJ33: 150 | IK33: 150 | IL33: 150 | IM33: 150 | IN33: 150 | IO33: 150 | IP33: 150 | IQ33: 150 | IR33: 150 | IS33: 150 | IT33: 150 | IU33: 150 | IV33: 150 | IW33: 150 | IX33: 150 | IY33: 150 | IZ33: 150 | JA33: 150 | JB33: 150 | JC33: 150 | JD33: 150 | JE33: 150 | JF33: 150 | JG33: 150 | JH33: 150 | JI33: 150 | JJ33: 150 | JK33: 150 | JL33: 150 | JM33: 150 | JN33: 150 | JO33: 150 | JP33: 150 | JQ33: 150 | JR33: 150
C34: Indoor air exchange rate | D34: (1/hr) | E34: ach | FE34: 3.66 | FF34: 3.66 | FG34: 3.66 | FH34: 3.66 | FI34: 3.66 | FJ34: 3.66 | FK34: 3.66 | FL34: 3.66 | FM34: 3.66 | FN34: 3.66 | FO34: 3.66 | FP34: 3.66 | FQ34: 3.66 | FR34: 3.66 | FS34: 3.66 | FT34: 3.66 | FU34: 3.66 | FV34: 3.66 | FW34: 3.66 | FX34: 3.66 | FY34: 3.66 | FZ34: 3.66 | GA34: 3.66 | GB34: 3.66 | GC34: 3.66 | GD34: 3.66 | GE34: 3.66 | GF34: 3.66 | GG34: 3.66 | GH34: 3.66 | GI34: 3.66 | GJ34: 3.66 | GK34: 3.66 | GL34: 3.66 | GM34: 3.66 | GN34: 3.66 | GO34: 3.66 | GP34: 3.66 | GQ34: 3.66 | GR34: 3.66 | GS34: 3.66 | GT34: 3.66 | GU34: 3.66 | GV34: 3.66 | GW34: 3.66 | GX34: 3.66 | GY34: 3.66 | GZ34: 3.66 | HA34: 3.66 | HB34: 3.66 | HC34: 3.66 | HD34: 3.66 | HE34: 3.66 | HF34: 3.66 | HG34: 3.66 | HH34: 3.66 | HI34: 3.66 | HJ34: 3.66 | HK34: 3.66 | HL34: 3.66 | HM34: 3.66 | HN34: 3.66 | HO34: 3.66 | HP34: 3.66 | HQ34: 3.66 | HR34: 3.66 | HS34: 3.66 | HT34: 3.66 | HU34: 3.66 | HV34: 3.66 | HW34: 3.66 | HX34: 3.66 | HY34: 3.66 | HZ34: 3.66 | IA34: 3.66 | IB34: 3.66 | IC34: 3.66 | ID34: 3.66 | IE34: 3.66 | IF34: 3.66 | IG34: 3.66 | IH34: 3.66 | II34: 3.66 | IJ34: 3.66 | IK34: 3.66 | IL34: 3.66 | IM34: 3.66 | IN34: 3.66 | IO34: 3.66 | IP34: 3.66 | IQ34: 3.66 | IR34: 3.66 | IS34: 3.66 | IT34: 3.66 | IU34: 3.66 | IV34: 3.66 | IW34: 3.66 | IX34: 3.66 | IY34: 3.66 | IZ34: 3.66 | JA34: 3.66 | JB34: 3.66 | JC34: 3.66 | JD34: 3.66 | JE34: 3.66 | JF34: 3.66 | JG34: 3.66 | JH34: 3.66 | JI34: 3.66 | JJ34: 3.66 | JK34: 3.66 | JL34: 3.66 | JM34: 3.66 | JN34: 3.66 | JO34: 3.66 | JP34: 3.66 | JQ34: 3.66 | JR34: 3.66
C35: Qsoil/Qbuilding | D35: (-) | E35: Qsoil_Qb | FE35: 0.45 | FF35: 0.45 | FG35: 0.45 | FH35: 0.45 | FI35: 0.45 | FJ35: 0.45 | FK35: 0.45 | FL35: 0.45 | FM35: 0.45 | FN35: 0.45 | FO35: 0.45 | FP35: 0.45 | FQ35: 0.45 | FR35: 0.45 | FS35: 0.45 | FT35: 0.45 | FU35: 0.45 | FV35: 0.45 | FW35: 0.45 | FX35: 0.45 | FY35: 0.45 | FZ35: 0.45 | GA35: 0.45 | GB35: 0.45 | GC35: 0.45 | GD35: 0.45 | GE35: 0.45 | GF35: 0.45 | GG35: 0.45 | GH35: 0.45 | GI35: 0.45 | GJ35: 0.45 | GK35: 0.45 | GL35: 0.45 | GM35: 0.45 | GN35: 0.45 | GO35: 0.45 | GP35: 0.45 | GQ35: 0.45 | GR35: 0.45 | GS35: 0.45 | GT35: 0.45 | GU35: 0.45 | GV35: 0.45 | GW35: 0.45 | GX35: 0.45 | GY35: 0.45 | GZ35: 0.45 | HA35: 0.45 | HB35: 0.45 | HC35: 0.45 | HD35: 0.45 | HE35: 0.45 | HF35: 0.45 | HG35: 0.45 | HH35: 0.45 | HI35: 0.45 | HJ35: 0.45 | HK35: 0.45 | HL35: 0.45 | HM35: 0.45 | HN35: 0.45 | HO35: 0.45 | HP35: 0.45 | HQ35: 0.45 | HR35: 0.45 | HS35: 0.45 | HT35: 0.45 | HU35: 0.45 | HV35: 0.45 | HW35: 0.45 | HX35: 0.45 | HY35: 0.45 | HZ35: 0.45 | IA35: 0.45 | IB35: 0.45 | IC35: 0.45 | ID35: 0.45 | IE35: 0.45 | IF35: 0.45 | IG35: 0.45 | IH35: 0.45 | II35: 0.45 | IJ35: 0.45 | IK35: 0.45 | IL35: 0.45 | IM35: 0.45 | IN35: 0.45 | IO35: 0.45 | IP35: 0.45 | IQ35: 0.45 | IR35: 0.45 | IS35: 0.45 | IT35: 0.45 | IU35: 0.45 | IV35: 0.45 | IW35: 0.45 | IX35: 0.45 | IY35: 0.45 | IZ35: 0.45 | JA35: 0.45 | JB35: 0.45 | JC35: 0.45 | JD35: 0.45 | JE35: 0.45 | JF35: 0.45 | JG35: 0.45 | JH35: 0.45 | JI35: 0.45 | JJ35: 0.45 | JK35: 0.45 | JL35: 0.45 | JM35: 0.45 | JN35: 0.45 | JO35: 0.45 | JP35: 0.45 | JQ35: 0.45 | JR35: 0.45
C36: Calc: Building ventilation rate | D36: (m3/hr) | E36: Qb | FE36: 0.003 | FF36: 0.003 | FG36: 0.003 | FH36: 0.003 | FI36: 0.003 | FJ36: 0.003 | FK36: 0.003 | FL36: 0.003 | FM36: 0.003 | FN36: 0.003 | FO36: 0.003 | FP36: 0.003 | FQ36: 0.003 | FR36: 0.003 | FS36: 0.003 | FT36: 0.003 | FU36: 0.003 | FV36: 0.003 | FW36: 0.003 | FX36: 0.003 | FY36: 0.003 | FZ36: 0.003 | GA36: 0.003 | GB36: 0.003 | GC36: 0.003 | GD36: 0.003 | GE36: 0.003 | GF36: 0.003 | GG36: 0.003 | GH36: 0.003 | GI36: 0.003 | GJ36: 0.003 | GK36: 0.003 | GL36: 0.003 | GM36: 0.003 | GN36: 0.003 | GO36: 0.003 | GP36: 0.003 | GQ36: 0.003 | GR36: 0.003 | GS36: 0.003 | GT36: 0.003 | GU36: 0.003 | GV36: 0.003 | GW36: 0.003 | GX36: 0.003 | GY36: 0.003 | GZ36: 0.003 | HA36: 0.003 | HB36: 0.003 | HC36: 0.003 | HD36: 0.003 | HE36: 0.003 | HF36: 0.003 | HG36: 0.003 | HH36: 0.003 | HI36: 0.003 | HJ36: 0.003 | HK36: 0.003 | HL36: 0.003 | HM36: 0.003 | HN36: 0.003 | HO36: 0.003 | HP36: 0.003 | HQ36: 0.003 | HR36: 0.003 | HS36: 0.003 | HT36: 0.003 | HU36: 0.003 | HV36: 0.003 | HW36: 0.003 | HX36: 0.003 | HY36: 0.003 | HZ36: 0.003 | IA36: 0.003 | IB36: 0.003 | IC36: 0.003 | ID36: 0.003 | IE36: 0.003 | IF36: 0.003 | IG36: 0.003 | IH36: 0.003 | II36: 0.003 | IJ36: 0.003 | IK36: 0.003 | IL36: 0.003 | IM36: 0.003 | IN36: 0.003 | IO36: 0.003 | IP36: 0.003 | IQ36: 0.003 | IR36: 0.003 | IS36: 0.003 | IT36: 0.003 | IU36: 0.003 | IV36: 0.003 | IW36: 0.003 | IX36: 0.003 | IY36: 0.003 | IZ36: 0.003 | JA36: 0.003 | JB36: 0.003 | JC36: 0.003 | JD36: 0.003 | JE36: 0.003 | JF36: 0.003 | JG36: 0.003 | JH36: 0.003 | JI36: 0.003 | JJ36: 0.003 | JK36: 0.003 | JL36: 0.003 | JM36: 0.003 | JN36: 0.003 | JO36: 0.003 | JP36: 0.003 | JQ36: 0.003 | JR36: 0.003
C37: Calc: Average vapor flow rate into building | D37: (m3/hr) | E37: Qsoil | FE37: 247.05 | FF37: 247.05 | FG37: 247.05 | FH37: 247.05 | FI37: 247.05 | FJ37: 247.05 | FK37: 247.05 | FL37: 247.05 | FM37: 247.05 | FN37: 247.05 | FO37: 247.05 | FP37: 247.05 | FQ37: 247.05 | FR37: 247.05 | FS37: 247.05 | FT37: 247.05 | FU37: 247.05 | FV37: 247.05 | FW37: 247.05 | FX37: 247.05 | FY37: 247.05 | FZ37: 247.05 | GA37: 247.05 | GB37: 247.05 | GC37: 247.05 | GD37: 247.05 | GE37: 247.05 | GF37: 247.05 | GG37: 247.05 | GH37: 247.05 | GI37: 247.05 | GJ37: 247.05 | GK37: 247.05 | GL37: 247.05 | GM37: 247.05 | GN37: 247.05 | GO37: 247.05 | GP37: 247.05 | GQ37: 247.05 | GR37: 247.05 | GS37: 247.05 | GT37: 247.05 | GU37: 247.05 | GV37: 247.05 | GW37: 247.05 | GX37: 247.05 | GY37: 247.05 | GZ37: 247.05 | HA37: 247.05 | HB37: 247.05 | HC37: 247.05 | HD37: 247.05 | HE37: 247.05 | HF37: 247.05 | HG37: 247.05 | HH37: 247.05 | HI37: 247.05 | HJ37: 247.05 | HK37: 247.05 | HL37: 247.05 | HM37: 247.05 | HN37: 247.05 | HO37: 247.05 | HP37: 247.05 | HQ37: 247.05 | HR37: 247.05 | HS37: 247.05 | HT37: 247.05 | HU37: 247.05 | HV37: 247.05 | HW37: 247.05 | HX37: 247.05 | HY37: 247.05 | HZ37: 247.05 | IA37: 247.05 | IB37: 247.05 | IC37: 247.05 | ID37: 247.05 | IE37: 247.05 | IF37: 247.05 | IG37: 247.05 | IH37: 247.05 | II37: 247.05 | IJ37: 247.05 | IK37: 247.05 | IL37: 247.05 | IM37: 247.05 | IN37: 247.05 | IO37: 247.05 | IP37: 247.05 | IQ37: 247.05 | IR37: 247.05 | IS37: 247.05 | IT37: 247.05 | IU37: 247.05 | IV37: 247.05 | IW37: 247.05 | IX37: 247.05 | IY37: 247.05 | IZ37: 247.05 | JA37: 247.05 | JB37: 247.05 | JC37: 247.05 | JD37: 247.05 | JE37: 247.05 | JF37: 247.05 | JG37: 247.05 | JH37: 247.05 | JI37: 247.05 | JJ37: 247.05 | JK37: 247.05 | JL37: 247.05 | JM37: 247.05 | JN37: 247.05 | JO37: 247.05 | JP37: 247.05 | JQ37: 247.05 | JR37: 247.05
FE38: 0.74115 | FF38: 0.74115 | FG38: 0.74115 | FH38: 0.74115 | FI38: 0.74115 | FJ38: 0.74115 | FK38: 0.74115 | FL38: 0.74115 | FM38: 0.74115 | FN38: 0.74115 | FO38: 0.74115 | FP38: 0.74115 | FQ38: 0.74115 | FR38: 0.74115 | FS38: 0.74115 | FT38: 0.74115 | FU38: 0.74115 | FV38: 0.74115 | FW38: 0.74115 | FX38: 0.74115 | FY38: 0.74115 | FZ38: 0.74115 | GA38: 0.74115 | GB38: 0.74115 | GC38: 0.74115 | GD38: 0.74115 | GE38: 0.74115 | GF38: 0.74115 | GG38: 0.74115 | GH38: 0.74115 | GI38: 0.74115 | GJ38: 0.74115 | GK38: 0.74115 | GL38: 0.74115 | GM38: 0.74115 | GN38: 0.74115 | GO38: 0.74115 | GP38: 0.74115 | GQ38: 0.74115 | GR38: 0.74115 | GS38: 0.74115 | GT38: 0.74115 | GU38: 0.74115 | GV38: 0.74115 | GW38: 0.74115 | GX38: 0.74115 | GY38: 0.74115 | GZ38: 0.74115 | HA38: 0.74115 | HB38: 0.74115 | HC38: 0.74115 | HD38: 0.74115 | HE38: 0.74115 | HF38: 0.74115 | HG38: 0.74115 | HH38: 0.74115 | HI38: 0.74115 | HJ38: 0.74115 | HK38: 0.74115 | HL38: 0.74115 | HM38: 0.74115 | HN38: 0.74115 | HO38: 0.74115 | HP38: 0.74115 | HQ38: 0.74115 | HR38: 0.74115 | HS38: 0.74115 | HT38: 0.74115 | HU38: 0.74115 | HV38: 0.74115 | HW38: 0.74115 | HX38: 0.74115 | HY38: 0.74115 | HZ38: 0.74115 | IA38: 0.74115 | IB38: 0.74115 | IC38: 0.74115 | ID38: 0.74115 | IE38: 0.74115 | IF38: 0.74115 | IG38: 0.74115 | IH38: 0.74115 | II38: 0.74115 | IJ38: 0.74115 | IK38: 0.74115 | IL38: 0.74115 | IM38: 0.74115 | IN38: 0.74115 | IO38: 0.74115 | IP38: 0.74115 | IQ38: 0.74115 | IR38: 0.74115 | IS38: 0.74115 | IT38: 0.74115 | IU38: 0.74115 | IV38: 0.74115 | IW38: 0.74115 | IX38: 0.74115 | IY38: 0.74115 | IZ38: 0.74115 | JA38: 0.74115 | JB38: 0.74115 | JC38: 0.74115 | JD38: 0.74115 | JE38: 0.74115 | JF38: 0.74115 | JG38: 0.74115 | JH38: 0.74115 | JI38: 0.74115 | JJ38: 0.74115 | JK38: 0.74115 | JL38: 0.74115 | JM38: 0.74115 | JN38: 0.74115 | JO38: 0.74115 | JP38: 0.74115 | JQ38: 0.74115 | JR38: 0.74115
A39: Vadose zone characteristics: | D39: Units | E39: Symbol | FE39: Value | FF39: Value | FG39: Value | FH39: Value | FI39: Value | FJ39: Value | FK39: Value | FL39: Value | FM39: Value | FN39: Value | FO39: Value | FP39: Value | FQ39: Value | FR39: Value | FS39: Value | FT39: Value | FU39: Value | FV39: Value | FW39: Value | FX39: Value | FY39: Value | FZ39: Value | GA39: Value | GB39: Value | GC39: Value | GD39: Value | GE39: Value | GF39: Value | GG39: Value | GH39: Value | GI39: Value | GJ39: Value | GK39: Value | GL39: Value | GM39: Value | GN39: Value | GO39: Value | GP39: Value | GQ39: Value | GR39: Value | GS39: Value | GT39: Value | GU39: Value | GV39: Value | GW39: Value | GX39: Value | GY39: Value | GZ39: Value | HA39: Value | HB39: Value | HC39: Value | HD39: Value | HE39: Value | HF39: Value | HG39: Value | HH39: Value | HI39: Value | HJ39: Value | HK39: Value | HL39: Value | HM39: Value | HN39: Value | HO39: Value | HP39: Value | HQ39: Value | HR39: Value | HS39: Value | HT39: Value | HU39: Value | HV39: Value | HW39: Value | HX39: Value | HY39: Value | HZ39: Value | IA39: Value | IB39: Value | IC39: Value | ID39: Value | IE39: Value | IF39: Value | IG39: Value | IH39: Value | II39: Value | IJ39: Value | IK39: Value | IL39: Value | IM39: Value | IN39: Value | IO39: Value | IP39: Value | IQ39: Value | IR39: Value | IS39: Value | IT39: Value | IU39: Value | IV39: Value | IW39: Value | IX39: Value | IY39: Value | IZ39: Value | JA39: Value | JB39: Value | JC39: Value | JD39: Value | JE39: Value | JF39: Value | JG39: Value | JH39: Value | JI39: Value | JJ39: Value | JK39: Value | JL39: Value | JM39: Value | JN39: Value | JO39: Value | JP39: Value | JQ39: Value | JR39: Value
A40: Stratum A (Top of soil profile):
B41: Stratum A SCS soil type | E41: SCS_A | FE41: Sand | FF41: Sand | FG41: Sand | FH41: Sand | FI41: Sand | FJ41: Sand | FK41: Sand | FL41: Sand | FM41: Sand | FN41: Sand | FO41: Sand | FP41: Sand | FQ41: Sand | FR41: Sand | FS41: Sand | FT41: Sand | FU41: Sand | FV41: Sand | FW41: Sand | FX41: Sand | FY41: Sand | FZ41: Sand | GA41: Sand | GB41: Sand | GC41: Sand | GD41: Sand | GE41: Sand | GF41: Sand | GG41: Sand | GH41: Sand | GI41: Sand | GJ41: Sand | GK41: Sand | GL41: Sand | GM41: Sand | GN41: Sand | GO41: Sand | GP41: Sand | GQ41: Sand | GR41: Sand | GS41: Sand | GT41: Sand | GU41: Sand | GV41: Sand | GW41: Sand | GX41: Sand | GY41: Sand | GZ41: Sand | HA41: Sand | HB41: Sand | HC41: Sand | HD41: Sand | HE41: Sand | HF41: Sand | HG41: Sand | HH41: Sand | HI41: Sand | HJ41: Sand | HK41: Sand | HL41: Sand | HM41: Sand | HN41: Sand | HO41: Sand | HP41: Sand | HQ41: Sand | HR41: Sand | HS41: Sand | HT41: Sand | HU41: Sand | HV41: Sand | HW41: Sand | HX41: Sand | HY41: Sand | HZ41: Sand | IA41: Sand | IB41: Sand | IC41: Sand | ID41: Sand | IE41: Sand | IF41: Sand | IG41: Sand | IH41: Sand | II41: Sand | IJ41: Sand | IK41: Sand | IL41: Sand | IM41: Sand | IN41: Sand | IO41: Sand | IP41: Sand | IQ41: Sand | IR41: Sand | IS41: Sand | IT41: Sand | IU41: Sand | IV41: Sand | IW41: Sand | IX41: Sand | IY41: Sand | IZ41: Sand | JA41: Sand | JB41: Sand | JC41: Sand | JD41: Sand | JE41: Sand | JF41: Sand | JG41: Sand | JH41: Sand | JI41: Sand | JJ41: Sand | JK41: Sand | JL41: Sand | JM41: Sand | JN41: Sand | JO41: Sand | JP41: Sand | JQ41: Sand | JR41: Sand
B42: Stratum A thickness (from surface) | D42: (m) | E42: hSA | FE42: 5 | FF42: 5 | FG42: 5 | FH42: 5 | FI42: 5 | FJ42: 5 | FK42: 5 | FL42: 5 | FM42: 5 | FN42: 5 | FO42: 5 | FP42: 5 | FQ42: 5 | FR42: 5 | FS42: 5 | FT42: 5 | FU42: 5 | FV42: 5 | FW42: 5 | FX42: 5 | FY42: 5 | FZ42: 5 | GA42: 5 | GB42: 5 | GC42: 5 | GD42: 5 | GE42: 5 | GF42: 5 | GG42: 5 | GH42: 5 | GI42: 5 | GJ42: 5 | GK42: 5 | GL42: 5 | GM42: 5 | GN42: 5 | GO42: 5 | GP42: 5 | GQ42: 5 | GR42: 5 | GS42: 5 | GT42: 5 | GU42: 5 | GV42: 5 | GW42: 5 | GX42: 5 | GY42: 5 | GZ42: 5 | HA42: 5 | HB42: 5 | HC42: 5 | HD42: 5 | HE42: 5 | HF42: 5 | HG42: 5 | HH42: 5 | HI42: 5 | HJ42: 5 | HK42: 5 | HL42: 5 | HM42: 5 | HN42: 5 | HO42: 5 | HP42: 5 | HQ42: 5 | HR42: 5 | HS42: 5 | HT42: 5 | HU42: 5 | HV42: 5 | HW42: 5 | HX42: 5 | HY42: 5 | HZ42: 5 | IA42: 5 | IB42: 5 | IC42: 5 | ID42: 5 | IE42: 5 | IF42: 5 | IG42: 5 | IH42: 5 | II42: 5 | IJ42: 5 | IK42: 5 | IL42: 5 | IM42: 5 | IN42: 5 | IO42: 5 | IP42: 5 | IQ42: 5 | IR42: 5 | IS42: 5 | IT42: 5 | IU42: 5 | IV42: 5 | IW42: 5 | IX42: 5 | IY42: 5 | IZ42: 5 | JA42: 5 | JB42: 5 | JC42: 5 | JD42: 5 | JE42: 5 | JF42: 5 | JG42: 5 | JH42: 5 | JI42: 5 | JJ42: 5 | JK42: 5 | JL42: 5 | JM42: 5 | JN42: 5 | JO42: 5 | JP42: 5 | JQ42: 5 | JR42: 5
C43: Stratum A total porosity | D43: (-) | E43: nSA | FE43: 0.375 | FF43: 0.375 | FG43: 0.375 | FH43: 0.375 | FI43: 0.375 | FJ43: 0.375 | FK43: 0.375 | FL43: 0.375 | FM43: 0.375 | FN43: 0.375 | FO43: 0.375 | FP43: 0.375 | FQ43: 0.375 | FR43: 0.375 | FS43: 0.375 | FT43: 0.375 | FU43: 0.375 | FV43: 0.375 | FW43: 0.375 | FX43: 0.375 | FY43: 0.375 | FZ43: 0.375 | GA43: 0.375 | GB43: 0.375 | GC43: 0.375 | GD43: 0.375 | GE43: 0.375 | GF43: 0.375 | GG43: 0.375 | GH43: 0.375 | GI43: 0.375 | GJ43: 0.375 | GK43: 0.375 | GL43: 0.375 | GM43: 0.375 | GN43: 0.375 | GO43: 0.375 | GP43: 0.375 | GQ43: 0.375 | GR43: 0.375 | GS43: 0.375 | GT43: 0.375 | GU43: 0.375 | GV43: 0.375 | GW43: 0.375 | GX43: 0.375 | GY43: 0.375 | GZ43: 0.375 | HA43: 0.375 | HB43: 0.375 | HC43: 0.375 | HD43: 0.375 | HE43: 0.375 | HF43: 0.375 | HG43: 0.375 | HH43: 0.375 | HI43: 0.375 | HJ43: 0.375 | HK43: 0.375 | HL43: 0.375 | HM43: 0.375 | HN43: 0.375 | HO43: 0.375 | HP43: 0.375 | HQ43: 0.375 | HR43: 0.375 | HS43: 0.375 | HT43: 0.375 | HU43: 0.375 | HV43: 0.375 | HW43: 0.375 | HX43: 0.375 | HY43: 0.375 | HZ43: 0.375 | IA43: 0.375 | IB43: 0.375 | IC43: 0.375 | ID43: 0.375 | IE43: 0.375 | IF43: 0.375 | IG43: 0.375 | IH43: 0.375 | II43: 0.375 | IJ43: 0.375 | IK43: 0.375 | IL43: 0.375 | IM43: 0.375 | IN43: 0.375 | IO43: 0.375 | IP43: 0.375 | IQ43: 0.375 | IR43: 0.375 | IS43: 0.375 | IT43: 0.375 | IU43: 0.375 | IV43: 0.375 | IW43: 0.375 | IX43: 0.375 | IY43: 0.375 | IZ43: 0.375 | JA43: 0.375 | JB43: 0.375 | JC43: 0.375 | JD43: 0.375 | JE43: 0.375 | JF43: 0.375 | JG43: 0.375 | JH43: 0.375 | JI43: 0.375 | JJ43: 0.375 | JK43: 0.375 | JL43: 0.375 | JM43: 0.375 | JN43: 0.375 | JO43: 0.375 | JP43: 0.375 | JQ43: 0.375 | JR43: 0.375
C44: Stratum A water-filled porosity | D44: (-) | E44: nwSA | FE44: 0.054 | FF44: 0.054 | FG44: 0.054 | FH44: 0.054 | FI44: 0.054 | FJ44: 0.054 | FK44: 0.054 | FL44: 0.054 | FM44: 0.054 | FN44: 0.054 | FO44: 0.054 | FP44: 0.054 | FQ44: 0.054 | FR44: 0.054 | FS44: 0.054 | FT44: 0.054 | FU44: 0.054 | FV44: 0.054 | FW44: 0.054 | FX44: 0.054 | FY44: 0.054 | FZ44: 0.054 | GA44: 0.054 | GB44: 0.054 | GC44: 0.054 | GD44: 0.054 | GE44: 0.054 | GF44: 0.054 | GG44: 0.054 | GH44: 0.054 | GI44: 0.054 | GJ44: 0.054 | GK44: 0.054 | GL44: 0.054 | GM44: 0.054 | GN44: 0.054 | GO44: 0.054 | GP44: 0.054 | GQ44: 0.054 | GR44: 0.054 | GS44: 0.054 | GT44: 0.054 | GU44: 0.054 | GV44: 0.054 | GW44: 0.054 | GX44: 0.054 | GY44: 0.054 | GZ44: 0.054 | HA44: 0.054 | HB44: 0.054 | HC44: 0.054 | HD44: 0.054 | HE44: 0.054 | HF44: 0.054 | HG44: 0.054 | HH44: 0.054 | HI44: 0.054 | HJ44: 0.054 | HK44: 0.054 | HL44: 0.054 | HM44: 0.054 | HN44: 0.054 | HO44: 0.054 | HP44: 0.054 | HQ44: 0.054 | HR44: 0.054 | HS44: 0.054 | HT44: 0.054 | HU44: 0.054 | HV44: 0.054 | HW44: 0.054 | HX44: 0.054 | HY44: 0.054 | HZ44: 0.054 | IA44: 0.054 | IB44: 0.054 | IC44: 0.054 | ID44: 0.054 | IE44: 0.054 | IF44: 0.054 | IG44: 0.054 | IH44: 0.054 | II44: 0.054 | IJ44: 0.054 | IK44: 0.054 | IL44: 0.054 | IM44: 0.054 | IN44: 0.054 | IO44: 0.054 | IP44: 0.054 | IQ44: 0.054 | IR44: 0.054 | IS44: 0.054 | IT44: 0.054 | IU44: 0.054 | IV44: 0.054 | IW44: 0.054 | IX44: 0.054 | IY44: 0.054 | IZ44: 0.054 | JA44: 0.054 | JB44: 0.054 | JC44: 0.054 | JD44: 0.054 | JE44: 0.054 | JF44: 0.054 | JG44: 0.054 | JH44: 0.054 | JI44: 0.054 | JJ44: 0.054 | JK44: 0.054 | JL44: 0.054 | JM44: 0.054 | JN44: 0.054 | JO44: 0.054 | JP44: 0.054 | JQ44: 0.054 | JR44: 0.054
C45: Stratum A bulk density | D45: (g/cm3) | E45: rhoSA | FE45: 1.66 | FF45: 1.66 | FG45: 1.66 | FH45: 1.66 | FI45: 1.66 | FJ45: 1.66 | FK45: 1.66 | FL45: 1.66 | FM45: 1.66 | FN45: 1.66 | FO45: 1.66 | FP45: 1.66 | FQ45: 1.66 | FR45: 1.66 | FS45: 1.66 | FT45: 1.66 | FU45: 1.66 | FV45: 1.66 | FW45: 1.66 | FX45: 1.66 | FY45: 1.66 | FZ45: 1.66 | GA45: 1.66 | GB45: 1.66 | GC45: 1.66 | GD45: 1.66 | GE45: 1.66 | GF45: 1.66 | GG45: 1.66 | GH45: 1.66 | GI45: 1.66 | GJ45: 1.66 | GK45: 1.66 | GL45: 1.66 | GM45: 1.66 | GN45: 1.66 | GO45: 1.66 | GP45: 1.66 | GQ45: 1.66 | GR45: 1.66 | GS45: 1.66 | GT45: 1.66 | GU45: 1.66 | GV45: 1.66 | GW45: 1.66 | GX45: 1.66 | GY45: 1.66 | GZ45: 1.66 | HA45: 1.66 | HB45: 1.66 | HC45: 1.66 | HD45: 1.66 | HE45: 1.66 | HF45: 1.66 | HG45: 1.66 | HH45: 1.66 | HI45: 1.66 | HJ45: 1.66 | HK45: 1.66 | HL45: 1.66 | HM45: 1.66 | HN45: 1.66 | HO45: 1.66 | HP45: 1.66 | HQ45: 1.66 | HR45: 1.66 | HS45: 1.66 | HT45: 1.66 | HU45: 1.66 | HV45: 1.66 | HW45: 1.66 | HX45: 1.66 | HY45: 1.66 | HZ45: 1.66 | IA45: 1.66 | IB45: 1.66 | IC45: 1.66 | ID45: 1.66 | IE45: 1.66 | IF45: 1.66 | IG45: 1.66 | IH45: 1.66 | II45: 1.66 | IJ45: 1.66 | IK45: 1.66 | IL45: 1.66 | IM45: 1.66 | IN45: 1.66 | IO45: 1.66 | IP45: 1.66 | IQ45: 1.66 | IR45: 1.66 | IS45: 1.66 | IT45: 1.66 | IU45: 1.66 | IV45: 1.66 | IW45: 1.66 | IX45: 1.66 | IY45: 1.66 | IZ45: 1.66 | JA45: 1.66 | JB45: 1.66 | JC45: 1.66 | JD45: 1.66 | JE45: 1.66 | JF45: 1.66 | JG45: 1.66 | JH45: 1.66 | JI45: 1.66 | JJ45: 1.66 | JK45: 1.66 | JL45: 1.66 | JM45: 1.66 | JN45: 1.66 | JO45: 1.66 | JP45: 1.66 | JQ45: 1.66 | JR45: 1.66
A46: Stratum B (Soil layer below Stratum A):
B47: Stratum B SCS soil type | E47: SCS_B | FE47: Not Present | FF47: Not Present | FG47: Not Present | FH47: Not Present | FI47: Not Present | FJ47: Not Present | FK47: Not Present | FL47: Not Present | FM47: Not Present | FN47: Not Present | FO47: Not Present | FP47: Not Present | FQ47: Not Present | FR47: Not Present | FS47: Not Present | FT47: Not Present | FU47: Not Present | FV47: Not Present | FW47: Not Present | FX47: Not Present | FY47: Not Present | FZ47: Not Present | GA47: Not Present | GB47: Not Present | GC47: Not Present | GD47: Not Present | GE47: Not Present | GF47: Not Present | GG47: Not Present | GH47: Not Present | GI47: Not Present | GJ47: Not Present | GK47: Not Present | GL47: Not Present | GM47: Not Present | GN47: Not Present | GO47: Not Present | GP47: Not Present | GQ47: Not Present | GR47: Not Present | GS47: Not Present | GT47: Not Present | GU47: Not Present | GV47: Not Present | GW47: Not Present | GX47: Not Present | GY47: Not Present | GZ47: Not Present | HA47: Not Present | HB47: Not Present | HC47: Not Present | HD47: Not Present | HE47: Not Present | HF47: Not Present | HG47: Not Present | HH47: Not Present | HI47: Not Present | HJ47: Not Present | HK47: Not Present | HL47: Not Present | HM47: Not Present | HN47: Not Present | HO47: Not Present | HP47: Not Present | HQ47: Not Present | HR47: Not Present | HS47: Not Present | HT47: Not Present | HU47: Not Present | HV47: Not Present | HW47: Not Present | HX47: Not Present | HY47: Not Present | HZ47: Not Present | IA47: Not Present | IB47: Not Present | IC47: Not Present | ID47: Not Present | IE47: Not Present | IF47: Not Present | IG47: Not Present | IH47: Not Present | II47: Not Present | IJ47: Not Present | IK47: Not Present | IL47: Not Present | IM47: Not Present | IN47: Not Present | IO47: Not Present | IP47: Not Present | IQ47: Not Present | IR47: Not Present | IS47: Not Present | IT47: Not Present | IU47: Not Present | IV47: Not Present | IW47: Not Present | IX47: Not Present | IY47: Not Present | IZ47: Not Present | JA47: Not Present | JB47: Not Present | JC47: Not Present | JD47: Not Present | JE47: Not Present | JF47: Not Present | JG47: Not Present | JH47: Not Present | JI47: Not Present | JJ47: Not Present | JK47: Not Present | JL47: Not Present | JM47: Not Present | JN47: Not Present | JO47: Not Present | JP47: Not Present | JQ47: Not Present | JR47: Not Present
B48: Stratum B thickness | D48: (m) | E48: hSB | FE48: 0 | FF48: 0 | FG48: 0 | FH48: 0 | FI48: 0 | FJ48: 0 | FK48: 0 | FL48: 0 | FM48: 0 | FN48: 0 | FO48: 0 | FP48: 0 | FQ48: 0 | FR48: 0 | FS48: 0 | FT48: 0 | FU48: 0 | FV48: 0 | FW48: 0 | FX48: 0 | FY48: 0 | FZ48: 0 | GA48: 0 | GB48: 0 | GC48: 0 | GD48: 0 | GE48: 0 | GF48: 0 | GG48: 0 | GH48: 0 | GI48: 0 | GJ48: 0 | GK48: 0 | GL48: 0 | GM48: 0 | GN48: 0 | GO48: 0 | GP48: 0 | GQ48: 0 | GR48: 0 | GS48: 0 | GT48: 0 | GU48: 0 | GV48: 0 | GW48: 0 | GX48: 0 | GY48: 0 | GZ48: 0 | HA48: 0 | HB48: 0 | HC48: 0 | HD48: 0 | HE48: 0 | HF48: 0 | HG48: 0 | HH48: 0 | HI48: 0 | HJ48: 0 | HK48: 0 | HL48: 0 | HM48: 0 | HN48: 0 | HO48: 0 | HP48: 0 | HQ48: 0 | HR48: 0 | HS48: 0 | HT48: 0 | HU48: 0 | HV48: 0 | HW48: 0 | HX48: 0 | HY48: 0 | HZ48: 0 | IA48: 0 | IB48: 0 | IC48: 0 | ID48: 0 | IE48: 0 | IF48: 0 | IG48: 0 | IH48: 0 | II48: 0 | IJ48: 0 | IK48: 0 | IL48: 0 | IM48: 0 | IN48: 0 | IO48: 0 | IP48: 0 | IQ48: 0 | IR48: 0 | IS48: 0 | IT48: 0 | IU48: 0 | IV48: 0 | IW48: 0 | IX48: 0 | IY48: 0 | IZ48: 0 | JA48: 0 | JB48: 0 | JC48: 0 | JD48: 0 | JE48: 0 | JF48: 0 | JG48: 0 | JH48: 0 | JI48: 0 | JJ48: 0 | JK48: 0 | JL48: 0 | JM48: 0 | JN48: 0 | JO48: 0 | JP48: 0 | JQ48: 0 | JR48: 0
C49: Stratum B total porosity | D49: (-) | E49: nSB
C50: Stratum B water-filled porosity | D50: (-) | E50: nwSB
C51: Stratum B bulk density | D51: (g/cm3) | E51: rhoSB
A52: Stratum C (Soil layer below Stratum B):
B53: Stratum C SCS soil type | E53: SCS_C | FE53: Not Present | FF53: Not Present | FG53: Not Present | FH53: Not Present | FI53: Not Present | FJ53: Not Present | FK53: Not Present | FL53: Not Present | FM53: Not Present | FN53: Not Present | FO53: Not Present | FP53: Not Present | FQ53: Not Present | FR53: Not Present | FS53: Not Present | FT53: Not Present | FU53: Not Present | FV53: Not Present | FW53: Not Present | FX53: Not Present | FY53: Not Present | FZ53: Not Present | GA53: Not Present | GB53: Not Present | GC53: Not Present | GD53: Not Present | GE53: Not Present | GF53: Not Present | GG53: Not Present | GH53: Not Present | GI53: Not Present | GJ53: Not Present | GK53: Not Present | GL53: Not Present | GM53: Not Present | GN53: Not Present | GO53: Not Present | GP53: Not Present | GQ53: Not Present | GR53: Not Present | GS53: Not Present | GT53: Not Present | GU53: Not Present | GV53: Not Present | GW53: Not Present | GX53: Not Present | GY53: Not Present | GZ53: Not Present | HA53: Not Present | HB53: Not Present | HC53: Not Present | HD53: Not Present | HE53: Not Present | HF53: Not Present | HG53: Not Present | HH53: Not Present | HI53: Not Present | HJ53: Not Present | HK53: Not Present | HL53: Not Present | HM53: Not Present | HN53: Not Present | HO53: Not Present | HP53: Not Present | HQ53: Not Present | HR53: Not Present | HS53: Not Present | HT53: Not Present | HU53: Not Present | HV53: Not Present | HW53: Not Present | HX53: Not Present | HY53: Not Present | HZ53: Not Present | IA53: Not Present | IB53: Not Present | IC53: Not Present | ID53: Not Present | IE53: Not Present | IF53: Not Present | IG53: Not Present | IH53: Not Present | II53: Not Present | IJ53: Not Present | IK53: Not Present | IL53: Not Present | IM53: Not Present | IN53: Not Present | IO53: Not Present | IP53: Not Present | IQ53: Not Present | IR53: Not Present | IS53: Not Present | IT53: Not Present | IU53: Not Present | IV53: Not Present | IW53: Not Present | IX53: Not Present | IY53: Not Present | IZ53: Not Present | JA53: Not Present | JB53: Not Present | JC53: Not Present | JD53: Not Present | JE53: Not Present | JF53: Not Present | JG53: Not Present | JH53: Not Present | JI53: Not Present | JJ53: Not Present | JK53: Not Present | JL53: Not Present | JM53: Not Present | JN53: Not Present | JO53: Not Present | JP53: Not Present | JQ53: Not Present | JR53: Not Present
B54: Stratum C thickness | D54: (m) | E54: hSC | FE54: 0 | FF54: 0 | FG54: 0 | FH54: 0 | FI54: 0 | FJ54: 0 | FK54: 0 | FL54: 0 | FM54: 0 | FN54: 0 | FO54: 0 | FP54: 0 | FQ54: 0 | FR54: 0 | FS54: 0 | FT54: 0 | FU54: 0 | FV54: 0 | FW54: 0 | FX54: 0 | FY54: 0 | FZ54: 0 | GA54: 0 | GB54: 0 | GC54: 0 | GD54: 0 | GE54: 0 | GF54: 0 | GG54: 0 | GH54: 0 | GI54: 0 | GJ54: 0 | GK54: 0 | GL54: 0 | GM54: 0 | GN54: 0 | GO54: 0 | GP54: 0 | GQ54: 0 | GR54: 0 | GS54: 0 | GT54: 0 | GU54: 0 | GV54: 0 | GW54: 0 | GX54: 0 | GY54: 0 | GZ54: 0 | HA54: 0 | HB54: 0 | HC54: 0 | HD54: 0 | HE54: 0 | HF54: 0 | HG54: 0 | HH54: 0 | HI54: 0 | HJ54: 0 | HK54: 0 | HL54: 0 | HM54: 0 | HN54: 0 | HO54: 0 | HP54: 0 | HQ54: 0 | HR54: 0 | HS54: 0 | HT54: 0 | HU54: 0 | HV54: 0 | HW54: 0 | HX54: 0 | HY54: 0 | HZ54: 0 | IA54: 0 | IB54: 0 | IC54: 0 | ID54: 0 | IE54: 0 | IF54: 0 | IG54: 0 | IH54: 0 | II54: 0 | IJ54: 0 | IK54: 0 | IL54: 0 | IM54: 0 | IN54: 0 | IO54: 0 | IP54: 0 | IQ54: 0 | IR54: 0 | IS54: 0 | IT54: 0 | IU54: 0 | IV54: 0 | IW54: 0 | IX54: 0 | IY54: 0 | IZ54: 0 | JA54: 0 | JB54: 0 | JC54: 0 | JD54: 0 | JE54: 0 | JF54: 0 | JG54: 0 | JH54: 0 | JI54: 0 | JJ54: 0 | JK54: 0 | JL54: 0 | JM54: 0 | JN54: 0 | JO54: 0 | JP54: 0 | JQ54: 0 | JR54: 0
C55: Stratum C total porosity | D55: (-) | E55: nSC
C56: Stratum C water-filled porosity | D56: (-) | E56: nwSC
C57: Stratum C bulk density | D57: (g/cm3) | E57: rhoSC
A58: =IF(Source="Groundwater","Stratum directly above the water table","Stratum containing soil gas sample") -> Stratum directly above the water table
C59: Stratum A, B, or C | E59: src_soil | FE59: Stratum A | FF59: Stratum A | FG59: Stratum A | FH59: Stratum A | FI59: Stratum A | FJ59: Stratum A | FK59: Stratum A | FL59: Stratum A | FM59: Stratum A | FN59: Stratum A | FO59: Stratum A | FP59: Stratum A | FQ59: Stratum A | FR59: Stratum A | FS59: Stratum A | FT59: Stratum A | FU59: Stratum A | FV59: Stratum A | FW59: Stratum A | FX59: Stratum A | FY59: Stratum A | FZ59: Stratum A | GA59: Stratum A | GB59: Stratum A | GC59: Stratum A | GD59: Stratum A | GE59: Stratum A | GF59: Stratum A | GG59: Stratum A | GH59: Stratum A | GI59: Stratum A | GJ59: Stratum A | GK59: Stratum A | GL59: Stratum A | GM59: Stratum A | GN59: Stratum A | GO59: Stratum A | GP59: Stratum A | GQ59: Stratum A | GR59: Stratum A | GS59: Stratum A | GT59: Stratum A | GU59: Stratum A | GV59: Stratum A | GW59: Stratum A | GX59: Stratum A | GY59: Stratum A | GZ59: Stratum A | HA59: Stratum A | HB59: Stratum A | HC59: Stratum A | HD59: Stratum A | HE59: Stratum A | HF59: Stratum A | HG59: Stratum A | HH59: Stratum A | HI59: Stratum A | HJ59: Stratum A | HK59: Stratum A | HL59: Stratum A | HM59: Stratum A | HN59: Stratum A | HO59: Stratum A | HP59: Stratum A | HQ59: Stratum A | HR59: Stratum A | HS59: Stratum A | HT59: Stratum A | HU59: Stratum A | HV59: Stratum A | HW59: Stratum A | HX59: Stratum A | HY59: Stratum A | HZ59: Stratum A | IA59: Stratum A | IB59: Stratum A | IC59: Stratum A | ID59: Stratum A | IE59: Stratum A | IF59: Stratum A | IG59: Stratum A | IH59: Stratum A | II59: Stratum A | IJ59: Stratum A | IK59: Stratum A | IL59: Stratum A | IM59: Stratum A | IN59: Stratum A | IO59: Stratum A | IP59: Stratum A | IQ59: Stratum A | IR59: Stratum A | IS59: Stratum A | IT59: Stratum A | IU59: Stratum A | IV59: Stratum A | IW59: Stratum A | IX59: Stratum A | IY59: Stratum A | IZ59: Stratum A | JA59: Stratum A | JB59: Stratum A | JC59: Stratum A | JD59: Stratum A | JE59: Stratum A | JF59: Stratum A | JG59: Stratum A | JH59: Stratum A | JI59: Stratum A | JJ59: Stratum A | JK59: Stratum A | JL59: Stratum A | JM59: Stratum A | JN59: Stratum A | JO59: Stratum A | JP59: Stratum A | JQ59: Stratum A | JR59: Stratum A
C60: =IF(Source="Groundwater","Height of capillary fringe","") -> Height of capillary fringe | D60: =IF(Source="Groundwater","(m)","") -> (m) | E60: =IF(Source="Groundwater","hcz","") -> hcz | FE60: 0.1704545455 | FF60: 0.1704545455 | FG60: 0.1704545455 | FH60: 0.1704545455 | FI60: 0.1704545455 | FJ60: 0.1704545455 | FK60: 0.1704545455 | FL60: 0.1704545455 | FM60: 0.1704545455 | FN60: 0.1704545455 | FO60: 0.1704545455 | FP60: 0.1704545455 | FQ60: 0.1704545455 | FR60: 0.1704545455 | FS60: 0.1704545455 | FT60: 0.1704545455 | FU60: 0.1704545455 | FV60: 0.1704545455 | FW60: 0.1704545455 | FX60: 0.1704545455 | FY60: 0.1704545455 | FZ60: 0.1704545455 | GA60: 0.1704545455 | GB60: 0.1704545455 | GC60: 0.1704545455 | GD60: 0.1704545455 | GE60: 0.1704545455 | GF60: 0.1704545455 | GG60: 0.1704545455 | GH60: 0.1704545455 | GI60: 0.1704545455 | GJ60: 0.1704545455 | GK60: 0.1704545455 | GL60: 0.1704545455 | GM60: 0.1704545455 | GN60: 0.1704545455 | GO60: 0.1704545455 | GP60: 0.1704545455 | GQ60: 0.1704545455 | GR60: 0.1704545455 | GS60: 0.1704545455 | GT60: 0.1704545455 | GU60: 0.1704545455 | GV60: 0.1704545455 | GW60: 0.1704545455 | GX60: 0.1704545455 | GY60: 0.1704545455 | GZ60: 0.1704545455 | HA60: 0.1704545455 | HB60: 0.1704545455 | HC60: 0.1704545455 | HD60: 0.1704545455 | HE60: 0.1704545455 | HF60: 0.1704545455 | HG60: 0.1704545455 | HH60: 0.1704545455 | HI60: 0.1704545455 | HJ60: 0.1704545455 | HK60: 0.1704545455 | HL60: 0.1704545455 | HM60: 0.1704545455 | HN60: 0.1704545455 | HO60: 0.1704545455 | HP60: 0.1704545455 | HQ60: 0.1704545455 | HR60: 0.1704545455 | HS60: 0.1704545455 | HT60: 0.1704545455 | HU60: 0.1704545455 | HV60: 0.1704545455 | HW60: 0.1704545455 | HX60: 0.1704545455 | HY60: 0.1704545455 | HZ60: 0.1704545455 | IA60: 0.1704545455 | IB60: 0.1704545455 | IC60: 0.1704545455 | ID60: 0.1704545455 | IE60: 0.1704545455 | IF60: 0.1704545455 | IG60: 0.1704545455 | IH60: 0.1704545455 | II60: 0.1704545455 | IJ60: 0.1704545455 | IK60: 0.1704545455 | IL60: 0.1704545455 | IM60: 0.1704545455 | IN60: 0.1704545455 | IO60: 0.1704545455 | IP60: 0.1704545455 | IQ60: 0.1704545455 | IR60: 0.1704545455 | IS60: 0.1704545455 | IT60: 0.1704545455 | IU60: 0.1704545455 | IV60: 0.1704545455 | IW60: 0.1704545455 | IX60: 0.1704545455 | IY60: 0.1704545455 | IZ60: 0.1704545455 | JA60: 0.1704545455 | JB60: 0.1704545455 | JC60: 0.1704545455 | JD60: 0.1704545455 | JE60: 0.1704545455 | JF60: 0.1704545455 | JG60: 0.1704545455 | JH60: 0.1704545455 | JI60: 0.1704545455 | JJ60: 0.1704545455 | JK60: 0.1704545455 | JL60: 0.1704545455 | JM60: 0.1704545455 | JN60: 0.1704545455 | JO60: 0.1704545455 | JP60: 0.1704545455 | JQ60: 0.1704545455 | JR60: 0.1704545455
C61: =IF(Source="Groundwater","Capillary zone total porosity","") -> Capillary zone total porosity | D61: =IF(Source="Groundwater","(-)","") -> (-) | E61: =IF(Source="Groundwater","ncz","") -> ncz | FE61: 0.375 | FF61: 0.375 | FG61: 0.375 | FH61: 0.375 | FI61: 0.375 | FJ61: 0.375 | FK61: 0.375 | FL61: 0.375 | FM61: 0.375 | FN61: 0.375 | FO61: 0.375 | FP61: 0.375 | FQ61: 0.375 | FR61: 0.375 | FS61: 0.375 | FT61: 0.375 | FU61: 0.375 | FV61: 0.375 | FW61: 0.375 | FX61: 0.375 | FY61: 0.375 | FZ61: 0.375 | GA61: 0.375 | GB61: 0.375 | GC61: 0.375 | GD61: 0.375 | GE61: 0.375 | GF61: 0.375 | GG61: 0.375 | GH61: 0.375 | GI61: 0.375 | GJ61: 0.375 | GK61: 0.375 | GL61: 0.375 | GM61: 0.375 | GN61: 0.375 | GO61: 0.375 | GP61: 0.375 | GQ61: 0.375 | GR61: 0.375 | GS61: 0.375 | GT61: 0.375 | GU61: 0.375 | GV61: 0.375 | GW61: 0.375 | GX61: 0.375 | GY61: 0.375 | GZ61: 0.375 | HA61: 0.375 | HB61: 0.375 | HC61: 0.375 | HD61: 0.375 | HE61: 0.375 | HF61: 0.375 | HG61: 0.375 | HH61: 0.375 | HI61: 0.375 | HJ61: 0.375 | HK61: 0.375 | HL61: 0.375 | HM61: 0.375 | HN61: 0.375 | HO61: 0.375 | HP61: 0.375 | HQ61: 0.375 | HR61: 0.375 | HS61: 0.375 | HT61: 0.375 | HU61: 0.375 | HV61: 0.375 | HW61: 0.375 | HX61: 0.375 | HY61: 0.375 | HZ61: 0.375 | IA61: 0.375 | IB61: 0.375 | IC61: 0.375 | ID61: 0.375 | IE61: 0.375 | IF61: 0.375 | IG61: 0.375 | IH61: 0.375 | II61: 0.375 | IJ61: 0.375 | IK61: 0.375 | IL61: 0.375 | IM61: 0.375 | IN61: 0.375 | IO61: 0.375 | IP61: 0.375 | IQ61: 0.375 | IR61: 0.375 | IS61: 0.375 | IT61: 0.375 | IU61: 0.375 | IV61: 0.375 | IW61: 0.375 | IX61: 0.375 | IY61: 0.375 | IZ61: 0.375 | JA61: 0.375 | JB61: 0.375 | JC61: 0.375 | JD61: 0.375 | JE61: 0.375 | JF61: 0.375 | JG61: 0.375 | JH61: 0.375 | JI61: 0.375 | JJ61: 0.375 | JK61: 0.375 | JL61: 0.375 | JM61: 0.375 | JN61: 0.375 | JO61: 0.375 | JP61: 0.375 | JQ61: 0.375 | JR61: 0.375
C62: =IF(Source="Groundwater","Capillary zone water filled porosity","") -> Capillary zone water filled porosity | D62: =IF(Source="Groundwater","(-)","") -> (-) | E62: =IF(Source="Groundwater","nwcz","") -> nwcz | FE62: 0.2532581126 | FF62: 0.2532581126 | FG62: 0.2532581126 | FH62: 0.2532581126 | FI62: 0.2532581126 | FJ62: 0.2532581126 | FK62: 0.2532581126 | FL62: 0.2532581126 | FM62: 0.2532581126 | FN62: 0.2532581126 | FO62: 0.2532581126 | FP62: 0.2532581126 | FQ62: 0.2532581126 | FR62: 0.2532581126 | FS62: 0.2532581126 | FT62: 0.2532581126 | FU62: 0.2532581126 | FV62: 0.2532581126 | FW62: 0.2532581126 | FX62: 0.2532581126 | FY62: 0.2532581126 | FZ62: 0.2532581126 | GA62: 0.2532581126 | GB62: 0.2532581126 | GC62: 0.2532581126 | GD62: 0.2532581126 | GE62: 0.2532581126 | GF62: 0.2532581126 | GG62: 0.2532581126 | GH62: 0.2532581126 | GI62: 0.2532581126 | GJ62: 0.2532581126 | GK62: 0.2532581126 | GL62: 0.2532581126 | GM62: 0.2532581126 | GN62: 0.2532581126 | GO62: 0.2532581126 | GP62: 0.2532581126 | GQ62: 0.2532581126 | GR62: 0.2532581126 | GS62: 0.2532581126 | GT62: 0.2532581126 | GU62: 0.2532581126 | GV62: 0.2532581126 | GW62: 0.2532581126 | GX62: 0.2532581126 | GY62: 0.2532581126 | GZ62: 0.2532581126 | HA62: 0.2532581126 | HB62: 0.2532581126 | HC62: 0.2532581126 | HD62: 0.2532581126 | HE62: 0.2532581126 | HF62: 0.2532581126 | HG62: 0.2532581126 | HH62: 0.2532581126 | HI62: 0.2532581126 | HJ62: 0.2532581126 | HK62: 0.2532581126 | HL62: 0.2532581126 | HM62: 0.2532581126 | HN62: 0.2532581126 | HO62: 0.2532581126 | HP62: 0.2532581126 | HQ62: 0.2532581126 | HR62: 0.2532581126 | HS62: 0.2532581126 | HT62: 0.2532581126 | HU62: 0.2532581126 | HV62: 0.2532581126 | HW62: 0.2532581126 | HX62: 0.2532581126 | HY62: 0.2532581126 | HZ62: 0.2532581126 | IA62: 0.2532581126 | IB62: 0.2532581126 | IC62: 0.2532581126 | ID62: 0.2532581126 | IE62: 0.2532581126 | IF62: 0.2532581126 | IG62: 0.2532581126 | IH62: 0.2532581126 | II62: 0.2532581126 | IJ62: 0.2532581126 | IK62: 0.2532581126 | IL62: 0.2532581126 | IM62: 0.2532581126 | IN62: 0.2532581126 | IO62: 0.2532581126 | IP62: 0.2532581126 | IQ62: 0.2532581126 | IR62: 0.2532581126 | IS62: 0.2532581126 | IT62: 0.2532581126 | IU62: 0.2532581126 | IV62: 0.2532581126 | IW62: 0.2532581126 | IX62: 0.2532581126 | IY62: 0.2532581126 | IZ62: 0.2532581126 | JA62: 0.2532581126 | JB62: 0.2532581126 | JC62: 0.2532581126 | JD62: 0.2532581126 | JE62: 0.2532581126 | JF62: 0.2532581126 | JG62: 0.2532581126 | JH62: 0.2532581126 | JI62: 0.2532581126 | JJ62: 0.2532581126 | JK62: 0.2532581126 | JL62: 0.2532581126 | JM62: 0.2532581126 | JN62: 0.2532581126 | JO62: 0.2532581126 | JP62: 0.2532581126 | JQ62: 0.2532581126 | JR62: 0.2532581126
A63: Exposure Parameters: | D63: Units | E63: Symbol | FE63: Value | FF63: Value | FG63: Value | FH63: Value | FI63: Value | FJ63: Value | FK63: Value | FL63: Value | FM63: Value | FN63: Value | FO63: Value | FP63: Value | FQ63: Value | FR63: Value | FS63: Value | FT63: Value | FU63: Value | FV63: Value | FW63: Value | FX63: Value | FY63: Value | FZ63: Value | GA63: Value | GB63: Value | GC63: Value | GD63: Value | GE63: Value | GF63: Value | GG63: Value | GH63: Value | GI63: Value | GJ63: Value | GK63: Value | GL63: Value | GM63: Value | GN63: Value | GO63: Value | GP63: Value | GQ63: Value | GR63: Value | GS63: Value | GT63: Value | GU63: Value | GV63: Value | GW63: Value | GX63: Value | GY63: Value | GZ63: Value | HA63: Value | HB63: Value | HC63: Value | HD63: Value | HE63: Value | HF63: Value | HG63: Value | HH63: Value | HI63: Value | HJ63: Value | HK63: Value | HL63: Value | HM63: Value | HN63: Value | HO63: Value | HP63: Value | HQ63: Value | HR63: Value | HS63: Value | HT63: Value | HU63: Value | HV63: Value | HW63: Value | HX63: Value | HY63: Value | HZ63: Value | IA63: Value | IB63: Value | IC63: Value | ID63: Value | IE63: Value | IF63: Value | IG63: Value | IH63: Value | II63: Value | IJ63: Value | IK63: Value | IL63: Value | IM63: Value | IN63: Value | IO63: Value | IP63: Value | IQ63: Value | IR63: Value | IS63: Value | IT63: Value | IU63: Value | IV63: Value | IW63: Value | IX63: Value | IY63: Value | IZ63: Value | JA63: Value | JB63: Value | JC63: Value | JD63: Value | JE63: Value | JF63: Value | JG63: Value | JH63: Value | JI63: Value | JJ63: Value | JK63: Value | JL63: Value | JM63: Value | JN63: Value | JO63: Value | JP63: Value | JQ63: Value | JR63: Value
B64: Target risk for carcinogens | D64: (-) | E64: Target_CR | FE64: 1e-06 | FF64: 1e-06 | FG64: 1e-06 | FH64: 1e-06 | FI64: 1e-06 | FJ64: 1e-06 | FK64: 1e-06 | FL64: 1e-06 | FM64: 1e-06 | FN64: 1e-06 | FO64: 1e-06 | FP64: 1e-06 | FQ64: 1e-06 | FR64: 1e-06 | FS64: 1e-06 | FT64: 1e-06 | FU64: 1e-06 | FV64: 1e-06 | FW64: 1e-06 | FX64: 1e-06 | FY64: 1e-06 | FZ64: 1e-06 | GA64: 1e-06 | GB64: 1e-06 | GC64: 1e-06 | GD64: 1e-06 | GE64: 1e-06 | GF64: 1e-06 | GG64: 1e-06 | GH64: 1e-06 | GI64: 1e-06 | GJ64: 1e-06 | GK64: 1e-06 | GL64: 1e-06 | GM64: 1e-06 | GN64: 1e-06 | GO64: 1e-06 | GP64: 1e-06 | GQ64: 1e-06 | GR64: 1e-06 | GS64: 1e-06 | GT64: 1e-06 | GU64: 1e-06 | GV64: 1e-06 | GW64: 1e-06 | GX64: 1e-06 | GY64: 1e-06 | GZ64: 1e-06 | HA64: 1e-06 | HB64: 1e-06 | HC64: 1e-06 | HD64: 1e-06 | HE64: 1e-06 | HF64: 1e-06 | HG64: 1e-06 | HH64: 1e-06 | HI64: 1e-06 | HJ64: 1e-06 | HK64: 1e-06 | HL64: 1e-06 | HM64: 1e-06 | HN64: 1e-06 | HO64: 1e-06 | HP64: 1e-06 | HQ64: 1e-06 | HR64: 1e-06 | HS64: 1e-06 | HT64: 1e-06 | HU64: 1e-06 | HV64: 1e-06 | HW64: 1e-06 | HX64: 1e-06 | HY64: 1e-06 | HZ64: 1e-06 | IA64: 1e-06 | IB64: 1e-06 | IC64: 1e-06 | ID64: 1e-06 | IE64: 1e-06 | IF64: 1e-06 | IG64: 1e-06 | IH64: 1e-06 | II64: 1e-06 | IJ64: 1e-06 | IK64: 1e-06 | IL64: 1e-06 | IM64: 1e-06 | IN64: 1e-06 | IO64: 1e-06 | IP64: 1e-06 | IQ64: 1e-06 | IR64: 1e-06 | IS64: 1e-06 | IT64: 1e-06 | IU64: 1e-06 | IV64: 1e-06 | IW64: 1e-06 | IX64: 1e-06 | IY64: 1e-06 | IZ64: 1e-06 | JA64: 1e-06 | JB64: 1e-06 | JC64: 1e-06 | JD64: 1e-06 | JE64: 1e-06 | JF64: 1e-06 | JG64: 1e-06 | JH64: 1e-06 | JI64: 1e-06 | JJ64: 1e-06 | JK64: 1e-06 | JL64: 1e-06 | JM64: 1e-06 | JN64: 1e-06 | JO64: 1e-06 | JP64: 1e-06 | JQ64: 1e-06 | JR64: 1e-06
B65: Target hazard quotient for non-carcinogens | D65: (-) | E65: Target_HQ | FE65: 1 | FF65: 1 | FG65: 1 | FH65: 1 | FI65: 1 | FJ65: 1 | FK65: 1 | FL65: 1 | FM65: 1 | FN65: 1 | FO65: 1 | FP65: 1 | FQ65: 1 | FR65: 1 | FS65: 1 | FT65: 1 | FU65: 1 | FV65: 1 | FW65: 1 | FX65: 1 | FY65: 1 | FZ65: 1 | GA65: 1 | GB65: 1 | GC65: 1 | GD65: 1 | GE65: 1 | GF65: 1 | GG65: 1 | GH65: 1 | GI65: 1 | GJ65: 1 | GK65: 1 | GL65: 1 | GM65: 1 | GN65: 1 | GO65: 1 | GP65: 1 | GQ65: 1 | GR65: 1 | GS65: 1 | GT65: 1 | GU65: 1 | GV65: 1 | GW65: 1 | GX65: 1 | GY65: 1 | GZ65: 1 | HA65: 1 | HB65: 1 | HC65: 1 | HD65: 1 | HE65: 1 | HF65: 1 | HG65: 1 | HH65: 1 | HI65: 1 | HJ65: 1 | HK65: 1 | HL65: 1 | HM65: 1 | HN65: 1 | HO65: 1 | HP65: 1 | HQ65: 1 | HR65: 1 | HS65: 1 | HT65: 1 | HU65: 1 | HV65: 1 | HW65: 1 | HX65: 1 | HY65: 1 | HZ65: 1 | IA65: 1 | IB65: 1 | IC65: 1 | ID65: 1 | IE65: 1 | IF65: 1 | IG65: 1 | IH65: 1 | II65: 1 | IJ65: 1 | IK65: 1 | IL65: 1 | IM65: 1 | IN65: 1 | IO65: 1 | IP65: 1 | IQ65: 1 | IR65: 1 | IS65: 1 | IT65: 1 | IU65: 1 | IV65: 1 | IW65: 1 | IX65: 1 | IY65: 1 | IZ65: 1 | JA65: 1 | JB65: 1 | JC65: 1 | JD65: 1 | JE65: 1 | JF65: 1 | JG65: 1 | JH65: 1 | JI65: 1 | JJ65: 1 | JK65: 1 | JL65: 1 | JM65: 1 | JN65: 1 | JO65: 1 | JP65: 1 | JQ65: 1 | JR65: 1
B66: Exposure Scenario | E66: Scenario | FE66: Residential | FF66: Residential | FG66: Residential | FH66: Residential | FI66: Residential | FJ66: Residential | FK66: Residential | FL66: Residential | FM66: Residential | FN66: Residential | FO66: Residential | FP66: Residential | FQ66: Residential | FR66: Residential | FS66: Residential | FT66: Residential | FU66: Residential | FV66: Residential | FW66: Residential | FX66: Residential | FY66: Residential | FZ66: Residential | GA66: Residential | GB66: Residential | GC66: Residential | GD66: Residential | GE66: Residential | GF66: Residential | GG66: Residential | GH66: Residential | GI66: Residential | GJ66: Residential | GK66: Residential | GL66: Residential | GM66: Residential | GN66: Residential | GO66: Residential | GP66: Residential | GQ66: Residential | GR66: Residential | GS66: Residential | GT66: Residential | GU66: Residential | GV66: Residential | GW66: Residential | GX66: Residential | GY66: Residential | GZ66: Residential | HA66: Residential | HB66: Residential | HC66: Residential | HD66: Residential | HE66: Residential | HF66: Residential | HG66: Residential | HH66: Residential | HI66: Residential | HJ66: Residential | HK66: Residential | HL66: Residential | HM66: Residential | HN66: Residential | HO66: Residential | HP66: Residential | HQ66: Residential | HR66: Residential | HS66: Residential | HT66: Residential | HU66: Residential | HV66: Residential | HW66: Residential | HX66: Residential | HY66: Residential | HZ66: Residential | IA66: Residential | IB66: Residential | IC66: Residential | ID66: Residential | IE66: Residential | IF66: Residential | IG66: Residential | IH66: Residential | II66: Residential | IJ66: Residential | IK66: Residential | IL66: Residential | IM66: Residential | IN66: Residential | IO66: Residential | IP66: Residential | IQ66: Residential | IR66: Residential | IS66: Residential | IT66: Residential | IU66: Residential | IV66: Residential | IW66: Residential | IX66: Residential | IY66: Residential | IZ66: Residential | JA66: Residential | JB66: Residential | JC66: Residential | JD66: Residential | JE66: Residential | JF66: Residential | JG66: Residential | JH66: Residential | JI66: Residential | JJ66: Residential | JK66: Residential | JL66: Residential | JM66: Residential | JN66: Residential | JO66: Residential | JP66: Residential | JQ66: Residential | JR66: Residential
B67: Averaging time for carcinogens | D67: (yrs) | E67: ATc | FE67: 70 | FF67: 70 | FG67: 70 | FH67: 70 | FI67: 70 | FJ67: 70 | FK67: 70 | FL67: 70 | FM67: 70 | FN67: 70 | FO67: 70 | FP67: 70 | FQ67: 70 | FR67: 70 | FS67: 70 | FT67: 70 | FU67: 70 | FV67: 70 | FW67: 70 | FX67: 70 | FY67: 70 | FZ67: 70 | GA67: 70 | GB67: 70 | GC67: 70 | GD67: 70 | GE67: 70 | GF67: 70 | GG67: 70 | GH67: 70 | GI67: 70 | GJ67: 70 | GK67: 70 | GL67: 70 | GM67: 70 | GN67: 70 | GO67: 70 | GP67: 70 | GQ67: 70 | GR67: 70 | GS67: 70 | GT67: 70 | GU67: 70 | GV67: 70 | GW67: 70 | GX67: 70 | GY67: 70 | GZ67: 70 | HA67: 70 | HB67: 70 | HC67: 70 | HD67: 70 | HE67: 70 | HF67: 70 | HG67: 70 | HH67: 70 | HI67: 70 | HJ67: 70 | HK67: 70 | HL67: 70 | HM67: 70 | HN67: 70 | HO67: 70 | HP67: 70 | HQ67: 70 | HR67: 70 | HS67: 70 | HT67: 70 | HU67: 70 | HV67: 70 | HW67: 70 | HX67: 70 | HY67: 70 | HZ67: 70 | IA67: 70 | IB67: 70 | IC67: 70 | ID67: 70 | IE67: 70 | IF67: 70 | IG67: 70 | IH67: 70 | II67: 70 | IJ67: 70 | IK67: 70 | IL67: 70 | IM67: 70 | IN67: 70 | IO67: 70 | IP67: 70 | IQ67: 70 | IR67: 70 | IS67: 70 | IT67: 70 | IU67: 70 | IV67: 70 | IW67: 70 | IX67: 70 | IY67: 70 | IZ67: 70 | JA67: 70 | JB67: 70 | JC67: 70 | JD67: 70 | JE67: 70 | JF67: 70 | JG67: 70 | JH67: 70 | JI67: 70 | JJ67: 70 | JK67: 70 | JL67: 70 | JM67: 70 | JN67: 70 | JO67: 70 | JP67: 70 | JQ67: 70 | JR67: 70
B68: Averaging time for non-carcinogens | D68: (yrs) | E68: ATnc | FE68: 26 | FF68: 26 | FG68: 26 | FH68: 26 | FI68: 26 | FJ68: 26 | FK68: 26 | FL68: 26 | FM68: 26 | FN68: 26 | FO68: 26 | FP68: 26 | FQ68: 26 | FR68: 26 | FS68: 26 | FT68: 26 | FU68: 26 | FV68: 26 | FW68: 26 | FX68: 26 | FY68: 26 | FZ68: 26 | GA68: 26 | GB68: 26 | GC68: 26 | GD68: 26 | GE68: 26 | GF68: 26 | GG68: 26 | GH68: 26 | GI68: 26 | GJ68: 26 | GK68: 26 | GL68: 26 | GM68: 26 | GN68: 26 | GO68: 26 | GP68: 26 | GQ68: 26 | GR68: 26 | GS68: 26 | GT68: 26 | GU68: 26 | GV68: 26 | GW68: 26 | GX68: 26 | GY68: 26 | GZ68: 26 | HA68: 26 | HB68: 26 | HC68: 26 | HD68: 26 | HE68: 26 | HF68: 26 | HG68: 26 | HH68: 26 | HI68: 26 | HJ68: 26 | HK68: 26 | HL68: 26 | HM68: 26 | HN68: 26 | HO68: 26 | HP68: 26 | HQ68: 26 | HR68: 26 | HS68: 26 | HT68: 26 | HU68: 26 | HV68: 26 | HW68: 26 | HX68: 26 | HY68: 26 | HZ68: 26 | IA68: 26 | IB68: 26 | IC68: 26 | ID68: 26 | IE68: 26 | IF68: 26 | IG68: 26 | IH68: 26 | II68: 26 | IJ68: 26 | IK68: 26 | IL68: 26 | IM68: 26 | IN68: 26 | IO68: 26 | IP68: 26 | IQ68: 26 | IR68: 26 | IS68: 26 | IT68: 26 | IU68: 26 | IV68: 26 | IW68: 26 | IX68: 26 | IY68: 26 | IZ68: 26 | JA68: 26 | JB68: 26 | JC68: 26 | JD68: 26 | JE68: 26 | JF68: 26 | JG68: 26 | JH68: 26 | JI68: 26 | JJ68: 26 | JK68: 26 | JL68: 26 | JM68: 26 | JN68: 26 | JO68: 26 | JP68: 26 | JQ68: 26 | JR68: 26
B69: Exposure duration | D69: (yrs) | E69: ED | FE69: 26 | FF69: 26 | FG69: 26 | FH69: 26 | FI69: 26 | FJ69: 26 | FK69: 26 | FL69: 26 | FM69: 26 | FN69: 26 | FO69: 26 | FP69: 26 | FQ69: 26 | FR69: 26 | FS69: 26 | FT69: 26 | FU69: 26 | FV69: 26 | FW69: 26 | FX69: 26 | FY69: 26 | FZ69: 26 | GA69: 26 | GB69: 26 | GC69: 26 | GD69: 26 | GE69: 26 | GF69: 26 | GG69: 26 | GH69: 26 | GI69: 26 | GJ69: 26 | GK69: 26 | GL69: 26 | GM69: 26 | GN69: 26 | GO69: 26 | GP69: 26 | GQ69: 26 | GR69: 26 | GS69: 26 | GT69: 26 | GU69: 26 | GV69: 26 | GW69: 26 | GX69: 26 | GY69: 26 | GZ69: 26 | HA69: 26 | HB69: 26 | HC69: 26 | HD69: 26 | HE69: 26 | HF69: 26 | HG69: 26 | HH69: 26 | HI69: 26 | HJ69: 26 | HK69: 26 | HL69: 26 | HM69: 26 | HN69: 26 | HO69: 26 | HP69: 26 | HQ69: 26 | HR69: 26 | HS69: 26 | HT69: 26 | HU69: 26 | HV69: 26 | HW69: 26 | HX69: 26 | HY69: 26 | HZ69: 26 | IA69: 26 | IB69: 26 | IC69: 26 | ID69: 26 | IE69: 26 | IF69: 26 | IG69: 26 | IH69: 26 | II69: 26 | IJ69: 26 | IK69: 26 | IL69: 26 | IM69: 26 | IN69: 26 | IO69: 26 | IP69: 26 | IQ69: 26 | IR69: 26 | IS69: 26 | IT69: 26 | IU69: 26 | IV69: 26 | IW69: 26 | IX69: 26 | IY69: 26 | IZ69: 26 | JA69: 26 | JB69: 26 | JC69: 26 | JD69: 26 | JE69: 26 | JF69: 26 | JG69: 26 | JH69: 26 | JI69: 26 | JJ69: 26 | JK69: 26 | JL69: 26 | JM69: 26 | JN69: 26 | JO69: 26 | JP69: 26 | JQ69: 26 | JR69: 26
B70: Exposure frequency | D70: (days/yr) | E70: EF | FE70: 350 | FF70: 350 | FG70: 350 | FH70: 350 | FI70: 350 | FJ70: 350 | FK70: 350 | FL70: 350 | FM70: 350 | FN70: 350 | FO70: 350 | FP70: 350 | FQ70: 350 | FR70: 350 | FS70: 350 | FT70: 350 | FU70: 350 | FV70: 350 | FW70: 350 | FX70: 350 | FY70: 350 | FZ70: 350 | GA70: 350 | GB70: 350 | GC70: 350 | GD70: 350 | GE70: 350 | GF70: 350 | GG70: 350 | GH70: 350 | GI70: 350 | GJ70: 350 | GK70: 350 | GL70: 350 | GM70: 350 | GN70: 350 | GO70: 350 | GP70: 350 | GQ70: 350 | GR70: 350 | GS70: 350 | GT70: 350 | GU70: 350 | GV70: 350 | GW70: 350 | GX70: 350 | GY70: 350 | GZ70: 350 | HA70: 350 | HB70: 350 | HC70: 350 | HD70: 350 | HE70: 350 | HF70: 350 | HG70: 350 | HH70: 350 | HI70: 350 | HJ70: 350 | HK70: 350 | HL70: 350 | HM70: 350 | HN70: 350 | HO70: 350 | HP70: 350 | HQ70: 350 | HR70: 350 | HS70: 350 | HT70: 350 | HU70: 350 | HV70: 350 | HW70: 350 | HX70: 350 | HY70: 350 | HZ70: 350 | IA70: 350 | IB70: 350 | IC70: 350 | ID70: 350 | IE70: 350 | IF70: 350 | IG70: 350 | IH70: 350 | II70: 350 | IJ70: 350 | IK70: 350 | IL70: 350 | IM70: 350 | IN70: 350 | IO70: 350 | IP70: 350 | IQ70: 350 | IR70: 350 | IS70: 350 | IT70: 350 | IU70: 350 | IV70: 350 | IW70: 350 | IX70: 350 | IY70: 350 | IZ70: 350 | JA70: 350 | JB70: 350 | JC70: 350 | JD70: 350 | JE70: 350 | JF70: 350 | JG70: 350 | JH70: 350 | JI70: 350 | JJ70: 350 | JK70: 350 | JL70: 350 | JM70: 350 | JN70: 350 | JO70: 350 | JP70: 350 | JQ70: 350 | JR70: 350
B71: Exposure time | D71: (hrs/24 hrs) | E71: ET | FE71: 24 | FF71: 24 | FG71: 24 | FH71: 24 | FI71: 24 | FJ71: 24 | FK71: 24 | FL71: 24 | FM71: 24 | FN71: 24 | FO71: 24 | FP71: 24 | FQ71: 24 | FR71: 24 | FS71: 24 | FT71: 24 | FU71: 24 | FV71: 24 | FW71: 24 | FX71: 24 | FY71: 24 | FZ71: 24 | GA71: 24 | GB71: 24 | GC71: 24 | GD71: 24 | GE71: 24 | GF71: 24 | GG71: 24 | GH71: 24 | GI71: 24 | GJ71: 24 | GK71: 24 | GL71: 24 | GM71: 24 | GN71: 24 | GO71: 24 | GP71: 24 | GQ71: 24 | GR71: 24 | GS71: 24 | GT71: 24 | GU71: 24 | GV71: 24 | GW71: 24 | GX71: 24 | GY71: 24 | GZ71: 24 | HA71: 24 | HB71: 24 | HC71: 24 | HD71: 24 | HE71: 24 | HF71: 24 | HG71: 24 | HH71: 24 | HI71: 24 | HJ71: 24 | HK71: 24 | HL71: 24 | HM71: 24 | HN71: 24 | HO71: 24 | HP71: 24 | HQ71: 24 | HR71: 24 | HS71: 24 | HT71: 24 | HU71: 24 | HV71: 24 | HW71: 24 | HX71: 24 | HY71: 24 | HZ71: 24 | IA71: 24 | IB71: 24 | IC71: 24 | ID71: 24 | IE71: 24 | IF71: 24 | IG71: 24 | IH71: 24 | II71: 24 | IJ71: 24 | IK71: 24 | IL71: 24 | IM71: 24 | IN71: 24 | IO71: 24 | IP71: 24 | IQ71: 24 | IR71: 24 | IS71: 24 | IT71: 24 | IU71: 24 | IV71: 24 | IW71: 24 | IX71: 24 | IY71: 24 | IZ71: 24 | JA71: 24 | JB71: 24 | JC71: 24 | JD71: 24 | JE71: 24 | JF71: 24 | JG71: 24 | JH71: 24 | JI71: 24 | JJ71: 24 | JK71: 24 | JL71: 24 | JM71: 24 | JN71: 24 | JO71: 24 | JP71: 24 | JQ71: 24 | JR71: 24
B72: Mutagenic mode-of-action factor | D72: (yrs) | E72: MMOAF | FE72: 72 | FF72: 72 | FG72: 72 | FH72: 72 | FI72: 72 | FJ72: 72 | FK72: 72 | FL72: 72 | FM72: 72 | FN72: 72 | FO72: 72 | FP72: 72 | FQ72: 72 | FR72: 72 | FS72: 72 | FT72: 72 | FU72: 72 | FV72: 72 | FW72: 72 | FX72: 72 | FY72: 72 | FZ72: 72 | GA72: 72 | GB72: 72 | GC72: 72 | GD72: 72 | GE72: 72 | GF72: 72 | GG72: 72 | GH72: 72 | GI72: 72 | GJ72: 72 | GK72: 72 | GL72: 72 | GM72: 72 | GN72: 72 | GO72: 72 | GP72: 72 | GQ72: 72 | GR72: 72 | GS72: 72 | GT72: 72 | GU72: 72 | GV72: 72 | GW72: 72 | GX72: 72 | GY72: 72 | GZ72: 72 | HA72: 72 | HB72: 72 | HC72: 72 | HD72: 72 | HE72: 72 | HF72: 72 | HG72: 72 | HH72: 72 | HI72: 72 | HJ72: 72 | HK72: 72 | HL72: 72 | HM72: 72 | HN72: 72 | HO72: 72 | HP72: 72 | HQ72: 72 | HR72: 72 | HS72: 72 | HT72: 72 | HU72: 72 | HV72: 72 | HW72: 72 | HX72: 72 | HY72: 72 | HZ72: 72 | IA72: 72 | IB72: 72 | IC72: 72 | ID72: 72 | IE72: 72 | IF72: 72 | IG72: 72 | IH72: 72 | II72: 72 | IJ72: 72 | IK72: 72 | IL72: 72 | IM72: 72 | IN72: 72 | IO72: 72 | IP72: 72 | IQ72: 72 | IR72: 72 | IS72: 72 | IT72: 72 | IU72: 72 | IV72: 72 | IW72: 72 | IX72: 72 | IY72: 72 | IZ72: 72 | JA72: 72 | JB72: 72 | JC72: 72 | JD72: 72 | JE72: 72 | JF72: 72 | JG72: 72 | JH72: 72 | JI72: 72 | JJ72: 72 | JK72: 72 | JL72: 72 | JM72: 72 | JN72: 72 | JO72: 72 | JP72: 72 | JQ72: 72 | JR72: 72
A74: Source to Indoor Air Attenuation Factor | D74: Units | E74: Symbol | FE74: Value | FF74: Value | FG74: Value | FH74: Value | FI74: Value | FJ74: Value | FK74: Value | FL74: Value | FM74: Value | FN74: Value | FO74: Value | FP74: Value | FQ74: Value | FR74: Value | FS74: Value | FT74: Value | FU74: Value | FV74: Value | FW74: Value | FX74: Value | FY74: Value | FZ74: Value | GA74: Value | GB74: Value | GC74: Value | GD74: Value | GE74: Value | GF74: Value | GG74: Value | GH74: Value | GI74: Value | GJ74: Value | GK74: Value | GL74: Value | GM74: Value | GN74: Value | GO74: Value | GP74: Value | GQ74: Value | GR74: Value | GS74: Value | GT74: Value | GU74: Value | GV74: Value | GW74: Value | GX74: Value | GY74: Value | GZ74: Value | HA74: Value | HB74: Value | HC74: Value | HD74: Value | HE74: Value | HF74: Value | HG74: Value | HH74: Value | HI74: Value | HJ74: Value | HK74: Value | HL74: Value | HM74: Value | HN74: Value | HO74: Value | HP74: Value | HQ74: Value | HR74: Value | HS74: Value | HT74: Value | HU74: Value | HV74: Value | HW74: Value | HX74: Value | HY74: Value | HZ74: Value | IA74: Value | IB74: Value | IC74: Value | ID74: Value | IE74: Value | IF74: Value | IG74: Value | IH74: Value | II74: Value | IJ74: Value | IK74: Value | IL74: Value | IM74: Value | IN74: Value | IO74: Value | IP74: Value | IQ74: Value | IR74: Value | IS74: Value | IT74: Value | IU74: Value | IV74: Value | IW74: Value | IX74: Value | IY74: Value | IZ74: Value | JA74: Value | JB74: Value | JC74: Value | JD74: Value | JE74: Value | JF74: Value | JG74: Value | JH74: Value | JI74: Value | JJ74: Value | JK74: Value | JL74: Value | JM74: Value | JN74: Value | JO74: Value | JP74: Value | JQ74: Value | JR74: Value
A75: =IF(Source="Groundwater", "Groundwater to indoor air attenuation coefficient","Soil gas to indoor air attenuation coefficient") -> Groundwater to indoor air attenuation coefficient | D75: (-) | E75: alpha | FE75: 0.0002443340154 | FF75: 0.0004128163277 | FG75: 0.0004991516061 | FH75: 0.000558328219 | FI75: 0.001618407278 | FJ75: 0.001017489368 | FK75: 0.001015803491 | FL75: 0.001222187414 | FM75: 0.001019332099 | FN75: 0.000935572331 | FO75: 0.0002112884835 | FP75: 0.001050168454 | FQ75: 0.000288300748 | FR75: 0.0002328559301 | FS75: 0.0002778655069 | FT75: 0.0006601727791 | FU75: 0.001425289491 | FV75: 0.0009445470733 | FW75: 0.001192036095 | FX75: 0.0006945002693 | FY75: 0.0006133256729 | FZ75: 0.0007231858187 | GA75: 0.001316791355 | GB75: 0.0005328624545 | GC75: 0.0007352272157 | GD75: 0.0005362638775 | GE75: 0.0001380178244 | GF75: 0.0005249592549 | GG75: 0.0006463264962 | GH75: 0.0003933422818 | GI75: 0.0003910013906 | GJ75: 0.0004428979112 | GK75: 0.0002697816427 | GL75: 0.000177350633 | GM75: 0.0002692463402 | GO75: 0.0004439011279 | GP75: 0.0003171782023 | GQ75: 0.0006860440207 | GR75: 0.0009731857038 | GS75: 0.0006318296487 | GT75: 0.001161275084 | GU75: 0.0005334613695 | GV75: 0.001060610618 | GW75: 0.0006905569038 | GX75: 0.0003693783828 | GY75: 0.0002131022217 | GZ75: 0.000243480722 | HA75: 0.0002359452574 | HB75: 0.0002050957032 | HC75: 0.0002414734817 | HD75: 0.0002047262487 | HE75: 0.0002150124731 | HF75: 0.0002150124731 | HG75: 0.0002427769443 | HH75: 0.0003099824516 | HI75: 0.000549467198 | HJ75: 0.0003889493796 | HK75: 0.0005888066645 | HL75: 0.001018794043 | HM75: 0.001130735952 | HN75: 0.000189752898 | HO75: 0.00130609635 | HP75: 0.0008055583912 | HQ75: 0.0004239521332 | HR75: 0.0006914321822 | HS75: 0.001069905855 | HT75: 0.0007996731967 | HU75: 0.0004089908147 | HV75: 0.0009506401616 | HW75: 0.0002935698316 | HX75: 0.0004908315964 | HZ75: 0.0004483109941 | IA75: 0.0002901581748 | IB75: 0.0002502312744 | IC75: 0.0002170114074 | ID75: 0.0003526099877 | IE75: 0.0003790236397 | IF75: 0.0003638521125 | IG75: 0.0002486837597 | IH75: 0.0001891027622 | II75: 0.0005506249696 | IJ75: 0.0007281750232 | IO75: 0.0005268959363 | IP75: 0.0003375572121 | IQ75: 0.0002449426001 | IR75: 0.000279073283 | IS75: 0.0002996334292 | IT75: 0.000299237694 | IU75: 0.0004516119585 | IV75: 0.0004749817894 | IW75: 0.0004745991763 | IX75: 0.0004543378379 | IY75: 0.0004330392243 | IZ75: 0.0004330737396 | JA75: 0.0004171207015 | JB75: 0.0005073818761 | JC75: 0.0006384703526 | JD75: 0.0002218076087 | JE75: 0.0004316701867 | JF75: 0.0004276343311 | JG75: 0.000424523542 | JH75: 0.0004193638811 | JI75: 0.0001661407105 | JJ75: 0.0002685160712 | JK75: 0.0003066737113 | JL75: 0.0005818156774 | JM75: 0.0005724961694 | JN75: 0.0006791806824 | JO75: 0.0004730176408 | JP75: 0.0004766942826 | JQ75: 0.0004723791845 | JR75: 0.0004739816651
E76: Range
A77: Predicted Indoor Air Concentration
A78: Indoor air concentration due to vapor intrusion | D78: (ug/m3) | E78: Cia | FE78: 0 | FF78: 0 | FG78: 0 | FH78: 0 | FI78: 0 | FJ78: 0 | FK78: 0 | FL78: 0 | FM78: 0 | FN78: 0 | FO78: 0 | FP78: 0 | FQ78: 0 | FR78: 0 | FS78: 0 | FT78: 0 | FU78: 0 | FV78: 0 | FW78: 0 | FX78: 0 | FY78: 0 | FZ78: 0 | GA78: 0 | GB78: 0 | GC78: 0 | GD78: 0 | GE78: 0 | GF78: 0 | GG78: 0 | GH78: 0 | GI78: 0 | GJ78: 0 | GK78: 0 | GL78: 0 | GM78: 0 | GO78: 0 | GP78: 0 | GQ78: 0 | GR78: 0 | GS78: 0 | GT78: 0 | GU78: 0 | GV78: 0 | GW78: 0 | GX78: 0 | GY78: 0 | GZ78: 0 | HA78: 0 | HB78: 0 | HC78: 0 | HD78: 0 | HE78: 0 | HF78: 0 | HG78: 0 | HH78: 0 | HI78: 0 | HJ78: 0 | HK78: 0 | HL78: 0 | HM78: 0 | HN78: 0 | HO78: 0 | HP78: 0 | HQ78: 0 | HR78: 0 | HS78: 0 | HT78: 0 | HU78: 0 | HV78: 0 | HW78: 0 | HX78: 0 | HZ78: 0 | IA78: 0 | IB78: 0 | IC78: 0 | ID78: 0 | IE78: 0 | IF78: 0 | IG78: 0 | IH78: 0 | II78: 0 | IJ78: 0 | IO78: 0 | IP78: 0 | IQ78: 0 | IR78: 0 | IS78: 0 | IT78: 0 | IU78: 0 | IV78: 0 | IW78: 0 | IX78: 0 | IY78: 0 | IZ78: 0 | JA78: 0 | JB78: 0 | JC78: 0 | JD78: 0 | JE78: 0 | JF78: 0 | JG78: 0 | JH78: 0 | JI78: 0 | JJ78: 0 | JK78: 0 | JL78: 0 | JM78: 0 | JN78: 0 | JO78: 0 | JP78: 0 | JQ78: 0 | JR78: 0
E79: Range
D80: (ppbv) | E80: Cia | FE80: 0 | FF80: 0 | FG80: 0 | FH80: 0 | FI80: 0 | FJ80: 0 | FK80: 0 | FL80: 0 | FM80: 0 | FN80: 0 | FO80: 0 | FP80: 0 | FQ80: 0 | FR80: 0 | FS80: 0 | FT80: 0 | FU80: 0 | FV80: 0 | FW80: 0 | FX80: 0 | FY80: 0 | FZ80: 0 | GA80: 0 | GB80: 0 | GC80: 0 | GD80: 0 | GE80: 0 | GF80: 0 | GG80: 0 | GH80: 0 | GI80: 0 | GJ80: 0 | GK80: 0 | GL80: 0 | GM80: 0 | GO80: 0 | GP80: 0 | GQ80: 0 | GR80: 0 | GS80: 0 | GT80: 0 | GU80: 0 | GV80: 0 | GW80: 0 | GX80: 0 | GY80: 0 | GZ80: 0 | HA80: 0 | HB80: 0 | HC80: 0 | HD80: 0 | HE80: 0 | HF80: 0 | HG80: 0 | HH80: 0 | HI80: 0 | HJ80: 0 | HK80: 0 | HL80: 0 | HM80: 0 | HN80: 0 | HO80: 0 | HP80: 0 | HQ80: 0 | HR80: 0 | HS80: 0 | HT80: 0 | HU80: 0 | HV80: 0 | HW80: 0 | HX80: 0 | HZ80: 0 | IA80: 0 | IB80: 0 | IC80: 0 | ID80: 0 | IE80: 0 | IF80: 0 | IG80: 0 | IH80: 0 | II80: 0 | IJ80: 0 | IO80: 0 | IP80: 0 | IQ80: 0 | IR80: 0 | IS80: 0 | IT80: 0 | IU80: 0 | IV80: 0 | IW80: 0 | IX80: 0 | IY80: 0 | IZ80: 0 | JA80: 0 | JB80: 0 | JC80: 0 | JD80: 0 | JE80: 0 | JF80: 0 | JG80: 0 | JH80: 0 | JI80: 0 | JJ80: 0 | JK80: 0 | JL80: 0 | JM80: 0 | JN80: 0 | JO80: 0 | JP80: 0 | JQ80: 0 | JR80: 0
E81: Range
A82: Predicted Vapor Concentration Beneath the Foundation
A83: Subslab vapor concentration | D83: (ug/m3) | E83: Css | FE83: 0 | FF83: 0 | FG83: 0 | FH83: 0 | FI83: 0 | FJ83: 0 | FK83: 0 | FL83: 0 | FM83: 0 | FN83: 0 | FO83: 0 | FP83: 0 | FQ83: 0 | FR83: 0 | FS83: 0 | FT83: 0 | FU83: 0 | FV83: 0 | FW83: 0 | FX83: 0 | FY83: 0 | FZ83: 0 | GA83: 0 | GB83: 0 | GC83: 0 | GD83: 0 | GE83: 0 | GF83: 0 | GG83: 0 | GH83: 0 | GI83: 0 | GJ83: 0 | GK83: 0 | GL83: 0 | GM83: 0 | GO83: 0 | GP83: 0 | GQ83: 0 | GR83: 0 | GS83: 0 | GT83: 0 | GU83: 0 | GV83: 0 | GW83: 0 | GX83: 0 | GY83: 0 | GZ83: 0 | HA83: 0 | HB83: 0 | HC83: 0 | HD83: 0 | HE83: 0 | HF83: 0 | HG83: 0 | HH83: 0 | HI83: 0 | HJ83: 0 | HK83: 0 | HL83: 0 | HM83: 0 | HN83: 0 | HO83: 0 | HP83: 0 | HQ83: 0 | HR83: 0 | HS83: 0 | HT83: 0 | HU83: 0 | HV83: 0 | HW83: 0 | HX83: 0 | HZ83: 0 | IA83: 0 | IB83: 0 | IC83: 0 | ID83: 0 | IE83: 0 | IF83: 0 | IG83: 0 | IH83: 0 | II83: 0 | IJ83: 0 | IO83: 0 | IP83: 0 | IQ83: 0 | IR83: 0 | IS83: 0 | IT83: 0 | IU83: 0 | IV83: 0 | IW83: 0 | IX83: 0 | IY83: 0 | IZ83: 0 | JA83: 0 | JB83: 0 | JC83: 0 | JD83: 0 | JE83: 0 | JF83: 0 | JG83: 0 | JH83: 0 | JI83: 0 | JJ83: 0 | JK83: 0 | JL83: 0 | JM83: 0 | JN83: 0 | JO83: 0 | JP83: 0 | JQ83: 0 | JR83: 0
E84: Range
D85: (ppbv) | E85: Css | FE85: 0 | FF85: 0 | FG85: 0 | FH85: 0 | FI85: 0 | FJ85: 0 | FK85: 0 | FL85: 0 | FM85: 0 | FN85: 0 | FO85: 0 | FP85: 0 | FQ85: 0 | FR85: 0 | FS85: 0 | FT85: 0 | FU85: 0 | FV85: 0 | FW85: 0 | FX85: 0 | FY85: 0 | FZ85: 0 | GA85: 0 | GB85: 0 | GC85: 0 | GD85: 0 | GE85: 0 | GF85: 0 | GG85: 0 | GH85: 0 | GI85: 0 | GJ85: 0 | GK85: 0 | GL85: 0 | GM85: 0 | GO85: 0 | GP85: 0 | GQ85: 0 | GR85: 0 | GS85: 0 | GT85: 0 | GU85: 0 | GV85: 0 | GW85: 0 | GX85: 0 | GY85: 0 | GZ85: 0 | HA85: 0 | HB85: 0 | HC85: 0 | HD85: 0 | HE85: 0 | HF85: 0 | HG85: 0 | HH85: 0 | HI85: 0 | HJ85: 0 | HK85: 0 | HL85: 0 | HM85: 0 | HN85: 0 | HO85: 0 | HP85: 0 | HQ85: 0 | HR85: 0 | HS85: 0 | HT85: 0 | HU85: 0 | HV85: 0 | HW85: 0 | HX85: 0 | HZ85: 0 | IA85: 0 | IB85: 0 | IC85: 0 | ID85: 0 | IE85: 0 | IF85: 0 | IG85: 0 | IH85: 0 | II85: 0 | IJ85: 0 | IO85: 0 | IP85: 0 | IQ85: 0 | IR85: 0 | IS85: 0 | IT85: 0 | IU85: 0 | IV85: 0 | IW85: 0 | IX85: 0 | IY85: 0 | IZ85: 0 | JA85: 0 | JB85: 0 | JC85: 0 | JD85: 0 | JE85: 0 | JF85: 0 | JG85: 0 | JH85: 0 | JI85: 0 | JJ85: 0 | JK85: 0 | JL85: 0 | JM85: 0 | JN85: 0 | JO85: 0 | JP85: 0 | JQ85: 0 | JR85: 0
E86: Range
A87: Diffusive Transport Upward Through Vadose Zone
A88: Effective diffusion coefficient through Stratum A | D88: (cm2/sec) | E88: DeffA | FE88: 0.005188267548 | FF88: 0.006536710183 | FG88: 0.01181851578 | FH88: 0.01137467427 | FI88: 0.02834152142 | FJ88: 0.03039042283 | FK88: 0.02712824068 | FL88: 0.0354216088 | FM88: 0.03040268762 | FN88: 0.01450625417 | FO88: 0.0034404364 | FP88: 0.01670185272 | FQ88: 0.005300270783 | FR88: 0.004962931331 | FS88: 0.00330015365 | FT88: 0.0155891858 | FU88: 0.02562429125 | FV88: 0.01093527774 | FW88: 0.01573110455 | FX88: 0.01548407678 | FY88: 0.01390273571 | FZ88: 0.01478495198 | GA88: 0.02091670193 | GB88: 0.0112811314 | GC88: 0.01884137842 | GD88: 0.01213193425 | GE88: 0.002812393983 | GF88: 0.01216775458 | GG88: 0.01615560159 | GH88: 0.008530972745 | GI88: 0.008476232516 | GJ88: 0.0101686924 | GK88: 0.005851076888 | GL88: 0.003537198375 | GM88: 0.003972454285 | GN88: 0 | GO88: 0.009780456482 | GP88: 0.007000131296 | GQ88: 0.01100563943 | GR88: 0.01928833324 | GS88: 0.01369232513 | GT88: 0.01603264856 | GU88: 0.006821959465 | GV88: 0.01366066144 | GW88: 0.009505263937 | GX88: 0.008314432967 | GY88: 0.003903388054 | GZ88: 0.004496173664 | HA88: 0.004758252529 | HB88: 0.003813608237 | HC88: 0.003814069812 | HD88: 0.003813604353 | HE88: 0.003813717764 | HF88: 0.003813717764 | HG88: 0.005094996544 | HH88: 0.004249090496 | HI88: 0.01327692024 | HJ88: 0.004362562655 | HK88: 0.01444069268 | HL88: 0.03042446155 | HM88: 0.03546249022 | HN88: 0.003525118984 | HO88: 0.01909574641 | HP88: 0.01784509662 | HQ88: 0.009724719364 | HR88: 0.01773343222 | HS88: 0.01355426044 | HT88: 0.01754345885 | HU88: 0.004498425355 | HV88: 0.01505889401 | HW88: 0.003745576547 | HX88: 0.01149623389 | HZ88: 0.00760386772 | IA88: 0.00349344687 | IB88: 0.005156326706 | IC88: 0.003936296457 | ID88: 0.007788126246 | IE88: 0.007908707701 | IF88: 0.008158340838 | IG88: 0.0044601212 | IH88: 0.00398328794 | II88: 0.01330558447 | IJ88: 0.01542633545 | IO88: 0.01257769588 | IP88: 0.00363539264 | IQ88: 0.00468331817 | IR88: 0.006072840527 | IS88: 0.006390440568 | IT88: 0.006401619107 | IU88: 0.01047830584 | IV88: 0.01081354543 | IW88: 0.01109979174 | IX88: 0.01056537049 | IY88: 0.009240344889 | IZ88: 0.009290179583 | JA88: 0.009548088804 | JB88: 0.01072872706 | JC88: 0.01600879157 | JD88: 0.003565448158 | JE88: 0.009902183609 | JF88: 0.009808722895 | JG88: 0.009735972365 | JH88: 0.009622203857 | JI88: 0.003471427751 | JJ88: 0.003138763261 | JK88: 0.003917251591 | JL88: 0.01372529123 | JM88: 0.01393884186 | JN88: 0.01731692239 | JO88: 0.01105195838 | JP88: 0.01114155458 | JQ88: 0.01103298011 | JR88: 0.01107603042
A89: Effective diffusion coefficient through Stratum B | D89: (cm2/sec) | E89: DeffB
A90: Effective diffusion coefficient through Stratum C | D90: (cm2/sec) | E90: DeffC
A91: =IF(Source="Groundwater","Effective diffusion coefficient through capillary zone","") -> Effective diffusion coefficient through capillary zone | D91: =IF(Source="Groundwater","(cm2/sec)","") -> (cm2/sec) | E91: =IF(Source="Groundwater","DeffCZ","") -> DeffCZ | FE91: 0.0002096324305 | FF91: 0.0005293317135 | FG91: 0.0004681920511 | FH91: 0.0006131496363 | FI91: 0.05702880544 | FJ91: 0.001203899645 | FK91: 0.001301391696 | FL91: 0.00178807078 | FM91: 0.001209061419 | FN91: 0.00240991192 | FO91: 0.0002221330851 | FP91: 0.003143442784 | FQ91: 0.0002845206217 | FR91: 0.000197915254 | FS91: 0.0005283508725 | FT91: 0.0006945841002 | FU91: 0.007523994413 | FV91: 0.05067365144 | FW91: 0.06045248393 | FX91: 0.000785077155 | FY91: 0.0006427479491 | FZ91: 0.000907451004 | GA91: 0.00911903835 | GB91: 0.0005554690065 | GC91: 0.0007717826129 | GD91: 0.0005324132974 | GE91: 0.0001142745248 | GF91: 0.0005082858102 | GG91: 0.0006468985247 | GH91: 0.0003653537589 | GI91: 0.0003627428709 | GJ91: 0.0004085925799 | GK91: 0.0002317885575 | GL91: 0.00015258339 | GM91: 0.0003346487865 | GN91: 0 | GO91: 0.0004216193782 | GP91: 0.0002773356254 | GQ91: 0.001142678538 | GR91: 0.00163643293 | GS91: 0.0006962606051 | GT91: 0.01197639378 | GU91: 0.001199070883 | GV91: 0.01299014212 | GW91: 0.00162111493 | GX91: 0.0003293751965 | GY91: 0.0002004544862 | GZ91: 0.0002321176685 | HA91: 0.0002087863343 | HB91: 0.0001895053061 | HC91: 0.0002687986352 | HD91: 0.0001888379414 | HE91: 0.0002083207762 | HF91: 0.0002083207762 | HG91: 0.0002097610396 | HH91: 0.0004493254566 | HI91: 0.0005259704198 | HJ91: 0.001065311678 | HK91: 0.0005733174736 | HL91: 0.001206888471 | HM91: 0.00142838987 | HN91: 0.0001737186173 | HO91: 0.02120248201 | HP91: 0.001005254958 | HQ91: 0.0003865779698 | HR91: 0.0007025980091 | HS91: 0.0199692426 | HT91: 0.001001857407 | HU91: 0.001271404677 | HV91: 0.002375111751 | HW91: 0.0004801399 | HX91: 0.0004611499312 | HZ91: 0.0005437757661 | IA91: 0.0005411917446 | IB91: 0.0002199757623 | IC91: 0.000206397658 | ID91: 0.0003150539848 | IE91: 0.000358734428 | IF91: 0.0003241469206 | IG91: 0.0002441317494 | IH91: 0.0001578159615 | II91: 0.0005274738197 | IJ91: 0.0008860658823 | IO91: 0.000500746448 | IP91: 0.0009926628279 | IQ91: 0.0002270803309 | IR91: 0.0002406015079 | IS91: 0.0002651917767 | IT91: 0.0002642183354 | IU91: 0.0004160939284 | IV91: 0.000450155083 | IW91: 0.0004415707134 | IX91: 0.0004187262963 | IY91: 0.0004179921921 | IZ91: 0.0004163828836 | JA91: 0.0003792018797 | JB91: 0.0005196665125 | JC91: 0.0006342063862 | JD91: 0.0002383705979 | JE91: 0.0003955716449 | JF91: 0.0003908750489 | JG91: 0.0003872902714 | JH91: 0.0003811958208 | JI91: 0.0001375249922 | JJ91: 0.0005264015184 | JK91: 0.000508027419 | JL91: 0.0005788445911 | JM91: 0.0005538867676 | JN91: 0.0006867749866 | JO91: 0.0004399268728 | JP91: 0.0004443226485 | JQ91: 0.0004392555981 | JR91: 0.0004410621737
A92: Effective diffusion coefficient through unsaturated zone | D92: (cm2/sec) | E92: DeffT | FE92: 0.002208341768 | FF92: 0.00397409765 | FG92: 0.004971117608 | FH92: 0.005695229432 | FI92: 0.02917539306 | FJ92: 0.01278272025 | FK92: 0.01275069771 | FL92: 0.01712224711 | FM92: 0.01281778454 | FN92: 0.01128721059 | FO92: 0.001887040259 | FP92: 0.0134143862 | FQ92: 0.002647970714 | FR92: 0.002095870579 | FS92: 0.002542342103 | FT92: 0.007027207114 | FU92: 0.02254297799 | FV92: 0.01144524256 | FW92: 0.01642133951 | FX92: 0.007502677389 | FY92: 0.006400396989 | FZ92: 0.007910997427 | GA92: 0.01948444069 | GB92: 0.005379360977 | GC92: 0.008085481116 | GD92: 0.005421173202 | GE92: 0.001201094512 | GF92: 0.005282654086 | GG92: 0.00683934752 | GH92: 0.003758335578 | GI92: 0.003732616609 | GJ92: 0.004313844587 | GK92: 0.002461069862 | GL92: 0.001564893331 | GM92: 0.002455705112 | GO92: 0.004325312891 | GP92: 0.002944560194 | GQ92: 0.007384240291 | GR92: 0.01195888505 | GS92: 0.006645015397 | GT92: 0.01572994762 | GU92: 0.005386714815 | GV92: 0.0136207144 | GW92: 0.007447339209 | GX92: 0.00349721249 | GY92: 0.001904477595 | GZ92: 0.002199948309 | HA92: 0.002126050333 | HB92: 0.001827673228 | HC92: 0.002180224474 | HD92: 0.001824139771 | HE92: 0.00192286737 | HF92: 0.00192286737 | HG92: 0.002193029478 | HH92: 0.002870059665 | HI92: 0.00558457568 | HJ92: 0.003710109447 | HK92: 0.006082044763 | HL92: 0.01280753944 | HM92: 0.01506605253 | HN92: 0.001681716706 | HO92: 0.01920416558 | HP92: 0.009142856983 | HQ92: 0.004098942499 | HR92: 0.007459605873 | HS92: 0.0138062585 | HT92: 0.009051786049 | HU92: 0.003931457016 | HV92: 0.01155332171 | HW92: 0.002701615427 | HX92: 0.004872048822 | HZ92: 0.004375831363 | IA92: 0.002666857429 | IB92: 0.002266492829 | IC92: 0.001942137917 | ID92: 0.003317306604 | IE92: 0.003601738048 | IF92: 0.003437669018 | IG92: 0.002251209136 | IH92: 0.001675567136 | II92: 0.005598988112 | IJ92: 0.007983068176 | IO92: 0.005306294965 | IP92: 0.003157737589 | IQ92: 0.002214331315 | IR92: 0.002554526111 | IS92: 0.002763608192 | IT92: 0.0027595538 | IU92: 0.004413760916 | IV92: 0.004685127072 | IW92: 0.004680643798 | IX92: 0.00444515664 | IY92: 0.004201621564 | IZ92: 0.004202012954 | JA92: 0.004022226866 | JB92: 0.00506976853 | JC92: 0.006733738752 | JD92: 0.001988488354 | JE92: 0.004186105716 | JF92: 0.004140461862 | JG92: 0.004105377752 | JH92: 0.004047372544 | JI92: 0.00146018106 | JJ92: 0.002448389816 | JK92: 0.002835936542 | JL92: 0.005992457297 | JM92: 0.005873832948 | JN92: 0.007288747812 | JO92: 0.004662126543 | JP92: 0.004705209889 | JQ92: 0.004654657806 | JR92: 0.004673410969
A94: Critical Parameters
A95: a for diffusive transport from source to building with dirt floor foundation | D95: (-) | E95: A_Param | FE95: 0.0002659981472 | FF95: 0.0004786861468 | FG95: 0.0005987787273 | FH95: 0.0006859991052 | FI95: 0.003514220766 | FJ95: 0.001539698226 | FK95: 0.001535841063 | FL95: 0.002062400881 | FM95: 0.001543921774 | FN95: 0.001359561798 | FO95: 0.0002272968885 | FP95: 0.001615783357 | FQ95: 0.0003189521269 | FR95: 0.0002524508203 | FS95: 0.0003062289989 | FT95: 0.0008464378564 | FU95: 0.002715336215 | FV95: 0.001378596991 | FW95: 0.001977975487 | FX95: 0.0009037089791 | FY95: 0.0007709376172 | FZ95: 0.0009528917529 | GA95: 0.002346930714 | GB95: 0.0006479522662 | GC95: 0.0009739085804 | GD95: 0.0006529886127 | GE95: 0.000144673673 | GF95: 0.000636303773 | GG95: 0.0008238098807 | GH95: 0.0004526972748 | GI95: 0.0004495993857 | GJ95: 0.0005196091856 | GK95: 0.0002964396331 | GL95: 0.0001884937978 | GM95: 0.0002957934407 | GO95: 0.0005209905604 | GP95: 0.0003546767839 | GQ95: 0.0008894430493 | GR95: 0.001440466014 | GS95: 0.0008004022789 | GT95: 0.001894696276 | GU95: 0.0006488380472 | GV95: 0.001640635904 | GW95: 0.0008970434105 | GX95: 0.0004212445991 | GY95: 0.0002293972423 | GZ95: 0.0002649871422 | HA95: 0.0002560860179 | HB95: 0.0002201460387 | HC95: 0.0002626113761 | HD95: 0.0002197204284 | HE95: 0.0002316123189 | HF95: 0.0002316123189 | HG95: 0.0002641537584 | HH95: 0.0003457030811 | HI95: 0.0006726706913 | HJ95: 0.0004468883635 | HK95: 0.000732591604 | HL95: 0.001542687735 | HM95: 0.001814729095 | HN95: 0.0002025653522 | HO95: 0.002313171148 | HP95: 0.001101271122 | HQ95: 0.0004937239 | HR95: 0.000898520949 | HS95: 0.001662984975 | HT95: 0.001090301489 | HU95: 0.0004735500172 | HV95: 0.00139161529 | HW95: 0.0003254137148 | HX95: 0.0005868457403 | HZ95: 0.0005270755876 | IA95: 0.0003212270606 | IB95: 0.0002730025315 | IC95: 0.0002339334857 | ID95: 0.0003995746597 | IE95: 0.0004338348625 | IF95: 0.0004140724967 | IG95: 0.0002711615874 | IH95: 0.000201824627 | II95: 0.0006744066908 | IJ95: 0.0009615727849 | IO95: 0.0006391513532 | IP95: 0.0003803543276 | IQ95: 0.0002667195974 | IR95: 0.0003076965814 | IS95: 0.0003328808382 | IT95: 0.0003323924804 | IU95: 0.0005316442603 | IV95: 0.0005643307293 | IW95: 0.0005637907122 | IX95: 0.0005354259234 | IY95: 0.0005060917506 | IZ95: 0.0005061388941 | JA95: 0.0004844833845 | JB95: 0.0006106613819 | JC95: 0.0008110891429 | JD95: 0.0002395164669 | JE95: 0.000504222843 | JF95: 0.0004987249709 | JG95: 0.0004944990361 | JH95: 0.00048751222 | JI95: 0.0001758810444 | JJ95: 0.0002949123021 | JK95: 0.0003415928986 | JL95: 0.0007218006567 | JM95: 0.0007075121722 | JN95: 0.000877940834 | JO95: 0.0005615602804 | JP95: 0.0005667497355 | JQ95: 0.0005606606596 | JR95: 0.0005629195068
A96: Pe (Peclet Number) for transport through the foundation (advection / diffusion) | D96: (-) | E96: B_Param | FE96: 160.0167006 | FF96: 127.0072302 | FG96: 70.24650731 | FH96: 72.98753665 | FI96: 29.29304474 | FJ96: 27.31812781 | FK96: 30.60314396 | FL96: 23.43793754 | FM96: 27.30710736 | FN96: 57.23113942 | FO96: 241.3093452 | FP96: 49.70762639 | FQ96: 156.6352907 | FR96: 167.2820758 | FS96: 251.5669096 | FT96: 53.25547244 | FU96: 32.39931387 | FV96: 75.92028981 | FW96: 52.7750262 | FX96: 53.6169813 | FY96: 59.71554608 | FZ96: 56.15232676 | GA96: 39.69122176 | GB96: 73.59274754 | GC96: 44.0630954 | GD96: 68.43174699 | GE96: 295.1967113 | GF96: 68.23029259 | GG96: 51.38833426 | GH96: 97.31709146 | GI96: 97.9455735 | GJ96: 81.64367864 | GK96: 141.8900265 | GL96: 234.7081976 | GM96: 208.9915693 | GO96: 84.88453033 | GP96: 118.5991262 | GQ96: 75.4349132 | GR96: 43.04205266 | GS96: 60.63319756 | GT96: 51.78242707 | GU96: 121.6966268 | GV96: 60.77373769 | GW96: 87.34207282 | GX96: 99.85160241 | GY96: 212.6894491 | GZ96: 184.6479956 | HA96: 174.4778046 | HB96: 217.6965758 | HC96: 217.6702304 | HD96: 217.6967976 | HE96: 217.6903238 | HF96: 217.6903238 | HG96: 162.9460291 | HH96: 195.3852138 | HI96: 62.5302736 | HJ96: 190.3031591 | HK96: 57.49097177 | HL96: 27.28756444 | HM96: 23.41091812 | HN96: 235.5124632 | HO96: 43.4761458 | HP96: 46.52311347 | HQ96: 85.37104505 | HR96: 46.81606158 | HS96: 61.25081178 | HT96: 47.32302006 | HU96: 184.5555699 | HV96: 55.13083859 | HW96: 221.6506443 | HX96: 72.21577631 | HZ96: 109.182522 | IA96: 237.6476545 | IB96: 161.0079233 | IC96: 210.9113132 | ID96: 106.5993833 | IE96: 104.9740977 | IF96: 101.7620459 | IG96: 186.1405593 | IH96: 208.4231588 | II96: 62.39556454 | IJ96: 53.81767157 | IO96: 66.00648185 | IP96: 228.36858 | IQ96: 177.2694967 | IR96: 136.7085882 | IS96: 129.9142752 | IT96: 129.6874183 | IU96: 79.23126767 | IV96: 76.77495418 | IW96: 74.79504791 | IX96: 78.57835706 | IY96: 89.84615454 | IZ96: 89.36419877 | JA96: 86.95032816 | JB96: 77.38191588 | JC96: 51.85959546 | JD96: 232.848556 | JE96: 83.84104837 | JF96: 84.63991324 | JG96: 85.27237176 | JH96: 86.28059301 | JI96: 239.1550435 | JJ96: 264.5020939 | JK96: 211.9367203 | JL96: 60.48756567 | JM96: 59.5608633 | JN96: 47.94209019 | JO96: 75.11876418 | JP96: 74.51468721 | JQ96: 75.24797896 | JR96: 74.95550511
A97: a for convective transport from subslab to building | D97: (-) | E97: C_Param | FE97: 0.003 | FF97: 0.003 | FG97: 0.003 | FH97: 0.003 | FI97: 0.003 | FJ97: 0.003 | FK97: 0.003 | FL97: 0.003 | FM97: 0.003 | FN97: 0.003 | FO97: 0.003 | FP97: 0.003 | FQ97: 0.003 | FR97: 0.003 | FS97: 0.003 | FT97: 0.003 | FU97: 0.003 | FV97: 0.003 | FW97: 0.003 | FX97: 0.003 | FY97: 0.003 | FZ97: 0.003 | GA97: 0.003 | GB97: 0.003 | GC97: 0.003 | GD97: 0.003 | GE97: 0.003 | GF97: 0.003 | GG97: 0.003 | GH97: 0.003 | GI97: 0.003 | GJ97: 0.003 | GK97: 0.003 | GL97: 0.003 | GM97: 0.003 | GN97: 0.003 | GO97: 0.003 | GP97: 0.003 | GQ97: 0.003 | GR97: 0.003 | GS97: 0.003 | GT97: 0.003 | GU97: 0.003 | GV97: 0.003 | GW97: 0.003 | GX97: 0.003 | GY97: 0.003 | GZ97: 0.003 | HA97: 0.003 | HB97: 0.003 | HC97: 0.003 | HD97: 0.003 | HE97: 0.003 | HF97: 0.003 | HG97: 0.003 | HH97: 0.003 | HI97: 0.003 | HJ97: 0.003 | HK97: 0.003 | HL97: 0.003 | HM97: 0.003 | HN97: 0.003 | HO97: 0.003 | HP97: 0.003 | HQ97: 0.003 | HR97: 0.003 | HS97: 0.003 | HT97: 0.003 | HU97: 0.003 | HV97: 0.003 | HW97: 0.003 | HX97: 0.003 | HY97: 0.003 | HZ97: 0.003 | IA97: 0.003 | IB97: 0.003 | IC97: 0.003 | ID97: 0.003 | IE97: 0.003 | IF97: 0.003 | IG97: 0.003 | IH97: 0.003 | II97: 0.003 | IJ97: 0.003 | IK97: 0.003 | IL97: 0.003 | IM97: 0.003 | IN97: 0.003 | IO97: 0.003 | IP97: 0.003 | IQ97: 0.003 | IR97: 0.003 | IS97: 0.003 | IT97: 0.003 | IU97: 0.003 | IV97: 0.003 | IW97: 0.003 | IX97: 0.003 | IY97: 0.003 | IZ97: 0.003 | JA97: 0.003 | JB97: 0.003 | JC97: 0.003 | JD97: 0.003 | JE97: 0.003 | JF97: 0.003 | JG97: 0.003 | JH97: 0.003 | JI97: 0.003 | JJ97: 0.003 | JK97: 0.003 | JL97: 0.003 | JM97: 0.003 | JN97: 0.003 | JO97: 0.003 | JP97: 0.003 | JQ97: 0.003 | JR97: 0.003
A99: Interpretation
FE101: Advection is the dominant mechanism across the foundation. | FF101: Advection is the dominant mechanism across the foundation. | FG101: Advection is the dominant mechanism across the foundation. | FH101: Advection is the dominant mechanism across the foundation. | FI101: Advection is the dominant mechanism across the foundation. | FJ101: Advection is the dominant mechanism across the foundation. | FK101: Advection is the dominant mechanism across the foundation. | FL101: Advection is the dominant mechanism across the foundation. | FM101: Advection is the dominant mechanism across the foundation. | FN101: Advection is the dominant mechanism across the foundation. | FO101: Advection is the dominant mechanism across the foundation. | FP101: Advection is the dominant mechanism across the foundation. | FQ101: Advection is the dominant mechanism across the foundation. | FR101: Advection is the dominant mechanism across the foundation. | FS101: Advection is the dominant mechanism across the foundation. | FT101: Advection is the dominant mechanism across the foundation. | FU101: Advection is the dominant mechanism across the foundation. | FV101: Advection is the dominant mechanism across the foundation. | FW101: Advection is the dominant mechanism across the foundation. | FX101: Advection is the dominant mechanism across the foundation. | FY101: Advection is the dominant mechanism across the foundation. | FZ101: Advection is the dominant mechanism across the foundation. | GA101: Advection is the dominant mechanism across the foundation. | GB101: Advection is the dominant mechanism across the foundation. | GC101: Advection is the dominant mechanism across the foundation. | GD101: Advection is the dominant mechanism across the foundation. | GE101: Advection is the dominant mechanism across the foundation. | GF101: Advection is the dominant mechanism across the foundation. | GG101: Advection is the dominant mechanism across the foundation. | GH101: Advection is the dominant mechanism across the foundation. | GI101: Advection is the dominant mechanism across the foundation. | GJ101: Advection is the dominant mechanism across the foundation. | GK101: Advection is the dominant mechanism across the foundation. | GL101: Advection is the dominant mechanism across the foundation. | GM101: Advection is the dominant mechanism across the foundation. | GO101: Advection is the dominant mechanism across the foundation. | GP101: Advection is the dominant mechanism across the foundation. | GQ101: Advection is the dominant mechanism across the foundation. | GR101: Advection is the dominant mechanism across the foundation. | GS101: Advection is the dominant mechanism across the foundation. | GT101: Advection is the dominant mechanism across the foundation. | GU101: Advection is the dominant mechanism across the foundation. | GV101: Advection is the dominant mechanism across the foundation. | GW101: Advection is the dominant mechanism across the foundation. | GX101: Advection is the dominant mechanism across the foundation. | GY101: Advection is the dominant mechanism across the foundation. | GZ101: Advection is the dominant mechanism across the foundation. | HA101: Advection is the dominant mechanism across the foundation. | HB101: Advection is the dominant mechanism across the foundation. | HC101: Advection is the dominant mechanism across the foundation. | HD101: Advection is the dominant mechanism across the foundation. | HE101: Advection is the dominant mechanism across the foundation. | HF101: Advection is the dominant mechanism across the foundation. | HG101: Advection is the dominant mechanism across the foundation. | HH101: Advection is the dominant mechanism across the foundation. | HI101: Advection is the dominant mechanism across the foundation. | HJ101: Advection is the dominant mechanism across the foundation. | HK101: Advection is the dominant mechanism across the foundation. | HL101: Advection is the dominant mechanism across the foundation. | HM101: Advection is the dominant mechanism across the foundation. | HN101: Advection is the dominant mechanism across the foundation. | HO101: Advection is the dominant mechanism across the foundation. | HP101: Advection is the dominant mechanism across the foundation. | HQ101: Advection is the dominant mechanism across the foundation. | HR101: Advection is the dominant mechanism across the foundation. | HS101: Advection is the dominant mechanism across the foundation. | HT101: Advection is the dominant mechanism across the foundation. | HU101: Advection is the dominant mechanism across the foundation. | HV101: Advection is the dominant mechanism across the foundation. | HW101: Advection is the dominant mechanism across the foundation. | HX101: Advection is the dominant mechanism across the foundation. | HZ101: Advection is the dominant mechanism across the foundation. | IA101: Advection is the dominant mechanism across the foundation. | IB101: Advection is the dominant mechanism across the foundation. | IC101: Advection is the dominant mechanism across the foundation. | ID101: Advection is the dominant mechanism across the foundation. | IE101: Advection is the dominant mechanism across the foundation. | IF101: Advection is the dominant mechanism across the foundation. | IG101: Advection is the dominant mechanism across the foundation. | IH101: Advection is the dominant mechanism across the foundation. | II101: Advection is the dominant mechanism across the foundation. | IJ101: Advection is the dominant mechanism across the foundation. | IO101: Advection is the dominant mechanism across the foundation. | IP101: Advection is the dominant mechanism across the foundation. | IQ101: Advection is the dominant mechanism across the foundation. | IR101: Advection is the dominant mechanism across the foundation. | IS101: Advection is the dominant mechanism across the foundation. | IT101: Advection is the dominant mechanism across the foundation. | IU101: Advection is the dominant mechanism across the foundation. | IV101: Advection is the dominant mechanism across the foundation. | IW101: Advection is the dominant mechanism across the foundation. | IX101: Advection is the dominant mechanism across the foundation. | IY101: Advection is the dominant mechanism across the foundation. | IZ101: Advection is the dominant mechanism across the foundation. | JA101: Advection is the dominant mechanism across the foundation. | JB101: Advection is the dominant mechanism across the foundation. | JC101: Advection is the dominant mechanism across the foundation. | JD101: Advection is the dominant mechanism across the foundation. | JE101: Advection is the dominant mechanism across the foundation. | JF101: Advection is the dominant mechanism across the foundation. | JG101: Advection is the dominant mechanism across the foundation. | JH101: Advection is the dominant mechanism across the foundation. | JI101: Advection is the dominant mechanism across the foundation. | JJ101: Advection is the dominant mechanism across the foundation. | JK101: Advection is the dominant mechanism across the foundation. | JL101: Advection is the dominant mechanism across the foundation. | JM101: Advection is the dominant mechanism across the foundation. | JN101: Advection is the dominant mechanism across the foundation. | JO101: Advection is the dominant mechanism across the foundation. | JP101: Advection is the dominant mechanism across the foundation. | JQ101: Advection is the dominant mechanism across the foundation. | JR101: Advection is the dominant mechanism across the foundation.
FE102: Diffusion through soil is the overall rate limiting process. | FF102: Diffusion through soil and advection through foundation both control intrusion. | FG102: Diffusion through soil and advection through foundation both control intrusion. | FH102: Diffusion through soil and advection through foundation both control intrusion. | FI102: Diffusion through soil and advection through foundation both control intrusion. | FJ102: Diffusion through soil and advection through foundation both control intrusion. | FK102: Diffusion through soil and advection through foundation both control intrusion. | FL102: Diffusion through soil and advection through foundation both control intrusion. | FM102: Diffusion through soil and advection through foundation both control intrusion. | FN102: Diffusion through soil and advection through foundation both control intrusion. | FO102: Diffusion through soil is the overall rate limiting process. | FP102: Diffusion through soil and advection through foundation both control intrusion. | FQ102: Diffusion through soil and advection through foundation both control intrusion. | FR102: Diffusion through soil is the overall rate limiting process. | FS102: Diffusion through soil and advection through foundation both control intrusion. | FT102: Diffusion through soil and advection through foundation both control intrusion. | FU102: Diffusion through soil and advection through foundation both control intrusion. | FV102: Diffusion through soil and advection through foundation both control intrusion. | FW102: Diffusion through soil and advection through foundation both control intrusion. | FX102: Diffusion through soil and advection through foundation both control intrusion. | FY102: Diffusion through soil and advection through foundation both control intrusion. | FZ102: Diffusion through soil and advection through foundation both control intrusion. | GA102: Diffusion through soil and advection through foundation both control intrusion. | GB102: Diffusion through soil and advection through foundation both control intrusion. | GC102: Diffusion through soil and advection through foundation both control intrusion. | GD102: Diffusion through soil and advection through foundation both control intrusion. | GE102: Diffusion through soil is the overall rate limiting process. | GF102: Diffusion through soil and advection through foundation both control intrusion. | GG102: Diffusion through soil and advection through foundation both control intrusion. | GH102: Diffusion through soil and advection through foundation both control intrusion. | GI102: Diffusion through soil and advection through foundation both control intrusion. | GJ102: Diffusion through soil and advection through foundation both control intrusion. | GK102: Diffusion through soil is the overall rate limiting process. | GL102: Diffusion through soil is the overall rate limiting process. | GM102: Diffusion through soil is the overall rate limiting process. | GO102: Diffusion through soil and advection through foundation both control intrusion. | GP102: Diffusion through soil and advection through foundation both control intrusion. | GQ102: Diffusion through soil and advection through foundation both control intrusion. | GR102: Diffusion through soil and advection through foundation both control intrusion. | GS102: Diffusion through soil and advection through foundation both control intrusion. | GT102: Diffusion through soil and advection through foundation both control intrusion. | GU102: Diffusion through soil and advection through foundation both control intrusion. | GV102: Diffusion through soil and advection through foundation both control intrusion. | GW102: Diffusion through soil and advection through foundation both control intrusion. | GX102: Diffusion through soil and advection through foundation both control intrusion. | GY102: Diffusion through soil is the overall rate limiting process. | GZ102: Diffusion through soil is the overall rate limiting process. | HA102: Diffusion through soil is the overall rate limiting process. | HB102: Diffusion through soil is the overall rate limiting process. | HC102: Diffusion through soil is the overall rate limiting process. | HD102: Diffusion through soil is the overall rate limiting process. | HE102: Diffusion through soil is the overall rate limiting process. | HF102: Diffusion through soil is the overall rate limiting process. | HG102: Diffusion through soil is the overall rate limiting process. | HH102: Diffusion through soil and advection through foundation both control intrusion. | HI102: Diffusion through soil and advection through foundation both control intrusion. | HJ102: Diffusion through soil and advection through foundation both control intrusion. | HK102: Diffusion through soil and advection through foundation both control intrusion. | HL102: Diffusion through soil and advection through foundation both control intrusion. | HM102: Diffusion through soil and advection through foundation both control intrusion. | HN102: Diffusion through soil is the overall rate limiting process. | HO102: Diffusion through soil and advection through foundation both control intrusion. | HP102: Diffusion through soil and advection through foundation both control intrusion. | HQ102: Diffusion through soil and advection through foundation both control intrusion. | HR102: Diffusion through soil and advection through foundation both control intrusion. | HS102: Diffusion through soil and advection through foundation both control intrusion. | HT102: Diffusion through soil and advection through foundation both control intrusion. | HU102: Diffusion through soil and advection through foundation both control intrusion. | HV102: Diffusion through soil and advection through foundation both control intrusion. | HW102: Diffusion through soil and advection through foundation both control intrusion. | HX102: Diffusion through soil and advection through foundation both control intrusion. | HZ102: Diffusion through soil and advection through foundation both control intrusion. | IA102: Diffusion through soil and advection through foundation both control intrusion. | IB102: Diffusion through soil is the overall rate limiting process. | IC102: Diffusion through soil is the overall rate limiting process. | ID102: Diffusion through soil and advection through foundation both control intrusion. | IE102: Diffusion through soil and advection through foundation both control intrusion. | IF102: Diffusion through soil and advection through foundation both control intrusion. | IG102: Diffusion through soil is the overall rate limiting process. | IH102: Diffusion through soil is the overall rate limiting process. | II102: Diffusion through soil and advection through foundation both control intrusion. | IJ102: Diffusion through soil and advection through foundation both control intrusion. | IO102: Diffusion through soil and advection through foundation both control intrusion. | IP102: Diffusion through soil and advection through foundation both control intrusion. | IQ102: Diffusion through soil is the overall rate limiting process. | IR102: Diffusion through soil and advection through foundation both control intrusion. | IS102: Diffusion through soil and advection through foundation both control intrusion. | IT102: Diffusion through soil and advection through foundation both control intrusion. | IU102: Diffusion through soil and advection through foundation both control intrusion. | IV102: Diffusion through soil and advection through foundation both control intrusion. | IW102: Diffusion through soil and advection through foundation both control intrusion. | IX102: Diffusion through soil and advection through foundation both control intrusion. | IY102: Diffusion through soil and advection through foundation both control intrusion. | IZ102: Diffusion through soil and advection through foundation both control intrusion. | JA102: Diffusion through soil and advection through foundation both control intrusion. | JB102: Diffusion through soil and advection through foundation both control intrusion. | JC102: Diffusion through soil and advection through foundation both control intrusion. | JD102: Diffusion through soil is the overall rate limiting process. | JE102: Diffusion through soil and advection through foundation both control intrusion. | JF102: Diffusion through soil and advection through foundation both control intrusion. | JG102: Diffusion through soil and advection through foundation both control intrusion. | JH102: Diffusion through soil and advection through foundation both control intrusion. | JI102: Diffusion through soil is the overall rate limiting process. | JJ102: Diffusion through soil is the overall rate limiting process. | JK102: Diffusion through soil and advection through foundation both control intrusion. | JL102: Diffusion through soil and advection through foundation both control intrusion. | JM102: Diffusion through soil and advection through foundation both control intrusion. | JN102: Diffusion through soil and advection through foundation both control intrusion. | JO102: Diffusion through soil and advection through foundation both control intrusion. | JP102: Diffusion through soil and advection through foundation both control intrusion. | JQ102: Diffusion through soil and advection through foundation both control intrusion. | JR102: Diffusion through soil and advection through foundation both control intrusion.
B103: =IF(B_Param<0.1,IF((A_Param*B_Param/C_Param)<0.1,"Diffusion through soil is the overall rate limiting process.",IF((A_Param*B_Param/C_Param)>(10*(1+A_Param)),"Diffusion through the foundation is the overall rate-limiting process.","Diffusion through soil and diffusion through foundation both control intrusion.")),"") -> 
A106: Critical Parameters
FE108: Hb, Ls, DeffT, ach | FF108: Hb, Ls, DeffT, ach, Qsoil_Qb | FG108: Hb, Ls, DeffT, ach, Qsoil_Qb | FH108: Hb, Ls, DeffT, ach, Qsoil_Qb | FI108: Hb, Ls, DeffT, ach, Qsoil_Qb | FJ108: Hb, Ls, DeffT, ach, Qsoil_Qb | FK108: Hb, Ls, DeffT, ach, Qsoil_Qb | FL108: Hb, Ls, DeffT, ach, Qsoil_Qb | FM108: Hb, Ls, DeffT, ach, Qsoil_Qb | FN108: Hb, Ls, DeffT, ach, Qsoil_Qb | FO108: Hb, Ls, DeffT, ach | FP108: Hb, Ls, DeffT, ach, Qsoil_Qb | FQ108: Hb, Ls, DeffT, ach, Qsoil_Qb | FR108: Hb, Ls, DeffT, ach | FS108: Hb, Ls, DeffT, ach, Qsoil_Qb | FT108: Hb, Ls, DeffT, ach, Qsoil_Qb | FU108: Hb, Ls, DeffT, ach, Qsoil_Qb | FV108: Hb, Ls, DeffT, ach, Qsoil_Qb | FW108: Hb, Ls, DeffT, ach, Qsoil_Qb | FX108: Hb, Ls, DeffT, ach, Qsoil_Qb | FY108: Hb, Ls, DeffT, ach, Qsoil_Qb | FZ108: Hb, Ls, DeffT, ach, Qsoil_Qb | GA108: Hb, Ls, DeffT, ach, Qsoil_Qb | GB108: Hb, Ls, DeffT, ach, Qsoil_Qb | GC108: Hb, Ls, DeffT, ach, Qsoil_Qb | GD108: Hb, Ls, DeffT, ach, Qsoil_Qb | GE108: Hb, Ls, DeffT, ach | GF108: Hb, Ls, DeffT, ach, Qsoil_Qb | GG108: Hb, Ls, DeffT, ach, Qsoil_Qb | GH108: Hb, Ls, DeffT, ach, Qsoil_Qb | GI108: Hb, Ls, DeffT, ach, Qsoil_Qb | GJ108: Hb, Ls, DeffT, ach, Qsoil_Qb | GK108: Hb, Ls, DeffT, ach | GL108: Hb, Ls, DeffT, ach | GM108: Hb, Ls, DeffT, ach | GO108: Hb, Ls, DeffT, ach, Qsoil_Qb | GP108: Hb, Ls, DeffT, ach, Qsoil_Qb | GQ108: Hb, Ls, DeffT, ach, Qsoil_Qb | GR108: Hb, Ls, DeffT, ach, Qsoil_Qb | GS108: Hb, Ls, DeffT, ach, Qsoil_Qb | GT108: Hb, Ls, DeffT, ach, Qsoil_Qb | GU108: Hb, Ls, DeffT, ach, Qsoil_Qb | GV108: Hb, Ls, DeffT, ach, Qsoil_Qb | GW108: Hb, Ls, DeffT, ach, Qsoil_Qb | GX108: Hb, Ls, DeffT, ach, Qsoil_Qb | GY108: Hb, Ls, DeffT, ach | GZ108: Hb, Ls, DeffT, ach | HA108: Hb, Ls, DeffT, ach | HB108: Hb, Ls, DeffT, ach | HC108: Hb, Ls, DeffT, ach | HD108: Hb, Ls, DeffT, ach | HE108: Hb, Ls, DeffT, ach | HF108: Hb, Ls, DeffT, ach | HG108: Hb, Ls, DeffT, ach | HH108: Hb, Ls, DeffT, ach, Qsoil_Qb | HI108: Hb, Ls, DeffT, ach, Qsoil_Qb | HJ108: Hb, Ls, DeffT, ach, Qsoil_Qb | HK108: Hb, Ls, DeffT, ach, Qsoil_Qb | HL108: Hb, Ls, DeffT, ach, Qsoil_Qb | HM108: Hb, Ls, DeffT, ach, Qsoil_Qb | HN108: Hb, Ls, DeffT, ach | HO108: Hb, Ls, DeffT, ach, Qsoil_Qb | HP108: Hb, Ls, DeffT, ach, Qsoil_Qb | HQ108: Hb, Ls, DeffT, ach, Qsoil_Qb | HR108: Hb, Ls, DeffT, ach, Qsoil_Qb | HS108: Hb, Ls, DeffT, ach, Qsoil_Qb | HT108: Hb, Ls, DeffT, ach, Qsoil_Qb | HU108: Hb, Ls, DeffT, ach, Qsoil_Qb | HV108: Hb, Ls, DeffT, ach, Qsoil_Qb | HW108: Hb, Ls, DeffT, ach, Qsoil_Qb | HX108: Hb, Ls, DeffT, ach, Qsoil_Qb | HZ108: Hb, Ls, DeffT, ach, Qsoil_Qb | IA108: Hb, Ls, DeffT, ach, Qsoil_Qb | IB108: Hb, Ls, DeffT, ach | IC108: Hb, Ls, DeffT, ach | ID108: Hb, Ls, DeffT, ach, Qsoil_Qb | IE108: Hb, Ls, DeffT, ach, Qsoil_Qb | IF108: Hb, Ls, DeffT, ach, Qsoil_Qb | IG108: Hb, Ls, DeffT, ach | IH108: Hb, Ls, DeffT, ach | II108: Hb, Ls, DeffT, ach, Qsoil_Qb | IJ108: Hb, Ls, DeffT, ach, Qsoil_Qb | IO108: Hb, Ls, DeffT, ach, Qsoil_Qb | IP108: Hb, Ls, DeffT, ach, Qsoil_Qb | IQ108: Hb, Ls, DeffT, ach | IR108: Hb, Ls, DeffT, ach, Qsoil_Qb | IS108: Hb, Ls, DeffT, ach, Qsoil_Qb | IT108: Hb, Ls, DeffT, ach, Qsoil_Qb | IU108: Hb, Ls, DeffT, ach, Qsoil_Qb | IV108: Hb, Ls, DeffT, ach, Qsoil_Qb | IW108: Hb, Ls, DeffT, ach, Qsoil_Qb | IX108: Hb, Ls, DeffT, ach, Qsoil_Qb | IY108: Hb, Ls, DeffT, ach, Qsoil_Qb | IZ108: Hb, Ls, DeffT, ach, Qsoil_Qb | JA108: Hb, Ls, DeffT, ach, Qsoil_Qb | JB108: Hb, Ls, DeffT, ach, Qsoil_Qb | JC108: Hb, Ls, DeffT, ach, Qsoil_Qb | JD108: Hb, Ls, DeffT, ach | JE108: Hb, Ls, DeffT, ach, Qsoil_Qb | JF108: Hb, Ls, DeffT, ach, Qsoil_Qb | JG108: Hb, Ls, DeffT, ach, Qsoil_Qb | JH108: Hb, Ls, DeffT, ach, Qsoil_Qb | JI108: Hb, Ls, DeffT, ach | JJ108: Hb, Ls, DeffT, ach | JK108: Hb, Ls, DeffT, ach, Qsoil_Qb | JL108: Hb, Ls, DeffT, ach, Qsoil_Qb | JM108: Hb, Ls, DeffT, ach, Qsoil_Qb | JN108: Hb, Ls, DeffT, ach, Qsoil_Qb | JO108: Hb, Ls, DeffT, ach, Qsoil_Qb | JP108: Hb, Ls, DeffT, ach, Qsoil_Qb | JQ108: Hb, Ls, DeffT, ach, Qsoil_Qb | JR108: Hb, Ls, DeffT, ach, Qsoil_Qb
B109: =IF(B_Param<0.1,IF((A_Param*B_Param/C_Param)<0.1,"Hb, Ls, DeffT, ach",IF((A_Param*B_Param/C_Param)>(10*(1+A_Param)),"Hb, Lf, DeffA, ach, eta","Alpha sentive to all parameters.")),"") -> 
A112: Non-Critical Parameters
FE114: Qsoil_Qb, Lf, DeffA, eta | FF114: Lf, DeffA, eta | FG114: Lf, DeffA, eta | FH114: Lf, DeffA, eta | FI114: Lf, DeffA, eta | FJ114: Lf, DeffA, eta | FK114: Lf, DeffA, eta | FL114: Lf, DeffA, eta | FM114: Lf, DeffA, eta | FN114: Lf, DeffA, eta | FO114: Qsoil_Qb, Lf, DeffA, eta | FP114: Lf, DeffA, eta | FQ114: Lf, DeffA, eta | FR114: Qsoil_Qb, Lf, DeffA, eta | FS114: Lf, DeffA, eta | FT114: Lf, DeffA, eta | FU114: Lf, DeffA, eta | FV114: Lf, DeffA, eta | FW114: Lf, DeffA, eta | FX114: Lf, DeffA, eta | FY114: Lf, DeffA, eta | FZ114: Lf, DeffA, eta | GA114: Lf, DeffA, eta | GB114: Lf, DeffA, eta | GC114: Lf, DeffA, eta | GD114: Lf, DeffA, eta | GE114: Qsoil_Qb, Lf, DeffA, eta | GF114: Lf, DeffA, eta | GG114: Lf, DeffA, eta | GH114: Lf, DeffA, eta | GI114: Lf, DeffA, eta | GJ114: Lf, DeffA, eta | GK114: Qsoil_Qb, Lf, DeffA, eta | GL114: Qsoil_Qb, Lf, DeffA, eta | GM114: Qsoil_Qb, Lf, DeffA, eta | GO114: Lf, DeffA, eta | GP114: Lf, DeffA, eta | GQ114: Lf, DeffA, eta | GR114: Lf, DeffA, eta | GS114: Lf, DeffA, eta | GT114: Lf, DeffA, eta | GU114: Lf, DeffA, eta | GV114: Lf, DeffA, eta | GW114: Lf, DeffA, eta | GX114: Lf, DeffA, eta | GY114: Qsoil_Qb, Lf, DeffA, eta | GZ114: Qsoil_Qb, Lf, DeffA, eta | HA114: Qsoil_Qb, Lf, DeffA, eta | HB114: Qsoil_Qb, Lf, DeffA, eta | HC114: Qsoil_Qb, Lf, DeffA, eta | HD114: Qsoil_Qb, Lf, DeffA, eta | HE114: Qsoil_Qb, Lf, DeffA, eta | HF114: Qsoil_Qb, Lf, DeffA, eta | HG114: Qsoil_Qb, Lf, DeffA, eta | HH114: Lf, DeffA, eta | HI114: Lf, DeffA, eta | HJ114: Lf, DeffA, eta | HK114: Lf, DeffA, eta | HL114: Lf, DeffA, eta | HM114: Lf, DeffA, eta | HN114: Qsoil_Qb, Lf, DeffA, eta | HO114: Lf, DeffA, eta | HP114: Lf, DeffA, eta | HQ114: Lf, DeffA, eta | HR114: Lf, DeffA, eta | HS114: Lf, DeffA, eta | HT114: Lf, DeffA, eta | HU114: Lf, DeffA, eta | HV114: Lf, DeffA, eta | HW114: Lf, DeffA, eta | HX114: Lf, DeffA, eta | HZ114: Lf, DeffA, eta | IA114: Lf, DeffA, eta | IB114: Qsoil_Qb, Lf, DeffA, eta | IC114: Qsoil_Qb, Lf, DeffA, eta | ID114: Lf, DeffA, eta | IE114: Lf, DeffA, eta | IF114: Lf, DeffA, eta | IG114: Qsoil_Qb, Lf, DeffA, eta | IH114: Qsoil_Qb, Lf, DeffA, eta | II114: Lf, DeffA, eta | IJ114: Lf, DeffA, eta | IO114: Lf, DeffA, eta | IP114: Lf, DeffA, eta | IQ114: Qsoil_Qb, Lf, DeffA, eta | IR114: Lf, DeffA, eta | IS114: Lf, DeffA, eta | IT114: Lf, DeffA, eta | IU114: Lf, DeffA, eta | IV114: Lf, DeffA, eta | IW114: Lf, DeffA, eta | IX114: Lf, DeffA, eta | IY114: Lf, DeffA, eta | IZ114: Lf, DeffA, eta | JA114: Lf, DeffA, eta | JB114: Lf, DeffA, eta | JC114: Lf, DeffA, eta | JD114: Qsoil_Qb, Lf, DeffA, eta | JE114: Lf, DeffA, eta | JF114: Lf, DeffA, eta | JG114: Lf, DeffA, eta | JH114: Lf, DeffA, eta | JI114: Qsoil_Qb, Lf, DeffA, eta | JJ114: Qsoil_Qb, Lf, DeffA, eta | JK114: Lf, DeffA, eta | JL114: Lf, DeffA, eta | JM114: Lf, DeffA, eta | JN114: Lf, DeffA, eta | JO114: Lf, DeffA, eta | JP114: Lf, DeffA, eta | JQ114: Lf, DeffA, eta | JR114: Lf, DeffA, eta
B115: =IF(B_Param<0.1,IF((A_Param*B_Param/C_Param)<0.1,"Qsoil_Qb, Lf, DeffA, eta",IF((A_Param*B_Param/C_Param)>(10*(1+A_Param)),"Qsoil_Qb, Ls, DeffT","Alpha sentive to all parameters.")),"") -> 
A119: Risk Calculations | D119: Units | E119: Symbol | FE119: Value | FF119: Value | FG119: Value | FH119: Value | FI119: Value | FJ119: Value | FK119: Value | FL119: Value | FM119: Value | FN119: Value | FO119: Value | FP119: Value | FQ119: Value | FR119: Value | FS119: Value | FT119: Value | FU119: Value | FV119: Value | FW119: Value | FX119: Value | FY119: Value | FZ119: Value | GA119: Value | GB119: Value | GC119: Value | GD119: Value | GE119: Value | GF119: Value | GG119: Value | GH119: Value | GI119: Value | GJ119: Value | GK119: Value | GL119: Value | GM119: Value | GN119: Value | GO119: Value | GP119: Value | GQ119: Value | GR119: Value | GS119: Value | GT119: Value | GU119: Value | GV119: Value | GW119: Value | GX119: Value | GY119: Value | GZ119: Value | HA119: Value | HB119: Value | HC119: Value | HD119: Value | HE119: Value | HF119: Value | HG119: Value | HH119: Value | HI119: Value | HJ119: Value | HK119: Value | HL119: Value | HM119: Value | HN119: Value | HO119: Value | HP119: Value | HQ119: Value | HR119: Value | HS119: Value | HT119: Value | HU119: Value | HV119: Value | HW119: Value | HX119: Value | HY119: Value | HZ119: Value | IA119: Value | IB119: Value | IC119: Value | ID119: Value | IE119: Value | IF119: Value | IG119: Value | IH119: Value | II119: Value | IJ119: Value | IK119: Value | IL119: Value | IM119: Value | IN119: Value | IO119: Value | IP119: Value | IQ119: Value | IR119: Value | IS119: Value | IT119: Value | IU119: Value | IV119: Value | IW119: Value | IX119: Value | IY119: Value | IZ119: Value | JA119: Value | JB119: Value | JC119: Value | JD119: Value | JE119: Value | JF119: Value | JG119: Value | JH119: Value | JI119: Value | JJ119: Value | JK119: Value | JL119: Value | JM119: Value | JN119: Value | JO119: Value | JP119: Value | JQ119: Value | JR119: Value
A121: Risk-Based Target Screening Levels
A122: Target risk for carcinogens | D122: (-) | E122: Target_CR | FE122: 1e-06 | FF122: 1e-06 | FG122: 1e-06 | FH122: 1e-06 | FI122: 1e-06 | FJ122: 1e-06 | FK122: 1e-06 | FL122: 1e-06 | FM122: 1e-06 | FN122: 1e-06 | FO122: 1e-06 | FP122: 1e-06 | FQ122: 1e-06 | FR122: 1e-06 | FS122: 1e-06 | FT122: 1e-06 | FU122: 1e-06 | FV122: 1e-06 | FW122: 1e-06 | FX122: 1e-06 | FY122: 1e-06 | FZ122: 1e-06 | GA122: 1e-06 | GB122: 1e-06 | GC122: 1e-06 | GD122: 1e-06 | GE122: 1e-06 | GF122: 1e-06 | GG122: 1e-06 | GH122: 1e-06 | GI122: 1e-06 | GJ122: 1e-06 | GK122: 1e-06 | GL122: 1e-06 | GM122: 1e-06 | GN122: 1e-06 | GO122: 1e-06 | GP122: 1e-06 | GQ122: 1e-06 | GR122: 1e-06 | GS122: 1e-06 | GT122: 1e-06 | GU122: 1e-06 | GV122: 1e-06 | GW122: 1e-06 | GX122: 1e-06 | GY122: 1e-06 | GZ122: 1e-06 | HA122: 1e-06 | HB122: 1e-06 | HC122: 1e-06 | HD122: 1e-06 | HE122: 1e-06 | HF122: 1e-06 | HG122: 1e-06 | HH122: 1e-06 | HI122: 1e-06 | HJ122: 1e-06 | HK122: 1e-06 | HL122: 1e-06 | HM122: 1e-06 | HN122: 1e-06 | HO122: 1e-06 | HP122: 1e-06 | HQ122: 1e-06 | HR122: 1e-06 | HS122: 1e-06 | HT122: 1e-06 | HU122: 1e-06 | HV122: 1e-06 | HW122: 1e-06 | HX122: 1e-06 | HY122: 1e-06 | HZ122: 1e-06 | IA122: 1e-06 | IB122: 1e-06 | IC122: 1e-06 | ID122: 1e-06 | IE122: 1e-06 | IF122: 1e-06 | IG122: 1e-06 | IH122: 1e-06 | II122: 1e-06 | IJ122: 1e-06 | IK122: 1e-06 | IL122: 1e-06 | IM122: 1e-06 | IN122: 1e-06 | IO122: 1e-06 | IP122: 1e-06 | IQ122: 1e-06 | IR122: 1e-06 | IS122: 1e-06 | IT122: 1e-06 | IU122: 1e-06 | IV122: 1e-06 | IW122: 1e-06 | IX122: 1e-06 | IY122: 1e-06 | IZ122: 1e-06 | JA122: 1e-06 | JB122: 1e-06 | JC122: 1e-06 | JD122: 1e-06 | JE122: 1e-06 | JF122: 1e-06 | JG122: 1e-06 | JH122: 1e-06 | JI122: 1e-06 | JJ122: 1e-06 | JK122: 1e-06 | JL122: 1e-06 | JM122: 1e-06 | JN122: 1e-06 | JO122: 1e-06 | JP122: 1e-06 | JQ122: 1e-06 | JR122: 1e-06
A123: Target hazard quotient for noncarcinogens | D123: (-) | E123: Target_HQ | FE123: 1 | FF123: 1 | FG123: 1 | FH123: 1 | FI123: 1 | FJ123: 1 | FK123: 1 | FL123: 1 | FM123: 1 | FN123: 1 | FO123: 1 | FP123: 1 | FQ123: 1 | FR123: 1 | FS123: 1 | FT123: 1 | FU123: 1 | FV123: 1 | FW123: 1 | FX123: 1 | FY123: 1 | FZ123: 1 | GA123: 1 | GB123: 1 | GC123: 1 | GD123: 1 | GE123: 1 | GF123: 1 | GG123: 1 | GH123: 1 | GI123: 1 | GJ123: 1 | GK123: 1 | GL123: 1 | GM123: 1 | GN123: 1 | GO123: 1 | GP123: 1 | GQ123: 1 | GR123: 1 | GS123: 1 | GT123: 1 | GU123: 1 | GV123: 1 | GW123: 1 | GX123: 1 | GY123: 1 | GZ123: 1 | HA123: 1 | HB123: 1 | HC123: 1 | HD123: 1 | HE123: 1 | HF123: 1 | HG123: 1 | HH123: 1 | HI123: 1 | HJ123: 1 | HK123: 1 | HL123: 1 | HM123: 1 | HN123: 1 | HO123: 1 | HP123: 1 | HQ123: 1 | HR123: 1 | HS123: 1 | HT123: 1 | HU123: 1 | HV123: 1 | HW123: 1 | HX123: 1 | HY123: 1 | HZ123: 1 | IA123: 1 | IB123: 1 | IC123: 1 | ID123: 1 | IE123: 1 | IF123: 1 | IG123: 1 | IH123: 1 | II123: 1 | IJ123: 1 | IK123: 1 | IL123: 1 | IM123: 1 | IN123: 1 | IO123: 1 | IP123: 1 | IQ123: 1 | IR123: 1 | IS123: 1 | IT123: 1 | IU123: 1 | IV123: 1 | IW123: 1 | IX123: 1 | IY123: 1 | IZ123: 1 | JA123: 1 | JB123: 1 | JC123: 1 | JD123: 1 | JE123: 1 | JF123: 1 | JG123: 1 | JH123: 1 | JI123: 1 | JJ123: 1 | JK123: 1 | JL123: 1 | JM123: 1 | JN123: 1 | JO123: 1 | JP123: 1 | JQ123: 1 | JR123: 1
A124: Target indoor air concentration | D124: (ug/m3) | E124: Target_IA | FE124: 0.03128571429 | FF124: 1.042857143e-05 | FG124: 0.73 | FH124: 0.03128571429 | FI124: 3.128571429e-05 | FJ124: 0.02085714286 | FK124: 0.0008342857143 | FL124: 0.0146 | FM124: 0.002085714286 | FN124: No tox data available | FO124: No tox data available | FP124: 0.2085714286 | FQ124: No tox data available | FR124: 0.0003128571429 | FS124: No tox data available | FT124: 0.03128571429 | FU124: 20.85714286 | FV124: 0.001042857143 | FW124: 0.02085714286 | FX124: No tox data available | FY124: 0.02085714286 | FZ124: 5.214285714 | GA124: 2.085714286e-05 | GB124: 3.128571429 | GC124: 0.001042857143 | GD124: 0.73 | GE124: 0.04171428571 | GF124: 3.128571429 | GG124: 0.6257142857 | GH124: No tox data available | GI124: No tox data available | GJ124: No tox data available | GK124: No tox data available | GL124: 0.0005505279035 | GM124: No tox data available | GN124: 0.1042857143 | GO124: 0.003128571429 | GP124: 1.46e-05 | GQ124: 0.009385714286 | GR124: 0.005214285714 | GS124: 0.00103988604 | GT124: 4.171428571e-05 | GU124: 0.001754807692 | GV124: 0.0004456654457 | GW124: No tox data available | GX124: 0.02085714286 | GY124: No tox data available | GZ124: No tox data available | HA124: No tox data available | HB124: 0.001355714286 | HC124: 0.001355714286 | HD124: 0.001355714286 | HE124: 0.001355714286 | HF124: 4.171428571e-07 | HG124: No tox data available | HH124: No tox data available | HI124: 1.042857143 | HJ124: No tox data available | HK124: 0.0003128571429 | HL124: 0.0003128571429 | HM124: No tox data available | HN124: No tox data available | HO124: No tox data available | HP124: 0.008342857143 | HQ124: 1.042857143 | HR124: 3.128571429 | HS124: 2.085714286 | HT124: 0.03128571429 | HU124: No tox data available | HV124: No tox data available | HW124: No tox data available | HX124: 1.042857143 | HY124: 0.001042857143 | HZ124: 4.171428571e-08 | IA124: No tox data available | IB124: No tox data available | IC124: 0.0001355714286 | ID124: 0.3794178794 | IE124: 0.04840848806 | IF124: 0.04171428571 | IG124: No tox data available | IH124: No tox data available | II124: 83.42857143 | IJ124: 2.085714286 | IK124: No tox data available | IL124: No tox data available | IM124: No tox data available | IN124: 0.0001042857143 | IO124: 5.214285714 | IP124: No tox data available | IQ124: No tox data available | IR124: 31.28571429 | IS124: No tox data available | IT124: 0.002085714286 | IU124: 5.214285714 | IV124: 0.0002085714286 | IW124: 0.002079381085 | IX124: No tox data available | IY124: No tox data available | IZ124: 0.0003128571429 | JA124: 0.0003128571429 | JB124: 0.0073 | JC124: 20.85714286 | JD124: No tox data available | JE124: 0.005214285714 | JF124: 0.0073 | JG124: No tox data available | JH124: No tox data available | JI124: No tox data available | JJ124: 0.004254079254 | JK124: No tox data available | JL124: 0.2085714286 | JM124: 0.003128571429 | JN124: 0.1042857143 | JO124: 0.1042857143 | JP124: 0.1042857143 | JQ124: 0.1042857143 | JR124: 0.1042857143
D125: (ppbv) | E125: Target_IA | FE125: 0.003232443066 | FF125: 1.51654493e-06 | FG125: 0.2071967323 | FH125: 0.007640261296 | FI125: 2.388043599e-05 | FJ125: 0.01439113439 | FK125: 0.00075507395 | FL125: 0.01785044487 | FM125: 0.001496965124 | FN125: No tox data available | FO125: No tox data available | FP125: 0.0848903796 | FQ125: No tox data available | FR125: 3.814988641e-05 | FS125: No tox data available | FT125: 0.01140612856 | FU125: 15.92178123 | FV125: 0.0002159340194 | FW125: 0.006704238255 | FX125: No tox data available | FY125: 0.005925889051 | FZ125: 1.768755597 | GA125: 1.1073227e-05 | GB125: 0.7640261296 | GC125: 0.0004471058984 | GD125: 0.1783439872 | GE125: 0.002877902151 | GF125: 0.8681110497 | GG125: 0.1802005278 | GH125: No tox data available | GI125: No tox data available | GJ125: No tox data available | GK125: No tox data available | GL125: 2.468318673e-05 | GM125: No tox data available | GO125: 0.0005970108999 | GP125: 2.091651341e-06 | GQ125: 0.00186479223 | GR125: 0.002089438714 | GS125: 0.0002854886642 | GT125: 1.377281466e-05 | GU125: 0.0002712328351 | GV125: 0.0001237200863 | GW125: No tox data available | GX125: 0.003977590163 | GY125: No tox data available | GZ125: No tox data available | HA125: No tox data available | HB125: 0.0001015830518 | HC125: 0.0001015830518 | HD125: 0.0001015830518 | HE125: 0.0001015830518 | HF125: 3.125632363e-08 | HG125: No tox data available | HH125: No tox data available | HI125: 0.3535402935 | HJ125: No tox data available | HK125: 7.736269513e-05 | HL125: 0.0002250863496 | HM125: No tox data available | HN125: No tox data available | HO125: No tox data available | HP125: 0.003513477483 | HQ125: 0.2122153554 | HR125: 1.818513275 | HS125: 0.5660771549 | HT125: 0.01317554056 | HU125: No tox data available | HV125: No tox data available | HW125: No tox data available | HX125: 0.2449187299 | HY125: 0.0003186066513 | HZ125: 3.168927972e-09 | IA125: No tox data available | IB125: No tox data available | IC125: 1.13568175e-05 | ID125: 0.05529080328 | IE125: 0.007054343867 | IF125: 0.006152876009 | IG125: No tox data available | IH125: No tox data available | II125: 20.00061607 | IJ125: 0.7075022387 | IK125: No tox data available | IL125: No tox data available | IM125: No tox data available | IN125: 1.34481338e-05 | IO125: 1.384183419 | IP125: No tox data available | IQ125: No tox data available | IR125: 4.083939436 | IS125: No tox data available | IT125: 0.0002811604929 | IU125: 0.956011008 | IV125: 3.824044032e-05 | IW125: 0.0003871045083 | IX125: No tox data available | IY125: No tox data available | IZ125: 5.190589238e-05 | JA125: 5.262333733e-05 | JB125: 0.00176458148 | JC125: 6.070438408 | JD125: No tox data available | JE125: 0.001061076777 | JF125: 0.001485507488 | JG125: No tox data available | JH125: No tox data available | JI125: No tox data available | JJ125: 0.0001491568168 | JK125: No tox data available | JL125: 0.05925889051 | JM125: 0.0007155199359 | JN125: 0.04081391017 | JO125: 0.0240258884 | JP125: 0.0240258884 | JQ125: 0.0240258884 | JR125: 0.0240258884
A126: =IF(Source="Groundwater","Target groundwater concentration","Target soil gas concentration") -> Target groundwater concentration | D126: =IF(Source="Groundwater","(ug/L)","(ug/m3)") -> (ug/L) | E126: =IF(Source="Groundwater","Target_GW","Target_SV") -> Target_GW | FE126: 0.8049046575 | FF126: 0.01286940937 | FG126: 0.01986780008 | FH126: 14.70186678 | FI126: 0.7749261496 | FJ126: 2.457121702e-10 | FK126: 0.1510029265 | FL126: 2.808753383 | FM126: 0.005845171387 | FN126: No tox data available | FO126: No tox data available | FP126: 599.5739117 | FQ126: No tox data available | FR126: 0.003810506028 | FS126: No tox data available | FT126: 4.691626252 | FU126: 78645.20255 | FV126: 86.81059315 | FW126: 1296.532384 | FX126: No tox data available | FY126: 4.178712523 | FZ126: 3098.593147 | GA126: 0.1277861577 | GB126: 1040.360289 | GC126: 0.03745623816 | GD126: 104.348337 | GE126: 2.820851617 | GF126: 248.2643017 | GG126: 7.284045476 | GH126: No tox data available | GI126: No tox data available | GJ126: No tox data available | GK126: No tox data available | GL126: 0.0935960753 | GM126: No tox data available | GO126: 0.391686902 | GP126: 2.251186198e-06 | GQ126: 13.93914075 | GR126: 4.581049347 | GS126: 0.338197727 | GT126: 0.4826254446 | GU126: 6.093748442 | GV126: 7.135466957 | GW126: No tox data available | GX126: 0.0004061031165 | GY126: No tox data available | GZ126: No tox data available | HA126: No tox data available | HB126: 0.5711590653 | HC126: 1.485794192 | HD126: 0.5622559437 | HE126: 0.8114893345 | HF126: 0.000249689026 | HG126: No tox data available | HH126: No tox data available | HI126: 0.03712828894 | HJ126: No tox data available | HK126: 0.0007780164614 | HL126: 0.0003077526141 | HM126: No tox data available | HN126: No tox data available | HO126: No tox data available | HP126: 3.450274278 | HQ126: 5.728627658 | HR126: 0.5645108754 | HS126: 51814.74004 | HT126: 13.7453624 | HU126: No tox data available | HV126: No tox data available | HW126: No tox data available | HX126: 18.8925906 | HZ126: 4.550585901e-05 | IA126: No tox data available | IB126: No tox data available | IC126: 0.06850348169 | ID126: 10.5248296 | IE126: 8.509833361 | IF126: 0.1583866392 | IG126: No tox data available | IH126: No tox data available | II126: 74.10044229 | IJ126: 993.4861559 | IK126: No tox data available | IL126: No tox data available | IM126: No tox data available | IO126: 36.44465096 | IP126: No tox data available | IQ126: No tox data available | IR126: 5.211634717 | IS126: No tox data available | IT126: 0.1200278623 | IU126: 16.41469598 | IV126: 0.013031144 | IW126: 0.01087684094 | IX126: No tox data available | IY126: No tox data available | IZ126: 0.05150175208 | JA126: 0.001042086002 | JB126: 2.361204167 | JC126: 1.037421524 | JD126: No tox data available | JE126: 0.06774670531 | JF126: 0.06776438223 | JG126: No tox data available | JH126: No tox data available | JI126: No tox data available | JJ126: 17.77095217 | JK126: No tox data available | JL126: 17.15459208 | JM126: 0.01086426318 | JN126: 0.1350599543 | JO126: 0.7508530296 | JP126: 1.032730531 | JQ126: 0.7823784443 | JR126: 0.8114871529
A127: Incremental Risk Estimates
